Workbook

Sheet Data underlying Table 1
A1: File S1. Country-level dataset used to compare CHERG, GBD and WHO/CDC estimates of U5 deaths, U5 diarrhoea deaths and U5 rotavirus deaths in the year 2013
A2: Note: Region and global estimates may differ from official WHO/CDC, CHERG and GBD estimates because a standard set of countries and regions was used and no rounding was done prior to aggregation.
D5: Rotavirus deaths<5yrs | H5: Diarrhoea deaths <5yrs | L5: Proportion of U5 diarrhoea deaths <5yrs | P5: U5 deaths <5yrs | S5: Proportion of u5 deaths | W5: CDC, Rotavirus deaths <5yrs | AL5: CDC, Diarrhoea deaths <5yrs | BA5: CHERG, Rotavirus deaths < 5yrs | BE5: GBD, Fraction of diarrhoea deaths due to rota | CJ5: GBD, Rota deaths <5yrs | DP5: GBD, All-cause diarrhoea deaths <5yrs | EW5: Total U5 deaths IGME | FW5: Total U5 deaths GBD
L6: due to rotavirus | S6: due to diarrhoea | EW6: http://www.childmortality.org/ | FW6: http://ghdx.healthdata.org
BA7: Region | EW7: Accessed 24 March 2015 | FW7: Accessed 24 March 2015
D8: 2013 | H8: 2013 | L8: 2013 | P8: 2013 | BA8: Proportion | BB8: CHERG | BE8: 1990 | BJ8: 1995 | BO8: 2000 | BT8: 2005 | BY8: 2010 | CD8: 2013 | CK8: 1990 | CO8: 1990 Total | CP8: 1995 | CT8: 1995 Total | CU8: 2000 | CY8: 2000 Total | CZ8: 2005 | DD8: 2005 Total | DE8: 2010 | DI8: 2010 Total | DJ8: 2013 | DN8: 2013 Total | DP8: 1990 | DU8: 1995 | DZ8: 2000 | EE8: 2005 | EJ8: 2010 | EO8: 2013
A9: Country | B9: WHO subregion | C9: WHO region | D9: GBD | E9: CHERG | F9: CDC | H9: GBD | I9: CHERG | J9: CDC | L9: GBD | M9: CHERG | N9: CDC | P9: GBD | Q9: IGME | S9: GBD | T9: CHERG | W9: 2000 | X9: 2001 | Y9: 2002 | Z9: 2003 | AA9: 2004 | AB9: 2005 | AC9: 2006 | AD9: 2007 | AE9: 2008 | AF9: 2009 | AG9: 2010 | AH9: 2011 | AI9: 2012 | AJ9: 2013 | AL9: 2000 | AM9: 2001 | AN9: 2002 | AO9: 2003 | AP9: 2004 | AQ9: 2005 | AR9: 2006 | AS9: 2007 | AT9: 2008 | AU9: 2009 | AV9: 2010 | AW9: 2011 | AX9: 2012 | AY9: 2013 | BA9: 2013 | BB9: 2013 | BE9: 0-6 days | BF9: 7-27 days | BG9: 28-364 days | BH9: 1-4 years | BJ9: 0-6 days | BK9: 7-27 days | BL9: 28-364 days | BM9: 1-4 years | BO9: 0-6 days | BP9: 7-27 days | BQ9: 28-364 days | BR9: 1-4 years | BT9: 0-6 days | BU9: 7-27 days | BV9: 28-364 days | BW9: 1-4 years | BY9: 0-6 days | BZ9: 7-27 days | CA9: 28-364 days | CB9: 1-4 years | CD9: 0-6 days | CE9: 7-27 days | CF9: 28-364 days | CG9: 1-4 years | CJ9: Row Labels | CK9: 0-6 days | CL9: 7-27 days | CM9: 28-364 days | CN9: 1-4 years | CO9: <5yrs | CP9: 0-6 days | CQ9: 7-27 days | CR9: 28-364 days | CS9: 1-4 years | CT9: <5yrs | CU9: 0-6 days | CV9: 7-27 days | CW9: 28-364 days | CX9: 1-4 years | CY9: <5yrs | CZ9: 0-6 days | DA9: 7-27 days | DB9: 28-364 days | DC9: 1-4 years | DD9: <5yrs | DE9: 0-6 days | DF9: 7-27 days | DG9: 28-364 days | DH9: 1-4 years | DI9: <5yrs | DJ9: 0-6 days | DK9: 7-27 days | DL9: 28-364 days | DM9: 1-4 years | DN9: <5yrs | DP9: 0-6 days | DQ9: 7-27 days | DR9: 28-364 days | DS9: 1-4 years | DT9: <5yrs | DU9: 0-6 days | DV9: 7-27 days | DW9: 28-364 days | DX9: 1-4 years | DY9: <5yrs | DZ9: 0-6 days | EA9: 7-27 days | EB9: 28-364 days | EC9: 1-4 years | ED9: <5yrs | EE9: 0-6 days | EF9: 7-27 days | EG9: 28-364 days | EH9: 1-4 years | EI9: <5yrs | EJ9: 0-6 days | EK9: 7-27 days | EL9: 28-364 days | EM9: 1-4 years | EN9: <5yrs | EO9: 0-6 days | EP9: 7-27 days | EQ9: 28-364 days | ER9: 1-4 years | ES9: <5yrs | EW9: 1990 | EX9: 1991 | EY9: 1992 | EZ9: 1993 | FA9: 1994 | FB9: 1995 | FC9: 1996 | FD9: 1997 | FE9: 1998 | FF9: 1999 | FG9: 2000 | FH9: 2001 | FI9: 2002 | FJ9: 2003 | FK9: 2004 | FL9: 2005 | FM9: 2006 | FN9: 2007 | FO9: 2008 | FP9: 2009 | FQ9: 2010 | FR9: 2011 | FS9: 2012 | FT9: 2013 | FW9: 1990 | FX9: 1991 | FY9: 1992 | FZ9: 1993 | GA9: 1994 | GB9: 1995 | GC9: 1996 | GD9: 1997 | GE9: 1998 | GF9: 1999 | GG9: 2000 | GH9: 2001 | GI9: 2002 | GJ9: 2003 | GK9: 2004 | GL9: 2005 | GM9: 2006 | GN9: 2007 | GO9: 2008 | GP9: 2009 | GQ9: 2010 | GR9: 2011 | GS9: 2012 | GT9: 2013
A10: Afghanistan | B10: EmrD | C10: =IF(LEFT(B10,4)="sear","Sear",LEFT(B10,3)) -> Emr | D10: =DN10 -> 2957.964078 | E10: =BB10 -> 4136.804848 | F10: =AJ10 -> 4792.068165 | H10: =ES10 -> 11889.74112 | I10: =AY10 -> 13216.62891 | J10: =AY10 -> 13216.62891 | L10: =D10/H10 -> 0.2487828834 | M10: =E10/I10 -> 0.313 | N10: =F10/J10 -> 0.3625787029 | P10: =GT10 -> 94721 | Q10: =FT10 -> 100107 | S10: =H10/GT10 -> 0.1255238133 | T10: =I10/FT10 -> 0.1320250223 | W10: 10132.77901 | X10: 9973.932213 | Y10: 9640.586189 | Z10: 9257.188285 | AA10: 8792.721504 | AB10: 8248.287645 | AC10: 7769.021612 | AD10: 7279.557147 | AE10: 6797.110454 | AF10: 6825.478457 | AG10: 6313.080553 | AH10: 5773.12504 | AI10: 5254.976273 | AJ10: 4792.068165 | AL10: 24707.47461 | AM10: 24537.13867 | AN10: 23945.16602 | AO10: 23223.31641 | AP10: 22281.70312 | AQ10: 21112.49609 | AR10: 20081.63672 | AS10: 18994.51758 | AT10: 17899.56641 | AU10: 18135.76172 | AV10: 16926.36133 | AW10: 15622.8623 | AX10: 14354.6123 | AY10: 13216.62891 | BA10: 0.313 | BB10: =AY10*BA10 -> 4136.804848 | BE10: 0.1984248749 | BF10: 0.199300346 | BG10: 0.2027153797 | BH10: 0.1553123895 | BI10: =CO10/DT10 -> 0.1843623922 | BJ10: 0.2726908693 | BK10: 0.2746331921 | BL10: 0.296850258 | BM10: 0.2081981733 | BN10: =CT10/DY10 -> 0.2631166926 | BO10: 0.2384948093 | BP10: 0.2413305199 | BQ10: 0.2514870382 | BR10: 0.1825758528 | BS10: =CY10/ED10 -> 0.2259122948 | BT10: 0.2758401388 | BU10: 0.276378591 | BV10: 0.2836081206 | BW10: 0.2046816736 | BX10: =DD10/EI10 -> 0.2526991667 | BY10: 0.2858105678 | BZ10: 0.2885145344 | CA10: 0.3120945052 | CB10: 0.2262157048 | CC10: =DI10/EN10 -> 0.2800088905 | CD10: 0.2672169392 | CE10: 0.2671394659 | CF10: 0.2753371587 | CG10: 0.1996239667 | CH10: =DN10/ES10 -> 0.2487828834 | CJ10: Afghanistan | CK10: 59.48281152 | CL10: 270.8665671 | CM10: 2100.315579 | CN10: 1147.714046 | CO10: 3578.379004 | CP10: 111.1598316 | CQ10: 489.8296302 | CR10: 4153.905083 | CS10: 1882.197872 | CT10: 6637.092416 | CU10: 111.9198333 | CV10: 476.0142168 | CW10: 4023.500842 | CX10: 1876.812631 | CY10: 6488.247523 | CZ10: 92.88662945 | DA10: 369.3071397 | DB10: 3527.075085 | DC10: 1806.642974 | DD10: 5795.911828 | DE10: 85.56168881 | DF10: 283.7250691 | DG10: 2494.674451 | DH10: 1121.012132 | DI10: 3984.973341 | DJ10: 66.06587779 | DK10: 205.3336291 | DL10: 1876.04059 | DM10: 810.5239815 | DN10: 2957.964078 | DP10: 299.7749731 | DQ10: 1359.08729 | DR10: 10360.90889 | DS10: 7389.713402 | DT10: 19409.48455 | DU10: 407.6404607 | DV10: 1783.577675 | DW10: 13993.26755 | DX10: 9040.414916 | DY10: 25224.9006 | DZ10: 469.2757616 | EA10: 1972.457595 | EB10: 15998.83983 | EC10: 10279.63228 | ED10: 28720.20547 | EE10: 336.7408016 | EF10: 1336.236423 | EG10: 12436.43898 | EH10: 8826.598599 | EI10: 22936.0148 | EJ10: 299.3650286 | EK10: 983.39957 | EL10: 7993.330255 | EM10: 4955.500914 | EN10: 14231.59577 | EO10: 247.2368631 | EP10: 768.6383156 | EQ10: 6813.612077 | ER10: 4060.253861 | ES10: 11889.74112 | EV10: Afghanistan | EW10: 97857 | EX10: 99785 | EY10: 105301 | EZ10: 112401 | FA10: 118791 | FB10: 122581 | FC10: 127949 | FD10: 131296 | FE10: 132969 | FF10: 133917 | FG10: 134852 | FH10: 135015 | FI10: 134382 | FJ10: 133040 | FK10: 131008 | FL10: 128332 | FM10: 125936 | FN10: 123301 | FO10: 120405 | FP10: 117276 | FQ10: 113759 | FR10: 109474 | FS10: 104846 | FT10: 100107 | FV10: Afghanistan | GT10: 94721
A11: Albania | B11: EurB | C11: =IF(LEFT(B11,4)="sear","Sear",LEFT(B11,3)) -> Eur | D11: 2.11069843 | E11: 1.535030644 | F11: 2.367702247 | H11: 8.396208568 | I11: 5.926759243 | J11: 5.926759243 | L11: 0.251387089 | M11: 0.259 | N11: 0.3994935764 | P11: 724 | Q11: 636 | S11: 0.01159697316 | T11: 0.009318803841 | W11: 16.85946608 | X11: 13.77308479 | Y11: 10.81270555 | Z11: 8.506414512 | AA11: 6.443539789 | AB11: 4.96899702 | AC11: 4.184123193 | AD11: 3.655494756 | AE11: 3.28401766 | AF11: 2.974547537 | AG11: 2.795301603 | AH11: 2.622822504 | AI11: 2.470726511 | AJ11: 2.367702247 | AL11: 39.17161942 | AM11: 32.19855118 | AN11: 25.43143272 | AO11: 20.12645721 | AP11: 15.33735085 | AQ11: 11.89724159 | AR11: 10.0759182 | AS11: 8.852765083 | AT11: 7.998529434 | AU11: 7.285191536 | AV11: 6.884582996 | AW11: 6.495228767 | AX11: 6.151471615 | AY11: 5.926759243 | BA11: 0.259 | BB11: 1.535030644 | BE11: 0.2476802018 | BF11: 0.2485708828 | BG11: 0.2581673952 | BH11: 0.1751888606 | BI11: =CO11/DT11 -> 0.2391427675 | BJ11: 0.2391402444 | BK11: 0.2394558823 | BL11: 0.2427521654 | BM11: 0.1617715251 | BN11: =CT11/DY11 -> 0.2199154481 | BO11: 0.2928119504 | BP11: 0.292638891 | BQ11: 0.2887695275 | BR11: 0.1789903955 | BS11: =CY11/ED11 -> 0.2563337822 | BT11: 0.2122009211 | BU11: 0.2135834622 | BV11: 0.2324730299 | BW11: 0.154678508 | BX11: =DD11/EI11 -> 0.2091645904 | BY11: 0.2665814823 | BZ11: 0.2689004272 | CA11: 0.2833147974 | CB11: 0.1800545542 | CC11: =DI11/EN11 -> 0.2568069587 | CD11: 0.2626222116 | CE11: 0.2612994258 | CF11: 0.2746683401 | CG11: 0.1783273698 | CH11: =DN11/ES11 -> 0.251387089 | CJ11: Albania | CK11: 0.1784975018 | CL11: 1.250866685 | CM11: 20.38400967 | CN11: 4.261572026 | CO11: 26.07494588 | CP11: 0.1191816508 | CQ11: 0.7167523831 | CR11: 10.73146684 | CS11: 2.998232864 | CT11: 14.56563374 | CU11: 0.0642104629 | CV11: 0.3495266751 | CW11: 4.238585349 | CX11: 1.220656299 | CY11: 5.872978786 | CZ11: 0.02021176336 | DA11: 0.1538901408 | DB11: 1.801646727 | DC11: 0.5226674031 | DD11: 2.498416035 | DE11: 0.01258671732 | DF11: 0.1374132621 | DG11: 1.664916111 | DH11: 0.3810148832 | DI11: 2.195930974 | DJ11: 0.01000703848 | DK11: 0.1258972638 | DL11: 1.625743336 | DM11: 0.3490507916 | DN11: 2.11069843 | DP11: 0.720677311 | DQ11: 5.032233344 | DR11: 78.95656093 | DS11: 24.32558789 | DT11: 109.0350595 | DU11: 0.49837555 | DV11: 2.993254441 | DW11: 44.20750204 | DX11: 18.53374914 | DY11: 66.23288117 | DZ11: 0.2192890789 | EA11: 1.194395844 | EB11: 14.67809081 | EC11: 6.819674851 | ED11: 22.91145059 | EE11: 0.09524823571 | EF11: 0.7205152459 | EG11: 7.749917177 | EH11: 3.379056403 | EI11: 11.94473706 | EJ11: 0.04721527245 | EK11: 0.511019129 | EL11: 5.876558962 | EM11: 2.116108003 | EN11: 8.550901366 | EO11: 0.03810431119 | EP11: 0.4818122484 | EQ11: 5.918932395 | ER11: 1.957359614 | ES11: 8.396208568 | EV11: Albania | EW11: 3605 | EX11: 3367 | EY11: 3062 | EZ11: 2738 | FA11: 2450 | FB11: 2238 | FC11: 2096 | FD11: 2020 | FE11: 1958 | FF11: 1882 | FG11: 1743 | FH11: 1547 | FI11: 1320 | FJ11: 1095 | FK11: 903 | FL11: 773 | FM11: 698 | FN11: 671 | FO11: 671 | FP11: 679 | FQ11: 679 | FR11: 668 | FS11: 655 | FT11: 636 | FV11: Albania | GT11: 724
A12: Algeria | B12: AfrD | C12: Afr | D12: 162.6590893 | E12: 335.9459497 | F12: 508.6976208 | H12: 632.9454441 | I12: 1253.529663 | J12: 1253.529663 | L12: 0.2569875347 | M12: 0.268 | N12: 0.4058121924 | P12: 22942 | Q12: 24554 | S12: 0.02758893924 | T12: 0.05105195337 | W12: 830.6357833 | X12: 776.0994092 | Y12: 730.4893155 | Z12: 684.2198085 | AA12: 651.4494599 | AB12: 626.5081589 | AC12: 605.8622237 | AD12: 600.5079981 | AE12: 653.6832373 | AF12: 641.3990943 | AG12: 612.3453561 | AH12: 588.3538975 | AI12: 550.1804834 | AJ12: 508.6976208 | AL12: 1893.481689 | AM12: 1778.644409 | AN12: 1683.612793 | AO12: 1586.645264 | AP12: 1520.212891 | AQ12: 1471.515015 | AR12: 1432.334595 | AS12: 1428.819092 | AT12: 1564.981934 | AU12: 1544.902466 | AV12: 1483.718018 | AW12: 1433.710205 | AX12: 1348.389038 | AY12: 1253.529663 | BA12: 0.268 | BB12: 335.9459497 | BE12: 0.2403064141 | BF12: 0.2446793332 | BG12: 0.2561645556 | BH12: 0.1917946903 | BI12: 0.2386502631 | BJ12: 0.2663153122 | BK12: 0.2637883274 | BL12: 0.2825583502 | BM12: 0.1980924063 | BN12: 0.2601292332 | BO12: 0.2504913233 | BP12: 0.2500182874 | BQ12: 0.2518644299 | BR12: 0.1835130392 | BS12: 0.2349115585 | BT12: 0.2606624123 | BU12: 0.2585305581 | BV12: 0.2591218494 | BW12: 0.1875266507 | BX12: 0.2419435925 | BY12: 0.2674542025 | BZ12: 0.2670055807 | CA12: 0.2700563337 | CB12: 0.1972067503 | CC12: 0.2524473169 | CD12: 0.253376252 | CE12: 0.2582638001 | CF12: 0.2780753416 | CG12: 0.2040982198 | CH12: 0.2569875347 | CJ12: Algeria | CK12: 27.92212669 | CL12: 62.148813 | CM12: 843.6890541 | CN12: 243.1753607 | CO12: 1176.935354 | CP12: 21.51655888 | CQ12: 37.35768597 | CR12: 547.4910592 | CS12: 142.0217964 | CT12: 748.3871004 | CU12: 10.15261765 | CV12: 15.17063026 | CW12: 226.6289783 | CX12: 59.99118917 | CY12: 311.9434153 | CZ12: 8.223447047 | DA12: 10.75616809 | DB12: 153.1333224 | DC12: 39.39758402 | DD12: 211.5105215 | DE12: 7.97504335 | DF12: 10.45965818 | DG12: 132.9667082 | DH12: 34.58535421 | DI12: 185.986764 | DJ12: 6.585804031 | DK12: 9.143263697 | DL12: 113.811566 | DM12: 33.11845553 | DN12: 162.6590893 | DP12: 116.1938469 | DQ12: 254.0010723 | DR12: 3293.543293 | DS12: 1267.894123 | DT12: 4931.632335 | DU12: 80.79354772 | DV12: 141.6199357 | DW12: 1937.621234 | DX12: 716.9472015 | DY12: 2876.981919 | DZ12: 40.53081567 | EA12: 60.67808247 | EB12: 899.8054164 | EC12: 326.9042321 | ED12: 1327.918547 | EE12: 31.54826572 | EF12: 41.60501631 | EG12: 590.9703206 | EH12: 210.0905864 | EI12: 874.214189 | EJ12: 29.81835124 | EK12: 39.17393095 | EL12: 492.3665606 | EM12: 175.3761175 | EN12: 736.7349603 | EO12: 25.99219137 | EP12: 35.40280788 | EQ12: 409.2832014 | ER12: 162.2672435 | ES12: 632.9454441 | EV12: Algeria | EW12: 38816 | EX12: 37186 | EY12: 36026 | EZ12: 34874 | FA12: 33562 | FB12: 31987 | FC12: 30144 | FD12: 28208 | FE12: 26417 | FF12: 24851 | FG12: 23621 | FH12: 22651 | FI12: 21918 | FJ12: 21437 | FK12: 21379 | FL12: 21711 | FM12: 22493 | FN12: 23645 | FO12: 24897 | FP12: 25829 | FQ12: 26185 | FR12: 26114 | FS12: 25458 | FT12: 24554 | FV12: Algeria | GT12: 22942
A13: Andorra | B13: EurA | C13: Eur | D13: 0.002040975629 | E13: 0.0005228367583 | F13: 0.000791710967 | H13: 0.009273066555 | I13: 0.002018674742 | J13: 0.002018674742 | L13: 0.2200971616 | M13: 0.259 | N13: 0.3921934279 | P13: 2 | Q13: 2 | S13: 0.004636533278 | T13: 0.001009337371 | W13: 0.001425236352 | X13: 0.0027516972 | Y13: 0.002592827464 | Z13: 0.002358014993 | AA13: 0.002253495201 | AB13: 0.002196794521 | AC13: 0.001119085074 | AD13: 0.001016536229 | AE13: 0.0008867089203 | AF13: 0.000859977769 | AG13: 0.0008261640302 | AH13: 0.0007896562954 | AI13: 0.0007615361754 | AJ13: 0.000791710967 | AL13: 0.003416107036 | AM13: 0.00662675919 | AN13: 0.006273002364 | AO13: 0.005732231308 | AP13: 0.005503758322 | AQ13: 0.005390410312 | AR13: 0.002759309253 | AS13: 0.002518310444 | AT13: 0.002207149751 | AU13: 0.002150832675 | AV13: 0.002076176461 | AW13: 0.001993997721 | AX13: 0.001932330197 | AY13: 0.002018674742 | BA13: 0.259 | BB13: 0.0005228367583 | BE13: 0.1895213963 | BF13: 0.191870496 | BG13: 0.2073719908 | BH13: 0.1568002244 | BI13: 0.1931931327 | BJ13: 0.1842110251 | BK13: 0.1841047324 | BL13: 0.1938014889 | BM13: 0.1535113171 | BN13: 0.1821513438 | BO13: 0.2032972595 | BP13: 0.2052200901 | BQ13: 0.2173338895 | BR13: 0.1633891809 | BS13: 0.201135057 | BT13: 0.2101947025 | BU13: 0.21191093 | BV13: 0.2350684916 | BW13: 0.1816525948 | BX13: 0.2178787125 | BY13: 0.2094664925 | BZ13: 0.2110773784 | CA13: 0.2471895854 | CB13: 0.1995944623 | CC13: 0.2283290197 | CD13: 0.223674017 | CE13: 0.2255920807 | CF13: 0.2409543416 | CG13: 0.1751157074 | CH13: 0.2200971616 | CJ13: Andorra | CK13: 0.0001297317173 | CL13: 0.00044087188 | CM13: 0.002867641568 | CN13: 0.0008208614203 | CO13: 0.004259106586 | CP13: 9.095032709e-05 | CQ13: 0.0003535791692 | CR13: 0.001817103238 | CS13: 0.000611050924 | CT13: 0.002872683659 | CU13: 9.281889069e-05 | CV13: 0.000381243884 | CW13: 0.001845574343 | CX13: 0.0006325679039 | CY13: 0.002952205022 | CZ13: 0.0001218386312 | DA13: 0.0004958537428 | DB13: 0.002349109702 | DC13: 0.0007690323404 | DD13: 0.003735834416 | DE13: 8.323574355e-05 | DF13: 0.0003396949308 | DG13: 0.001688538376 | DH13: 0.00064999506 | DI13: 0.00276146411 | DJ13: 6.732416518e-05 | DK13: 0.0002750516499 | DL13: 0.001247825934 | DM13: 0.0004507738792 | DN13: 0.002040975629 | DP13: 0.0006845228027 | DQ13: 0.002297757546 | DR13: 0.01382849032 | DS13: 0.005235078097 | DT13: 0.02204584877 | DU13: 0.0004937290102 | DV13: 0.001920532756 | DW13: 0.009376105666 | DX13: 0.003980494308 | DY13: 0.01577086174 | DZ13: 0.0004565673484 | EA13: 0.001857731783 | EB13: 0.008491884756 | EC13: 0.003871540946 | ED13: 0.01467772483 | EE13: 0.000579646536 | EF13: 0.002339915844 | EG13: 0.009993298914 | EH13: 0.004233533473 | EI13: 0.01714639477 | EJ13: 0.0003973702073 | EK13: 0.001609338402 | EL13: 0.006830944648 | EM13: 0.003256578628 | EN13: 0.01209423188 | EO13: 0.0003009923373 | EP13: 0.001219243375 | EQ13: 0.005178682092 | ER13: 0.00257414875 | ES13: 0.009273066555 | EV13: Andorra | EW13: 4 | EX13: 4 | EY13: 4 | EZ13: 4 | FA13: 4 | FB13: 4 | FC13: 4 | FD13: 4 | FE13: 4 | FF13: 3 | FG13: 3 | FH13: 3 | FI13: 3 | FJ13: 3 | FK13: 3 | FL13: 3 | FM13: 2 | FN13: 2 | FO13: 2 | FP13: 2 | FQ13: 2 | FR13: 2 | FS13: 2 | FT13: 2 | FV13: Andorra | GT13: 2
A14: Angola | B14: AfrD | C14: Afr | D14: 1297.14079 | E14: 6020.500133 | F14: 9682.186516 | H14: 9745.706019 | I14: 22464.55273 | J14: 22464.55273 | L14: 0.1330986988 | M14: 0.268 | N14: 0.4309984103 | P14: 83369 | Q14: 153471 | S14: 0.1168984397 | T14: 0.1463765319 | W14: 13204.01601 | X14: 13046.98452 | Y14: 12911.72119 | Z14: 12845.68913 | AA14: 12663.33891 | AB14: 12632.90039 | AC14: 12541.65495 | AD14: 12994.85286 | AE14: 12389.45419 | AF14: 11670.91487 | AG14: 11213.1824 | AH14: 10831.60707 | AI14: 10314.5478 | AJ14: 9682.186516 | AL14: 27209.20117 | AM14: 27063.92578 | AN14: 26969.07617 | AO14: 27015.03125 | AP14: 26829.53906 | AQ14: 26961.70898 | AR14: 27000.71094 | AS14: 28241.66211 | AT14: 27198.65039 | AU14: 25886.60742 | AV14: 25155.84766 | AW14: 24567.32422 | AX14: 23655.25977 | AY14: 22464.55273 | BA14: 0.268 | BB14: 6020.500133 | BE14: 0.1645902329 | BF14: 0.1629677065 | BG14: 0.1500801984 | BH14: 0.1019781452 | BI14: 0.1271854042 | BJ14: 0.173649823 | BK14: 0.1718136401 | BL14: 0.1542998357 | BM14: 0.09889553664 | BN14: 0.1293401147 | BO14: 0.171538144 | BP14: 0.1694824615 | BQ14: 0.1524022859 | BR14: 0.0995071522 | BS14: 0.129551012 | BT14: 0.1791517071 | BU14: 0.1760963701 | BV14: 0.1576318375 | BW14: 0.1042922873 | BX14: 0.1361426274 | BY14: 0.1740955131 | BZ14: 0.1726111934 | CA14: 0.1536812985 | CB14: 0.09773685814 | CC14: 0.1325391454 | CD14: 0.1726314288 | CE14: 0.1706864385 | CF14: 0.1538006295 | CG14: 0.09843220854 | CH14: 0.1330986988 | CJ14: Angola | CK14: 53.77299583 | CL14: 213.8851626 | CM14: 1078.088782 | CN14: 904.7769107 | CO14: 2250.523851 | CP14: 62.26489222 | CQ14: 240.3836122 | CR14: 1172.237156 | CS14: 860.6090178 | CT14: 2335.494678 | CU14: 53.58553933 | CV14: 204.2199207 | CW14: 1047.23309 | CX14: 722.8728732 | CY14: 2027.911423 | CZ14: 51.94242765 | DA14: 179.205295 | DB14: 968.8185044 | DC14: 606.4391215 | DD14: 1806.405348 | DE14: 41.14909653 | DF14: 135.5565752 | DG14: 796.3305194 | DH14: 423.6229287 | DI14: 1396.65912 | DJ14: 36.62609783 | DK14: 117.7199492 | DL14: 756.3150211 | DM14: 386.4797223 | DN14: 1297.14079 | DP14: 326.7083039 | DQ14: 1312.438932 | DR14: 7183.41789 | DS14: 8872.262869 | DT14: 17694.82799 | DU14: 358.5658261 | DV14: 1399.095043 | DW14: 7597.138068 | DX14: 8702.202819 | DY14: 18057.00176 | DZ14: 312.3826462 | EA14: 1204.96197 | EB14: 6871.50513 | EC14: 7264.531818 | ED14: 15653.38156 | EE14: 289.9354323 | EF14: 1017.654679 | EG14: 6146.083936 | EH14: 5814.803157 | EI14: 13268.4772 | EJ14: 236.3593167 | EK14: 785.3289961 | EL14: 5181.700879 | EM14: 4334.321123 | EN14: 10537.71031 | EO14: 212.1635561 | EP14: 689.6854269 | EQ14: 4917.502766 | ER14: 3926.35427 | ES14: 9745.706019 | EV14: Angola | EW14: 113613 | EX14: 116945 | EY14: 120488 | EZ14: 123825 | FA14: 127190 | FB14: 130358 | FC14: 133385 | FD14: 135716 | FE14: 137885 | FF14: 140297 | FG14: 143335 | FH14: 146583 | FI14: 149935 | FJ14: 153556 | FK14: 156843 | FL14: 160096 | FM14: 162412 | FN14: 163732 | FO14: 164073 | FP14: 163666 | FQ14: 161961 | FR14: 160029 | FS14: 157120 | FT14: 153471 | FV14: Angola | GT14: 83369
A15: Antigua and Barbuda | B15: AmrB | C15: Amr | D15: 0.10716446 | E15: 0.06665315688 | F15: 0.08754664322 | H15: 1.047278769 | I15: 0.2848425508 | J15: 0.2848425508 | L15: 0.102326585 | M15: 0.234 | N15: 0.3073510014 | P15: 23 | Q15: 14 | S15: 0.04553385953 | T15: 0.02034589648 | W15: 0 | X15: 0 | Y15: 0 | Z15: 0 | AA15: 0 | AB15: 0 | AC15: 0.08789428528 | AD15: 0.08407243988 | AE15: 0.07625806314 | AF15: 0.03656390803 | AG15: 0.06181921033 | AH15: 0.09415879884 | AI15: 0.07704111347 | AJ15: 0.08754664322 | AL15: 0 | AM15: 0 | AN15: 0 | AO15: 0 | AP15: 0 | AQ15: 0 | AR15: 0.2730566859 | AS15: 0.2629434764 | AT15: 0.2400788218 | AU15: 0.1158756018 | AV15: 0.1971824616 | AW15: 0.3023534715 | AX15: 0.249015525 | AY15: 0.2848425508 | BA15: 0.234 | BB15: 0.06665315688 | BE15: 0.1193401213 | BF15: 0.1177749945 | BG15: 0.1127960949 | BH15: 0.08608602816 | BI15: 0.1061283531 | BJ15: 0.1109050983 | BK15: 0.1119841317 | BL15: 0.1123369519 | BM15: 0.08159967603 | BN15: 0.1044520574 | BO15: 0.1163048095 | BP15: 0.1149300626 | BQ15: 0.1129253135 | BR15: 0.08455916219 | BS15: 0.1054753638 | BT15: 0.1208040302 | BU15: 0.1195698919 | BV15: 0.1149972361 | BW15: 0.08253729524 | BX15: 0.106365561 | BY15: 0.1231669197 | BZ15: 0.1223879686 | CA15: 0.1182555146 | CB15: 0.08231870234 | CC15: 0.1087546164 | CD15: 0.1107955207 | CE15: 0.1101234496 | CF15: 0.1105692573 | CG15: 0.08044454688 | CH15: 0.102326585 | CJ15: Antigua and Barbuda | CK15: 0.008263120806 | CL15: 0.02444005154 | CM15: 0.1351211536 | CN15: 0.04861785442 | CO15: 0.2164421804 | CP15: 0.00940437661 | CQ15: 0.02632070608 | CR15: 0.1743893369 | CS15: 0.05198219421 | CT15: 0.2620966138 | CU15: 0.005700966409 | CV15: 0.0178695092 | CW15: 0.1099276653 | CX15: 0.03740785621 | CY15: 0.1709059972 | CZ15: 0.004175614395 | DA15: 0.01430383252 | DB15: 0.08473724722 | DC15: 0.02923145805 | DD15: 0.1324481522 | DE15: 0.00309249488 | DF15: 0.01161958406 | DG15: 0.06899687415 | DH15: 0.02241874612 | DI15: 0.1061276992 | DJ15: 0.003089909388 | DK15: 0.0109416097 | DL15: 0.07018261522 | DM15: 0.02295032573 | DN15: 0.10716446 | DP15: 0.06924009058 | DQ15: 0.2075147754 | DR15: 1.197924039 | DS15: 0.5647589448 | DT15: 2.03943785 | DU15: 0.08479661217 | DV15: 0.2350396048 | DW15: 1.552377325 | DX15: 0.637039223 | DY15: 2.509252765 | DZ15: 0.04901746054 | EA15: 0.1554815928 | EB15: 0.9734545955 | EC15: 0.4423867886 | ED15: 1.620340437 | EE15: 0.03456519115 | EF15: 0.1196273769 | EG15: 0.7368633375 | EH15: 0.3541606006 | EI15: 1.245216506 | EJ15: 0.02510816124 | EK15: 0.09494057458 | EL15: 0.5834558699 | EM15: 0.2723408592 | EN15: 0.975845465 | EO15: 0.02788839628 | EP15: 0.09935767304 | EQ15: 0.6347389588 | ER15: 0.2852937411 | ES15: 1.047278769 | EV15: Antigua and Barbuda | EW15: 29 | EX15: 26 | EY15: 25 | EZ15: 24 | FA15: 24 | FB15: 24 | FC15: 24 | FD15: 25 | FE15: 25 | FF15: 25 | FG15: 25 | FH15: 24 | FI15: 23 | FJ15: 21 | FK15: 20 | FL15: 19 | FM15: 18 | FN15: 17 | FO15: 16 | FP15: 16 | FQ15: 15 | FR15: 15 | FS15: 14 | FT15: 14 | FV15: Antigua and Barbuda | GT15: 23
A16: Argentina | B16: AmrB | C16: Amr | D16: 38.49988317 | E16: 30.8422576 | F16: 40.83367718 | H16: 154.9492843 | I16: 131.8045197 | J16: 131.8045197 | L16: 0.2484676412 | M16: 0.234 | N16: 0.3098048329 | P16: 9828 | Q16: 9295 | S16: 0.01576610544 | T16: 0.01418015273 | W16: 101.9614585 | X16: 110.3488634 | Y16: 114.7633636 | Z16: 77.30450407 | AA16: 57.85140861 | AB16: 60.32995269 | AC16: 67.35085583 | AD16: 40.37602247 | AE16: 49.18364383 | AF16: 47.69109902 | AG16: 54.65394972 | AH16: 45.49641696 | AI16: 42.75925001 | AJ16: 40.83367718 | AL16: 301.5956116 | AM16: 328.4984741 | AN16: 343.8453369 | AO16: 233.16185 | AP16: 175.6978455 | AQ16: 184.5359192 | AR16: 207.4562988 | AS16: 125.2222061 | AT16: 153.5372772 | AU16: 149.8571625 | AV16: 172.8731537 | AW16: 144.8665314 | AX16: 137.0937195 | AY16: 131.8045197 | BA16: 0.234 | BB16: 30.8422576 | BE16: 0.1505702685 | BF16: 0.1587663212 | BG16: 0.2394968126 | BH16: 0.1840428616 | BI16: 0.220687424 | BJ16: 0.1489504822 | BK16: 0.1596180153 | BL16: 0.2666712112 | BM16: 0.2062805658 | BN16: 0.242430787 | BO16: 0.1491226796 | BP16: 0.1613995628 | BQ16: 0.2883072134 | BR16: 0.2252413017 | BS16: 0.2574903871 | BT16: 0.1589277726 | BU16: 0.1713671486 | BV16: 0.292231482 | BW16: 0.2265690703 | BX16: 0.257616508 | BY16: 0.1595309521 | BZ16: 0.1710362101 | CA16: 0.2851526521 | CB16: 0.2184162993 | CC16: 0.2505329314 | CD16: 0.1573699718 | CE16: 0.1688588911 | CF16: 0.2808434941 | CG16: 0.2167254316 | CH16: 0.2484676412 | CJ16: Argentina | CK16: 2.25921488 | CL16: 6.178973314 | CM16: 128.7929848 | CN16: 33.41427398 | CO16: 170.6454469 | CP16: 1.658905398 | CQ16: 4.309878301 | CR16: 82.39032871 | CS16: 24.03523198 | CT16: 112.3943444 | CU16: 1.086144195 | CV16: 3.232956333 | CW16: 51.19342158 | CX16: 19.26255785 | CY16: 74.77507996 | CZ16: 0.7115506226 | DA16: 3.179812363 | DB16: 33.03368632 | DC16: 13.65075871 | DD16: 50.57580801 | DE16: 0.5652759673 | DF16: 3.311769169 | DG16: 27.66006138 | DH16: 10.17658788 | DI16: 41.71369439 | DJ16: 0.5060018886 | DK16: 2.951582743 | DL16: 26.04393684 | DM16: 8.998361693 | DN16: 38.49988317 | DP16: 15.004389 | DQ16: 38.9186653 | DR16: 537.7649221 | DS16: 181.5570226 | DT16: 773.244999 | DU16: 11.13729457 | DV16: 27.00120217 | DW16: 308.9584674 | DX16: 116.5171905 | DY16: 463.6141547 | DZ16: 7.283561416 | EA16: 20.03076264 | EB16: 177.5655246 | EC16: 85.51965253 | ED16: 290.3995012 | EE16: 4.477194961 | EF16: 18.55555391 | EG16: 113.0394511 | EH16: 60.2498774 | EI16: 196.3220773 | EJ16: 3.543362338 | EK16: 19.36297096 | EL16: 97.0008912 | EM16: 46.59262112 | EN16: 166.4998456 | EO16: 3.215364931 | EP16: 17.47958146 | EQ16: 92.73469882 | ER16: 41.51963906 | ES16: 154.9492843 | EV16: Argentina | EW16: 20215 | EX16: 19715 | EY16: 19012 | EZ16: 18215 | FA16: 17382 | FB16: 16681 | FC16: 16061 | FD16: 15476 | FE16: 14984 | FF16: 14484 | FG16: 13962 | FH16: 13495 | FI16: 13019 | FJ16: 12493 | FK16: 11955 | FL16: 11422 | FM16: 11036 | FN16: 10776 | FO16: 10666 | FP16: 10530 | FQ16: 10327 | FR16: 10059 | FS16: 9659 | FT16: 9295 | FV16: Argentina | GT16: 9828
A17: Armenia | B17: EurB | C17: Eur | D17: 3.669309775 | E17: 1.604051796 | F17: 1.729153595 | H17: 15.99721191 | I17: 6.193250179 | J17: 6.193250179 | L17: 0.2293718302 | M17: 0.259 | N17: 0.2791997004 | P17: 690 | Q17: 615 | S17: 0.02318436509 | T17: 0.01007032549 | W17: 11.21401892 | X17: 9.391760847 | Y17: 8.203824219 | Z17: 7.358980113 | AA17: 6.915298226 | AB17: 6.218487083 | AC17: 5.600312275 | AD17: 4.602147994 | AE17: 3.932535249 | AF17: 3.604810286 | AG17: 2.887119177 | AH17: 2.346366249 | AI17: 1.971843936 | AJ17: 1.729153595 | AL17: 35.92733383 | AM17: 30.35841942 | AN17: 26.75252533 | AO17: 24.20630836 | AP17: 22.94692612 | AQ17: 20.81316185 | AR17: 18.90765953 | AS17: 15.67114162 | AT17: 13.50440025 | AU17: 12.48450279 | AV17: 10.08489227 | AW17: 8.265294075 | AX17: 7.003823757 | AY17: 6.193250179 | BA17: 0.259 | BB17: 1.604051796 | BE17: 0.169660698 | BF17: 0.1783198036 | BG17: 0.2675378814 | BH17: 0.1796368945 | BI17: 0.2429301284 | BJ17: 0.1653627944 | BK17: 0.1750284334 | BL17: 0.2690765257 | BM17: 0.1835427318 | BN17: 0.241132933 | BO17: 0.1777708782 | BP17: 0.1858883409 | BQ17: 0.2703026601 | BR17: 0.177225937 | BS17: 0.2387415729 | BT17: 0.1641683615 | BU17: 0.1743105524 | BV17: 0.2730949949 | BW17: 0.1853357775 | BX17: 0.2396767152 | BY17: 0.1750283698 | BZ17: 0.1835254717 | CA17: 0.2665537425 | CB17: 0.1763674483 | CC17: 0.231756503 | CD17: 0.1697512116 | CE17: 0.1782479926 | CF17: 0.2634523618 | CG17: 0.1762352757 | CH17: 0.2293718302 | CJ17: Armenia | CK17: 1.219722386 | CL17: 3.870346359 | CM17: 72.77778893 | CN17: 13.52362948 | CO17: 91.39148715 | CP17: 0.8520981546 | CQ17: 2.494365785 | CR17: 49.56274493 | CS17: 12.15726691 | CT17: 65.06647578 | CU17: 0.3870780676 | CV17: 0.9103458131 | CW17: 15.84083581 | CX17: 4.200523769 | CY17: 21.33878346 | CZ17: 0.1764987905 | DA17: 0.3867869586 | DB17: 6.201802463 | DC17: 1.816772186 | DD17: 8.581860398 | DE17: 0.1054479922 | DF17: 0.2704574615 | DG17: 3.247420102 | DH17: 1.014729245 | DI17: 4.638054801 | DJ17: 0.07860997948 | DK17: 0.2225662265 | DL17: 2.5691429 | DM17: 0.7989906692 | DN17: 3.669309775 | DP17: 7.18918642 | DQ17: 21.70452345 | DR17: 272.027978 | DS17: 75.28314004 | DT17: 376.2048279 | DU17: 5.152901278 | DV17: 14.25120328 | DW17: 184.195722 | DX17: 66.23671117 | DY17: 269.8365378 | DZ17: 2.177398636 | EA17: 4.897272248 | EB17: 58.60406926 | EC17: 23.70151818 | ED17: 89.38025833 | EE17: 1.075108437 | EF17: 2.218953203 | EG17: 22.70932305 | EH17: 9.802598347 | EI17: 35.80598304 | EJ17: 0.6024622883 | EK17: 1.473678063 | EL17: 12.18298446 | EM17: 5.753495075 | EN17: 20.01261988 | EO17: 0.4630893573 | EP17: 1.248632443 | EQ17: 9.751830969 | ER17: 4.533659145 | ES17: 15.99721191 | EV17: Armenia | EW17: 3967 | EX17: 3583 | EY17: 3145 | EZ17: 2699 | FA17: 2305 | FB17: 1973 | FC17: 1682 | FD17: 1451 | FE17: 1284 | FF17: 1165 | FG17: 1087 | FH17: 1049 | FI17: 1049 | FJ17: 1067 | FK17: 1078 | FL17: 1073 | FM17: 1049 | FN17: 1011 | FO17: 961 | FP17: 902 | FQ17: 836 | FR17: 763 | FS17: 689 | FT17: 615 | FV17: Armenia | GT17: 690
A18: Australia | B18: WprA | C18: Wpr | D18: 2.292940187 | E18: 0.7058147817 | F18: 0.6527110972 | H18: 8.054663583 | I18: 2.165076017 | J18: 2.165076017 | L18: 0.2846723718 | M18: 0.326 | N18: 0.3014726005 | P18: 1332 | Q18: 1278 | S18: 0.006047044732 | T18: 0.00169411269 | W18: 0.6733602647 | X18: 3.086677711 | Y18: 1.276474891 | Z18: 0.6228639566 | AA18: 1.276382586 | AB18: 1.461096854 | AC18: 2.839262714 | AD18: 0.6075745056 | AE18: 0 | AF18: 2.744666321 | AG18: 0.5139255076 | AH18: 0.5124793192 | AI18: 0.6906020411 | AJ18: 0.6527110972 | AL18: 1.610169291 | AM18: 7.414851665 | AN18: 3.080489397 | AO18: 1.510101438 | AP18: 3.108486891 | AQ18: 3.57549572 | AR18: 6.980660439 | AS18: 1.501065135 | AT18: 0 | AU18: 8.868579865 | AV18: 1.671239257 | AW18: 1.677620649 | AX18: 2.275887012 | AY18: 2.165076017 | BA18: 0.326 | BB18: 0.7058147817 | BE18: 0.1980741944 | BF18: 0.2122975799 | BG18: 0.3511374907 | BH18: 0.2873450372 | BI18: 0.3112683265 | BJ18: 0.1859573582 | BK18: 0.2013074533 | BL18: 0.3549908317 | BM18: 0.287703428 | BN18: 0.3080151507 | BO18: 0.1883339751 | BP18: 0.2029360975 | BQ18: 0.3482592881 | BR18: 0.2803740318 | BS18: 0.3005532119 | BT18: 0.1924467634 | BU18: 0.2041221109 | BV18: 0.3229422821 | BW18: 0.2549771452 | BX18: 0.2789894558 | BY18: 0.1945485972 | BZ18: 0.2060728145 | CA18: 0.3185580209 | CB18: 0.2487539137 | CC18: 0.274801412 | CD18: 0.1955362376 | CE18: 0.2079832263 | CF18: 0.3306409775 | CG18: 0.260540255 | CH18: 0.2846723718 | CJ18: Australia | CK18: 0.04176734844 | CL18: 0.1534652955 | CM18: 1.379796676 | CN18: 0.7357204157 | CO18: 2.310749736 | CP18: 0.05046170857 | CQ18: 0.2008085042 | CR18: 1.523844709 | CS18: 0.8793862379 | CT18: 2.654501159 | CU18: 0.06562789626 | CV18: 0.2546946151 | CW18: 1.682145206 | CX18: 0.9560455785 | CY18: 2.958513295 | CZ18: 0.0803434548 | DA18: 0.298534535 | DB18: 1.698092586 | DC18: 0.9077474707 | DD18: 2.984718047 | DE18: 0.07350897036 | DF18: 0.2871930055 | DG18: 1.49381367 | DH18: 0.7552272825 | DI18: 2.609742928 | DJ18: 0.06047288423 | DK18: 0.2571532259 | DL18: 1.3181255 | DM18: 0.6571885768 | DN18: 2.292940187 | DP18: 0.2108671883 | DQ18: 0.7228782148 | DR18: 3.92950543 | DS18: 2.560407595 | DT18: 7.423658428 | DU18: 0.27136172 | DV18: 0.997521457 | DW18: 4.292631168 | DX18: 3.056571984 | DY18: 8.61808633 | DZ18: 0.3484655184 | EA18: 1.255048353 | EB18: 4.830151738 | EC18: 3.409893463 | ED18: 9.843559073 | EE18: 0.4174840532 | EF18: 1.462529139 | EG18: 5.258192192 | EH18: 3.560113084 | EI18: 10.69831847 | EJ18: 0.377843744 | EK18: 1.393648193 | EL18: 4.689298564 | EM18: 3.03604181 | EN18: 9.49683231 | EO18: 0.3092668907 | EP18: 1.236413294 | EQ18: 3.986576345 | ER18: 2.522407053 | ES18: 8.054663583 | EV18: Australia | EW18: 2281 | EX18: 2141 | EY18: 2045 | EZ18: 1982 | FA18: 1909 | FB18: 1843 | FC18: 1786 | FD18: 1715 | FE18: 1663 | FF18: 1614 | FG18: 1550 | FH18: 1517 | FI18: 1492 | FJ18: 1479 | FK18: 1501 | FL18: 1484 | FM18: 1499 | FN18: 1496 | FO18: 1495 | FP18: 1486 | FQ18: 1462 | FR18: 1404 | FS18: 1330 | FT18: 1278 | FV18: Australia | GT18: 1332
A19: Austria | B19: EurA | C19: Eur | D19: 1.030869921 | E19: 0.3076052313 | F19: 0.3579755935 | H19: 2.599809331 | I19: 1.187664986 | J19: 1.187664986 | L19: 0.3965175093 | M19: 0.259 | N19: 0.3014112547 | P19: 329 | Q19: 323 | S19: 0.007902156021 | T19: 0.00367698138 | W19: 0.5253291181 | X19: 0 | Y19: 0 | Z19: 1.323252951 | AA19: 0 | AB19: 0.6007354944 | AC19: 0.539786827 | AD19: 1.167719865 | AE19: 0.5744580096 | AF19: 0 | AG19: 0.3244772938 | AH19: 0.6970895684 | AI19: 0.3547846908 | AJ19: 0.3579755935 | AL19: 1.257481813 | AM19: 0 | AN19: 0 | AO19: 3.211501837 | AP19: 0 | AQ19: 1.471846223 | AR19: 1.328732491 | AS19: 2.888454676 | AT19: 1.427513242 | AU19: 0 | AV19: 1.056013465 | AW19: 2.283324957 | AX19: 1.169669986 | AY19: 1.187664986 | BA19: 0.259 | BB19: 0.3076052313 | BE19: 0.1504880257 | BF19: 0.1586043946 | BG19: 0.1833114693 | BH19: 0.1372112202 | BI19: 0.1708572105 | BJ19: 0.3718793582 | BK19: 0.3765403864 | BL19: 0.4380206291 | BM19: 0.3211728194 | BN19: 0.404995209 | BO19: 0.3717878608 | BP19: 0.3742656056 | BQ19: 0.4426912864 | BR19: 0.3162336235 | BS19: 0.4048871613 | BT19: 0.348121771 | BU19: 0.3582624382 | BV19: 0.4071703084 | BW19: 0.3102614913 | BX19: 0.3778101832 | BY19: 0.3217571491 | BZ19: 0.3294394853 | CA19: 0.3551320621 | CB19: 0.265406996 | CC19: 0.3322497936 | CD19: 0.3609268578 | CE19: 0.3689813131 | CF19: 0.4311330767 | CG19: 0.3339366089 | CH19: 0.3965175093 | CJ19: Austria | CK19: 0.01270695767 | CL19: 0.04856282684 | CM19: 0.2250645327 | CN19: 0.04004422656 | CO19: 0.3263785438 | CP19: 0.02419901003 | CQ19: 0.09490778327 | CR19: 0.3935238523 | CS19: 0.07794782501 | CT19: 0.5905784706 | CU19: 0.03211861749 | CV19: 0.1282694405 | CW19: 0.4861476936 | CX19: 0.1004522861 | CY19: 0.7469880378 | CZ19: 0.0510281592 | DA19: 0.2039732221 | DB19: 0.6671934831 | DC19: 0.1498687095 | DD19: 1.072063574 | DE19: 0.05468087626 | DF19: 0.2081100811 | DG19: 0.6135513795 | DH19: 0.1428411424 | DI19: 1.019183479 | DJ19: 0.05117362134 | DK19: 0.1936448335 | DL19: 0.6231245461 | DM19: 0.1629269197 | DN19: 1.030869921 | DP19: 0.08443833063 | DQ19: 0.3061884064 | DR19: 1.227771146 | DS19: 0.2918436736 | DT19: 1.910241556 | DU19: 0.06507220554 | DV19: 0.2520520685 | DW19: 0.89841397 | DX19: 0.2426974523 | DY19: 1.458235696 | DZ19: 0.08638963473 | EA19: 0.3427230251 | EB19: 1.098164135 | EC19: 0.3176521365 | ED19: 1.844928931 | EE19: 0.1465813501 | EF19: 0.5693402387 | EG19: 1.638610354 | EH19: 0.483039996 | EI19: 2.837571939 | EJ19: 0.1699445573 | EK19: 0.6317095866 | EL19: 1.727671041 | EM19: 0.5381965981 | EN19: 3.067521783 | EO19: 0.1417839106 | EP19: 0.5248093239 | EQ19: 1.445318348 | ER19: 0.4878977486 | ES19: 2.599809331 | EV19: Austria | EW19: 757 | EX19: 733 | EY19: 739 | EZ19: 753 | FA19: 738 | FB19: 690 | FC19: 637 | FD19: 563 | FE19: 499 | FF19: 441 | FG19: 409 | FH19: 391 | FI19: 389 | FJ19: 396 | FK19: 396 | FL19: 396 | FM19: 392 | FN19: 374 | FO19: 370 | FP19: 358 | FQ19: 350 | FR19: 337 | FS19: 326 | FT19: 323 | FV19: Austria | GT19: 329
A20: Azerbaijan | B20: EurB | C20: Eur | D20: 48.95329532 | E20: 107.0585605 | F20: 120.124672 | H20: 206.0796904 | I20: 413.3535156 | J20: 413.3535156 | L20: 0.2375454623 | M20: 0.259 | N20: 0.2906100166 | P20: 5884 | Q20: 5838 | S20: 0.03502374072 | T20: 0.07080395951 | W20: 467.8637399 | X20: 385.7563443 | Y20: 324.3006907 | Z20: 277.825225 | AA20: 243.669026 | AB20: 217.5865508 | AC20: 197.0118618 | AD20: 179.3968216 | AE20: 165.0986743 | AF20: 151.8595631 | AG20: 140.0748845 | AH20: 134.9922826 | AI20: 130.7046497 | AJ20: 120.124672 | AL20: 1379.629639 | AM20: 1154.665283 | AN20: 985.2073975 | AO20: 856.163147 | AP20: 761.1508789 | AQ20: 688.2655029 | AR20: 630.7877197 | AS20: 581.0210571 | AT20: 540.6426392 | AU20: 502.6528625 | AV20: 468.4128113 | AW20: 455.8226013 | AX20: 445.6094666 | AY20: 413.3535156 | BA20: 0.259 | BB20: 107.0585605 | BE20: 0.1733015203 | BF20: 0.1812381239 | BG20: 0.2571526611 | BH20: 0.1704935451 | BI20: 0.236462798 | BJ20: 0.1708926183 | BK20: 0.1802047288 | BL20: 0.2696200335 | BM20: 0.1821193657 | BN20: 0.2450865521 | BO20: 0.1692917567 | BP20: 0.1779358515 | BQ20: 0.2633213779 | BR20: 0.1756858215 | BS20: 0.239657955 | BT20: 0.1721213694 | BU20: 0.1815097054 | BV20: 0.2738589272 | BW20: 0.1823148637 | BX20: 0.2505582048 | BY20: 0.1689240973 | BZ20: 0.1768134548 | CA20: 0.2588401666 | CB20: 0.1725399369 | CC20: 0.2376806963 | CD20: 0.1705285994 | CE20: 0.1783050983 | CF20: 0.2592998123 | CG20: 0.1724443789 | CH20: 0.2375454623 | CJ20: Azerbaijan | CK20: 8.202656374 | CL20: 23.54120659 | CM20: 279.2020076 | CN20: 31.79165041 | CO20: 342.737521 | CP20: 7.635344671 | CQ20: 21.249471 | CR20: 269.0391508 | CS20: 39.0891055 | CT20: 337.013072 | CU20: 3.976047163 | CV20: 10.6506698 | CW20: 144.7827708 | CX20: 21.04698271 | CY20: 180.4564704 | CZ20: 2.601007333 | DA20: 6.783650882 | DB20: 95.10499077 | DC20: 11.55690535 | DD20: 116.0465543 | DE20: 1.644110489 | DF20: 3.771049296 | DG20: 50.23124436 | DH20: 5.665363166 | DI20: 61.31176731 | DJ20: 1.419245653 | DK20: 3.096836696 | DL20: 39.79612137 | DM20: 4.641091604 | DN20: 48.95329532 | DP20: 47.33170464 | DQ20: 129.89103 | DR20: 1085.74419 | DS20: 186.4683522 | DT20: 1449.435277 | DU20: 44.67919531 | DV20: 117.9184983 | DW20: 997.8455507 | DX20: 214.6345357 | DY20: 1375.07778 | DZ20: 23.48636012 | EA20: 59.85679507 | EB20: 549.832953 | EC20: 119.7989828 | ED20: 752.975091 | EE20: 15.11147246 | EF20: 37.37348848 | EG20: 347.2773072 | EH20: 63.38981426 | EI20: 463.1520824 | EJ20: 9.732835724 | EK20: 21.32784126 | EL20: 194.0627879 | EM20: 32.83508311 | EN20: 257.958548 | EO20: 8.322625403 | EP20: 17.36818927 | EQ20: 153.4753188 | ER20: 26.9135569 | ES20: 206.0796904 | EV20: Azerbaijan | EW20: 19465 | EX20: 19401 | EY20: 19133 | EZ20: 18638 | FA20: 17860 | FB20: 16805 | FC20: 15458 | FD20: 13923 | FE20: 12324 | FF20: 10858 | FG20: 9643 | FH20: 8624 | FI20: 7872 | FJ20: 7343 | FK20: 6977 | FL20: 6736 | FM20: 6577 | FN20: 6486 | FO20: 6419 | FP20: 6338 | FQ20: 6240 | FR20: 6149 | FS20: 6011 | FT20: 5838 | FV20: Azerbaijan | GT20: 5884
A21: Bahrain | B21: EmrB | C21: Emr | D21: 0.1663657657 | E21: 0.121478499 | F21: 0.1308418822 | H21: 0.6519826318 | I21: 0.3881102204 | J21: 0.3881102204 | L21: 0.2551690146 | M21: 0.313 | N21: 0.3371255775 | P21: 138 | Q21: 130 | S21: 0.004724511825 | T21: 0.002985463234 | W21: 0.3043114895 | X21: 0.1954282377 | Y21: 0 | Z21: 0.1781145896 | AA21: 0.5333243871 | AB21: 0.7080373424 | AC21: 0.7121919957 | AD21: 0.5687325066 | AE21: 0.3976241351 | AF21: 0.2827214418 | AG21: 0.1509600936 | AH21: 0.1644947713 | AI21: 0.1439370516 | AJ21: 0.1308418822 | AL21: 0.6665539742 | AM21: 0.4300892651 | AN21: 0 | AO21: 0.3955233097 | AP21: 1.189687252 | AQ21: 1.586828709 | AR21: 1.603884339 | AS21: 1.287052631 | AT21: 0.9045025706 | AU21: 0.6464743614 | AV21: 0.3469940126 | AW21: 0.4816817939 | AX21: 0.4242426157 | AY21: 0.3881102204 | BA21: 0.313 | BB21: 0.121478499 | BE21: 0.2151409405 | BF21: 0.2159524517 | BG21: 0.2213682842 | BH21: 0.1714685389 | BI21: 0.2100228296 | BJ21: 0.2845740374 | BK21: 0.2864038092 | BL21: 0.3069977585 | BM21: 0.2174933199 | BN21: 0.2836075116 | BO21: 0.2491240146 | BP21: 0.2495924677 | BQ21: 0.2595229095 | BR21: 0.1862709366 | BS21: 0.2414980702 | BT21: 0.2860409491 | BU21: 0.2866257801 | BV21: 0.2967462673 | BW21: 0.2086701766 | BX21: 0.2761669316 | BY21: 0.250658139 | BZ21: 0.2519333708 | CA21: 0.257015198 | CB21: 0.1896174423 | CC21: 0.2413488945 | CD21: 0.2626143722 | CE21: 0.2627777107 | CF21: 0.2740055658 | CG21: 0.1960140375 | CH21: 0.2551690146 | CJ21: Bahrain | CK21: 0.02080010466 | CL21: 0.0383212562 | CM21: 0.5769637755 | CN21: 0.1383928629 | CO21: 0.7744779993 | CP21: 0.01483210911 | CQ21: 0.03166791965 | CR21: 0.4442850175 | CS21: 0.1125385586 | CT21: 0.6033236048 | CU21: 0.006235496537 | CV21: 0.0152652954 | CW21: 0.2473201044 | CX21: 0.0602494287 | CY21: 0.329070325 | CZ21: 0.005132546086 | DA21: 0.01342515055 | DB21: 0.234701665 | DC21: 0.05238212534 | DD21: 0.305641487 | DE21: 0.003426611292 | DF21: 0.01052151596 | DG21: 0.1453059842 | DH21: 0.03455168844 | DI21: 0.1938057998 | DJ21: 0.003096214312 | DK21: 0.01038263836 | DL21: 0.1234736278 | DM21: 0.02941328521 | DN21: 0.1663657657 | DP21: 0.09668129465 | DQ21: 0.1774522859 | DR21: 2.606352476 | DS21: 0.8071035292 | DT21: 3.687589586 | DU21: 0.05212038752 | DV21: 0.1105708745 | DW21: 1.447193034 | DX21: 0.5174345522 | DY21: 2.127318848 | DZ21: 0.02502968872 | EA21: 0.06116088172 | EB21: 0.9529798538 | EC21: 0.3234505059 | ED21: 1.36262093 | EE21: 0.01794339622 | EF21: 0.04683860099 | EG21: 0.7909169917 | EH21: 0.2510283271 | EI21: 1.106727316 | EJ21: 0.01367045692 | EK21: 0.04176308967 | EL21: 0.5653595013 | EM21: 0.1822178805 | EN21: 0.8030109284 | EO21: 0.01178996521 | EP21: 0.03951110744 | EQ21: 0.4506245246 | ER21: 0.1500570346 | ES21: 0.6519826318 | EV21: Bahrain | EW21: 331 | EX21: 320 | EY21: 303 | EZ21: 281 | FA21: 256 | FB21: 231 | FC21: 209 | FD21: 192 | FE21: 178 | FF21: 169 | FG21: 165 | FH21: 159 | FI21: 159 | FJ21: 160 | FK21: 164 | FL21: 167 | FM21: 163 | FN21: 160 | FO21: 154 | FP21: 148 | FQ21: 139 | FR21: 138 | FS21: 134 | FT21: 130 | FV21: Bahrain | GT21: 138
A22: Bangladesh | B22: SearD | C22: Sear | D22: 202.3554331 | E22: 2116.068193 | F22: 2722.694085 | H22: 1714.755291 | I22: 8298.306641 | J22: 8298.306641 | L22: 0.1180083445 | M22: 0.255 | N22: 0.3281023711 | P22: 128228 | Q22: 129433 | S22: 0.01337270558 | T22: 0.06411275827 | W22: 15062.79083 | X22: 13259.85759 | Y22: 11673.79645 | Z22: 10250.29176 | AA22: 8922.947881 | AB22: 7783.893194 | AC22: 6758.891895 | AD22: 5787.10377 | AE22: 4871.499689 | AF22: 4643.235086 | AG22: 4013.666139 | AH22: 3464.34232 | AI22: 3064.791429 | AJ22: 2722.694085 | AL22: 39537.93359 | AM22: 35231.62891 | AN22: 31396.75586 | AO22: 27900.2168 | AP22: 24579.55664 | AQ22: 21698.98242 | AR22: 19066.98828 | AS22: 16517.41211 | AT22: 14067.17676 | AU22: 13562.07422 | AV22: 11855.16992 | AW22: 10345.3291 | AX22: 9249.099609 | AY22: 8298.306641 | BA22: 0.255 | BB22: 2116.068193 | BE22: 0.1123250122 | BF22: 0.1143183587 | BG22: 0.1316564341 | BH22: 0.09579727949 | BI22: 0.1146092284 | BJ22: 0.1173338859 | BK22: 0.1208575845 | BL22: 0.1393139983 | BM22: 0.09966899938 | BN22: 0.122543742 | BO22: 0.1132671247 | BP22: 0.1158245917 | BQ22: 0.1336189226 | BR22: 0.09978791485 | BS22: 0.1201818981 | BT22: 0.1120580632 | BU22: 0.1132232775 | BV22: 0.1316112225 | BW22: 0.0985173369 | BX22: 0.1180502229 | BY22: 0.1087221001 | BZ22: 0.1110316721 | CA22: 0.1307786351 | CB22: 0.09971647629 | CC22: 0.1182255509 | CD22: 0.1126231504 | CE22: 0.1138709359 | CF22: 0.1310885988 | CG22: 0.09814550827 | CH22: 0.1180083445 | CJ22: Bangladesh | CK22: 31.26766745 | CL22: 331.967582 | CM22: 5173.75789 | CN22: 3403.891797 | CO22: 8940.884936 | CP22: 19.84344092 | CQ22: 161.8716014 | CR22: 2951.978536 | CS22: 1534.645501 | CT22: 4668.339079 | CU22: 10.73634879 | CV22: 63.25611071 | CW22: 1359.509531 | CX22: 654.0985502 | CY22: 2087.600541 | CZ22: 5.953307542 | DA22: 23.67062433 | DB22: 548.5235152 | DC22: 278.3672912 | DD22: 856.5147383 | DE22: 1.973278101 | DF22: 7.923219948 | DG22: 209.0722034 | DH22: 104.4216227 | DI22: 323.3903242 | DJ22: 1.413576764 | DK22: 5.584014347 | DL22: 131.7410093 | DM22: 63.6168327 | DN22: 202.3554331 | DP22: 278.3678081 | DQ22: 2903.886882 | DR22: 39297.41774 | DS22: 35532.23865 | DT22: 78011.91107 | DU22: 169.1194387 | DV22: 1339.358238 | DW22: 21189.38923 | DX22: 15397.42056 | DY22: 38095.28747 | DZ22: 94.78786389 | EA22: 546.1371352 | EB22: 10174.52846 | EC22: 6554.887445 | ED22: 17370.3409 | EE22: 53.12698948 | EF22: 209.0614657 | EG22: 4167.756403 | EH22: 2825.566545 | EI22: 7255.511403 | EJ22: 18.14974232 | EK22: 71.35999846 | EL22: 1598.672469 | EM22: 1047.185246 | EN22: 2735.367455 | EO22: 12.55138716 | EP22: 49.03810003 | EQ22: 1004.976867 | ER22: 648.1889372 | ES22: 1714.755291 | EV22: Bangladesh | EW22: 531423 | EX22: 508897 | EY22: 485852 | EZ22: 461758 | FA22: 438428 | FB22: 415921 | FC22: 394033 | FD22: 372970 | FE22: 352272 | FF22: 332613 | FG22: 313521 | FH22: 296135 | FI22: 278890 | FJ22: 261991 | FK22: 244860 | FL22: 227505 | FM22: 210450 | FN22: 193533 | FO22: 177344 | FP22: 163203 | FQ22: 151557 | FR22: 141971 | FS22: 134797 | FT22: 129433 | FV22: Bangladesh | GT22: 128228
A23: Barbados | B23: AmrB | C23: Amr | D23: 0.2039861135 | E23: 0 | F23: 0 | H23: 2.101556231 | I23: 0 | J23: 0 | L23: =D23/H23 -> 0.09706431381 | M23: - | N23: - | P23: 59 | Q23: 52 | S23: 0.03561959714 | T23: 0 | W23: 0 | X23: 0 | Y23: 0 | Z23: 0 | AA23: 0.2608295704 | AB23: 0.2592637319 | AC23: 0.2609952269 | AD23: 0 | AE23: 0 | AF23: 0 | AG23: 0 | AH23: 0 | AI23: 0 | AJ23: 0 | AL23: 0 | AM23: 0 | AN23: 0 | AO23: 0 | AP23: 0.794670403 | AQ23: 0.794670403 | AR23: 0.8049907684 | AS23: 0 | AT23: 0 | AU23: 0 | AV23: 0 | AW23: 0 | AX23: 0 | AY23: 0 | BA23: 0.234 | BB23: 0 | BE23: 0.1215509439 | BF23: 0.1184571609 | BG23: 0.1134733805 | BH23: 0.0860873851 | BI23: 0.108927584 | BJ23: 0.128530653 | BK23: 0.128484003 | BL23: 0.1275308385 | BM23: 0.0894447212 | BN23: 0.119964974 | BO23: 0.1135903638 | BP23: 0.1137535577 | BQ23: 0.1152583307 | BR23: 0.08545596984 | BS23: 0.1093111702 | BT23: 0.1204558433 | BU23: 0.1204299106 | BV23: 0.117091348 | BW23: 0.0859899256 | BX23: 0.111813668 | BY23: 0.1101334793 | BZ23: 0.1096471421 | CA23: 0.1069618657 | CB23: 0.07694091227 | CC23: 0.1018276988 | CD23: 0.1046036886 | CE23: 0.1037547599 | CF23: 0.10170917 | CG23: 0.07383878725 | CH23: 0.09706431381 | CJ23: Barbados | CK23: 0.04163778588 | CL23: 0.1022197055 | CM23: 0.6261250458 | CN23: 0.1418332389 | CO23: 0.9118157761 | CP23: 0.02733563021 | CQ23: 0.07120978372 | CR23: 0.424601962 | CS23: 0.09299909894 | CT23: 0.6161464748 | CU23: 0.0139509234 | CV23: 0.03820728401 | CW23: 0.2632875471 | CX23: 0.0558939717 | CY23: 0.3713397262 | CZ23: 0.01354910495 | DA23: 0.03637096846 | DB23: 0.260506439 | DC23: 0.05100085278 | DD23: 0.3614273652 | DE23: 0.007502114035 | DF23: 0.02410193946 | DG23: 0.1633577401 | DH23: 0.03130518815 | DI23: 0.2262669818 | DJ23: 0.006640813418 | DK23: 0.02144767917 | DL23: 0.1484289078 | DM23: 0.02746871311 | DN23: 0.2039861135 | DP23: 0.3425541962 | DQ23: 0.8629255056 | DR23: 5.517814338 | DS23: 1.647549623 | DT23: 8.370843663 | DU23: 0.2126779066 | DV23: 0.5542307373 | DW23: 3.32940618 | DX23: 1.039738262 | DY23: 5.136053085 | DZ23: 0.1228178424 | EA23: 0.3358777059 | EB23: 2.284325527 | EC23: 0.65406749 | ED23: 3.397088565 | EE23: 0.1124819235 | EF23: 0.3020094283 | EG23: 2.224813732 | EH23: 0.5931026504 | EI23: 3.232407734 | EJ23: 0.06811837857 | EK23: 0.2198136587 | EL23: 1.527252157 | EM23: 0.4068731085 | EN23: 2.222057303 | EO23: 0.06348546126 | EP23: 0.2067151347 | EQ23: 1.459346368 | ER23: 0.3720092669 | ES23: 2.101556231 | EV23: Barbados | EW23: 72 | EX23: 67 | EY23: 64 | EZ23: 62 | FA23: 60 | FB23: 59 | FC23: 58 | FD23: 57 | FE23: 57 | FF23: 57 | FG23: 57 | FH23: 58 | FI23: 59 | FJ23: 59 | FK23: 59 | FL23: 59 | FM23: 58 | FN23: 57 | FO23: 56 | FP23: 55 | FQ23: 54 | FR23: 54 | FS23: 53 | FT23: 52 | FV23: Barbados | GT23: 59
A24: Belarus | B24: EurC | C24: Eur | D24: 0.9010159962 | E24: 0.6798151021 | F24: 1.032476399 | H24: 3.373509704 | I24: 2.624768734 | J24: 2.624768734 | L24: 0.2670856393 | M24: =E24/I24 -> 0.259 | N24: =F24/J24 -> 0.3933589978 | P24: 783 | Q24: 500 | S24: 0.004308441513 | T24: 0.005249537468 | W24: 9.925222659 | X24: 8.068981932 | Y24: 6.559471891 | Z24: 13.82481263 | AA24: 4.554358231 | AB24: 3.838320719 | AC24: 3.201689294 | AD24: 2.884426114 | AE24: 2.256578249 | AF24: 1.996861389 | AG24: 1.660897296 | AH24: 1.379208381 | AI24: 1.182642611 | AJ24: 1.032476399 | AL24: 23.45154381 | AM24: 19.18828773 | AN24: 15.6950655 | AO24: 33.27013016 | AP24: 11.0208292 | AQ24: 9.340990067 | AR24: 7.835094929 | AS24: 7.09932375 | AT24: 5.585400581 | AU24: 4.969815731 | AV24: 4.155948162 | AW24: 3.469803095 | AX24: 2.991072893 | AY24: 2.624768734 | BA24: 0.259 | BB24: 0.6798151021 | BE24: 0.2487398665 | BF24: 0.2501951063 | BG24: 0.2661513559 | BH24: 0.1715031079 | BI24: 0.2485697715 | BJ24: 0.2473799785 | BK24: 0.2488756371 | BL24: 0.2644937937 | BM24: 0.1695617978 | BN24: 0.2477687492 | BO24: 0.2360136454 | BP24: 0.2405511647 | BQ24: 0.2831096632 | BR24: 0.1819528862 | BS24: 0.264798722 | BT24: 0.27501939 | BU24: 0.2785178677 | BV24: 0.3096765516 | BW24: 0.1924406308 | BX24: 0.2925147778 | BY24: 0.2593715236 | BZ24: 0.2633294873 | CA24: 0.3016224214 | CB24: 0.1913083244 | CC24: 0.2842849497 | CD24: 0.2497291381 | CE24: 0.2527474097 | CF24: 0.2827338152 | CG24: 0.1849050785 | CH24: 0.2670856393 | CJ24: Belarus | CK24: 0.3195292707 | CL24: 0.9949489571 | CM24: 9.254348135 | CN24: 1.375313708 | CO24: 11.94414007 | CP24: 0.2110274166 | CQ24: 0.7110635215 | CR24: 6.919891284 | CS24: 0.954848158 | CT24: 8.79683038 | CU24: 0.08941385159 | CV24: 0.3592237699 | CW24: 3.879403982 | CX24: 0.4475952974 | CY24: 4.775636901 | CZ24: 0.03460095656 | DA24: 0.1649487397 | DB24: 1.824638163 | DC24: 0.1742756014 | DD24: 2.198463461 | DE24: 0.01612208583 | DF24: 0.08487007434 | DG24: 0.9224560633 | DH24: 0.09201773031 | DI24: 1.115465954 | DJ24: 0.01377445701 | DK24: 0.07515185058 | DL24: 0.7326063844 | DM24: 0.07948330429 | DN24: 0.9010159962 | DP24: 1.284592113 | DQ24: 3.976692318 | DR24: 34.77099752 | DS24: 8.019176589 | DT24: 48.05145854 | DU24: 0.8530497009 | DV24: 2.857103772 | DW24: 26.16277375 | DX24: 5.631269367 | DY24: 35.50419659 | DZ24: 0.3788503476 | EA24: 1.493336232 | EB24: 13.7028314 | EC24: 2.459951622 | ED24: 18.0349696 | EE24: 0.1258127893 | EF24: 0.5922375502 | EG24: 5.892077245 | EH24: 0.9056070991 | EI24: 7.515734683 | EJ24: 0.06215827246 | EK24: 0.3222961287 | EL24: 3.058313964 | EM24: 0.4809917739 | EN24: 3.923760139 | EO24: 0.05515758841 | EP24: 0.2973397459 | EQ24: 2.591152331 | ER24: 0.4298600392 | ES24: 3.373509704 | EV24: Belarus | EW24: 2598 | EX24: 2427 | EY24: 2242 | EZ24: 2050 | FA24: 1887 | FB24: 1770 | FC24: 1673 | FD24: 1621 | FE24: 1562 | FF24: 1477 | FG24: 1358 | FH24: 1232 | FI24: 1114 | FJ24: 1021 | FK24: 955 | FL24: 891 | FM24: 848 | FN24: 797 | FO24: 752 | FP24: 707 | FQ24: 659 | FR24: 603 | FS24: 548 | FT24: 500 | FV24: Belarus | GT24: 783
A25: Belgium | B25: EurA | C25: Eur | D25: 1.527227339 | E25: 0.09313512835 | F25: 0.1084963055 | H25: 5.774049373 | I25: 0.3595950902 | J25: 0.3595950902 | L25: 0.2644984897 | M25: 0.259 | N25: 0.3017179836 | P25: 547 | Q25: 567 | S25: 0.01055584894 | T25: 0.0006342065082 | W25: 2.884219816 | X25: 2.647746669 | Y25: 2.449797301 | Z25: 2.47201923 | AA25: 3.736902549 | AB25: 2.60801565 | AC25: 1.730981776 | AD25: 0.6391528589 | AE25: 1.301490017 | AF25: 0.6302131789 | AG25: 0.3251119062 | AH25: 0.2172661564 | AI25: 0.1103603145 | AJ25: 0.1084963055 | AL25: 6.900925159 | AM25: 6.365136623 | AN25: 5.917299271 | AO25: 5.999528885 | AP25: 9.111698151 | AQ25: 6.388870239 | AR25: 4.26031971 | AS25: 1.580519438 | AT25: 3.233675957 | AU25: 1.573287249 | AV25: 0.8155078888 | AW25: 0.5475262403 | AX25: 0.3635466993 | AY25: 0.3595950902 | BA25: 0.259 | BB25: 0.09313512835 | BE25: 0.1587521473 | BF25: 0.1685127234 | BG25: 0.258697949 | BH25: 0.1981433139 | BI25: 0.2326283749 | BJ25: 0.1561635843 | BK25: 0.169746105 | BL25: 0.2946385056 | BM25: 0.2255362842 | BN25: 0.2599356589 | BO25: 0.1512777018 | BP25: 0.1665714607 | BQ25: 0.319637335 | BR25: 0.2495224662 | BS25: 0.2719361604 | BT25: 0.1451313134 | BU25: 0.159646909 | BV25: 0.3073179565 | BW25: 0.2435375969 | BX25: 0.2533073202 | BY25: 0.162941055 | BZ25: 0.1783628748 | CA25: 0.3224138028 | CB25: 0.2525418219 | CC25: 0.2640458809 | CD25: 0.1558795912 | CE25: 0.1706464016 | CF25: 0.3223343808 | CG25: 0.2536942483 | CH25: 0.2644984897 | CJ25: Belgium | CK25: 0.02629804258 | CL25: 0.1229401391 | CM25: 1.08095132 | CN25: 0.2868044607 | CO25: 1.516993963 | CP25: 0.02495632826 | CQ25: 0.1283998477 | CR25: 1.14406227 | CS25: 0.3274516148 | CT25: 1.62487006 | CU25: 0.03227368014 | CV25: 0.1713843943 | CW25: 1.155295728 | CX25: 0.4259377679 | CY25: 1.784891571 | CZ25: 0.04088581371 | DA25: 0.227937158 | DB25: 1.044454525 | DC25: 0.4826489544 | DD25: 1.795926452 | DE25: 0.04620004857 | DF25: 0.2506907356 | DG25: 0.9394288504 | DH25: 0.4604155949 | DI25: 1.69673523 | DJ25: 0.03926676375 | DK25: 0.2026179271 | DL25: 0.8717262969 | DM25: 0.4136163511 | DN25: 1.527227339 | DP25: 0.1656547204 | DQ25: 0.72955998 | DR25: 4.178430191 | DS25: 1.447459695 | DT25: 6.521104587 | DU25: 0.1598088848 | DV25: 0.7564229396 | DW25: 3.882935352 | DX25: 1.451879975 | DY25: 6.251047152 | DZ25: 0.2133406295 | EA25: 1.028894107 | EB25: 3.614395447 | EC25: 1.707011695 | ED25: 6.563641879 | EE25: 0.2817160043 | EF25: 1.427758041 | EG25: 3.3986121 | EH25: 1.981825232 | EI25: 7.089911377 | EJ25: 0.2835384156 | EK25: 1.405509616 | EL25: 2.913736454 | EM25: 1.823126132 | EN25: 6.425910617 | EO25: 0.2519044568 | EP25: 1.187355404 | EQ25: 2.704416124 | ER25: 1.630373388 | ES25: 5.774049373 | EV25: Belgium | EW25: 1175 | EX25: 1133 | EY25: 1099 | EZ25: 1053 | FA25: 999 | FB25: 923 | FC25: 851 | FD25: 784 | FE25: 716 | FF25: 667 | FG25: 637 | FH25: 614 | FI25: 600 | FJ25: 591 | FK25: 595 | FL25: 599 | FM25: 603 | FN25: 606 | FO25: 607 | FP25: 603 | FQ25: 594 | FR25: 595 | FS25: 576 | FT25: 567 | FV25: Belgium | GT25: 547
A26: Belize | B26: AmrB | C26: Amr | D26: 0.6691593837 | E26: 0.8766677256 | F26: 1.168480401 | H26: 6.328585644 | I26: 3.746443272 | J26: 3.746443272 | L26: 0.1057360082 | M26: 0.234 | N26: 0.3118905896 | P26: 144 | Q26: 131 | S26: 0.04394851141 | T26: 0.0285988036 | W26: 3.035669919 | X26: 2.954597313 | Y26: 1.020717156 | Z26: 3.97462149 | AA26: 3.358197621 | AB26: 4.253344821 | AC26: 3.480682678 | AD26: 3.677337909 | AE26: 3.038574517 | AF26: 1.566536909 | AG26: 1.77795804 | AH26: 1.467807083 | AI26: 1.193603443 | AJ26: 1.168480401 | AL26: 8.900186539 | AM26: 8.722293854 | AN26: 3.034215212 | AO26: 11.89560509 | AP26: 10.11796856 | AQ26: 12.90350151 | AR26: 10.63091564 | AS26: 11.310215 | AT26: 9.40987587 | AU26: 4.885714531 | AV26: 5.583681583 | AW26: 4.641953945 | AX26: 3.800739527 | AY26: 3.746443272 | BA26: 0.234 | BB26: 0.8766677256 | BE26: 0.1131249299 | BF26: 0.1139894607 | BG26: 0.1146349943 | BH26: 0.08754619808 | BI26: 0.1075407132 | BJ26: 0.1097300653 | BK26: 0.1107059108 | BL26: 0.1141453159 | BM26: 0.0831698038 | BN26: 0.1051743528 | BO26: 0.1083635705 | BP26: 0.1085620484 | BQ26: 0.107184259 | BR26: 0.07926309308 | BS26: 0.09991735741 | BT26: 0.1232568075 | BU26: 0.1211666462 | BV26: 0.1187132779 | BW26: 0.08816065332 | BX26: 0.1108918377 | BY26: 0.1058084376 | BZ26: 0.1051721993 | CA26: 0.1029074146 | CB26: 0.07700389554 | CC26: 0.09633430597 | CD26: 0.1156240259 | CE26: 0.1144958374 | CF26: 0.1127857913 | CG26: 0.08427746697 | CH26: 0.1057360082 | CJ26: Belize | CK26: 0.09249289584 | CL26: 0.2463542644 | CM26: 1.92449404 | CN26: 0.6024905087 | CO26: 2.865831709 | CP26: 0.05668443575 | CQ26: 0.1321900487 | CR26: 1.011288297 | CS26: 0.3342662506 | CT26: 1.534429033 | CU26: 0.03934309584 | CV26: 0.09462840315 | CW26: 0.7660891579 | CX26: 0.2400088949 | CY26: 1.140069552 | CZ26: 0.03054136897 | DA26: 0.07770291282 | DB26: 0.5603090618 | DC26: 0.1806134124 | DD26: 0.849166756 | DE26: 0.02061576119 | DF26: 0.06046124149 | DG26: 0.4048309905 | DH26: 0.1306004368 | DI26: 0.6165084299 | DJ26: 0.02131751436 | DK26: 0.06409355837 | DL26: 0.4474783154 | DM26: 0.1362699955 | DN26: 0.6691593837 | DP26: 0.8176172652 | DQ26: 2.161202123 | DR26: 16.78801531 | DS26: 6.881972283 | DT26: 26.64880698 | DU26: 0.5165807164 | DV26: 1.194064958 | DW26: 8.859656569 | DX26: 4.019081871 | DY26: 14.58938411 | DZ26: 0.3630657023 | EA26: 0.8716527051 | EB26: 7.147403591 | EC26: 3.028003142 | ED26: 11.41012514 | EE26: 0.2477864677 | EF26: 0.6412896226 | EG26: 4.719851661 | EH26: 2.048685049 | EI26: 7.6576128 | EJ26: 0.1948404273 | EK26: 0.5748785505 | EL26: 3.93393413 | EM26: 1.696023764 | EN26: 6.399676872 | EO26: 0.184369245 | EP26: 0.5597894196 | EQ26: 3.967506105 | ER26: 1.616920874 | ES26: 6.328585644 | EV26: Belize | EW26: 251 | EX26: 237 | EY26: 226 | EZ26: 217 | FA26: 211 | FB26: 206 | FC26: 200 | FD26: 195 | FE26: 189 | FF26: 184 | FG26: 179 | FH26: 174 | FI26: 168 | FJ26: 163 | FK26: 159 | FL26: 155 | FM26: 151 | FN26: 147 | FO26: 144 | FP26: 141 | FQ26: 138 | FR26: 135 | FS26: 133 | FT26: 131 | FV26: Belize | GT26: 144
A27: Benin | B27: AfrD | C27: Afr | D27: 345.3335287 | E27: 749.9673135 | F27: 1065.159322 | H27: 1440.379096 | I27: 2798.385498 | J27: 2798.385498 | L27: 0.2397518331 | M27: 0.268 | N27: 0.3806335199 | P27: 22278 | Q27: 30602 | S27: 0.06465477585 | T27: 0.09144452971 | W27: 2217.380984 | X27: 2133.017367 | Y27: 2023.197632 | Z27: 1888.595342 | AA27: 1743.474573 | AB27: 1674.573903 | AC27: 1683.859395 | AD27: 1665.924558 | AE27: 1586.746373 | AF27: 1468.44834 | AG27: 1332.583907 | AH27: 1228.542231 | AI27: 1155.473691 | AJ27: 1065.159322 | AL27: 5017.764648 | AM27: 4876.354004 | AN27: 4677.854004 | AO27: 4421.907227 | AP27: 4137.51416 | AQ27: 4027.428711 | AR27: 4103.105957 | AS27: 4109.232422 | AT27: 3958.373779 | AU27: 3702.425537 | AV27: 3394.584229 | AW27: 3162.225586 | AX27: 3005.088867 | AY27: 2798.385498 | BA27: 0.268 | BB27: 749.9673135 | BE27: 0.2573368467 | BF27: 0.2546084488 | BG27: 0.2360961699 | BH27: 0.1796040968 | BI27: 0.207878874 | BJ27: 0.2551610706 | BK27: 0.2536198774 | BL27: 0.2346206571 | BM27: 0.1788350014 | BN27: 0.2078496186 | BO27: 0.2940421599 | BP27: 0.291526802 | BQ27: 0.2693578669 | BR27: 0.2020153721 | BS27: 0.2383103722 | BT27: 0.2739588157 | BU27: 0.2733134132 | BV27: 0.2580797077 | BW27: 0.1965191854 | BX27: 0.2314496994 | BY27: 0.2733257522 | BZ27: 0.2702845859 | CA27: 0.2517232148 | CB27: 0.1885082078 | CC27: 0.2274468071 | CD27: 0.2915487288 | CE27: 0.2879702656 | CF27: 0.2645181135 | CG27: 0.1977085617 | CH27: 0.2397518331 | CJ27: Benin | CK27: 51.95990276 | CL27: 66.00953705 | CM27: 607.3821634 | CN27: 601.500752 | CO27: 1326.852355 | CP27: 44.96932511 | CQ27: 52.29664711 | CR27: 511.9728446 | CS27: 469.629957 | CT27: 1078.868774 | CU27: 45.980284 | CV27: 48.07637879 | CW27: 490.416151 | CX27: 411.9830394 | CY27: 996.4558532 | CZ27: 31.265576 | DA27: 26.3756257 | DB27: 306.5699206 | DC27: 227.9927769 | DD27: 592.2038992 | DE27: 22.39891272 | DF27: 15.99774776 | DG27: 192.9623802 | DH27: 120.5678916 | DI27: 351.9269323 | DJ27: 20.84625386 | DK27: 14.71215493 | DL27: 194.9438194 | DM27: 114.8313005 | DN27: 345.3335287 | DP27: 201.9139639 | DQ27: 259.2590205 | DR27: 2572.6049 | DS27: 3349.036925 | DT27: 6382.814809 | DU27: 176.2389733 | DV27: 206.2009005 | DW27: 2182.130299 | DX27: 2626.051686 | DY27: 5190.621859 | DZ27: 156.3730998 | EA27: 164.9123801 | EB27: 1820.6862 | EC27: 2039.364802 | ED27: 4181.336482 | EE27: 114.1250955 | EF27: 96.50322459 | EG27: 1187.888514 | EH27: 1160.155313 | EI27: 2558.672147 | EJ27: 81.94951459 | EK27: 59.18853163 | EL27: 766.5656915 | EM27: 639.5896127 | EN27: 1547.29335 | EO27: 71.50178271 | EP27: 51.08914596 | EQ27: 736.9772031 | ER27: 580.8109647 | ES27: 1440.379096 | EV27: Benin | EW27: 39128 | EX27: 39147 | EY27: 39089 | EZ27: 39106 | FA27: 39216 | FB27: 39511 | FC27: 40115 | FD27: 40619 | FE27: 41002 | FF27: 41286 | FG27: 41347 | FH27: 41052 | FI27: 40551 | FJ27: 39757 | FK27: 38695 | FL27: 37561 | FM27: 36439 | FN27: 35392 | FO27: 34468 | FP27: 33647 | FQ27: 32896 | FR27: 32139 | FS27: 31356 | FT27: 30602 | FV27: Benin | GT27: 22278
A28: Bhutan | B28: SearD | C28: Sear | D28: 5.69284076 | E28: 10.05607418 | F28: 12.82036781 | H28: 35.13824195 | I28: 39.43558502 | J28: 39.43558502 | L28: 0.1620126803 | M28: 0.255 | N28: 0.3250964275 | P28: 700 | Q28: 537 | S28: 0.05019748849 | T28: 0.07343684362 | W28: 67.87189377 | X28: 59.34608555 | Y28: 51.44290586 | Z28: 44.11844606 | AA28: 38.18603818 | AB28: 32.70774617 | AC28: 28.38695344 | AD28: 24.53941313 | AE28: 21.2038764 | AF28: 18.5415562 | AG28: 16.24526207 | AH28: 14.38769266 | AI28: 14.1695994 | AJ28: 12.82036781 | AL28: 180.6864624 | AM28: 159.9516144 | AN28: 140.3474579 | AO28: 121.8559723 | AP28: 106.7219238 | AQ28: 92.50751495 | AR28: 81.21874237 | AS28: 71.00959015 | AT28: 62.05377197 | AU28: 54.85447693 | AV28: 48.56443024 | AW28: 43.44248581 | AX28: 43.1936264 | AY28: 39.43558502 | BA28: 0.255 | BB28: 10.05607418 | BE28: 0.1368588423 | BF28: 0.139222123 | BG28: 0.1488800792 | BH28: 0.1172465894 | BI28: 0.1336736789 | BJ28: 0.151473812 | BK28: 0.1548816568 | BL28: 0.1622354728 | BM28: 0.1218918725 | BN28: 0.1440197047 | BO28: 0.1654530473 | BP28: 0.1652111646 | BQ28: 0.1702640041 | BR28: 0.123554989 | BS28: 0.1503861525 | BT28: 0.1676134668 | BU28: 0.1676426496 | BV28: 0.1770283065 | BW28: 0.1330096044 | BX28: 0.1601622388 | BY28: 0.1600107549 | BZ28: 0.1600072611 | CA28: 0.1686773633 | CB28: 0.1278487842 | CC28: 0.1539681781 | CD28: 0.1707292431 | CE28: 0.1707278182 | CF28: 0.177288018 | CG28: 0.1323364433 | CH28: 0.1620126803 | CJ28: Bhutan | CK28: 0.2564191269 | CL28: 1.634251654 | CM28: 24.41702576 | CN28: 18.30754279 | CO28: 44.61523933 | CP28: 0.1856949543 | CQ28: 1.069862011 | CR28: 16.65199478 | CS28: 10.76285128 | CT28: 28.67040303 | CU28: 0.1384320403 | CV28: 0.7302026299 | CW28: 11.62396947 | CX28: 6.608944342 | CY28: 19.10154848 | CZ28: 0.09906080614 | DA28: 0.5034955272 | DB28: 8.385120304 | DC28: 4.04500142 | DD28: 13.03267806 | DE28: 0.06306679571 | DF28: 0.2738980228 | DG28: 5.002644733 | DH28: 2.197587833 | DI28: 7.537197384 | DJ28: 0.05343842381 | DK28: 0.2045653854 | DL28: 3.883845748 | DM28: 1.550991203 | DN28: 5.69284076 | DP28: 1.873602923 | DQ28: 11.73844802 | DR28: 164.0046532 | DS28: 156.1456319 | DT28: 333.7623361 | DU28: 1.22592118 | DV28: 6.907609546 | DW28: 102.640899 | DX28: 88.29835053 | DY28: 199.0727802 | DZ28: 0.836684743 | EA28: 4.41981407 | EB28: 68.27026965 | EC28: 53.48990273 | ED28: 127.0166712 | EE28: 0.5910074412 | EF28: 3.003385644 | EG28: 47.36598608 | EH28: 30.41134839 | EI28: 81.37172756 | EJ28: 0.3941409799 | EK28: 1.711784959 | EL28: 29.65806813 | EM28: 17.18896153 | EN28: 48.9529556 | EO28: 0.3130009999 | EP28: 1.19819598 | EQ28: 21.90698385 | ER28: 11.72006111 | ES28: 35.13824195 | EV28: Bhutan | EW28: 2751 | EX28: 2587 | EY28: 2358 | EZ28: 2111 | FA28: 1894 | FB28: 1733 | FC28: 1577 | FD28: 1469 | FE28: 1391 | FF28: 1327 | FG28: 1259 | FH28: 1174 | FI28: 1090 | FJ28: 1006 | FK28: 932 | FL28: 861 | FM28: 803 | FN28: 750 | FO28: 700 | FP28: 655 | FQ28: 617 | FR28: 585 | FS28: 559 | FT28: 537 | FV28: Bhutan | GT28: 700
A29: Bolivia | B29: AmrD | C29: Amr | D29: 174.1125652 | E29: 192.9820166 | F29: 193.2275824 | H29: 727.8441762 | I29: 824.7094727 | J29: 824.7094727 | L29: 0.2392168145 | M29: 0.234 | N29: 0.2342977604 | P29: 11445 | Q29: 10467 | S29: 0.06359494768 | T29: 0.07879138938 | W29: 1141.317203 | X29: 1008.853136 | Y29: 895.0294041 | Z29: 799.8685297 | AA29: 722.3832225 | AB29: 639.4449059 | AC29: 563.5442225 | AD29: 493.2770094 | AE29: 430.4075338 | AF29: 384.0490375 | AG29: 250.5009442 | AH29: 226.0241277 | AI29: 208.4555833 | AJ29: 193.2275824 | AL29: 3058.493408 | AM29: 2736.410156 | AN29: 2457.575684 | AO29: 2222.533447 | AP29: 2030.490479 | AQ29: 1818.094116 | AR29: 1620.127075 | AS29: 1433.569458 | AT29: 1263.745239 | AU29: 1138.522705 | AV29: 1031.49646 | AW29: 942.159729 | AX29: 879.3157349 | AY29: 824.7094727 | BA29: 0.234 | BB29: 192.9820166 | BE29: 0.264075022 | BF29: 0.2634537623 | BG29: 0.2638223804 | BH29: 0.2111126941 | BI29: 0.2399232933 | BJ29: 0.1482863221 | BK29: 0.1479121839 | BL29: 0.1499443173 | BM29: 0.1137037346 | BN29: 0.1335573122 | BO29: 0.1694132716 | BP29: 0.1679299215 | BQ29: 0.1687077776 | BR29: 0.1249557037 | BS29: 0.1489352 | BT29: 0.1297114959 | BU29: 0.1298806962 | BV29: 0.1343002716 | BW29: 0.1023231071 | BX29: 0.1192901082 | BY29: 0.206695975 | BZ29: 0.1983444525 | CA29: 0.2115290682 | CB29: 0.1572827491 | CC29: 0.1882172061 | CD29: 0.2625643071 | CE29: 0.267884383 | CF29: 0.2677533763 | CG29: 0.196904531 | CH29: 0.2392168145 | CJ29: Bolivia | CK29: 20.529335 | CL29: 57.46625139 | CM29: 623.1457015 | CN29: 465.0067521 | CO29: 1166.14804 | CP29: 10.10602813 | CQ29: 25.81978038 | CR29: 273.4412455 | CS29: 191.2471145 | CT29: 500.6141685 | CU29: 8.29181279 | CV29: 18.11324708 | CW29: 184.7982786 | CX29: 128.7596004 | CY29: 339.9629389 | CZ29: 4.077444934 | DA29: 7.771596103 | DB29: 92.29712917 | DC29: 68.00804029 | DD29: 172.1542105 | DE29: 4.024483211 | DF29: 6.462421711 | DG29: 101.6156863 | DH29: 60.44551583 | DI29: 172.5481071 | DJ29: 4.189277896 | DK29: 6.751689326 | DL29: 105.6676473 | DM29: 57.50395076 | DN29: 174.1125652 | DP29: 77.74054074 | DQ29: 218.1265163 | DR29: 2361.989535 | DS29: 2202.647046 | DT29: 4860.503638 | DU29: 68.15212616 | DV29: 174.561552 | DW29: 1823.618597 | DX29: 1681.977423 | DY29: 3748.309698 | DZ29: 48.94429293 | EA29: 107.8619398 | EB29: 1095.37498 | EC29: 1030.441961 | ED29: 2282.623174 | EE29: 31.43472293 | EF29: 59.83642166 | EG29: 687.2445458 | EH29: 664.6401015 | EI29: 1443.155792 | EJ29: 19.47054465 | EK29: 32.58181224 | EL29: 480.386394 | EM29: 384.3111606 | EN29: 916.7499115 | EO29: 15.95524518 | EP29: 25.20374369 | EQ29: 394.6454335 | ER29: 292.0397538 | ES29: 727.8441762 | EV29: Bolivia | EW29: 29268 | EX29: 28751 | EY29: 28296 | EZ29: 27769 | FA29: 27097 | FB29: 26177 | FC29: 25042 | FD29: 23694 | FE29: 22241 | FF29: 20889 | FG29: 19673 | FH29: 18690 | FI29: 17858 | FJ29: 17141 | FK29: 16412 | FL29: 15546 | FM29: 14619 | FN29: 13622 | FO29: 12691 | FP29: 11928 | FQ29: 11334 | FR29: 10922 | FS29: 10659 | FT29: 10467 | FV29: Bolivia | GT29: 11445
A30: Bosnia and Herzegovina | B30: EurB | C30: Eur | D30: 0.5121849494 | E30: 0.2565760339 | F30: 0.3907106917 | H30: 2.01570122 | I30: 0.9906410575 | J30: 0.9906410575 | L30: 0.2540976531 | M30: 0.259 | N30: 0.3944018762 | P30: 185 | Q30: 235 | S30: 0.01089568227 | T30: 0.004215493862 | W30: 1.885653613 | X30: 1.537771689 | Y30: 1.683551486 | Z30: 1.250693822 | AA30: 1.048024439 | AB30: 0.7519313373 | AC30: 0.7077080442 | AD30: 0.5331737164 | AE30: 0.5124451754 | AF30: 0.5005213991 | AG30: 0.4811417457 | AH30: 0.4559661067 | AI30: 0.4031361416 | AJ30: 0.3907106917 | AL30: 4.489303112 | AM30: 3.680492878 | AN30: 4.049091339 | AO30: 3.021905184 | AP30: 2.543605804 | AQ30: 1.833194613 | AR30: 1.733186603 | AS30: 1.311685205 | AT30: 1.26665473 | AU30: 1.243426323 | AV30: 1.201345921 | AW30: 1.144290805 | AX30: 1.016906977 | AY30: 0.9906410575 | BA30: 0.259 | BB30: 0.2565760339 | BE30: 0.2094081901 | BF30: 0.2170229446 | BG30: 0.2867973364 | BH30: 0.1968562794 | BI30: 0.2704470965 | BJ30: 0.2125165246 | BK30: 0.2195489135 | BL30: 0.2965191734 | BM30: 0.2000108576 | BN30: 0.2757270024 | BO30: 0.2260766941 | BP30: 0.2303145591 | BQ30: 0.3015189469 | BR30: 0.2015503079 | BS30: 0.2807344376 | BT30: 0.2028251482 | BU30: 0.207504816 | BV30: 0.2636936162 | BW30: 0.1724156147 | BX30: 0.2450159776 | BY30: 0.2085748589 | BZ30: 0.2114219935 | CA30: 0.2532657789 | CB30: 0.1659807361 | CC30: 0.236898793 | CD30: 0.2119017326 | CE30: 0.219716393 | CF30: 0.2744975893 | CG30: 0.1842192203 | CH30: 0.2540976531 | CJ30: Bosnia and Herzegovina | CK30: 0.1827670437 | CL30: 0.4383054428 | CM30: 6.753925183 | CN30: 0.5988525193 | CO30: 7.973850188 | CP30: 0.1001272254 | CQ30: 0.2583719021 | CR30: 3.875636195 | CS30: 0.4645736905 | CT30: 4.698709013 | CU30: 0.03322983986 | CV30: 0.1131804315 | CW30: 1.592300161 | CX30: 0.1958649368 | CY30: 1.934575369 | CZ30: 0.01932552635 | DA30: 0.07092289544 | DB30: 0.8661136108 | DC30: 0.1056969556 | DD30: 1.062058988 | DE30: 0.01709324637 | DF30: 0.06245700725 | DG30: 0.6231593479 | DH30: 0.07120486932 | DI30: 0.7739144708 | DJ30: 0.01202750653 | DK30: 0.04827308865 | DL30: 0.3997856364 | DM30: 0.05209871787 | DN30: 0.5121849494 | DP30: 0.8727788704 | DQ30: 2.019627204 | DR30: 23.54946969 | DS30: 3.042079843 | DT30: 29.48395561 | DU30: 0.471150305 | DV30: 1.176830703 | DW30: 13.07044044 | DX30: 2.322742356 | DY30: 17.0411638 | DZ30: 0.1469848097 | EA30: 0.4914167476 | EB30: 5.280929034 | EC30: 0.9717918013 | ED30: 6.891122392 | EE30: 0.09528170704 | EF30: 0.3417891537 | EG30: 3.284545236 | EH30: 0.6130358657 | EI30: 4.334651963 | EJ30: 0.0819525731 | EK30: 0.2954139548 | EL30: 2.460495653 | EM30: 0.4289947798 | EN30: 3.26685696 | EO30: 0.056759831 | EP30: 0.2197063587 | EQ30: 1.456426766 | ER30: 0.2828082639 | ES30: 2.01570122 | EV30: Bosnia and Herzegovina | EW30: 1361 | EX30: 1119 | EY30: 842 | EZ30: 575 | FA30: 390 | FB30: 303 | FC30: 297 | FD30: 360 | FE30: 446 | FF30: 509 | FG30: 521 | FH30: 490 | FI30: 438 | FJ30: 373 | FK30: 313 | FL30: 268 | FM30: 241 | FN30: 227 | FO30: 223 | FP30: 220 | FQ30: 220 | FR30: 222 | FS30: 229 | FT30: 235 | FV30: Bosnia and Herzegovina | GT30: 185
A31: Botswana | B31: AfrE | C31: Afr | D31: 18.77737876 | E31: 37.22322321 | F31: 49.56976364 | H31: 199.9468554 | I31: 138.8926239 | J31: 138.8926239 | L31: 0.09391184832 | M31: 0.268 | N31: 0.3568927006 | P31: 1474 | Q31: 2222 | S31: 0.1356491556 | T31: 0.06250793155 | W31: 85.11786977 | X31: 92.40058646 | Y31: 95.67914606 | Z31: 93.48402171 | AA31: 83.84202128 | AB31: 75.48571512 | AC31: 69.7964476 | AD31: 68.1296975 | AE31: 65.57458641 | AF31: 62.15782809 | AG31: 58.06473692 | AH31: 59.28420701 | AI31: 54.65530554 | AJ31: 49.56976364 | AL31: 210.4031525 | AM31: 229.1043243 | AN31: 238.5439758 | AO31: 235.5978394 | AP31: 215.4349365 | AQ31: 197.5796204 | AR31: 184.8586731 | AS31: 181.6281738 | AT31: 175.8576508 | AU31: 168.1363068 | AV31: 158.6472473 | AW31: 163.2686157 | AX31: 152.0413513 | AY31: 138.8926239 | BA31: 0.268 | BB31: 37.22322321 | BE31: 0.1148119736 | BF31: 0.1137937311 | BG31: 0.1047641799 | BH31: 0.07348847695 | BI31: 0.09560966047 | BJ31: 0.1116369144 | BK31: 0.1107794519 | BL31: 0.1015718551 | BM31: 0.07055960196 | BN31: 0.09411000119 | BO31: 0.1162613823 | BP31: 0.1151286304 | BQ31: 0.1051276887 | BR31: 0.07167879364 | BS31: 0.09895991175 | BT31: 0.1124769826 | BU31: 0.1116002644 | BV31: 0.1012310449 | BW31: 0.07044669175 | BX31: 0.0937247174 | BY31: 0.1164743861 | BZ31: 0.1155154407 | CA31: 0.1049956762 | CB31: 0.07356852013 | CC31: 0.09598850024 | CD31: 0.1117487683 | CE31: 0.1111828686 | CF31: 0.1033647986 | CG31: 0.07282591724 | CH31: 0.09391184832 | CJ31: Botswana | CK31: 2.118101307 | CL31: 3.609665717 | CM31: 37.07467732 | CN31: 13.85554747 | CO31: 56.65799181 | CP31: 1.982322947 | CQ31: 2.915566794 | CR31: 29.521488 | CS31: 8.744752296 | CT31: 43.16413004 | CU31: 1.861329189 | CV31: 2.358050395 | CW31: 22.27367424 | CX31: 5.031347432 | CY31: 31.52440125 | CZ31: 1.166462516 | DA31: 1.836366581 | DB31: 19.17075411 | DC31: 5.780669581 | DD31: 27.95425279 | DE31: 0.8000342785 | DF31: 1.243792154 | DG31: 14.87680157 | DH31: 5.339429293 | DI31: 22.26005729 | DJ31: 0.6395976895 | DK31: 0.9832854892 | DL31: 12.36789882 | DM31: 4.786596756 | DN31: 18.77737876 | DP31: 18.44843565 | DQ31: 31.72112983 | DR31: 353.8869616 | DS31: 188.5404086 | DT31: 592.5969357 | DU31: 17.7568769 | DV31: 26.31866059 | DW31: 290.6463407 | DX31: 123.9342634 | DY31: 458.6561416 | DZ31: 16.00986632 | EA31: 20.48187654 | EB31: 211.8725763 | EC31: 70.19297029 | ED31: 318.5572894 | EE31: 10.37067754 | EF31: 16.45485869 | EG31: 189.3762345 | EH31: 82.05736051 | EI31: 298.2591312 | EJ31: 6.868757204 | EK31: 10.7673238 | EL31: 141.689659 | EM31: 72.57763624 | EN31: 231.9033763 | EO31: 5.723532342 | EP31: 8.843857884 | EQ31: 119.6529088 | ER31: 65.72655639 | ES31: 199.9468554 | EV31: Botswana | EW31: 2291 | EX31: 2331 | EY31: 2427 | EZ31: 2578 | FA31: 2779 | FB31: 3010 | FC31: 3266 | FD31: 3519 | FE31: 3741 | FF31: 3939 | FG31: 4102 | FH31: 4147 | FI31: 4092 | FJ31: 3857 | FK31: 3369 | FL31: 2944 | FM31: 2755 | FN31: 2741 | FO31: 2752 | FP31: 2675 | FQ31: 2543 | FR31: 2461 | FS31: 2303 | FT31: 2222 | FV31: Botswana | GT31: 1474
A32: Brazil | B32: AmrB | C32: Amr | D32: 406.1137096 | E32: 185.3713323 | F32: 173.2635191 | H32: 1918.954901 | I32: 792.1851807 | J32: 792.1851807 | L32: 0.2116327536 | M32: 0.234 | N32: 0.2187159307 | P32: 54076 | Q32: 41206 | S32: 0.03548625825 | T32: 0.01922499589 | W32: 3012.265528 | X32: 2631.343333 | Y32: 2381.498793 | Z32: 1961.193557 | AA32: 1649.02017 | AB32: 1469.164312 | AC32: 1203.754111 | AD32: 815.835269 | AE32: 481.4269388 | AF32: 370.7485079 | AG32: 288.717102 | AH32: 226.6591344 | AI32: 183.3256176 | AJ32: 173.2635191 | AL32: 8709.384766 | AM32: 7680.385254 | AN32: 7016.619141 | AO32: 5831.095215 | AP32: 4946.417969 | AQ32: 4445.46582 | AR32: 3673.138916 | AS32: 2510.17334 | AT32: 2084.409668 | AU32: 1623.37207 | AV32: 1278.305786 | AW32: 1014.5979 | AX32: 829.3234253 | AY32: 792.1851807 | BA32: 0.234 | BB32: 185.3713323 | BE32: 0.224089357 | BF32: 0.2242133237 | BG32: 0.2238439684 | BH32: 0.1498121121 | BI32: 0.2162957227 | BJ32: 0.2125638712 | BK32: 0.2124964493 | BL32: 0.2107108791 | BM32: 0.1391812245 | BN32: 0.2044358625 | BO32: 0.2157356509 | BP32: 0.2161220172 | BQ32: 0.2174503423 | BR32: 0.1464660566 | BS32: 0.2097353642 | BT32: 0.2165104974 | BU32: 0.2156867965 | BV32: 0.2156266167 | BW32: 0.1444832571 | BX32: 0.2060388604 | BY32: 0.2103894574 | BZ32: 0.2117209703 | CA32: 0.220718558 | CB32: 0.1534263246 | CC32: 0.2102927529 | CD32: 0.2144740287 | CE32: 0.2147710592 | CF32: 0.2223674326 | CG32: 0.1530033704 | CH32: 0.2116327536 | CJ32: Brazil | CK32: 124.3002252 | CL32: 491.0269625 | CM32: 5757.293389 | CN32: 486.2868835 | CO32: 6858.907461 | CP32: 62.83167906 | CQ32: 245.7025848 | CR32: 3162.842901 | CS32: 225.9009983 | CT32: 3697.278163 | CU32: 23.77028339 | CV32: 81.25318289 | CW32: 1461.056889 | CX32: 127.0902075 | CY32: 1693.170562 | CZ32: 9.709827038 | DA32: 32.37559995 | DB32: 775.5019304 | DC32: 85.4385691 | DD32: 903.0259265 | DE32: 4.117898882 | DF32: 15.05570935 | DG32: 426.9247375 | DH32: 54.68752838 | DI32: 500.7858741 | DJ32: 3.653569964 | DK32: 14.78457972 | DL32: 343.6875152 | DM32: 43.98804476 | DN32: 406.1137096 | DP32: 554.6904453 | DQ32: 2189.999035 | DR32: 25720.11849 | DS32: 3245.978424 | DT32: 31710.78639 | DU32: 295.5896442 | DV32: 1156.266778 | DW32: 15010.34458 | DX32: 1623.070922 | DY32: 18085.27192 | DZ32: 110.1824538 | EA32: 375.9597654 | EB32: 6719.036969 | EC32: 867.7109936 | ED32: 8072.890181 | EE32: 44.84691114 | EF32: 150.104691 | EG32: 3596.503726 | EH32: 591.3388917 | EI32: 4382.79422 | EJ32: 19.57274349 | EK32: 71.11109176 | EL32: 1934.249396 | EM32: 356.4416245 | EN32: 2381.374856 | EO32: 17.03502278 | EP32: 68.83878943 | EQ32: 1545.583861 | ER32: 287.4972273 | ES32: 1918.954901 | EV32: Brazil | EW32: 217862 | EX32: 205114 | EY32: 193547 | EZ32: 182887 | FA32: 173386 | FB32: 164227 | FC32: 156085 | FD32: 148324 | FE32: 140601 | FF32: 132577 | FG32: 123953 | FH32: 115022 | FI32: 105534 | FJ32: 96137 | FK32: 87134 | FL32: 78456 | FM32: 70434 | FN32: 62796 | FO32: 55653 | FP32: 50103 | FQ32: 46035 | FR32: 43361 | FS32: 42136 | FT32: 41206 | FV32: Brazil | GT32: 54076
A33: Brunei | B33: WprA | C33: Wpr | D33: 0.1212688781 | E33: 0.1414867448 | F33: 0.2128824231 | H33: 0.4317333528 | I33: 0.4340084195 | J33: 0.4340084195 | L33: 0.2808883709 | M33: 0.326 | N33: 0.4905029799 | P33: 54 | Q33: 64 | S33: 0.007995062089 | T33: 0.006781381555 | W33: 0.2336979669 | X33: 0.2264641264 | Y33: 0.2314139535 | Z33: 0.2412678333 | AA33: 0.2352174054 | AB33: 0.2196957003 | AC33: 0.1975825147 | AD33: 0.1888659007 | AE33: 0.1817471619 | AF33: 0.1728304656 | AG33: 0.1856372348 | AH33: 0.1716240807 | AI33: 0.2046565904 | AJ33: 0.2128824231 | AL33: 0.4544059932 | AM33: 0.4420339763 | AN33: 0.453330487 | AO33: 0.4744080305 | AP33: 0.4642583728 | AQ33: 0.4352626204 | AR33: 0.3928900957 | AS33: 0.3769421875 | AT33: 0.3640807867 | AU33: 0.3474620283 | AV33: 0.3745078444 | AW33: 0.3474897742 | AX33: 0.4157759845 | AY33: 0.4340084195 | BA33: 0.326 | BB33: 0.1414867448 | BE33: 0.1944660822 | BF33: 0.2076948264 | BG33: 0.3314993934 | BH33: 0.2588326395 | BI33: 0.2841882464 | BJ33: 0.1841138538 | BK33: 0.1975780565 | BL33: 0.3299082516 | BM33: 0.2550773273 | BN33: 0.2752665497 | BO33: 0.1796704255 | BP33: 0.1922390921 | BQ33: 0.3225711249 | BR33: 0.2528435661 | BS33: 0.2696362004 | BT33: 0.1902364242 | BU33: 0.2032865174 | BV33: 0.3236793995 | BW33: 0.2491161946 | BX33: 0.2726024184 | BY33: 0.1897260697 | BZ33: 0.2026985074 | CA33: 0.3263071971 | CB33: 0.2559949016 | CC33: 0.2772692337 | CD33: 0.1853307504 | CE33: 0.1995034984 | CF33: 0.331975312 | CG33: 0.258640036 | CH33: 0.2808883709 | CJ33: Brunei | CK33: 0.004465135047 | CL33: 0.0144511963 | CM33: 0.09639519845 | CN33: 0.06507612055 | CO33: 0.1803876503 | CP33: 0.003242592247 | CQ33: 0.01240710077 | CR33: 0.06705626368 | CS33: 0.05840133924 | CT33: 0.1411072959 | CU33: 0.003193981043 | CV33: 0.01310313109 | CW33: 0.06706113481 | CX33: 0.06218759493 | CY33: 0.1455458419 | CZ33: 0.00326106232 | DA33: 0.01502961634 | DB33: 0.0808483076 | DC33: 0.06598854964 | DD33: 0.1651275359 | DE33: 0.002579164579 | DF33: 0.01202524656 | DG33: 0.06744737216 | DH33: 0.05441409408 | DI33: 0.1364658774 | DJ33: 0.002335158575 | DK33: 0.0100572142 | DL33: 0.06115813077 | DM33: 0.04771837459 | DN33: 0.1212688781 | DP33: 0.02296099658 | DQ33: 0.06957899025 | DR33: 0.2907854444 | DS33: 0.2514216162 | DT33: 0.6347470475 | DU33: 0.01761188623 | DV33: 0.06279594501 | DW33: 0.2032573097 | DX33: 0.2289554304 | DY33: 0.5126205713 | DZ33: 0.01777688807 | EA33: 0.06816059598 | EB33: 0.2078956535 | EC33: 0.245952847 | ED33: 0.5397859845 | EE33: 0.01714215526 | EF33: 0.07393316845 | EG33: 0.2497789718 | EH33: 0.2648906457 | EI33: 0.6057449412 | EJ33: 0.01359414962 | EK33: 0.05932577757 | EL33: 0.2066990025 | EM33: 0.2125592883 | EN33: 0.492178218 | EO33: 0.01259995209 | EP33: 0.05041121725 | EQ33: 0.1842249365 | ER33: 0.1844972469 | ES33: 0.4317333528 | EV33: Brunei | EW33: 86 | EX33: 86 | EY33: 86 | EZ33: 86 | FA33: 84 | FB33: 82 | FC33: 78 | FD33: 73 | FE33: 69 | FF33: 66 | FG33: 64 | FH33: 64 | FI33: 67 | FJ33: 70 | FK33: 71 | FL33: 71 | FM33: 70 | FN33: 68 | FO33: 64 | FP33: 61 | FQ33: 60 | FR33: 59 | FS33: 61 | FT33: 64 | FV33: Brunei | GT33: 54
A34: Bulgaria | B34: EurB | C34: Eur | D34: 3.308096716 | E34: 1.424464185 | F34: 2.186025447 | H34: 10.2889322 | I34: 5.499861717 | J34: 5.499861717 | L34: 0.3215199257 | M34: 0.259 | N34: 0.3974691655 | P34: 676 | Q34: 798 | S34: 0.0152203139 | T34: 0.00689205729 | W34: 14.6301066 | X34: 5.683302408 | Y34: 11.52351432 | Z34: 6.848356591 | AA34: 5.051545509 | AB34: 6.20651555 | AC34: 6.462106118 | AD34: 3.421421171 | AE34: 4.151580721 | AF34: 3.110062253 | AG34: 2.913709477 | AH34: 3.43094533 | AI34: 2.35092993 | AJ34: 2.186025447 | AL34: 34.23586655 | AM34: 13.3765192 | AN34: 27.28037834 | AO34: 16.30758476 | AP34: 12.10178375 | AQ34: 14.95909882 | AR34: 15.66574287 | AS34: 8.340413094 | AT34: 10.17541409 | AU34: 7.661987305 | AV34: 7.214361668 | AW34: 8.53929615 | AX34: 5.882860184 | AY34: 5.499861717 | BA34: 0.259 | BB34: 1.424464185 | BE34: 0.2496559177 | BF34: 0.2582575136 | BG34: 0.3409018826 | BH34: 0.2317768284 | BI34: 0.3138022107 | BJ34: 0.2408315958 | BK34: 0.2482370035 | BL34: 0.3244895384 | BM34: 0.2213516467 | BN34: 0.2986429771 | BO34: 0.2567945952 | BP34: 0.2649518277 | BQ34: 0.3476056972 | BR34: 0.2344649815 | BS34: 0.3196756041 | BT34: 0.2626353837 | BU34: 0.2708593313 | BV34: 0.3514708198 | BW34: 0.236382604 | BX34: 0.3261489925 | BY34: 0.2657435991 | BZ34: 0.273117345 | CA34: 0.3465177617 | CB34: 0.2328880319 | CC34: 0.3229341127 | CD34: 0.2597264089 | CE34: 0.2674355779 | CF34: 0.3452365028 | CG34: 0.2348915253 | CH34: 0.3215199257 | CJ34: Bulgaria | CK34: 0.08758587177 | CL34: 0.7510542756 | CM34: 7.988791944 | CN34: 1.274446868 | CO34: 10.10187896 | CP34: 0.05166654659 | CQ34: 0.4688964221 | CR34: 4.918932914 | CS34: 0.8138894509 | CT34: 6.253385333 | CU34: 0.05062748707 | CV34: 0.4200267252 | CW34: 4.37586873 | CX34: 0.6946406519 | CY34: 5.541163594 | CZ34: 0.03439006995 | DA34: 0.3442176941 | DB34: 3.685825134 | DC34: 0.4923385458 | DD34: 4.556771444 | DE34: 0.03026004463 | DF34: 0.3143518506 | DG34: 3.484186562 | DH34: 0.4481576491 | DI34: 4.276956107 | DJ34: 0.01968283643 | DK34: 0.2335347651 | DL34: 2.693852686 | DM34: 0.3610264278 | DN34: 3.308096716 | DP34: 0.3508263397 | DQ34: 2.908160406 | DR34: 23.43428521 | DS34: 5.498594822 | DT34: 32.19186678 | DU34: 0.2145339212 | DV34: 1.888906228 | DW34: 15.15898768 | DX34: 3.676907143 | DY34: 20.93933497 | DZ34: 0.1971516847 | EA34: 1.585294688 | EB34: 12.58859899 | EC34: 2.962662687 | ED34: 17.33370805 | EE34: 0.1309422571 | EF34: 1.270835649 | EG34: 10.48685958 | EH34: 2.082803631 | EI34: 13.97144112 | EJ34: 0.1138693264 | EK34: 1.15097725 | EL34: 10.05485706 | EM34: 1.924348132 | EN34: 13.24405177 | EO34: 0.07578296143 | EP34: 0.8732374611 | EQ34: 7.802919635 | ER34: 1.536992139 | ES34: 10.2889322 | EV34: Bulgaria | EW34: 2559 | EX34: 2492 | EY34: 2321 | EZ34: 2087 | FA34: 1868 | FB34: 1706 | FC34: 1590 | FD34: 1531 | FE34: 1495 | FF34: 1458 | FG34: 1403 | FH34: 1337 | FI34: 1268 | FJ34: 1199 | FK34: 1127 | FL34: 1060 | FM34: 1013 | FN34: 979 | FO34: 952 | FP34: 934 | FQ34: 917 | FR34: 887 | FS34: 844 | FT34: 798 | FV34: Bulgaria | GT34: 676
A35: Burkina Faso | B35: AfrD | C35: Afr | D35: 2324.583548 | E35: 1719.731529 | F35: 2490.90953 | H35: 9231.820724 | I35: 6416.908691 | J35: 6416.908691 | L35: 0.2518012012 | M35: 0.268 | N35: 0.3881790516 | P35: 70622 | Q35: 64099 | S35: 0.1307215984 | T35: 0.1001093417 | W35: 5901.708515 | X35: 5807.61552 | Y35: 5668.957518 | Z35: 5455.079799 | AA35: 5125.030555 | AB35: 4801.955147 | AC35: 4731.306951 | AD35: 4261.102388 | AE35: 3789.084749 | AF35: 3558.814877 | AG35: 3371.713228 | AH35: 3055.655426 | AI35: 2729.84805 | AJ35: 2490.90953 | AL35: 12655.87207 | AM35: 12556.70898 | AN35: 12373.63672 | AO35: 12042.44727 | AP35: 11464.75977 | AQ35: 10905.33984 | AR35: 10924.6748 | AS35: 10013.59863 | AT35: 9065.368164 | AU35: 8665.957031 | AV35: 8345.134766 | AW35: 7674.887207 | AX35: 6946.684082 | AY35: 6416.908691 | BA35: 0.268 | BB35: 1719.731529 | BE35: 0.3309429699 | BF35: 0.3270564894 | BG35: 0.2910750831 | BH35: 0.2069307721 | BI35: 0.2480859756 | BJ35: 0.2625760773 | BK35: 0.2615245036 | BL35: 0.2395206097 | BM35: 0.1796402122 | BN35: 0.2103841569 | BO35: 0.3369076963 | BP35: 0.3342283508 | BQ35: 0.308469294 | BR35: 0.2364699473 | BS35: 0.2742496484 | BT35: 0.3068210415 | BU35: 0.3041338694 | BV35: 0.2739878896 | BW35: 0.2012851921 | BX35: 0.2430939617 | BY35: 0.3174152358 | BZ35: 0.3145526684 | CA35: 0.2862900994 | CB35: 0.2149597306 | CC35: 0.2579962102 | CD35: 0.3184544218 | CE35: 0.3149498056 | CF35: 0.2830789182 | CG35: 0.2040778737 | CH35: 0.2518012012 | CJ35: Burkina Faso | CK35: 137.9218834 | CL35: 341.6905747 | CM35: 2005.798593 | CN35: 2077.960865 | CO35: 4563.371916 | CP35: 116.9709172 | CQ35: 269.0061597 | CR35: 1445.166238 | CS35: 1470.42171 | CT35: 3301.565025 | CU35: 138.8546024 | CV35: 329.6010742 | CW35: 1688.892007 | CX35: 1704.547125 | CY35: 3861.894808 | CZ35: 113.4591959 | DA35: 254.0691635 | DB35: 1329.513238 | DC35: 1080.688263 | DD35: 2777.72986 | DE35: 103.0916646 | DF35: 199.5693557 | DG35: 1266.09054 | DH35: 900.6066738 | DI35: 2469.358235 | DJ35: 98.86786567 | DK35: 181.1208184 | DL35: 1222.969431 | DM35: 821.6254326 | DN35: 2324.583548 | DP35: 416.7542324 | DQ35: 1044.744825 | DR35: 6891.000673 | DS35: 10041.81661 | DT35: 18394.31634 | DU35: 445.4743874 | DV35: 1028.607859 | DW35: 6033.57782 | DX35: 8185.370595 | DY35: 15693.03066 | DZ35: 412.1443466 | EA35: 986.1553436 | EB35: 5475.073337 | EC35: 7208.303399 | ED35: 14081.67643 | EE35: 369.7894881 | EF35: 835.3859566 | EG35: 4852.452565 | EH35: 5368.940716 | EI35: 11426.56873 | EJ35: 324.7848652 | EK35: 634.4544992 | EL35: 4422.404209 | EM35: 4189.65297 | EN35: 9571.296543 | EO35: 310.4615885 | EP35: 575.0783625 | EQ35: 4320.241998 | ER35: 4026.038775 | ES35: 9231.820724 | EV35: Burkina Faso | EW35: 78850 | EX35: 80758 | EY35: 82929 | EZ35: 85093 | FA35: 87070 | FB35: 88753 | FC35: 90221 | FD35: 91262 | FE35: 92172 | FF35: 93079 | FG35: 94052 | FH35: 94953 | FI35: 95099 | FJ35: 94300 | FK35: 92628 | FL35: 90162 | FM35: 87023 | FN35: 83235 | FO35: 79169 | FP35: 75128 | FQ35: 71614 | FR35: 68692 | FS35: 66273 | FT35: 64099 | FV35: Burkina Faso | GT35: 70622
A36: Burundi | B36: AfrE | C36: Afr | D36: 1091.307903 | E36: 1097.302053 | F36: 1552.441739 | H36: 3718.25645 | I36: 4094.410645 | J36: 4094.410645 | L36: 0.2934999018 | M36: 0.268 | N36: 0.379161221 | P36: 39138 | Q36: 34883 | S36: 0.09500374189 | T36: 0.1173755309 | W36: 3019.600333 | X36: 2819.342684 | Y36: 2625.801578 | Z36: 2451.548796 | AA36: 2504.336381 | AB36: 2354.669673 | AC36: 2227.475075 | AD36: 2147.464602 | AE36: 2019.716194 | AF36: 1919.676851 | AG36: 1842.260758 | AH36: 1762.599564 | AI36: 1658.799359 | AJ36: 1552.441739 | AL36: 6805.727539 | AM36: 6429.152832 | AN36: 6061.682617 | AO36: 5732.581055 | AP36: 5934.508301 | AQ36: 5656.414551 | AR36: 5423.695312 | AS36: 5294.61377 | AT36: 5044.657227 | AU36: 4852.124023 | AV36: 4708.371094 | AW36: 4554.129395 | AX36: 4331.385254 | AY36: 4094.410645 | BA36: 0.268 | BB36: 1097.302053 | BE36: 0.3858153142 | BF36: 0.3810892849 | BG36: 0.3538321118 | BH36: 0.2564249106 | BI36: 0.3017020204 | BJ36: 0.3742049069 | BK36: 0.371979397 | BL36: 0.3493745487 | BM36: 0.2511044264 | BN36: 0.2972841395 | BO36: 0.4049432533 | BP36: 0.4027870169 | BQ36: 0.3763715361 | BR36: 0.2631130947 | BS36: 0.3176267045 | BT36: 0.4002025336 | BU36: 0.397629022 | BV36: 0.3661961828 | BW36: 0.2603747813 | BX36: 0.3170176972 | BY36: 0.4399383569 | BZ36: 0.4379334 | CA36: 0.4042719731 | CB36: 0.2869240703 | CC36: 0.3525477627 | CD36: 0.3580989619 | CE36: 0.355897115 | CF36: 0.3304652705 | CG36: 0.2482039645 | CH36: 0.2934999018 | CJ36: Burundi | CK36: 65.46507626 | CL36: 139.6288035 | CM36: 793.2818104 | CN36: 907.4757156 | CO36: 1905.851406 | CP36: 59.3704128 | CQ36: 122.5130213 | CR36: 726.4548183 | CS36: 789.0801588 | CT36: 1697.418411 | CU36: 54.77093191 | CV36: 108.5969085 | CW36: 623.0956571 | CX36: 637.2238594 | CY36: 1423.687357 | CZ36: 58.60215962 | DA36: 101.160567 | DB36: 589.8080307 | DC36: 514.3685505 | DD36: 1263.939308 | DE36: 52.81263159 | DF36: 88.95394945 | DG36: 604.8490685 | DH36: 460.0557838 | DI36: 1206.671433 | DJ36: 44.37480101 | DK36: 73.80388845 | DL36: 532.1715675 | DM36: 440.957646 | DN36: 1091.307903 | DP36: 169.6798283 | DQ36: 366.3939373 | DR36: 2241.972348 | DS36: 3538.953035 | DT36: 6316.999148 | DU36: 158.6574941 | DV36: 329.3543199 | DW36: 2079.300913 | DX36: 3142.438268 | DY36: 5709.750995 | DZ36: 135.2558203 | EA36: 269.6137262 | EB36: 1655.533422 | EC36: 2421.862964 | ED36: 4482.265933 | EE36: 146.4312559 | EF36: 254.4094154 | EG36: 1610.634022 | EH36: 1975.492972 | EI36: 3986.967665 | EJ36: 120.0455263 | EK36: 203.1220945 | EL36: 1496.143954 | EM36: 1603.406028 | EN36: 3422.717603 | EO36: 123.9177036 | EP36: 207.3742251 | EQ36: 1610.370635 | ER36: 1776.593887 | ES36: 3718.25645 | EV36: Burundi | EW36: 45301 | EX36: 46450 | EY36: 46987 | EZ36: 46921 | FA36: 46421 | FB36: 45653 | FC36: 44618 | FD36: 43425 | FE36: 42103 | FF36: 40986 | FG36: 40156 | FH36: 39072 | FI36: 38250 | FJ36: 37628 | FK36: 37154 | FL36: 36763 | FM36: 36457 | FN36: 36423 | FO36: 36223 | FP36: 36099 | FQ36: 35952 | FR36: 35765 | FS36: 35360 | FT36: 34883 | FV36: Burundi | GT36: 39138
A37: Cambodia | B37: WprB | C37: Wpr | D37: 413.2964755 | E37: 347.4481099 | F37: 541.0809415 | H37: 916.8685997 | I37: 1065.791748 | J37: 1065.791748 | L37: 0.450769582 | M37: 0.326 | N37: 0.5076798 | P37: 16704 | Q37: 14018 | S37: 0.05488916426 | T37: 0.07603022885 | W37: 3169.787527 | X37: 2662.833631 | Y37: 2200.304247 | Z37: 1798.453343 | AA37: 1523.096027 | AB37: 1314.103042 | AC37: 1113.047271 | AD37: 960.2069226 | AE37: 809.166335 | AF37: 695.2596759 | AG37: 687.4227744 | AH37: 624.7830178 | AI37: 583.782001 | AJ37: 541.0809415 | AL37: 5500.691406 | AM37: 4684.34082 | AN37: 3930.53833 | AO37: 3260.973389 | AP37: 2798.171875 | AQ37: 2441.492188 | AR37: 2088.687256 | AS37: 1817.592896 | AT37: 1544.09375 | AU37: 1336.292114 | AV37: 1330.030273 | AW37: 1216.359131 | AX37: 1143.254395 | AY37: 1065.791748 | BA37: 0.326 | BB37: 347.4481099 | BE37: 0.3803327755 | BF37: 0.3817771011 | BG37: 0.3964897251 | BH37: 0.2615934962 | BI37: 0.3535469306 | BJ37: 0.4099318498 | BK37: 0.4103592127 | BL37: 0.410535925 | BM37: 0.277090931 | BN37: 0.3694930086 | BO37: 0.3946665658 | BP37: 0.3969151714 | BQ37: 0.4247503408 | BR37: 0.2875165644 | BS37: 0.3807221934 | BT37: 0.5463217569 | BU37: 0.5448393756 | BV37: 0.5505598587 | BW37: 0.3616883196 | BX37: 0.5007311324 | BY37: 0.3831213151 | BZ37: 0.3837486379 | CA37: 0.4035333376 | CB37: 0.2698063608 | CC37: 0.3709803513 | CD37: 0.4543735132 | CE37: 0.4605516552 | CF37: 0.4891906298 | CG37: 0.3348029339 | CH37: 0.450769582 | CJ37: Cambodia | CK37: 65.43568109 | CL37: 174.8957501 | CM37: 1547.683704 | CN37: 526.7709187 | CO37: 2314.786053 | CP37: 44.45122772 | CQ37: 137.1521343 | CR37: 1300.478198 | CS37: 443.9877568 | CT37: 1926.069317 | CU37: 25.07479658 | CV37: 88.15318312 | CW37: 1022.719747 | CX37: 340.846707 | CY37: 1476.794433 | CZ37: 15.85452184 | DA37: 45.2809642 | DB37: 673.6822519 | DC37: 171.5821375 | DD37: 906.3998754 | DE37: 8.080832813 | DF37: 18.89752264 | DG37: 336.1198074 | DH37: 74.66808274 | DI37: 437.7662456 | DJ37: 7.656466008 | DK37: 16.94499189 | DL37: 315.8594824 | DM37: 72.83553523 | DN37: 413.2964755 | DP37: 172.0484936 | DQ37: 458.1095871 | DR37: 3903.464846 | DS37: 2013.700365 | DT37: 6547.323292 | DU37: 108.4356528 | DV37: 334.2245771 | DW37: 3167.757361 | DX37: 1602.317893 | DY37: 5212.735484 | DZ37: 63.53412919 | EA37: 222.0957763 | EB37: 2407.813834 | EC37: 1185.485462 | ED37: 3878.929201 | EE37: 29.02048407 | EF37: 83.10883213 | EG37: 1223.631257 | EH37: 474.392255 | EI37: 1810.152828 | EJ37: 21.09209928 | EK37: 49.24453347 | EL37: 832.9418566 | EM37: 276.7469325 | EN37: 1180.025422 | EO37: 16.85059931 | EP37: 36.7928151 | EQ37: 645.6777033 | ER37: 217.547482 | ES37: 916.8685997 | EV37: Cambodia | EW37: 40435 | EX37: 39877 | EY37: 41221 | EZ37: 43639 | FA37: 45851 | FB37: 46781 | FC37: 46023 | FD37: 43657 | FE37: 39908 | FF37: 35758 | FG37: 32027 | FH37: 29047 | FI37: 26790 | FJ37: 25093 | FK37: 23615 | FL37: 22085 | FM37: 20456 | FN37: 18790 | FO37: 17150 | FP37: 15872 | FQ37: 15008 | FR37: 14501 | FS37: 14230 | FT37: 14018 | FV37: Cambodia | GT37: 16704
A38: Cameroon | B38: AfrD | C38: Afr | D38: 2213.604403 | E38: 2277.313773 | F38: 3282.368242 | H38: 7165.71562 | I38: 8497.439453 | J38: 8497.439453 | L38: 0.3089160275 | M38: 0.268 | N38: 0.3862773322 | P38: 82515 | Q38: 74793 | S38: 0.08684136969 | T38: 0.1136127639 | W38: 6048.148151 | X38: 5715.552018 | Y38: 5364.412456 | Z38: 5014.332294 | AA38: 4706.468144 | AB38: 4470.889892 | AC38: 4311.467371 | AD38: 4140.679177 | AE38: 3892.672076 | AF38: 3803.050021 | AG38: 3509.139707 | AH38: 3539.164248 | AI38: 3493.024522 | AJ38: 3282.368242 | AL38: 13588.40918 | AM38: 12977.3125 | AN38: 12324.44434 | AO38: 11660.03613 | AP38: 11072.4043 | AQ38: 10638.12305 | AR38: 10372.52539 | AS38: 10068.81445 | AT38: 9568.802734 | AU38: 9448.404297 | AV38: 8819.175781 | AW38: 8986.239258 | AX38: 8960.085938 | AY38: 8497.439453 | BA38: 0.268 | BB38: 2277.313773 | BE38: 0.3487867536 | BF38: 0.3501316411 | BG38: 0.3106856234 | BH38: 0.2303451619 | BI38: 0.275137716 | BJ38: 0.2569399929 | BK38: 0.2487984896 | BL38: 0.2329309591 | BM38: 0.2115790453 | BN38: 0.2247899322 | BO38: 0.3185082021 | BP38: 0.3182985097 | BQ38: 0.2890284562 | BR38: 0.2221650677 | BS38: 0.2617059659 | BT38: 0.3346110631 | BU38: 0.3283533657 | BV38: 0.3046261106 | BW38: 0.2338670783 | BX38: 0.2760418662 | BY38: 0.3702335083 | BZ38: 0.3693150035 | CA38: 0.3321181992 | CB38: 0.2405309755 | CC38: 0.2942173355 | CD38: 0.3977433831 | CE38: 0.3909418948 | CF38: 0.3522142195 | CG38: 0.2504800824 | CH38: 0.3089160275 | CJ38: Cameroon | CK38: 169.466975 | CL38: 213.0559906 | CM38: 1455.783894 | CN38: 1275.262822 | CO38: 3113.569682 | CP38: 138.7119899 | CQ38: 159.1056204 | CR38: 1131.798631 | CS38: 1157.388631 | CT38: 2587.004872 | CU38: 164.9418515 | CV38: 180.824826 | CW38: 1293.098433 | CX38: 1032.72947 | CY38: 2671.594581 | CZ38: 154.8236543 | DA38: 150.3778447 | DB38: 1160.255851 | DC38: 886.8333706 | DD38: 2352.290721 | DE38: 109.6224954 | DF38: 126.3539489 | DG38: 1097.384877 | DH38: 777.0312224 | DI38: 2110.392544 | DJ38: 102.5288538 | DK38: 123.8677511 | DL38: 1164.201286 | DM38: 823.006512 | DN38: 2213.604403 | DP38: 485.8756051 | DQ38: 608.5025334 | DR38: 4685.713739 | DS38: 5536.312602 | DT38: 11316.40448 | DU38: 539.8614219 | DV38: 639.4959255 | DW38: 4858.944622 | DX38: 5470.24224 | DY38: 11508.54421 | DZ38: 517.8574692 | EA38: 568.0982489 | EB38: 4473.948518 | EC38: 4648.47818 | ED38: 10208.38242 | EE38: 462.6973563 | EF38: 457.9756459 | EG38: 3808.78661 | EH38: 3792.040236 | EI38: 8521.499848 | EJ38: 296.0901512 | EK38: 342.1305597 | EL38: 3304.199769 | EM38: 3230.482979 | EN38: 7172.903459 | EO38: 257.7763909 | EP38: 316.8444026 | EQ38: 3305.378437 | ER38: 3285.716389 | ES38: 7165.71562 | EV38: Cameroon | EW38: 69745 | EX38: 72268 | EY38: 75364 | EZ38: 78753 | FA38: 82338 | FB38: 85836 | FC38: 89134 | FD38: 91854 | FE38: 93866 | FF38: 94846 | FG38: 94891 | FH38: 94030 | FI38: 92636 | FJ38: 91098 | FK38: 89650 | FL38: 88179 | FM38: 86740 | FN38: 85142 | FO38: 83246 | FP38: 81407 | FQ38: 79134 | FR38: 77559 | FS38: 75931 | FT38: 74793 | FV38: Cameroon | GT38: 82515
A39: Canada | B39: AmrA | C39: Amr | D39: 1.299912276 | E39: 2.141564083 | F39: 3.601699271 | H39: 11.24519038 | I39: 9.151983261 | J39: 9.151983261 | L39: 0.1155971781 | M39: 0.234 | N39: 0.3935430352 | P39: 2120 | Q39: 2099 | S39: 0.005304335086 | T39: 0.004360163536 | W39: 3.268766435 | X39: 0.9389216758 | Y39: 2.792066928 | Z39: 1.980912933 | AA39: 0.5245671698 | AB39: 2.50336314 | AC39: 1.518316164 | AD39: 1.955537672 | AE39: 0.9935152008 | AF39: 3.408787796 | AG39: 2.975027733 | AH39: 3.376007912 | AI39: 3.793889843 | AJ39: 3.601699271 | AL39: 7.816421032 | AM39: 2.255155802 | AN39: 6.736040592 | AO39: 4.80119276 | AP39: 1.277143002 | AQ39: 6.122381687 | AR39: 3.730707645 | AS39: 4.827665806 | AT39: 2.464351416 | AU39: 8.495511055 | AV39: 7.449923515 | AW39: 8.495960236 | AX39: 9.593803406 | AY39: 9.151983261 | BA39: 0.234 | BB39: 2.141564083 | BE39: 0.1338555707 | BF39: 0.1385144231 | BG39: 0.1458750169 | BH39: 0.1083964097 | BI39: 0.1364814115 | BJ39: 0.1617220824 | BK39: 0.1641203956 | BL39: 0.1773157776 | BM39: 0.1338156826 | BN39: 0.1649162026 | BO39: 0.1220525832 | BP39: 0.1199658745 | BQ39: 0.1256501061 | BR39: 0.09289852844 | BS39: 0.1153852198 | BT39: 0.1302070187 | BU39: 0.1355563499 | BV39: 0.1518878062 | BW39: 0.1023076392 | BX39: 0.1320825608 | BY39: 0.1509483381 | BZ39: 0.1554830556 | CA39: 0.1780450403 | CB39: 0.1262236621 | CC39: 0.1569039015 | CD39: 0.1113037221 | CE39: 0.1123253018 | CF39: 0.1260994484 | CG39: 0.09972819459 | CH39: 0.1155971781 | CJ39: Canada | CK39: 0.06871173275 | CL39: 0.09524691597 | CM39: 0.7385995041 | CN39: 0.183762798 | CO39: 1.086320951 | CP39: 0.08810342589 | CQ39: 0.1246317396 | CR39: 0.8810113331 | CS39: 0.2549946758 | CT39: 1.348741174 | CU39: 0.09826599477 | CV39: 0.1257439547 | CW39: 0.6155042237 | CX39: 0.2497449518 | CY39: 1.089259125 | CZ39: 0.1840989289 | DA39: 0.2035064544 | DB39: 0.9174995487 | DC39: 0.4198820599 | DD39: 1.724986992 | DE39: 0.1968004478 | DF39: 0.2205617976 | DG39: 1.073325243 | DH39: 0.484101349 | DI39: 1.974788837 | DJ39: 0.1181598437 | DK39: 0.1435841911 | DL39: 0.7175345699 | DM39: 0.3206336713 | DN39: 1.299912276 | DP39: 0.5133274048 | DQ39: 0.6876317559 | DR39: 5.063235088 | DS39: 1.695284913 | DT39: 7.959479161 | DU39: 0.5447829053 | DV39: 0.7593921471 | DW39: 4.968600905 | DX39: 1.905566454 | DY39: 8.178342411 | DZ39: 0.8051119621 | EA39: 1.048164365 | EB39: 4.898557133 | EC39: 2.68836284 | ED39: 9.440196301 | EE39: 1.413894049 | EF39: 1.501268326 | EG39: 6.040639942 | EH39: 4.10411249 | EI39: 13.05991481 | EJ39: 1.303760281 | EK39: 1.418558419 | EL39: 6.0283917 | EM39: 3.835266233 | EN39: 12.58597663 | EO39: 1.061598314 | EP39: 1.278288941 | EQ39: 5.690227666 | ER39: 3.215075462 | ES39: 11.24519038 | EV39: Canada | EW39: 3185 | EX39: 3111 | EY39: 3044 | EZ39: 2967 | FA39: 2901 | FB39: 2754 | FC39: 2610 | FD39: 2432 | FE39: 2276 | FF39: 2140 | FG39: 2041 | FH39: 2006 | FI39: 2013 | FJ39: 2017 | FK39: 2067 | FL39: 2121 | FM39: 2143 | FN39: 2167 | FO39: 2187 | FP39: 2201 | FQ39: 2201 | FR39: 2153 | FS39: 2131 | FT39: 2099 | FV39: Canada | GT39: 2120
A40: Cape Verde | B40: AfrD | C40: Afr | D40: 3.801000461 | E40: 3.895266479 | F40: 5.003607416 | H40: 16.0286265 | I40: 14.53457642 | J40: 14.53457642 | L40: 0.2371382514 | M40: 0.268 | N40: 0.3442554687 | P40: 244 | Q40: 263 | S40: 0.06569109223 | T40: 0.05526454911 | W40: 18.30004099 | X40: 14.86121173 | Y40: 12.21751297 | Z40: 10.40908172 | AA40: 9.261865291 | AB40: 8.186608087 | AC40: 7.637225694 | AD40: 6.890350216 | AE40: 6.440841321 | AF40: 6.111485927 | AG40: 5.81753584 | AH40: 5.95130826 | AI40: 5.20742816 | AJ40: 5.003607416 | AL40: 48.93106842 | AM40: 40.15195847 | AN40: 33.3024292 | AO40: 28.57908249 | AP40: 25.58530426 | AQ40: 22.73487282 | AR40: 21.31128693 | AS40: 19.31684685 | AT40: 18.14780807 | AU40: 17.31293869 | AV40: 16.57852364 | AW40: 17.06451225 | AX40: 15.02723789 | AY40: 14.53457642 | BA40: 0.268 | BB40: 3.895266479 | BE40: 0.3024354345 | BF40: 0.2983579095 | BG40: 0.2732657992 | BH40: 0.198851685 | BI40: 0.2509669458 | BJ40: 0.2690830091 | BK40: 0.268387517 | BL40: 0.2439717441 | BM40: 0.1818034723 | BN40: 0.227680859 | BO40: 0.2678101918 | BP40: 0.264574052 | BQ40: 0.2432997986 | BR40: 0.1844422512 | BS40: 0.2288212913 | BT40: 0.2950369951 | BU40: 0.2952574351 | BV40: 0.2705351388 | BW40: 0.2013858678 | BX40: 0.2526123179 | BY40: 0.2893131258 | BZ40: 0.2839272008 | CA40: 0.2615557897 | CB40: 0.1957921031 | CC40: 0.2424499656 | CD40: 0.2727225266 | CE40: 0.2696504829 | CF40: 0.2555677756 | CG40: 0.1949828829 | CH40: 0.2371382514 | CJ40: Cape Verde | CK40: 1.198867027 | CL40: 2.376039618 | CM40: 22.43073835 | CN40: 9.202534131 | CO40: 35.20817912 | CP40: 0.796744413 | CQ40: 1.480916856 | CR40: 13.86207708 | CS40: 5.04396326 | CT40: 21.18370161 | CU40: 0.5548277989 | CV40: 1.012230277 | CW40: 9.766090721 | CX40: 3.319573368 | CY40: 14.65272217 | CZ40: 0.359973277 | DA40: 0.6312473151 | DB40: 6.456349449 | DC40: 2.243449858 | DD40: 9.691019899 | DE40: 0.2197072361 | DF40: 0.345077036 | DG40: 3.442033423 | DH40: 1.415962621 | DI40: 5.422780316 | DJ40: 0.1515161809 | DK40: 0.2490481334 | DL40: 2.377205158 | DM40: 1.023230988 | DN40: 3.801000461 | DP40: 3.964042867 | DQ40: 7.963722572 | DR40: 82.08395787 | DS40: 46.27838145 | DT40: 140.2901048 | DU40: 2.960961436 | DV40: 5.517830609 | DW40: 56.81837106 | DX40: 27.74404249 | DY40: 93.04120559 | DZ40: 2.071720255 | EA40: 3.825886439 | EB40: 40.14015128 | EC40: 17.99790095 | ED40: 64.03565892 | EE40: 1.220095388 | EF40: 2.137955696 | EG40: 23.86510483 | EH40: 11.14005607 | EI40: 38.36321198 | EJ40: 0.7594098452 | EK40: 1.215371528 | EL40: 13.15984413 | EM40: 7.231970026 | EN40: 22.36659553 | EO40: 0.5555689982 | EP40: 0.9235960964 | EQ40: 9.301662358 | ER40: 5.247799051 | ES40: 16.0286265 | EV40: Cape Verde | EW40: 863 | EX40: 836 | EY40: 817 | EZ40: 801 | FA40: 781 | FB40: 749 | FC40: 704 | FD40: 647 | FE40: 581 | FF40: 515 | FG40: 457 | FH40: 408 | FI40: 371 | FJ40: 345 | FK40: 329 | FL40: 318 | FM40: 313 | FN40: 308 | FO40: 302 | FP40: 295 | FQ40: 287 | FR40: 279 | FS40: 271 | FT40: 263 | FV40: Cape Verde | GT40: 244
A41: Central African Republic | B41: AfrE | C41: Afr | D41: 422.5395582 | E41: 536.6337192 | F41: 828.3760395 | H41: 2672.746063 | I41: 2002.364624 | J41: 2002.364624 | L41: 0.1580919205 | M41: 0.268 | N41: 0.4136988986 | P41: 21489 | Q41: 21371 | S41: 0.1243774053 | T41: 0.09369541079 | W41: 1269.682071 | X41: 1249.880147 | Y41: 1224.010092 | Z41: 1191.784036 | AA41: 1161.838722 | AB41: 1144.42869 | AC41: 1126.993262 | AD41: 1088.547965 | AE41: 1034.876103 | AF41: 1007.507298 | AG41: 970.2779558 | AH41: 922.9411564 | AI41: 872.8130727 | AJ41: 828.3760395 | AL41: 2765.32251 | AM41: 2735.395508 | AN41: 2692.195068 | AO41: 2635.939209 | AP41: 2584.506592 | AQ41: 2561.901855 | AR41: 2541.058838 | AS41: 2473.576172 | AT41: 2372.51709 | AU41: 2332.446045 | AV41: 2269.828613 | AW41: 2184.204834 | AX41: 2089.600586 | AY41: 2002.364624 | BA41: 0.268 | BB41: 536.6337192 | BE41: 0.2187262535 | BF41: 0.2151973956 | BG41: 0.1828182667 | BH41: 0.1116191512 | BI41: 0.1613237603 | BJ41: 0.1936881296 | BK41: 0.1916710764 | BL41: 0.1711743946 | BM41: 0.1122001995 | BN41: 0.1536850105 | BO41: 0.1854324664 | BP41: 0.1841190042 | BQ41: 0.1664854332 | BR41: 0.1074173718 | BS41: 0.148593826 | BT41: 0.2051463623 | BU41: 0.2022815154 | BV41: 0.1785167463 | BW41: 0.1159277141 | BX41: 0.1606326912 | BY41: 0.1936886799 | BZ41: 0.1915076127 | CA41: 0.168268418 | CB41: 0.1060258731 | CC41: 0.1483460839 | CD41: 0.2045142064 | CE41: 0.2028483843 | CF41: 0.1786168146 | CG41: 0.1146299736 | CH41: 0.1580919205 | CJ41: Central African Republic | CK41: 35.37299787 | CL41: 59.60729918 | CM41: 353.379349 | CN41: 147.6595319 | CO41: 596.0191779 | CP41: 22.8896825 | CQ41: 38.94335587 | CR41: 270.7404757 | CS41: 108.4758256 | CT41: 441.0493396 | CU41: 19.4304605 | CV41: 32.54125885 | CW41: 237.2917799 | CX41: 92.97377937 | CY41: 382.2372787 | CZ41: 18.46722752 | DA41: 31.70272852 | DB41: 228.9765792 | DC41: 86.80319492 | DD41: 365.9497302 | DE41: 16.06430067 | DF41: 30.79837037 | DG41: 246.564821 | DH41: 99.94805234 | DI41: 393.3755444 | DJ41: 16.56420365 | DK41: 32.78569096 | DL41: 264.1401648 | DM41: 109.0494989 | DN41: 422.5395582 | DP41: 161.722689 | DQ41: 276.9889431 | DR41: 1932.954268 | DS41: 1322.88707 | DT41: 3694.55297 | DU41: 118.1780347 | DV41: 203.1780517 | DW41: 1581.664573 | DX41: 966.8059954 | DY41: 2869.826654 | DZ41: 104.7845659 | EA41: 176.7403587 | EB41: 1425.300552 | EC41: 865.5376486 | ED41: 2572.363126 | EE41: 90.01976594 | EF41: 156.7257811 | EG41: 1282.661621 | EH41: 748.7700037 | EI41: 2278.177172 | EJ41: 82.93876894 | EK41: 160.8206062 | EL41: 1465.306586 | EM41: 942.6760603 | EN41: 2651.742021 | EO41: 80.99292434 | EP41: 161.6265817 | EQ41: 1478.809066 | ER41: 951.3174908 | ES41: 2672.746063 | EV41: Central African Republic | EW41: 20464 | EX41: 20638 | EY41: 20780 | EZ41: 20947 | FA41: 21188 | FB41: 21560 | FC41: 22070 | FD41: 22683 | FE41: 23329 | FF41: 23877 | FG41: 24275 | FH41: 24599 | FI41: 24706 | FJ41: 24608 | FK41: 24456 | FL41: 24281 | FM41: 23966 | FN41: 23581 | FO41: 23124 | FP41: 22658 | FQ41: 22246 | FR41: 21791 | FS41: 21453 | FT41: 21371 | FV41: Central African Republic | GT41: 21489
A42: Chad | B42: AfrD | C42: Afr | D42: =DN42 -> 4032.325787 | E42: =BB42 -> 2713.524078 | F42: =AJ42 -> 4240.292439 | H42: =ES42 -> 17233.88282 | I42: =AY42 -> 10125.08984 | J42: =AY42 -> 10125.08984 | L42: 0.2339766279 | M42: 0.268 | N42: 0.4187905988 | P42: =GT42 -> 84457 | Q42: =FT42 -> 82421 | S42: =H42/GT42 -> 0.2040551147 | T42: =I42/FT42 -> 0.1228459961 | W42: 4712.309539 | X42: 4762.215068 | Y42: 4787.905995 | Z42: 4809.287179 | AA42: 4769.70861 | AB42: 4724.56096 | AC42: 4668.368345 | AD42: 4639.931094 | AE42: 4644.934389 | AF42: 4580.117013 | AG42: 4651.323179 | AH42: 4645.155487 | AI42: 4467.682371 | AJ42: 4240.292439 | AL42: 10040.55273 | AM42: 10223.21484 | AN42: 10356.26953 | AO42: 10479.16113 | AP42: 10470.17969 | AQ42: 10447.21289 | AR42: 10402.14551 | AS42: 10423.01172 | AT42: 10527.3916 | AU42: 10485.62988 | AV42: 10760.66309 | AW42: 10859.08203 | AX42: 10555.00488 | AY42: 10125.08984 | BA42: 0.268 | BB42: =AY42*BA42 -> 2713.524078 | BE42: 0.2896467149 | BF42: 0.2875437059 | BG42: 0.2636035413 | BH42: 0.193185885 | BI42: 0.2311716645 | BJ42: 0.2770895021 | BK42: 0.2752386927 | BL42: 0.2539209083 | BM42: 0.1907417616 | BN42: 0.2255536715 | BO42: 0.2741296578 | BP42: 0.2731687607 | BQ42: 0.2597211786 | BR42: 0.2001555882 | BS42: 0.2325698099 | BT42: 0.2926396903 | BU42: 0.2892887654 | BV42: 0.2695178375 | BW42: 0.1985672854 | BX42: 0.2386755549 | BY42: 0.2706956789 | BZ42: 0.2700694942 | CA42: 0.2503511987 | CB42: 0.1939764218 | CC42: 0.2240135028 | CD42: 0.2844398083 | CE42: 0.2851449038 | CF42: 0.2635621711 | CG42: 0.2010838855 | CH42: 0.2339766279 | CJ42: Chad | CK42: 183.0909582 | CL42: 257.3152177 | CM42: 1448.795763 | CN42: 1351.069933 | CO42: 3240.271872 | CP42: 196.3694387 | CQ42: 264.4031501 | CR42: 1548.081248 | CS42: 1409.244389 | CT42: 3418.098226 | CU42: 216.2796893 | CV42: 283.1654071 | CW42: 1763.672799 | CX42: 1600.846196 | CY42: 3863.964092 | CZ42: 208.8181706 | DA42: 282.7755216 | DB42: 1755.407316 | DC42: 1430.086836 | DD42: 3677.087845 | DE42: 160.8986375 | DF42: 238.492717 | DG42: 1740.542576 | DH42: 1624.347235 | DI42: 3764.281166 | DJ42: 162.1680268 | DK42: 245.0771602 | DL42: 1886.060316 | DM42: 1739.020285 | DN42: 4032.325787 | DP42: 632.1181937 | DQ42: 894.8734138 | DR42: 5496.116464 | DS42: 6993.626542 | DT42: 14016.73461 | DU42: 708.685956 | DV42: 960.6321969 | DW42: 6096.706485 | DX42: 7388.23201 | DY42: 15154.25665 | DZ42: 788.9685888 | EA42: 1036.595131 | EB42: 6790.639134 | EC42: 7998.009001 | ED42: 16614.21185 | EE42: 713.5674946 | EF42: 977.4853207 | EG42: 6513.139659 | EH42: 7202.026422 | EI42: 15406.2189 | EJ42: 594.3893827 | EK42: 883.0790671 | EL42: 6952.403602 | EM42: 8373.94164 | EN42: 16803.81369 | EO42: 570.1312617 | EP42: 859.4828698 | EQ42: 7156.035737 | ER42: 8648.232951 | ES42: 17233.88282 | EV42: Chad | EW42: 60579 | EX42: 62000 | EY42: 63390 | EZ42: 64802 | FA42: 66327 | FB42: 67962 | FC42: 69618 | FD42: 71110 | FE42: 72535 | FF42: 74025 | FG42: 75647 | FH42: 77317 | FI42: 78967 | FJ42: 80640 | FK42: 82135 | FL42: 83427 | FM42: 84649 | FN42: 85365 | FO42: 85544 | FP42: 85131 | FQ42: 84567 | FR42: 84030 | FS42: 83293 | FT42: 82421 | FV42: Chad | GT42: 84457
A43: Chile | B43: AmrB | C43: Amr | D43: 4.337637991 | E43: 1.237418693 | F43: 1.621738717 | H43: 14.06284009 | I43: 5.288114071 | J43: 5.288114071 | L43: 0.3084467976 | M43: 0.234 | N43: 0.3066761978 | P43: 1828 | Q43: 2014 | S43: 0.007693019743 | T43: 0.002625677294 | W43: 7.887094155 | X43: 4.320824081 | Y43: 5.759433638 | Z43: 8.037005647 | AA43: 4.16583873 | AB43: 3.218358265 | AC43: 1.248178969 | AD43: 2.084194366 | AE43: 3.604865231 | AF43: 2.343003666 | AG43: 2.046750153 | AH43: 1.91284339 | AI43: 1.686429911 | AJ43: 1.621738717 | AL43: 23.72998619 | AM43: 13.08736038 | AN43: 17.55935669 | AO43: 24.65594673 | AP43: 12.8578949 | AQ43: 9.994271278 | AR43: 3.899204016 | AS43: 6.549906731 | AT43: 11.39520359 | AU43: 7.451347351 | AV43: 6.548946857 | AW43: 6.15810442 | AX43: 5.463950634 | AY43: 5.288114071 | BA43: 0.234 | BB43: 1.237418693 | BE43: 0.2145589141 | BF43: 0.2287164932 | BG43: 0.3685352844 | BH43: 0.286929163 | BI43: 0.3427956916 | BJ43: 0.2173697103 | BK43: 0.2347765464 | BL43: 0.404091363 | BM43: 0.3153066947 | BN43: 0.3694810749 | BO43: 0.2134300396 | BP43: 0.2275766632 | BQ43: 0.3772400883 | BR43: 0.2927162209 | BS43: 0.340403055 | BT43: 0.2175999615 | BU43: 0.232587732 | BV43: 0.3699257039 | BW43: 0.2846769143 | BX43: 0.3280099532 | BY43: 0.2139859494 | BZ43: 0.2263210929 | CA43: 0.3484295739 | CB43: 0.2663667271 | CC43: 0.3100539078 | CD43: 0.2136261482 | CE43: 0.2257136068 | CF43: 0.3448680098 | CG43: 0.2651838199 | CH43: 0.3084467976 | CJ43: Chile | CK43: 0.8242183616 | CL43: 2.298975533 | CM43: 39.05851765 | CN43: 5.591350322 | CO43: 47.77306187 | CP43: 0.3661673894 | CQ43: 1.188749193 | CR43: 16.98372826 | CS43: 3.005333074 | CT43: 21.54397792 | CU43: 0.2413213735 | CV43: 0.8294430265 | CW43: 9.129660353 | CX43: 2.066880606 | CY43: 12.26730536 | CZ43: 0.1709606364 | DA43: 0.6711327165 | DB43: 5.091049675 | DC43: 1.410954653 | DD43: 7.344097681 | DE43: 0.1306971882 | DF43: 0.5350788098 | DG43: 3.983690575 | DH43: 1.110402131 | DI43: 5.759868704 | DJ43: 0.09457176623 | DK43: 0.3992732251 | DL43: 3.034077865 | DM43: 0.8097151341 | DN43: 4.337637991 | DP43: 3.841454759 | DQ43: 10.0516386 | DR43: 105.9831156 | DS43: 19.48686659 | DT43: 139.3630756 | DU43: 1.684537321 | DV43: 5.063321747 | DW43: 42.02942655 | DX43: 9.531459763 | DY43: 58.30874538 | DZ43: 1.130681389 | EA43: 3.644675226 | EB43: 24.20119344 | EC43: 7.061038842 | ED43: 36.0375889 | EE43: 0.7856648285 | EF43: 2.885503507 | EG43: 13.7623572 | EH43: 4.956336751 | EI43: 22.38986229 | EJ43: 0.6107746259 | EK43: 2.364246315 | EL43: 11.43327339 | EM43: 4.168696832 | EN43: 18.57699116 | EO43: 0.4426975211 | EP43: 1.768937331 | EQ43: 8.797794459 | ER43: 3.053410779 | ES43: 14.06284009 | EV43: Chile | EW43: 5737 | EX43: 5313 | EY43: 4935 | EZ43: 4554 | FA43: 4205 | FB43: 3878 | FC43: 3606 | FD43: 3394 | FE43: 3174 | FF43: 2951 | FG43: 2721 | FH43: 2537 | FI43: 2416 | FJ43: 2368 | FK43: 2345 | FL43: 2310 | FM43: 2289 | FN43: 2258 | FO43: 2242 | FP43: 2200 | FQ43: 2162 | FR43: 2128 | FS43: 2070 | FT43: 2014 | FV43: Chile | GT43: 1828
A44: China | B44: WprB | C44: Wpr | D44: 930.1626842 | E44: 2957.561141 | F44: 3190.853171 | H44: 2625.911889 | I44: 9072.273438 | J44: 9072.273438 | L44: 0.3542246365 | M44: 0.326 | N44: 0.3517148368 | P44: 239013 | Q44: 235612 | S44: 0.01098648144 | T44: 0.03850514166 | W44: 17672.71303 | X44: 15942.69597 | Y44: 13853.99963 | Z44: 11709.41534 | AA44: 9866.142506 | AB44: 8330.009562 | AC44: 7205.822801 | AD44: 6205.243818 | AE44: 5415.950269 | AF44: 4845.903583 | AG44: 4295.160527 | AH44: 3841.749964 | AI44: 3436.192627 | AJ44: 3190.853171 | AL44: 45245.47656 | AM44: 41179.26172 | AN44: 36111.08984 | AO44: 30802.4668 | AP44: 26191.14844 | AQ44: 22309.88281 | AR44: 19462.49023 | AS44: 16894.68945 | AT44: 14860.39746 | AU44: 13393.50195 | AV44: 11958.74512 | AW44: 10771.99805 | AX44: 9703.615234 | AY44: 9072.273438 | BA44: 0.326 | BB44: 2957.561141 | BE44: 0.4170593838 | BF44: 0.4255926494 | BG44: 0.4184081787 | BH44: 0.3064252177 | BI44: 0.3751216862 | BJ44: 0.4362463177 | BK44: 0.4408551473 | BL44: 0.4313220667 | BM44: 0.3147296619 | BN44: 0.3857326453 | BO44: 0.4034185088 | BP44: 0.4071186545 | BQ44: 0.4025224589 | BR44: 0.2984406873 | BS44: 0.3662079642 | BT44: 0.4087234307 | BU44: 0.4167315169 | BV44: 0.4218669951 | BW44: 0.307261971 | BX44: 0.383511262 | BY44: 0.4348938821 | BZ44: 0.4262804072 | CA44: 0.4259975597 | CB44: 0.3161802126 | CC44: 0.3891169432 | CD44: 0.3894773987 | CE44: 0.3854095361 | CF44: 0.3926166068 | CG44: 0.2799281742 | CH44: 0.3542246365 | CJ44: China | CK44: 741.2157275 | CL44: 1741.238093 | CM44: 23645.5572 | CN44: 12165.22446 | CO44: 38293.23548 | CP44: 403.4878848 | CQ44: 873.2592494 | CR44: 12550.46308 | CS44: 6571.165518 | CT44: 20398.37573 | CU44: 181.187951 | CV44: 378.6320567 | CW44: 6259.665746 | CX44: 2728.17884 | CY44: 9547.664594 | CZ44: 83.32029887 | DA44: 155.4621564 | DB44: 2434.781795 | DC44: 962.697776 | DD44: 3636.262026 | DE44: 35.03613473 | DF44: 76.60097139 | DG44: 895.5704392 | DH44: 381.044976 | DI44: 1388.252521 | DJ44: 21.1535721 | DK44: 50.81855536 | DL44: 610.5438622 | DM44: 247.6466944 | DN44: 930.1626842 | DP44: 1777.242657 | DQ44: 4091.32558 | DR44: 56513.13335 | DS44: 39700.4677 | DT44: 102082.1693 | DU44: 924.9084025 | DV44: 1980.830336 | DW44: 29097.66054 | DX44: 20878.76141 | DY44: 52882.16068 | DZ44: 449.1314776 | EA44: 930.0287583 | EB44: 15551.09686 | EC44: 9141.444035 | ED44: 26071.70113 | EE44: 203.8549606 | EF44: 373.0511135 | EG44: 5771.444136 | EH44: 3133.149778 | EI44: 9481.499988 | EJ44: 80.56249162 | EK44: 179.6962049 | EL44: 2102.290069 | EM44: 1205.151242 | EN44: 3567.700007 | EO44: 54.31270768 | EP44: 131.8559885 | EQ44: 1555.063774 | ER44: 884.6794188 | ES44: 2625.911889 | EV44: China | EW44: 1643985 | EX44: 1541592 | EY44: 1366861 | EZ44: 1161168 | FA44: 967005 | FB44: 821839 | FC44: 722158 | FD44: 675961 | FE44: 661986 | FF44: 652471 | FG44: 628441 | FH44: 591024 | FI44: 545123 | FJ44: 495635 | FK44: 448968 | FL44: 409094 | FM44: 377070 | FN44: 349661 | FO44: 325324 | FP44: 305661 | FQ44: 285342 | FR44: 268368 | FS44: 250744 | FT44: 235612 | FV44: China | GT44: 239013
A45: Colombia | B45: AmrB | C45: Amr | D45: 161.5831675 | E45: 65.42012439 | F45: 61.69592889 | H45: 781.0066227 | I45: 279.5731812 | J45: 279.5731812 | L45: 0.2068909056 | M45: 0.234 | N45: 0.2206789959 | P45: 16332 | Q45: 15326 | S45: 0.04782063573 | T45: 0.01824175787 | W45: 427.624499 | X45: 281.5797243 | Y45: 378.730315 | Z45: 386.2877517 | AA45: 313.1540824 | AB45: 264.3640771 | AC45: 224.6223397 | AD45: 229.2769586 | AE45: 157.5079384 | AF45: 155.8039346 | AG45: 128.2219648 | AH45: 77.40477436 | AI45: 65.69582984 | AJ45: 61.69592889 | AL45: 1253.739014 | AM45: 831.2540894 | AN45: 1125.620117 | AO45: 1155.904541 | AP45: 943.3327026 | AQ45: 801.8601074 | AR45: 685.9268799 | AS45: 704.9103394 | AT45: 487.5862732 | AU45: 485.6424866 | AV45: 402.4487915 | AW45: 343.9381714 | AX45: 294.8203125 | AY45: 279.5731812 | BA45: 0.234 | BB45: 65.42012439 | BE45: 0.2185510276 | BF45: 0.2179909498 | BG45: 0.2143393908 | BH45: 0.1586413194 | BI45: 0.1975151496 | BJ45: 0.2206568031 | BK45: 0.2200344403 | BL45: 0.2135492826 | BM45: 0.1513192206 | BN45: 0.1945541201 | BO45: 0.2281343044 | BP45: 0.2278029946 | BQ45: 0.2239842325 | BR45: 0.164751864 | BS45: 0.203916052 | BT45: 0.2085593645 | BU45: 0.2074601797 | BV45: 0.2076623765 | BW45: 0.1560652433 | BX45: 0.1883866392 | BY45: 0.2205096355 | BZ45: 0.2205525114 | CA45: 0.2159714784 | CB45: 0.1569555427 | CC45: 0.1924578864 | CD45: 0.2391261527 | CE45: 0.2384326006 | CF45: 0.2326485921 | CG45: 0.1681551888 | CH45: 0.2068909056 | CJ45: Colombia | CK45: 13.27725269 | CL45: 45.53849939 | CM45: 596.0569064 | CN45: 213.6037119 | CO45: 868.4763704 | CP45: 9.678458318 | CQ45: 29.75887677 | CR45: 446.3012002 | CS45: 155.0100234 | CT45: 640.7485587 | CU45: 5.539357757 | CV45: 15.91348911 | CW45: 269.7739516 | CX45: 111.1723779 | CY45: 402.3991763 | CZ45: 3.618777646 | DA45: 9.442084284 | DB45: 159.6229111 | DC45: 77.42427098 | DD45: 250.108044 | DE45: 2.751209237 | DF45: 7.146409413 | DG45: 109.7839558 | DH45: 58.41409075 | DI45: 178.0956652 | DJ45: 2.440302436 | DK45: 7.221165013 | DL45: 98.84127409 | DM45: 53.08042595 | DN45: 161.5831675 | DP45: 60.75127094 | DQ45: 208.9008715 | DR45: 2780.902308 | DS45: 1346.456981 | DT45: 4397.011431 | DU45: 43.86204361 | DV45: 135.2464493 | DW45: 2089.921327 | DX45: 1024.39084 | DY45: 3293.420659 | DZ45: 24.28112585 | EA45: 69.85636486 | EB45: 1204.432779 | EC45: 674.7867683 | ED45: 1973.357038 | EE45: 17.35130741 | EF45: 45.51275478 | EG45: 768.665532 | EH45: 496.1019465 | EI45: 1327.631541 | EJ45: 12.47659419 | EK45: 32.4023035 | EL45: 508.3261764 | EM45: 372.1696587 | EN45: 925.3747328 | EO45: 10.20508384 | EP45: 30.28598017 | EQ45: 424.852234 | ER45: 315.6633247 | ES45: 781.0066227 | EV45: Colombia | EW45: 31520 | EX45: 30988 | EY45: 30392 | EZ45: 29621 | FA45: 28840 | FB45: 27863 | FC45: 26768 | FD45: 25665 | FE45: 24524 | FF45: 23515 | FG45: 22590 | FH45: 21845 | FI45: 21266 | FJ45: 20737 | FK45: 20310 | FL45: 19773 | FM45: 19321 | FN45: 18854 | FO45: 18360 | FP45: 17822 | FQ45: 17236 | FR45: 16608 | FS45: 15932 | FT45: 15326 | FV45: Colombia | GT45: 16332
A46: Comoros | B46: AfrD | C46: Afr | D46: 24.14666966 | E46: 45.78911841 | F46: 64.2574984 | H46: 66.0604089 | I46: 170.8549194 | J46: 170.8549194 | L46: 0.365524072 | M46: 0.268 | N46: 0.3760939317 | P46: 1180 | Q46: 1944 | S46: 0.05598339737 | T46: 0.08788833304 | W46: 102.7427658 | X46: 103.0611287 | Y46: 102.2960945 | Z46: 101.5675338 | AA46: 98.86239486 | AB46: 95.93204448 | AC46: 93.11771209 | AD46: 89.26564895 | AE46: 84.63459635 | AF46: 82.48756472 | AG46: 79.87290636 | AH46: 74.57964257 | AI46: 68.91142098 | AJ46: 64.2574984 | AL46: 247.8807983 | AM46: 249.9481049 | AN46: 249.2467194 | AO46: 248.7774963 | AP46: 243.6600952 | AQ46: 238.1343842 | AR46: 232.9260559 | AS46: 225.1255188 | AT46: 215.2176056 | AU46: 211.6104584 | AV46: 206.7615356 | AW46: 194.8264465 | AX46: 181.6553192 | AY46: 170.8549194 | BA46: 0.268 | BB46: 45.78911841 | BE46: 0.3793093933 | BF46: 0.3756116755 | BG46: 0.3501470628 | BH46: 0.2497507571 | BI46: 0.3224008092 | BJ46: 0.4355265843 | BK46: 0.4306732394 | BL46: 0.391107283 | BM46: 0.2574902991 | BN46: 0.3619878646 | BO46: 0.3724598796 | BP46: 0.3702915532 | BQ46: 0.3532778878 | BR46: 0.2594730295 | BS46: 0.3351159796 | BT46: 0.358408116 | BU46: 0.3584356329 | BV46: 0.3355381459 | BW46: 0.2476339634 | BX46: 0.3227823591 | BY46: 0.4317180142 | BZ46: 0.4296977607 | CA46: 0.3975689699 | CB46: 0.2811707992 | CC46: 0.3767305206 | CD46: 0.4072910818 | CE46: 0.410014741 | CF46: 0.3824236508 | CG46: 0.2675528689 | CH46: 0.365524072 | CJ46: Comoros | CK46: 2.632103491 | CL46: 8.002897888 | CM46: 27.48108614 | CN46: 12.74114856 | CO46: 50.85723608 | CP46: 2.656134124 | CQ46: 7.501014514 | CR46: 23.54008989 | CS46: 8.371530423 | CT46: 42.06876895 | CU46: 2.938306231 | CV46: 7.025919929 | CW46: 20.62517238 | CX46: 6.937164691 | CY46: 37.52656323 | CZ46: 2.604015729 | DA46: 5.605240402 | DB46: 16.08563222 | DC46: 4.7053015 | DD46: 29.00018985 | DE46: 2.67172042 | DF46: 5.166519589 | DG46: 18.76446552 | DH46: 5.769036016 | DI46: 32.37174155 | DJ46: 2.360967894 | DK46: 4.146240757 | DL46: 14.05358235 | DM46: 3.585878657 | DN46: 24.14666966 | DP46: 6.939199337 | DQ46: 21.30630758 | DR46: 78.48441143 | DS46: 51.01545521 | DT46: 157.7453736 | DU46: 6.09867278 | DV46: 17.41695055 | DW46: 60.18831894 | DX46: 32.5120226 | DY46: 116.2159649 | DZ46: 7.888920101 | EA46: 18.9740216 | EB46: 58.38229079 | EC46: 26.73559061 | ED46: 111.9808231 | EE46: 7.265504358 | EF46: 15.63806689 | EG46: 47.93980181 | EH46: 19.00103458 | EI46: 89.84440764 | EJ46: 6.188577571 | EK46: 12.02361302 | EL46: 47.19801328 | EM46: 20.51790596 | EN46: 85.92810983 | EO46: 5.796758142 | EP46: 10.11241875 | EQ46: 36.74872702 | ER46: 13.40250498 | ES46: 66.0604089 | EV46: Comoros | EW46: 1844 | EX46: 1781 | EY46: 1743 | EZ46: 1729 | FA46: 1736 | FB46: 1752 | FC46: 1784 | FD46: 1830 | FE46: 1881 | FF46: 1941 | FG46: 2000 | FH46: 2059 | FI46: 2116 | FJ46: 2156 | FK46: 2178 | FL46: 2185 | FM46: 2183 | FN46: 2170 | FO46: 2152 | FP46: 2122 | FQ46: 2083 | FR46: 2037 | FS46: 1988 | FT46: 1944 | FV46: Comoros | GT46: 1180
A47: Congo | B47: AfrE | C47: Afr | D47: 75.61014406 | E47: 109.555616 | F47: 146.5209666 | H47: 528.0622029 | I47: 408.7896118 | J47: 408.7896118 | L47: 0.1431841621 | M47: 0.268 | N47: 0.3584263453 | P47: 10048 | Q47: 7808 | S47: 0.05255396127 | T47: 0.05235522692 | W47: 602.8211658 | X47: 591.2141519 | Y47: 560.3485533 | Z47: 510.7513396 | AA47: 451.3851848 | AB47: 400.8122813 | AC47: 347.5911698 | AD47: 300.029584 | AE47: 258.1212458 | AF47: 233.3914047 | AG47: 203.2845313 | AH47: 182.5943246 | AI47: 163.6216192 | AJ47: 146.5209666 | AL47: 1412.37085 | AM47: 1395.227173 | AN47: 1335.94812 | AO47: 1233.417603 | AP47: 1106.645264 | AQ47: 998.7480469 | AR47: 880.6866455 | AS47: 772.9295044 | AT47: 675.8829346 | AU47: 620.7123413 | AV47: 548.3466797 | AW47: 498.6522217 | AX47: 451.927124 | AY47: 408.7896118 | BA47: 0.268 | BB47: 109.555616 | BE47: 0.1784159032 | BF47: 0.1764088965 | BG47: 0.1604269777 | BH47: 0.1067696113 | BI47: 0.14833578 | BJ47: 0.1626818137 | BK47: 0.1611467671 | BL47: 0.1474786981 | BM47: 0.09864581716 | BN47: 0.1361514242 | BO47: 0.1732893877 | BP47: 0.1716877724 | BQ47: 0.1519317771 | BR47: 0.09768538462 | BS47: 0.1395273045 | BT47: 0.1798172119 | BU47: 0.1776969456 | BV47: 0.1579738127 | BW47: 0.1001888064 | BX47: 0.1443958782 | BY47: 0.1671451071 | BZ47: 0.1656213984 | CA47: 0.1494860434 | CB47: 0.09802937474 | CC47: 0.1388504804 | CD47: 0.1718295088 | CE47: 0.1705674292 | CF47: 0.1548121244 | CG47: 0.1013071354 | CH47: 0.1431841621 | CJ47: Congo | CK47: 3.358421481 | CL47: 5.521319746 | CM47: 43.84375811 | CN47: 12.19939941 | CO47: 64.92289875 | CP47: 3.380348466 | CQ47: 5.684310398 | CR47: 44.14861036 | CS47: 12.68749734 | CT47: 65.90076657 | CU47: 4.439657048 | CV47: 7.563222052 | CW47: 54.56183167 | CX47: 15.72705006 | CY47: 82.29176083 | CZ47: 5.625325259 | DA47: 8.53014754 | DB47: 61.92797533 | DC47: 18.19751899 | DD47: 94.28096712 | DE47: 4.056864961 | DF47: 6.190812683 | DG47: 50.17590834 | DH47: 12.62513978 | DI47: 73.04872576 | DJ47: 3.747176213 | DK47: 5.814810288 | DL47: 52.70240827 | DM47: 13.34574929 | DN47: 75.61014406 | DP47: 18.82355452 | DQ47: 31.29842006 | DR47: 273.2941725 | DS47: 114.2590974 | DT47: 437.6752444 | DU47: 20.77889587 | DV47: 35.27412 | DW47: 299.3558454 | DX47: 128.6166784 | DY47: 484.0255397 | DZ47: 25.61990152 | EA47: 44.05218814 | EB47: 359.1206047 | EC47: 160.9969611 | ED47: 589.7896555 | EE47: 31.28357514 | EF47: 48.00390637 | EG47: 392.0141843 | EH47: 181.6322566 | EI47: 652.9339224 | EJ47: 24.27151492 | EK47: 37.37930449 | EL47: 335.6561402 | EM47: 128.7893533 | EN47: 526.0963129 | EO47: 21.80752445 | EP47: 34.0909769 | EQ47: 340.4281703 | ER47: 131.7355312 | ES47: 528.0622029 | EV47: Congo | EW47: 7954 | EX47: 8254 | EY47: 8638 | EZ47: 9116 | FA47: 9712 | FB47: 10422 | FC47: 11243 | FD47: 12130 | FE47: 12998 | FF47: 13723 | FG47: 14181 | FH47: 14346 | FI47: 14157 | FJ47: 13688 | FK47: 13036 | FL47: 12337 | FM47: 11593 | FN47: 10874 | FO47: 10180 | FP47: 9514 | FQ47: 8926 | FR47: 8491 | FS47: 8111 | FT47: 7808 | FV47: Congo | GT47: 10048
A48: Costa Rica | B48: AmrB | C48: Amr | D48: 3.320077556 | E48: 1.260655094 | F48: 1.65681886 | H48: 18.77596897 | I48: 5.387414932 | J48: 5.387414932 | L48: 0.1768258971 | M48: 0.234 | N48: 0.3075350388 | P48: 768 | Q48: 714 | S48: 0.02444787626 | T48: 0.007545399065 | W48: 12.17717703 | X48: 8.94289367 | Y48: 5.140050469 | Z48: 7.665042723 | AA48: 6.143097588 | AB48: 5.783440007 | AC48: 3.158741579 | AD48: 4.402058849 | AE48: 2.625917709 | AF48: 3.324323246 | AG48: 2.32355047 | AH48: 2.006698242 | AI48: 1.688541042 | AJ48: 1.65681886 | AL48: 36.4894371 | AM48: 26.98687553 | AN48: 15.61840153 | AO48: 23.45304489 | AP48: 18.91416359 | AQ48: 17.91549301 | AR48: 9.841234207 | AS48: 13.79426765 | AT48: 8.279816628 | AU48: 10.54544735 | AV48: 7.415696621 | AW48: 6.442442894 | AX48: 5.455609798 | AY48: 5.387414932 | BA48: 0.234 | BB48: 1.260655094 | BE48: 0.2047461247 | BF48: 0.2045818615 | BG48: 0.2047177275 | BH48: 0.1535442844 | BI48: 0.1894608581 | BJ48: 0.2271016268 | BK48: 0.2274724758 | BL48: 0.2259182476 | BM48: 0.1662939867 | BN48: 0.2059522834 | BO48: 0.2092151292 | BP48: 0.2094107545 | BQ48: 0.2124328868 | BR48: 0.1650293069 | BS48: 0.1960128904 | BT48: 0.2209742599 | BU48: 0.2209672774 | BV48: 0.2232055838 | BW48: 0.1649003663 | BX48: 0.2018588517 | BY48: 0.2056527384 | BZ48: 0.2057810714 | CA48: 0.2095873546 | CB48: 0.1547508633 | CC48: 0.1900684762 | CD48: 0.1956613665 | CE48: 0.1955623833 | CF48: 0.1911985107 | CG48: 0.1464033875 | CH48: 0.1768258971 | CJ48: Costa Rica | CK48: 0.4520149083 | CL48: 0.7433523392 | CM48: 11.90315409 | CN48: 4.171512215 | CO48: 17.27003355 | CP48: 0.3808777408 | CQ48: 0.6885309221 | CR48: 8.974100799 | CS48: 3.74748916 | CT48: 13.79099862 | CU48: 0.2705428261 | CV48: 0.5828163507 | CW48: 6.185477487 | CX48: 2.83610144 | CY48: 9.874938104 | CZ48: 0.1920793159 | DA48: 0.4951970296 | DB48: 3.968884414 | DC48: 1.958768195 | DD48: 6.614928954 | DE48: 0.1154728221 | DF48: 0.3269842074 | DG48: 2.490269081 | DH48: 1.163937014 | DI48: 4.096663125 | DJ48: 0.09039122126 | DK48: 0.2548112692 | DL48: 2.067573755 | DM48: 0.9073013097 | DN48: 3.320077556 | DP48: 2.207684804 | DQ48: 3.633520262 | DR48: 58.14422734 | DS48: 27.16813739 | DT48: 91.1535698 | DU48: 1.67712467 | DV48: 3.026875756 | DW48: 39.72277979 | DX48: 22.53532575 | DY48: 66.96210596 | DZ48: 1.293132228 | EA48: 2.783125212 | EB48: 29.11732539 | EC48: 17.18544114 | ED48: 50.37902397 | EE48: 0.8692384171 | EF48: 2.241042364 | EG48: 17.78129537 | EH48: 11.87849511 | EI48: 32.77007126 | EJ48: 0.5614942109 | EK48: 1.588990694 | EL48: 11.88177162 | EM48: 7.521360397 | EN48: 21.55361692 | EO48: 0.4619778696 | EP48: 1.30296668 | EQ48: 10.8137545 | ER48: 6.197269919 | ES48: 18.77596897 | EV48: Costa Rica | EW48: 1435 | EX48: 1395 | EY48: 1330 | EZ48: 1261 | FA48: 1198 | FB48: 1174 | FC48: 1156 | FD48: 1145 | FE48: 1125 | FF48: 1103 | FG48: 1055 | FH48: 993 | FI48: 932 | FJ48: 866 | FK48: 830 | FL48: 801 | FM48: 786 | FN48: 770 | FO48: 738 | FP48: 720 | FQ48: 709 | FR48: 714 | FS48: 712 | FT48: 714 | FV48: Costa Rica | GT48: 768
A49: Cote d'Ivoire | B49: AfrE | C49: Afr | D49: 1826.795975 | E49: 1871.870994 | F49: 2721.556197 | H49: 6212.012834 | I49: 6984.593262 | J49: 6984.593262 | L49: 0.2940747264 | M49: 0.268 | N49: 0.3896513504 | P49: 70182 | Q49: 72484 | S49: 0.08851290692 | T49: 0.09636048316 | W49: 3917.250581 | X49: 3797.41471 | Y49: 3626.16521 | Z49: 3430.076646 | AA49: 3216.31479 | AB49: 2969.362038 | AC49: 2825.96187 | AD49: 2683.99697 | AE49: 2582.460035 | AF49: 2678.420972 | AG49: 2784.369966 | AH49: 2854.783846 | AI49: 2806.702317 | AJ49: 2721.556197 | AL49: 8863.209961 | AM49: 8660.733398 | AN49: 8341.49707 | AO49: 7962.470215 | AP49: 7538.393066 | AQ49: 7029.445801 | AR49: 6757.805664 | AS49: 6485.028809 | AT49: 6309.087402 | AU49: 6612.019531 | AV49: 6945.215332 | AW49: 7188.079102 | AX49: 7135.572754 | AY49: 6984.593262 | BA49: 0.268 | BB49: 1871.870994 | BE49: 0.304326783 | BF49: 0.300484389 | BG49: 0.2707697359 | BH49: 0.2034263375 | BI49: 0.249569019 | BJ49: 0.3215238385 | BK49: 0.3169422166 | BL49: 0.2958374964 | BM49: 0.218348131 | BN49: 0.2706034929 | BO49: 0.3113595772 | BP49: 0.309896215 | BQ49: 0.2820242396 | BR49: 0.2038273934 | BS49: 0.2591804985 | BT49: 0.3188429777 | BU49: 0.3175509972 | BV49: 0.298907944 | BW49: 0.2280530037 | BX49: 0.278237563 | BY49: 0.3103501029 | BZ49: 0.3055490876 | CA49: 0.2809970644 | CB49: 0.2069898545 | CC49: 0.2603508733 | CD49: 0.3572774939 | CE49: 0.3558880242 | CF49: 0.3209758442 | CG49: 0.2301039348 | CH49: 0.2940747264 | CJ49: Cote d'Ivoire | CK49: 175.4517745 | CL49: 269.8587421 | CM49: 1476.286448 | CN49: 850.3618186 | CO49: 2771.958783 | CP49: 161.5601104 | CQ49: 251.330867 | CR49: 1567.390057 | CS49: 819.0911848 | CT49: 2799.37222 | CU49: 114.5937158 | CV49: 172.5006966 | CW49: 1152.587569 | CX49: 518.4446036 | CY49: 1958.126585 | CZ49: 94.0101802 | DA49: 130.3457962 | DB49: 893.9449518 | DC49: 408.6606689 | DD49: 1526.961597 | DE49: 89.20555368 | DF49: 126.1488682 | DG49: 863.802213 | DH49: 374.3268451 | DI49: 1453.48348 | DJ49: 97.29130706 | DK49: 148.9209509 | DL49: 1095.406931 | DM49: 485.1767858 | DN49: 1826.795975 | DP49: 576.5242637 | DQ49: 898.0790747 | DR49: 5452.184096 | DS49: 4180.195293 | DT49: 11106.98273 | DU49: 502.4825255 | DV49: 792.986399 | DW49: 5298.145355 | DX49: 3751.308431 | DY49: 10344.92271 | DZ49: 368.0430093 | EA49: 556.6402178 | EB49: 4086.838672 | EC49: 2543.547238 | ED49: 7555.069137 | EE49: 294.8478931 | EF49: 410.4720104 | EG49: 2990.703224 | EH49: 1791.954775 | EI49: 5487.977902 | EJ49: 287.4352315 | EK49: 412.8595808 | EL49: 3074.061342 | EM49: 1808.430882 | EN49: 5582.787036 | EO49: 272.3130024 | EP49: 418.4488961 | EQ49: 3412.739465 | ER49: 2108.51147 | ES49: 6212.012834 | EV49: Cote d'Ivoire | EW49: 73058 | EX49: 74640 | EY49: 76319 | EZ49: 77975 | FA49: 79722 | FB49: 81527 | FC49: 83885 | FD49: 86051 | FE49: 87757 | FF49: 88674 | FG49: 88470 | FH49: 87873 | FI49: 86232 | FJ49: 83940 | FK49: 81457 | FL49: 79155 | FM49: 76859 | FN49: 74762 | FO49: 72797 | FP49: 71651 | FQ49: 71065 | FR49: 71198 | FS49: 71745 | FT49: 72484 | FV49: Cote d'Ivoire | GT49: 70182
A50: Croatia | B50: EurA | C50: Eur | D50: 0.1802939521 | E50: 0 | F50: 0 | H50: 0.7131160733 | I50: 0 | J50: 0 | L50: 0.2528255341 | M50: - | N50: - | P50: 187 | Q50: 189 | S50: 0.003813454938 | T50: 0 | W50: 0.6146901321 | X50: 0.9709741367 | Y50: 0.4649171005 | Z50: 0.5641036479 | AA50: 0 | AB50: 0 | AC50: 0.4884863832 | AD50: 0.6635892774 | AE50: 1.54217138 | AF50: 0 | AG50: 0 | AH50: 0 | AI50: 0 | AJ50: 0 | AL50: 1.465360522 | AM50: 2.325972319 | AN50: 1.119157791 | AO50: 1.364595771 | AP50: 0 | AQ50: 0 | AR50: 1.199373007 | AS50: 1.637469053 | AT50: 3.824676275 | AU50: 0 | AV50: 0 | AW50: 0 | AX50: 0 | AY50: 0 | BA50: 0.259 | BB50: 0 | BE50: 0.2279053893 | BF50: 0.2226092684 | BG50: 0.2439408261 | BH50: 0.1789126263 | BI50: 0.2305434457 | BJ50: 0.2168966684 | BK50: 0.2345778317 | BL50: 0.2367045982 | BM50: 0.1520233675 | BN50: 0.2195084031 | BO50: 0.2382874384 | BP50: 0.2392546323 | BQ50: 0.2531895523 | BR50: 0.174691445 | BS50: 0.2342176618 | BT50: 0.2334151146 | BU50: 0.2297700764 | BV50: 0.2520443642 | BW50: 0.1659167797 | BX50: 0.2307486858 | BY50: 0.2582481231 | BZ50: 0.272488366 | CA50: 0.2746679426 | CB50: 0.1688137286 | CC50: 0.2494391551 | CD50: 0.2728795636 | CE50: 0.2605859798 | CF50: 0.277162056 | CG50: 0.1813950801 | CH50: 0.2528255341 | CJ50: Croatia | CK50: 0.0002627030161 | CL50: 0.06238174716 | CM50: 1.056559153 | CN50: 0.193361338 | CO50: 1.312564941 | CP50: 0.0001440452649 | CQ50: 0.04138538503 | CR50: 0.6196747872 | CS50: 0.1073978705 | CT50: 0.768602088 | CU50: 8.633197674e-05 | CV50: 0.02514994471 | CW50: 0.3656205743 | CX50: 0.08195869006 | CY50: 0.4728155411 | CZ50: 6.592475941e-05 | DA50: 0.01913912706 | DB50: 0.249751644 | DC50: 0.0537971206 | DD50: 0.3227538164 | DE50: 8.043588108e-05 | DF50: 0.01904328888 | DG50: 0.2005830554 | DH50: 0.04195461329 | DI50: 0.2616613935 | DJ50: 9.165631432e-05 | DK50: 0.01258060478 | DL50: 0.1362680388 | DM50: 0.03135365226 | DN50: 0.1802939521 | DP50: 0.001152684528 | DQ50: 0.2802297838 | DR50: 4.331210848 | DS50: 1.08075848 | DT50: 5.693351796 | DU50: 0.0006641193063 | DV50: 0.1764249619 | DW50: 2.617924586 | DX50: 0.7064563314 | DY50: 3.501469999 | DZ50: 0.0003623018373 | EA50: 0.1051179008 | EB50: 1.444058694 | EC50: 0.4691625858 | ED50: 2.018701483 | EE50: 0.000282435692 | EF50: 0.0832968651 | EG50: 0.9909035055 | EH50: 0.3242415908 | EI50: 1.398724397 | EJ50: 0.0003114674373 | EK50: 0.06988661264 | EL50: 0.7302747221 | EM50: 0.2485260746 | EN50: 1.048998877 | EO50: 0.000335885594 | EP50: 0.04827813373 | EQ50: 0.4916547406 | ER50: 0.1728473134 | ES50: 0.7131160733 | EV50: Croatia | EW50: 727 | EX50: 672 | EY50: 618 | EZ50: 575 | FA50: 536 | FB50: 506 | FC50: 483 | FD50: 468 | FE50: 448 | FF50: 429 | FG50: 404 | FH50: 370 | FI50: 329 | FJ50: 290 | FK50: 260 | FL50: 244 | FM50: 239 | FN50: 247 | FO50: 258 | FP50: 263 | FQ50: 256 | FR50: 239 | FS50: 213 | FT50: 189 | FV50: Croatia | GT50: 187
A51: Cuba | B51: AmrA | C51: Amr | D51: 1.259241117 | E51: 1.814757059 | F51: 2.368872824 | H51: 10.67004037 | I51: 7.755372047 | J51: 7.755372047 | L51: 0.1180165278 | M51: =E51/I51 -> 0.234 | N51: 0.305449282 | P51: 611 | Q51: 655 | S51: 0.0174632412 | T51: 0.01184026267 | W51: 6.352452013 | X51: 6.837739469 | Y51: 4.68391422 | Z51: 5.619601144 | AA51: 4.095332003 | AB51: 6.409090903 | AC51: 4.453709851 | AD51: 3.542758131 | AE51: 4.478294289 | AF51: 3.018734732 | AG51: 3.494695849 | AH51: 2.810400146 | AI51: 2.494139125 | AJ51: 2.368872824 | AL51: 19.20129204 | AM51: 20.79974556 | AN51: 14.33662319 | AO51: 17.30823135 | AP51: 12.69314957 | AQ51: 19.99034309 | AR51: 13.97998524 | AS51: 11.18976021 | AT51: 14.22790241 | AU51: 9.643616676 | AV51: 11.22376919 | AW51: 9.078128815 | AX51: 8.109903336 | AY51: 7.755372047 | BA51: 0.234 | BB51: 1.814757059 | BE51: 0.1164181757 | BF51: 0.1171651723 | BG51: 0.1146198776 | BH51: 0.08778816925 | BI51: 0.1115622634 | BJ51: 0.1379834285 | BK51: 0.1370242757 | BL51: 0.132838951 | BM51: 0.09438139473 | BN51: 0.1275697066 | BO51: 0.1134550773 | BP51: 0.1133769168 | BQ51: 0.1144039017 | BR51: 0.08617079562 | BS51: 0.1095124263 | BT51: 0.1213202442 | BU51: 0.1209823848 | BV51: 0.1182612252 | BW51: 0.08401857178 | BX51: 0.1125810197 | BY51: 0.1065564257 | BZ51: 0.106177903 | CA51: 0.1045146267 | CB51: 0.07677229954 | CC51: 0.09976997249 | CD51: 0.1266673101 | CE51: 0.1269756294 | CF51: 0.1243627446 | CG51: 0.08719709023 | CH51: 0.1180165278 | CJ51: Cuba | CK51: 0.104383296 | CL51: 0.9858132721 | CM51: 8.544779501 | CN51: 1.031851089 | CO51: 10.66682716 | CP51: 0.0918744698 | CQ51: 0.6102742249 | CR51: 5.874464433 | CS51: 0.8021296898 | CT51: 7.378742817 | CU51: 0.03939553072 | CV51: 0.2956396128 | CW51: 2.613963923 | CX51: 0.454853843 | CY51: 3.40385291 | CZ51: 0.02404125111 | DA51: 0.2393695332 | DB51: 1.710819209 | DC51: 0.2957067015 | DD51: 2.269936695 | DE51: 0.01552022427 | DF51: 0.1606934334 | DG51: 1.070154412 | DH51: 0.1978532006 | DI51: 1.44422127 | DJ51: 0.01557621894 | DK51: 0.1532760011 | DL51: 0.9234542321 | DM51: 0.1669346645 | DN51: 1.259241117 | DP51: 0.8966237048 | DQ51: 8.413876351 | DR51: 74.54884513 | DS51: 11.7538741 | DT51: 95.61321928 | DU51: 0.6658369835 | DV51: 4.453767202 | DW51: 44.22245426 | DX51: 8.498811573 | DY51: 57.84087001 | DZ51: 0.3472346207 | EA51: 2.607582046 | EB51: 22.84855573 | EC51: 5.278515067 | ED51: 31.08188746 | EE51: 0.1981635569 | EF51: 1.978548642 | EG51: 14.46644246 | EH51: 3.519539731 | EI51: 20.16269439 | EJ51: 0.1456526358 | EK51: 1.513435742 | EL51: 10.2392789 | EM51: 2.577143082 | EN51: 14.47551035 | EO51: 0.1229695249 | EP51: 1.207129288 | EQ51: 7.425489321 | ER51: 1.914452237 | ES51: 10.67004037 | EV51: Cuba | EW51: 2497 | EX51: 2243 | EY51: 2003 | EZ51: 1799 | FA51: 1648 | FB51: 1565 | FC51: 1483 | FD51: 1414 | FE51: 1353 | FF51: 1293 | FG51: 1246 | FH51: 1189 | FI51: 1136 | FJ51: 1073 | FK51: 1002 | FL51: 927 | FM51: 849 | FN51: 776 | FO51: 728 | FP51: 708 | FQ51: 712 | FR51: 708 | FS51: 682 | FT51: 655 | FV51: Cuba | GT51: 611
A52: Cyprus | B52: EmrB | C52: Emr | D52: 0.004350724196 | E52: 0.02477577791 | F52: 0.03107353548 | H52: 0.0237099696 | I52: 0.07915583998 | J52: 0.07915583998 | L52: 0.1834976708 | M52: 0.313 | N52: 0.3925615026 | P52: 30 | Q52: 47 | S52: 0.0007903323198 | T52: 0.001684166808 | W52: 0.1258362413 | X52: 0.1099582105 | Y52: 0.09224747435 | Z52: 0.07517820641 | AA52: 0.07026027408 | AB52: 0.06104380728 | AC52: 0.05457759806 | AD52: 0.04695034321 | AE52: 0.04288117383 | AF52: 0.03765266794 | AG52: 0.03411550703 | AH52: 0.03446840877 | AI52: 0.03453795946 | AJ52: 0.03107353548 | AL52: 0.3007729053 | AM52: 0.2641428411 | AN52: 0.222717762 | AO52: 0.1824013144 | AP52: 0.1713157892 | AQ52: 0.1495843083 | AR52: 0.134388119 | AS52: 0.1161885709 | AT52: 0.1066236198 | AU52: 0.09408394992 | AV52: 0.08565412462 | AW52: 0.08695695549 | AX52: 0.08755522221 | AY52: 0.07915583998 | BA52: 0.313 | BB52: 0.02477577791 | BE52: 0.2092745569 | BF52: 0.210375573 | BG52: 0.2352125598 | BH52: 0.174824332 | BI52: 0.2244524579 | BJ52: 0.1956893898 | BK52: 0.2002021442 | BL52: 0.2042540309 | BM52: 0.1507242923 | BN52: 0.196951651 | BO52: 0.2236348416 | BP52: 0.2303048301 | BQ52: 0.2544818575 | BR52: 0.1818607934 | BS52: 0.2423963215 | BT52: 0.1712289478 | BU52: 0.1722505957 | BV52: 0.1834341104 | BW52: 0.1414588835 | BX52: 0.1776997949 | BY52: 0.2259074786 | BZ52: 0.2268854039 | CA52: 0.2396813986 | CB52: 0.1833069972 | CC52: 0.2326057306 | CD52: 0.1824435441 | CE52: 0.1832964267 | CF52: 0.1884594928 | CG52: 0.1459401046 | CH52: 0.1834976708 | CJ52: Cyprus | CK52: 0.001095162334 | CL52: 0.0008110684505 | CM52: 0.0120404925 | CN52: 0.001469343241 | CO52: 0.01541606653 | CP52: 0.0006116072816 | CQ52: 0.0003556534276 | CR52: 0.006289730721 | CS52: 0.0007391435527 | CT52: 0.007996134983 | CU52: 0.0006736790104 | CV52: 0.0002079715567 | CW52: 0.006164907056 | CX52: 0.0006769661436 | CY52: 0.007723523767 | CZ52: 0.0005634348305 | DA52: 8.014323624e-05 | DB52: 0.004535807782 | DC52: 0.0004604539994 | DD52: 0.005639839848 | DE52: 0.0006244921352 | DF52: 7.018818693e-05 | DG52: 0.005428636916 | DH52: 0.0005204620197 | DI52: 0.006643779258 | DJ52: 0.0003646506923 | DK52: 7.043216054e-05 | DL52: 0.00355992739 | DM52: 0.0003557139535 | DN52: 0.004350724196 | DP52: 0.005233136555 | DQ52: 0.003855335669 | DR52: 0.0511898366 | DS52: 0.008404683855 | DT52: 0.06868299268 | DU52: 0.003125398276 | DV52: 0.001776471621 | DW52: 0.03079366754 | DX52: 0.004903944424 | DY52: 0.04059948186 | DZ52: 0.003012406321 | EA52: 0.0009030273338 | EB52: 0.02422533031 | EC52: 0.003722441385 | ED52: 0.03186320535 | EE52: 0.00329053491 | EF52: 0.0004652711702 | EG52: 0.02472717736 | EH52: 0.003255037703 | EI52: 0.03173802115 | EJ52: 0.002764371234 | EK52: 0.0003093552328 | EL52: 0.02264938768 | EM52: 0.002839291612 | EN52: 0.02856240575 | EO52: 0.001998704279 | EP52: 0.0003842527747 | EQ52: 0.01888961568 | ER52: 0.002437396866 | ES52: 0.0237099696 | EV52: Cyprus | EW52: 156 | EX52: 154 | EY52: 150 | EZ52: 147 | FA52: 141 | FB52: 132 | FC52: 123 | FD52: 112 | FE52: 102 | FF52: 91 | FG52: 82 | FH52: 75 | FI52: 69 | FJ52: 64 | FK52: 61 | FL52: 57 | FM52: 56 | FN52: 53 | FO52: 53 | FP52: 52 | FQ52: 51 | FR52: 50 | FS52: 49 | FT52: 47 | FV52: Cyprus | GT52: 30
A53: Czech Republic | B53: EurA | C53: Eur | D53: 0.3760748181 | E53: 0.9484165502 | F53: 1.437497398 | H53: 1.850269425 | I53: 3.661839962 | J53: 3.661839962 | L53: 0.2032540845 | M53: 0.259 | N53: 0.3925615026 | P53: 355 | Q53: 420 | S53: 0.005212026548 | T53: 0.008718666576 | W53: 0.4185130704 | X53: 0 | Y53: 0.4475528974 | Z53: 0.9184067015 | AA53: 1.638559713 | AB53: 0 | AC53: 0 | AD53: 2.518980249 | AE53: 1.852259667 | AF53: 2.646699255 | AG53: 0.5157402231 | AH53: 1.214868184 | AI53: 1.558341967 | AJ53: 1.437497398 | AL53: 1.000180364 | AM53: 0 | AN53: 1.08006978 | AO53: 2.227292061 | AP53: 3.992914915 | AQ53: 0 | AR53: 0 | AS53: 6.229967117 | AT53: 4.603518963 | AU53: 6.610353947 | AV53: 1.294475079 | AW53: 3.064397097 | AX53: 3.949850082 | AY53: 3.661839962 | BA53: 0.259 | BB53: 0.9484165502 | BE53: 0.2547217311 | BF53: 0.2560553569 | BG53: 0.2718062652 | BH53: 0.1901251402 | BI53: 0.253131662 | BJ53: 0.2592887903 | BK53: 0.2605030535 | BL53: 0.2745571009 | BM53: 0.1812470922 | BN53: 0.2532358592 | BO53: 0.2778331595 | BP53: 0.2790229722 | BQ53: 0.2806024929 | BR53: 0.1808134247 | BS53: 0.258117465 | BT53: 0.2601289604 | BU53: 0.2603178106 | BV53: 0.2639278028 | BW53: 0.1663761334 | BX53: 0.2436805579 | BY53: 0.2765668256 | BZ53: 0.2777183946 | CA53: 0.2903107664 | CB53: 0.1906678933 | CC53: 0.2678974601 | CD53: 0.2011092567 | CE53: 0.2022108401 | CF53: 0.2192340082 | CG53: 0.1526535652 | CH53: 0.2032540845 | CJ53: Czech Republic | CK53: 0.002221893558 | CL53: 0.0818562153 | CM53: 0.8427625472 | CN53: 0.1775856558 | CO53: 1.104426312 | CP53: 0.0007968780169 | CQ53: 0.03661645659 | CR53: 0.4257504129 | CS53: 0.08586038298 | CT53: 0.5490241305 | CU53: 0.0004703767718 | CV53: 0.02277582069 | CW53: 0.2053687977 | CX53: 0.04256095593 | CY53: 0.2711759511 | CZ53: 0.0006190850666 | DA53: 0.03136666232 | DB53: 0.2612396081 | DC53: 0.04753145759 | DD53: 0.340756813 | DE53: 0.001076439218 | DF53: 0.05511151938 | DG53: 0.4178569568 | DH53: 0.08454092646 | DI53: 0.5585858418 | DJ53: 0.0007725162768 | DK53: 0.0359948123 | DL53: 0.2786240657 | DM53: 0.06068342376 | DN53: 0.3760748181 | DP53: 0.008722826862 | DQ53: 0.3196817137 | DR53: 3.100600152 | DS53: 0.934046153 | DT53: 4.363050845 | DU53: 0.003073322283 | DV53: 0.1405605658 | DW53: 1.550680756 | DX53: 0.4737200578 | DY53: 2.168034702 | DZ53: 0.001693018834 | EA53: 0.08162704492 | EB53: 0.7318851503 | EC53: 0.2353860395 | ED53: 1.050591253 | EE53: 0.002379915968 | EF53: 0.1204937236 | EG53: 0.9898146589 | EH53: 0.2856867545 | EI53: 1.398375053 | EJ53: 0.003892148728 | EK53: 0.198443893 | EL53: 1.439343645 | EM53: 0.4433936149 | EN53: 2.085073302 | EO53: 0.003841276576 | EP53: 0.1780063437 | EQ53: 1.270898015 | ER53: 0.3975237898 | ES53: 1.850269425 | EV53: Czech Republic | EW53: 2165 | EX53: 2076 | EY53: 1888 | EZ53: 1644 | FA53: 1373 | FB53: 1139 | FC53: 928 | FD53: 754 | FE53: 608 | FF53: 514 | FG53: 473 | FH53: 459 | FI53: 491 | FJ53: 527 | FK53: 567 | FL53: 582 | FM53: 589 | FN53: 570 | FO53: 551 | FP53: 528 | FQ53: 501 | FR53: 473 | FS53: 453 | FT53: 420 | FV53: Czech Republic | GT53: 355
A54: Democratic Republic of the Congo | B54: AfrE | C54: Afr | D54: 7523.089909 | E54: 9039.507047 | F54: 13525.54189 | H54: 57343.60789 | I54: 33729.50391 | J54: 33729.50391 | L54: 0.1311931737 | M54: 0.268 | N54: 0.4010003209 | P54: 340416 | Q54: 319977 | S54: 0.1684515648 | T54: 0.1054122762 | W54: 20969.61139 | X54: 21064.2529 | Y54: 20699.67875 | Z54: 19886.14308 | AA54: 18825.23041 | AB54: 17811.77401 | AC54: 16878.16614 | AD54: 16134.26828 | AE54: 16166.10149 | AF54: 16769.59031 | AG54: 15693.51751 | AH54: 15181.62553 | AI54: 14456.58315 | AJ54: 13525.54189 | AL54: 45561.49609 | AM54: 46000.85547 | AN54: 45553.27344 | AO54: 44223.37109 | AP54: 42373.96094 | AQ54: 40592.28906 | AR54: 38938.90234 | AS54: 37671.17578 | AT54: 38178.61719 | AU54: 40063.07422 | AV54: 37904.04688 | AW54: 37069.29688 | AX54: 35679.48047 | AY54: 33729.50391 | BA54: 0.268 | BB54: 9039.507047 | BE54: 0.1645624745 | BF54: 0.1628467956 | BG54: 0.1469488209 | BH54: 0.1008104187 | BI54: 0.1318728405 | BJ54: 0.1657551302 | BK54: 0.1621157955 | BL54: 0.1455597961 | BM54: 0.09594528992 | BN54: 0.128820214 | BO54: 0.1783442045 | BP54: 0.1758502299 | BQ54: 0.1569815946 | BR54: 0.1009612589 | BS54: 0.136691001 | BT54: 0.1888263425 | BU54: 0.1887833358 | BV54: 0.1681078393 | BW54: 0.1065030925 | BX54: 0.1459680456 | BY54: 0.1699520385 | BZ54: 0.1680390015 | CA54: 0.1507348354 | CB54: 0.09918574023 | CC54: 0.1322509358 | CD54: 0.1689148613 | CE54: 0.1675960615 | CF54: 0.1499006501 | CG54: 0.098512646 | CH54: 0.1311931737 | CJ54: Democratic Republic of the Congo | CK54: 218.11631 | CL54: 329.8259578 | CM54: 2803.208517 | CN54: 1277.5653 | CO54: 4628.716085 | CP54: 311.0375297 | CQ54: 444.4044396 | CR54: 3684.915891 | CS54: 1705.424983 | CT54: 6145.782843 | CU54: 310.1741303 | CV54: 474.652287 | CW54: 4691.31442 | CX54: 2216.797295 | CY54: 7692.938133 | CZ54: 356.9241909 | DA54: 524.3214657 | DB54: 5052.854762 | DC54: 2335.397098 | DD54: 8269.497516 | DE54: 303.2033776 | DF54: 445.5474139 | DG54: 4587.809867 | DH54: 2173.981738 | DI54: 7510.542397 | DJ54: 278.0718736 | DK54: 410.7303075 | DL54: 4634.638073 | DM54: 2199.649655 | DN54: 7523.089909 | DP54: 1325.431637 | DQ54: 2025.375793 | DR54: 19076.08717 | DS54: 12672.94905 | DT54: 35099.84365 | DU54: 1876.488102 | DV54: 2741.277852 | DW54: 25315.47852 | DX54: 17774.97347 | DY54: 47708.21794 | DZ54: 1739.188168 | EA54: 2699.184911 | EB54: 29884.48699 | EC54: 21956.9102 | ED54: 56279.77026 | EE54: 1890.224564 | EF54: 2777.371549 | EG54: 30057.22268 | EH54: 21927.9745 | EI54: 56652.7933 | EJ54: 1784.052608 | EK54: 2651.452401 | EL54: 30436.29468 | EM54: 21918.2892 | EN54: 56790.08888 | EO54: 1646.225035 | EP54: 2450.71575 | EQ54: 30918.06521 | ER54: 22328.6019 | ES54: 57343.60789 | EV54: Democratic Republic of the Congo | EW54: 274784 | EX54: 287420 | EY54: 302017 | EZ54: 317074 | FA54: 330212 | FB54: 339701 | FC54: 348499 | FD54: 353393 | FE54: 356138 | FF54: 359525 | FG54: 365576 | FH54: 371057 | FI54: 373938 | FJ54: 373170 | FK54: 369622 | FL54: 364905 | FM54: 359182 | FN54: 352818 | FO54: 346781 | FP54: 340340 | FQ54: 335203 | FR54: 330008 | FS54: 324764 | FT54: 319977 | FV54: Democratic Republic of the Congo | GT54: 340416
A55: Denmark | B55: EurA | C55: Eur | D55: 3.311384514 | E55: 0.8081239367 | F55: 1.224667073 | H55: 4.226799569 | I55: 3.12016964 | J55: 3.12016964 | L55: =D55/H55 -> 0.783425961 | M55: 0.259 | N55: 0.3925001568 | P55: 243 | Q55: 223 | S55: 0.01739423691 | T55: 0.01399179211 | W55: 0.7630445965 | X55: 1.841584027 | Y55: 0.5155322585 | Z55: 0 | AA55: 0.9326707306 | AB55: 0 | AC55: 0.5804266136 | AD55: 0.4573498509 | AE55: 1.235270812 | AF55: 0.6665842043 | AG55: 1.020890681 | AH55: 1.137377925 | AI55: 1.35216304 | AJ55: 1.224667073 | AL55: 1.826233864 | AM55: 4.427788734 | AN55: 1.245229006 | AO55: 0 | AP55: 2.274133205 | AQ55: 0 | AR55: 1.428986669 | AS55: 1.131465554 | AT55: 3.071020365 | AU55: 1.665105224 | AV55: 2.562765121 | AW55: 2.869378805 | AX55: 3.427791834 | AY55: 3.12016964 | BA55: 0.259 | BB55: 0.8081239367 | BE55: 0.5249346127 | BF55: 0.5303737421 | BG55: 0.6798014369 | BH55: 0.5147149783 | BI55: 0.6049187458 | BJ55: 0.4917839936 | BK55: 0.5074306914 | BL55: 0.675299305 | BM55: 0.5219772643 | BN55: 0.5953768227 | BO55: 0.5740035837 | BP55: 0.6241569693 | BQ55: 0.8919950423 | BR55: 0.777778661 | BS55: 0.7958503249 | BT55: 0.4878284542 | BU55: 0.5292512112 | BV55: 0.8705647077 | BW55: 0.7540371312 | BX55: 0.7534114781 | BY55: 0.6229675074 | BZ55: 0.6608401696 | CA55: 0.8997238196 | CB55: 0.7958308903 | CC55: 0.811856266 | CD55: 0.5564998106 | CE55: 0.5954219777 | CF55: 0.8841234969 | CG55: 0.7651857472 | CH55: 0.783425961 | CJ55: Denmark | CK55: 0.1674069323 | CL55: 0.3165983221 | CM55: 1.688380474 | CN55: 0.6617705868 | CO55: 2.834156316 | CP55: 0.1286298195 | CQ55: 0.2735398834 | CR55: 1.322207795 | CS55: 0.5829995198 | CT55: 2.307377018 | CU55: 0.1668977174 | CV55: 0.3936186255 | CW55: 1.813152837 | CX55: 0.9748958558 | CY55: 3.348565036 | CZ55: 0.1717110644 | DA55: 0.4197855867 | DB55: 2.009051547 | DC55: 1.107025341 | DD55: 3.707573539 | DE55: 0.1802043582 | DF55: 0.4753125273 | DG55: 1.884831608 | DH55: 1.033700654 | DI55: 3.574049148 | DJ55: 0.1448989859 | DK55: 0.3976197767 | DL55: 1.819733956 | DM55: 0.9491317956 | DN55: 3.311384514 | DP55: 0.3189100666 | DQ55: 0.5969343823 | DR55: 2.483637696 | DS55: 1.28570299 | DT55: 4.685185135 | DU55: 0.2615575562 | DV55: 0.5390684641 | DW55: 1.957958175 | DX55: 1.116905965 | DY55: 3.87549016 | DZ55: 0.2907607585 | EA55: 0.6306404396 | EB55: 2.032693851 | EC55: 1.253436105 | ED55: 4.207531154 | EE55: 0.35199067 | EF55: 0.793168873 | EG55: 2.307756711 | EH55: 1.468131071 | EI55: 4.921047325 | EJ55: 0.2892676681 | EK55: 0.7192548959 | EL55: 2.094900199 | EM55: 1.298894861 | EN55: 4.402317624 | EO55: 0.2603756247 | EP55: 0.6677949279 | EQ55: 2.058235034 | ER55: 1.240393982 | ES55: 4.226799569 | EV55: Denmark | EW55: 576 | EX55: 563 | EY55: 542 | EZ55: 515 | FA55: 482 | FB55: 454 | FC55: 429 | FD55: 408 | FE55: 386 | FF55: 371 | FG55: 359 | FH55: 350 | FI55: 343 | FJ55: 339 | FK55: 329 | FL55: 319 | FM55: 308 | FN55: 297 | FO55: 285 | FP55: 279 | FQ55: 265 | FR55: 250 | FS55: 240 | FT55: 223 | FV55: Denmark | GT55: 243
A56: Djibouti | B56: EmrD | C56: Emr | D56: 33.46398171 | E56: 46.42958783 | F56: 55.03348463 | H56: 96.9490445 | I56: 148.3373413 | J56: 148.3373413 | L56: 0.3451708254 | M56: 0.313 | N56: 0.3710022314 | P56: 1502 | Q56: 1631 | S56: 0.06454663416 | T56: 0.09094870712 | W56: 123.7269074 | X56: 115.5630493 | Y56: 107.836923 | Z56: 100.9220384 | AA56: 95.14189335 | AB56: 88.2361074 | AC56: 82.48339378 | AD56: 78.54566157 | AE56: 78.19478851 | AF56: 70.71985442 | AG56: 68.56357517 | AH56: 62.86611224 | AI56: 59.15634252 | AJ56: 55.03348463 | AL56: 298.7731934 | AM56: 281.2726135 | AN56: 264.605957 | AO56: 249.7103577 | AP56: 237.4341125 | AQ56: 222.142746 | AR56: 209.4427185 | AS56: 201.1712494 | AT56: 202.024826 | AU56: 184.2933197 | AV56: 180.1753845 | AW56: 166.6301727 | AX56: 158.1136017 | AY56: 148.3373413 | BA56: 0.313 | BB56: 46.42958783 | BE56: 0.3688833864 | BF56: 0.3684473836 | BG56: 0.3535027675 | BH56: 0.2616500508 | BI56: 0.314722533 | BJ56: 0.3673389194 | BK56: 0.3658666534 | BL56: 0.3354470298 | BM56: 0.2401087362 | BN56: 0.2956164099 | BO56: 0.3736881529 | BP56: 0.3685633297 | BQ56: 0.3480992722 | BR56: 0.2490259228 | BS56: 0.3089340893 | BT56: 0.407070663 | BU56: 0.4044442953 | BV56: 0.3731775408 | BW56: 0.2562349815 | BX56: 0.3314612337 | BY56: 0.3964002714 | BZ56: 0.3949416531 | CA56: 0.3661074113 | CB56: 0.2702323632 | CC56: 0.3333082706 | CD56: 0.4085317091 | CE56: 0.4128984859 | CF56: 0.3842205823 | CG56: 0.2696418484 | CH56: 0.3451708254 | CJ56: Djibouti | CK56: 3.114274164 | CL56: 6.327924574 | CM56: 45.55098194 | CN56: 31.43903318 | CO56: 86.43221387 | CP56: 3.17911987 | CQ56: 6.334202154 | CR56: 40.16434721 | CS56: 28.57558362 | CT56: 78.25325286 | CU56: 3.086486559 | CV56: 5.206507317 | CW56: 31.21700445 | CX56: 20.32449128 | CY56: 59.8344896 | CZ56: 2.495412405 | DA56: 3.959661945 | DB56: 25.25120034 | DC56: 13.62742113 | DD56: 45.33369582 | DE56: 2.026380954 | DF56: 3.091997998 | DG56: 21.96590037 | DH56: 11.87998911 | DI56: 38.96426844 | DJ56: 1.823615243 | DK56: 2.693988504 | DL56: 19.34132577 | DM56: 9.605052198 | DN56: 33.46398171 | DP56: 8.44243541 | DQ56: 17.17456781 | DR56: 128.856083 | DS56: 120.1568014 | DT56: 274.6298876 | DU56: 8.654459686 | DV56: 17.31287095 | DW56: 119.7337989 | DX56: 119.0110117 | DY56: 264.7121413 | DZ56: 8.25952478 | EA56: 14.12649305 | EB56: 89.67845365 | EC56: 81.61596612 | ED56: 193.6804376 | EE56: 6.130170096 | EF56: 9.790376552 | EG56: 67.66538064 | EH56: 53.18329704 | EI56: 136.7692243 | EJ56: 5.111956525 | EK56: 7.828999483 | EL56: 59.99851327 | EM56: 43.96212567 | EN56: 116.9015949 | EO56: 4.463827905 | EP56: 6.524578309 | EQ56: 50.3391194 | ER56: 35.62151889 | ES56: 96.9490445 | EV56: Djibouti | EW56: 3144 | EX56: 3161 | EY56: 3045 | EZ56: 2846 | FA56: 2632 | FB56: 2463 | FC56: 2337 | FD56: 2243 | FE56: 2176 | FF56: 2129 | FG56: 2085 | FH56: 2045 | FI56: 2017 | FJ56: 1996 | FK56: 1974 | FL56: 1945 | FM56: 1915 | FN56: 1876 | FO56: 1831 | FP56: 1787 | FQ56: 1749 | FR56: 1709 | FS56: 1671 | FT56: 1631 | FV56: Djibouti | GT56: 1502
A57: Dominica | B57: AmrB | C57: Amr | D57: 0.0942633315 | E57: 0 | F57: 0 | H57: 0.9482185643 | I57: 0 | J57: 0 | L57: 0.09941097448 | M57: - | N57: - | P57: 25 | Q57: 12 | S57: 0.03792874257 | T57: 0 | W57: 0 | X57: 0 | Y57: 0 | Z57: 0 | AA57: 0 | AB57: 0 | AC57: 0 | AD57: 0 | AE57: 0 | AF57: 0 | AG57: 0 | AH57: 0 | AI57: 0 | AJ57: 0 | AL57: 0 | AM57: 0 | AN57: 0 | AO57: 0 | AP57: 0 | AQ57: 0 | AR57: 0 | AS57: 0 | AT57: 0 | AU57: 0 | AV57: 0 | AW57: 0 | AX57: 0 | AY57: 0 | BA57: 0.234 | BB57: 0 | BE57: 0.1163293025 | BF57: 0.1161113027 | BG57: 0.1144295655 | BH57: 0.08509301173 | BI57: 0.1067436663 | BJ57: 0.1186849997 | BK57: 0.119615066 | BL57: 0.1181068466 | BM57: 0.08595482836 | BN57: 0.1090284221 | BO57: 0.1091533081 | BP57: 0.108768612 | BQ57: 0.1051136063 | BR57: 0.07739994974 | BS57: 0.09733150628 | BT57: 0.1282020853 | BU57: 0.1279243214 | BV57: 0.1246730631 | BW57: 0.08970021101 | BX57: 0.1150063848 | BY57: 0.1202232044 | BZ57: 0.1195693242 | CA57: 0.1128448248 | CB57: 0.07806615295 | CC57: 0.1036675259 | CD57: 0.1051131154 | CE57: 0.1050426396 | CF57: 0.1069988332 | CG57: 0.0803570381 | CH57: 0.09941097448 | CJ57: Dominica | CK57: 0.0165287609 | CL57: 0.04690102632 | CM57: 0.3449383312 | CN57: 0.111283231 | CO57: 0.5196513494 | CP57: 0.0111132304 | CQ57: 0.02969937983 | CR57: 0.2233141517 | CS57: 0.07710548463 | CT57: 0.3412322465 | CU57: 0.005718705469 | CV57: 0.01517293288 | CW57: 0.1186677127 | CX57: 0.04271766101 | CY57: 0.182277012 | CZ57: 0.004550415839 | DA57: 0.01283816389 | DB57: 0.09756496742 | DC57: 0.03306968097 | DD57: 0.1480232281 | DE57: 0.003336728064 | DF57: 0.009743845079 | DG57: 0.069198393 | DH57: 0.02251303433 | DI57: 0.1047920005 | DJ57: 0.002610952562 | DK57: 0.008098252823 | DL57: 0.06244886815 | DM57: 0.02110525797 | DN57: 0.0942633315 | DP57: 0.1420859624 | DQ57: 0.4039316176 | DR57: 3.01441616 | DS57: 1.307783432 | DT57: 4.868217172 | DU57: 0.0936363519 | DV57: 0.2482912966 | DW57: 1.890780748 | DX57: 0.8970465778 | DY57: 3.129754974 | DZ57: 0.05239149935 | EA57: 0.1394973476 | EB57: 1.128947211 | EC57: 0.5519081234 | ED57: 1.872744181 | EE57: 0.03549408598 | EF57: 0.1003574907 | EG57: 0.7825665382 | EH57: 0.3686689318 | EI57: 1.287087047 | EJ57: 0.02775444292 | EK57: 0.08149117799 | EL57: 0.6132172485 | EM57: 0.2883840625 | EN57: 1.010846932 | EO57: 0.02483945559 | EP57: 0.07709490976 | EQ57: 0.5836406464 | ER57: 0.2626435526 | ES57: 0.9482185643 | EV57: Dominica | EW57: 19 | EX57: 21 | EY57: 24 | EZ57: 27 | FA57: 30 | FB57: 31 | FC57: 30 | FD57: 27 | FE57: 23 | FF57: 20 | FG57: 17 | FH57: 15 | FI57: 14 | FJ57: 14 | FK57: 14 | FL57: 13 | FM57: 13 | FN57: 13 | FO57: 13 | FP57: 13 | FQ57: 13 | FR57: 13 | FS57: 12 | FT57: 12 | FV57: Dominica | GT57: 25
A58: Dominican Republic | B58: AmrB | C58: Amr | D58: 26.9643996 | E58: 70.48039581 | F58: 96.04731277 | H58: 255.1689174 | I58: 301.1982727 | J58: 301.1982727 | L58: 0.1056727437 | M58: =E58/I58 -> 0.234 | N58: =F58/J58 -> 0.3188840092 | P58: 6245 | Q58: 6048 | S58: 0.04085971455 | T58: 0.0498013017 | W58: 228.9878445 | X58: 213.6418428 | Y58: 209.3748723 | Z58: 195.8322792 | AA58: 185.734844 | AB58: 175.9987583 | AC58: 164.7094396 | AD58: 151.1325923 | AE58: 142.573445 | AF58: 130.8301934 | AG58: 121.6699955 | AH58: 112.9084449 | AI58: 104.2977911 | AJ58: 96.04731277 | AL58: 652.5828247 | AM58: 613.3655396 | AN58: 605.607666 | AO58: 570.7015991 | AP58: 545.1937256 | AQ58: 520.4688721 | AR58: 490.5652466 | AS58: 453.4523621 | AT58: 430.8808899 | AU58: 398.3538208 | AV58: 373.1896362 | AW58: 348.8179321 | AX58: 324.6281738 | AY58: 301.1982727 | BA58: 0.234 | BB58: 70.48039581 | BE58: 0.1343229996 | BF58: 0.1328861307 | BG58: 0.129179077 | BH58: 0.09456758248 | BI58: 0.1217367932 | BJ58: 0.1280957505 | BK58: 0.1287107944 | BL58: 0.1296167216 | BM58: 0.09215183402 | BN58: 0.1209459994 | BO58: 0.1019347732 | BP58: 0.101958426 | BQ58: 0.1003024119 | BR58: 0.0759074034 | BS58: 0.09389939094 | BT58: 0.1108426362 | BU58: 0.1106537632 | BV58: 0.1081930713 | BW58: 0.08244639195 | BX58: 0.1010704309 | BY58: 0.1050473082 | BZ58: 0.1047345411 | CA58: 0.1052014455 | CB58: 0.07832706987 | CC58: 0.09782576438 | CD58: 0.1170470226 | CE58: 0.1165785514 | CF58: 0.113987949 | CG58: 0.08342494473 | CH58: 0.1056727437 | CJ58: Dominican Republic | CK58: 10.6719743 | CL58: 21.25977802 | CM58: 220.4420795 | CN58: 53.89444534 | CO58: 306.2682772 | CP58: 6.646404541 | CQ58: 11.01734404 | CR58: 147.8030222 | CS58: 34.95732348 | CT58: 200.4240942 | CU58: 1.971034913 | CV58: 3.051458719 | CW58: 44.57447128 | CX58: 13.67817659 | CY58: 63.2751415 | CZ58: 1.615790685 | DA58: 2.685654063 | DB58: 35.75377253 | DC58: 12.08013577 | DD58: 52.13535304 | DE58: 1.013904594 | DF58: 1.807343061 | DG58: 22.47482971 | DH58: 7.088609324 | DI58: 32.38468669 | DJ58: 0.900119662 | DK58: 1.700841143 | DL58: 18.40442896 | DM58: 5.959009836 | DN58: 26.9643996 | DP58: 79.45008918 | DQ58: 159.9849277 | DR58: 1706.484398 | DS58: 569.9040191 | DT58: 2515.823434 | DU58: 51.88622194 | DV58: 85.59766945 | DW58: 1140.30829 | DX58: 379.3448482 | DY58: 1657.137029 | DZ58: 19.33623679 | EA58: 29.92846045 | EB58: 444.4007918 | EC58: 180.1955538 | ED58: 673.8610429 | EE58: 14.57733901 | EF58: 24.27078832 | EG58: 330.4626822 | EH58: 146.5210967 | EI58: 515.8319062 | EJ58: 9.651885529 | EK58: 17.25641839 | EL58: 213.6361303 | EM58: 90.50012131 | EN58: 331.0445556 | EO58: 7.690239718 | EP58: 14.58965756 | EQ58: 161.4594273 | ER58: 71.42959286 | ES58: 255.1689174 | EV58: Dominican Republic | EW58: 12539 | EX58: 12145 | EY58: 11807 | EZ58: 11466 | FA58: 11120 | FB58: 10721 | FC58: 10276 | FD58: 9790 | FE58: 9308 | FF58: 8890 | FG58: 8569 | FH58: 8373 | FI58: 8247 | FJ58: 8148 | FK58: 8069 | FL58: 7909 | FM58: 7735 | FN58: 7484 | FO58: 7223 | FP58: 6934 | FQ58: 6684 | FR58: 6476 | FS58: 6258 | FT58: 6048 | FV58: Dominican Republic | GT58: 6245
A59: Ecuador | B59: AmrD | C59: Amr | D59: 79.97511863 | E59: 68.05452393 | F59: 65.17947038 | H59: 540.1314103 | I59: 290.8312988 | J59: 290.8312988 | L59: 0.1480660393 | M59: 0.234 | N59: 0.2241143599 | P59: 9373 | Q59: 7358 | S59: 0.05762631071 | T59: 0.03952586285 | W59: 336.0978329 | X59: 298.4806542 | Y59: 281.2116644 | Z59: 248.4297645 | AA59: 222.5945792 | AB59: 191.3208291 | AC59: 164.4865378 | AD59: 151.4666293 | AE59: 127.7677221 | AF59: 87.29675879 | AG59: 81.15014514 | AH59: 74.01513643 | AI59: 68.26719615 | AJ59: 65.17947038 | AL59: 969.3549805 | AM59: 867.6344604 | AN59: 823.6224976 | AO59: 733.0253906 | AP59: 661.4891357 | AQ59: 572.6361084 | AR59: 495.881134 | AS59: 459.8717957 | AT59: 390.6988831 | AU59: 374.1010742 | AV59: 351.2807312 | AW59: 323.6713562 | AX59: 301.6265869 | AY59: 290.8312988 | BA59: 0.234 | BB59: 68.05452393 | BE59: 0.1507887463 | BF59: 0.1510477918 | BG59: 0.1547038017 | BH59: 0.1146193205 | BI59: 0.13881663 | BJ59: 0.1807929123 | BK59: 0.1793469807 | BL59: 0.180652272 | BM59: 0.1357491667 | BN59: 0.1625880477 | BO59: 0.09866102803 | BP59: 0.1007097035 | BQ59: 0.1008078066 | BR59: 0.07681759973 | BS59: 0.09107235919 | BT59: 0.1981583876 | BU59: 0.2038047986 | BV59: 0.2001304351 | BW59: 0.1475812424 | BX59: 0.1785104133 | BY59: 0.1984903888 | BZ59: 0.1954048013 | CA59: 0.2013816667 | CB59: 0.1510373868 | CC59: 0.1806424348 | CD59: 0.1626529936 | CE59: 0.1534743869 | CF59: 0.1629284646 | CG59: 0.1271761073 | CH59: 0.1480660393 | CJ59: Ecuador | CK59: 1.374914598 | CL59: 19.46973397 | CM59: 314.9581008 | CN59: 161.1958025 | CO59: 496.9985518 | CP59: 1.100856553 | CQ59: 9.634578188 | CR59: 236.1519322 | CS59: 124.5516535 | CT59: 371.4390205 | CU59: 0.655111829 | CV59: 3.090225464 | CW59: 82.36282383 | CX59: 44.72924396 | CY59: 130.8374051 | CZ59: 1.147515091 | DA59: 4.193698439 | DB59: 101.3132884 | DC59: 55.25069947 | DD59: 161.9052014 | DE59: 0.8463387983 | DF59: 3.17047887 | DG59: 70.24686053 | DH59: 38.51804726 | DI59: 112.7817255 | DJ59: 0.5709499815 | DK59: 2.255639753 | DL59: 49.09071382 | DM59: 28.05781508 | DN59: 79.97511863 | DP59: 9.118151265 | DQ59: 128.8978391 | DR59: 2035.878222 | DS59: 1406.358036 | DT59: 3580.252249 | DU59: 6.089047069 | DV59: 53.72032553 | DW59: 1307.218169 | DX59: 917.5132091 | DY59: 2284.54075 | DZ59: 6.640026383 | EA59: 30.68448577 | EB59: 817.0282302 | EC59: 582.2785939 | ED59: 1436.631336 | EE59: 5.790898404 | EF59: 20.57703483 | EG59: 506.2362871 | EH59: 374.3748091 | EI59: 906.9790295 | EJ59: 4.26387798 | EK59: 16.22518408 | EL59: 348.8245066 | EM59: 255.0232633 | EN59: 624.3368319 | EO59: 3.510233466 | EP59: 14.6971739 | EQ59: 301.3022551 | ER59: 220.6217478 | ES59: 540.1314103 | EV59: Ecuador | EW59: 17341 | EX59: 16572 | EY59: 15675 | EZ59: 14726 | FA59: 13869 | FB59: 13123 | FC59: 12486 | FD59: 11974 | FE59: 11554 | FF59: 11189 | FG59: 10823 | FH59: 10495 | FI59: 10206 | FJ59: 9924 | FK59: 9680 | FL59: 9411 | FM59: 9123 | FN59: 8842 | FO59: 8549 | FP59: 8263 | FQ59: 7994 | FR59: 7747 | FS59: 7517 | FT59: 7358 | FV59: Ecuador | GT59: 9373
A60: Egypt | B60: EmrD | C60: Emr | D60: 720.0331931 | E60: 647.6014321 | F60: 835.3157123 | H60: 3268.245395 | I60: 2069.01416 | J60: 2069.01416 | L60: 0.2203118512 | M60: 0.313 | N60: 0.4037264357 | P60: 41267 | Q60: 41514 | S60: 0.07919755239 | T60: 0.04983894976 | W60: 3048.417554 | X60: 2665.21401 | Y60: 2421.041119 | Z60: 2066.884101 | AA60: 1814.600658 | AB60: 1562.011679 | AC60: 1343.991958 | AD60: 1212.686493 | AE60: 1126.566289 | AF60: 1041.382644 | AG60: 974.622352 | AH60: 946.793049 | AI60: 946.0781506 | AJ60: 835.3157123 | AL60: 6898.875 | AM60: 6084.117676 | AN60: 5574.435547 | AO60: 4798.382324 | AP60: 4247.293945 | AQ60: 3684.179199 | AR60: 3193.576904 | AS60: 2901.925781 | AT60: 2713.449707 | AU60: 2523.609131 | AV60: 2375.287842 | AW60: 2320.341309 | AX60: 2330.925537 | AY60: 2069.01416 | BA60: 0.313 | BB60: 647.6014321 | BE60: 0.1783543841 | BF60: 0.1844673649 | BG60: 0.2431324536 | BH60: 0.1793020544 | BI60: 0.2163789498 | BJ60: 0.1826114065 | BK60: 0.1890946893 | BL60: 0.2582393729 | BM60: 0.1967530393 | BN60: 0.2304496534 | BO60: 0.1970240403 | BP60: 0.2031909576 | BQ60: 0.2650581539 | BR60: 0.1962282913 | BS60: 0.2369144634 | BT60: 0.1874801005 | BU60: 0.1934765413 | BV60: 0.2623714524 | BW60: 0.1999180311 | BX60: 0.2332180119 | BY60: 0.2263116459 | BZ60: 0.2301259916 | CA60: 0.2779045782 | CB60: 0.1975993247 | CC60: 0.2479382746 | CD60: 0.2165888154 | CE60: 0.2187542568 | CF60: 0.2435272093 | CG60: 0.173330044 | CH60: 0.2203118512 | CJ60: Egypt | CK60: 122.9022402 | CL60: 738.4087548 | CM60: 4721.946716 | CN60: 1768.244551 | CO60: 7351.502261 | CP60: 115.4136989 | CQ60: 555.3768879 | CR60: 3661.677727 | CS60: 1415.047244 | CT60: 5747.515557 | CU60: 99.39569596 | CV60: 352.5908649 | CW60: 1966.184574 | CX60: 627.587616 | CY60: 3045.75875 | CZ60: 71.09488172 | DA60: 191.0676471 | DB60: 994.0924975 | DC60: 323.3970281 | DD60: 1579.652054 | DE60: 64.58157457 | DF60: 135.0587656 | DG60: 626.4751047 | DH60: 199.9081199 | DI60: 1026.023565 | DJ60: 49.0699691 | DK60: 101.838093 | DL60: 425.3253628 | DM60: 143.7997682 | DN60: 720.0331931 | DP60: 689.0900988 | DQ60: 4002.923527 | DR60: 19421.29339 | DS60: 9861.819804 | DT60: 33975.12682 | DU60: 632.0180164 | DV60: 2937.030595 | DW60: 14179.39366 | DX60: 7191.996876 | DY60: 24940.43915 | DZ60: 504.4851168 | EA60: 1735.268484 | EB60: 7417.936571 | EC60: 3198.252463 | ED60: 12855.94263 | EE60: 379.2129487 | EF60: 987.549425 | EG60: 3788.87447 | EH60: 1617.648125 | EI60: 6773.284968 | EJ60: 285.3656704 | EK60: 586.8905317 | EL60: 2254.281339 | EM60: 1011.684226 | EN60: 4138.221767 | EO60: 226.5581859 | EP60: 465.5365089 | EQ60: 1746.520909 | ER60: 829.629791 | ES60: 3268.245395 | EV60: Egypt | EW60: 153965 | EX60: 143703 | EY60: 131663 | EZ60: 119059 | FA60: 107580 | FB60: 98589 | FC60: 91821 | FD60: 87394 | FE60: 83951 | FF60: 80661 | FG60: 76351 | FH60: 71299 | FI60: 65538 | FJ60: 59997 | FK60: 55002 | FL60: 51400 | FM60: 48825 | FN60: 47193 | FO60: 46309 | FP60: 45663 | FQ60: 45007 | FR60: 44003 | FS60: 42903 | FT60: 41514 | FV60: Egypt | GT60: 41267
A61: El Salvador | B61: AmrB | C61: Amr | D61: 16.45579097 | E61: 24.84597903 | F61: 23.35339894 | H61: 67.21950467 | I61: 106.1793976 | J61: 106.1793976 | L61: 0.2448067872 | M61: 0.234 | N61: 0.2199428465 | P61: 1712 | Q61: 2073 | S61: 0.03926372936 | T61: 0.05122016285 | W61: 152.9224416 | X61: 143.0689504 | Y61: 132.5860761 | Z61: 89.54827311 | AA61: 79.5185012 | AB61: 67.98630387 | AC61: 52.22234774 | AD61: 43.5494224 | AE61: 30.15420048 | AF61: 32.6438682 | AG61: 31.38203533 | AH61: 29.43532983 | AI61: 25.47877495 | AJ61: 23.35339894 | AL61: 442.538208 | AM61: 417.7403564 | AN61: 390.4977112 | AO61: 266.0057373 | AP61: 238.2614594 | AQ61: 205.449173 | AR61: 159.1428986 | AS61: 133.8166656 | AT61: 130.2457581 | AU61: 142.5144653 | AV61: 138.4187927 | AW61: 131.1495972 | AX61: 114.687294 | AY61: 106.1793976 | BA61: 0.234 | BB61: 24.84597903 | BE61: 0.2727108055 | BF61: 0.272642841 | BG61: 0.2731072094 | BH61: 0.192329083 | BI61: 0.2517791095 | BJ61: 0.2797552916 | BK61: 0.282781053 | BL61: 0.2819023835 | BM61: 0.1998697614 | BN61: 0.2612834455 | BO61: 0.2596817867 | BP61: 0.2580556605 | BQ61: 0.2641387455 | BR61: 0.1920495401 | BS61: 0.2454582133 | BT61: 0.2497200434 | BU61: 0.2497793021 | BV61: 0.2564041404 | BW61: 0.1857027325 | BX61: 0.2372595747 | BY61: 0.2678098923 | BZ61: 0.2674131918 | CA61: 0.2690926306 | CB61: 0.1880418872 | CC61: 0.2467878724 | CD61: 0.2576358236 | CE61: 0.2578654285 | CF61: 0.2655467599 | CG61: 0.1907851101 | CH61: 0.2448067872 | CJ61: El Salvador | CK61: 5.383859174 | CL61: 21.84121429 | CM61: 399.3177884 | CN61: 107.6299297 | CO61: 534.1727916 | CP61: 3.843355529 | CQ61: 10.1504222 | CR61: 247.145031 | CS61: 62.1675779 | CT61: 323.3063866 | CU61: 1.675000807 | CV61: 3.319332493 | CW61: 95.44913214 | CX61: 25.18596875 | CY61: 125.6294342 | CZ61: 0.6608256096 | DA61: 1.349761574 | DB61: 30.30608383 | DC61: 8.512915529 | DD61: 40.82958654 | DE61: 0.3476242498 | DF61: 0.9742570413 | DG61: 14.52438495 | DH61: 4.181502228 | DI61: 20.02776847 | DJ61: 0.2554405986 | DK61: 0.7935610217 | DL61: 11.92943116 | DM61: 3.477358196 | DN61: 16.45579097 | DP61: 19.74200899 | DQ61: 80.10925288 | DR61: 1462.128331 | DS61: 559.6133881 | DT61: 2121.592981 | DU61: 13.73827643 | DV61: 35.89498693 | DW61: 876.7042972 | DX61: 311.0404369 | DY61: 1237.377997 | DZ61: 6.450205186 | EA61: 12.86285481 | EB61: 361.3598299 | EC61: 131.1430829 | ED61: 511.8159728 | EE61: 2.646265797 | EF61: 5.40381674 | EG61: 118.1965462 | EH61: 45.84162772 | EI61: 172.0882565 | EJ61: 1.298026174 | EK61: 3.643264697 | EL61: 53.97540958 | EM61: 22.23707861 | EN61: 81.15377906 | EO61: 0.9914793486 | EP61: 3.077423082 | EQ61: 44.92403208 | ER61: 18.22657016 | ES61: 67.21950467 | EV61: El Salvador | EW61: 10030 | EX61: 9540 | EY61: 9062 | EZ61: 8585 | FA61: 8078 | FB61: 7540 | FC61: 7029 | FD61: 6516 | FE61: 6011 | FF61: 5520 | FG61: 5011 | FH61: 4474 | FI61: 3951 | FJ61: 3472 | FK61: 3071 | FL61: 2788 | FM61: 2605 | FN61: 2514 | FO61: 2480 | FP61: 2453 | FQ61: 2407 | FR61: 2324 | FS61: 2202 | FT61: 2073 | FV61: El Salvador | GT61: 1712
A62: Equatorial Guinea | B62: AfrD | C62: Afr | D62: 15.24668917 | E62: 52.91911414 | F62: 76.43155586 | H62: 108.9411346 | I62: 197.4593811 | J62: 197.4593811 | L62: 0.1399534641 | M62: 0.268 | N62: 0.3870748274 | P62: 2882 | Q62: 2431 | S62: 0.03780053247 | T62: 0.08122557841 | W62: 139.3716205 | X62: 130.6604953 | Y62: 122.1174606 | Z62: 113.123026 | AA62: 105.6103654 | AB62: 99.23763273 | AC62: 95.1230151 | AD62: 97.18582554 | AE62: 102.1615435 | AF62: 92.2170089 | AG62: 82.33612151 | AH62: 82.82942361 | AI62: 82.46396006 | AJ62: 76.43155586 | AL62: 316.9714661 | AM62: 300.0111389 | AN62: 283.0313721 | AO62: 264.8252258 | AP62: 249.6471863 | AQ62: 236.9580841 | AR62: 229.3546295 | AS62: 236.6780701 | AT62: 251.1670837 | AU62: 229.0367126 | AV62: 206.5451508 | AW62: 209.8207245 | AX62: 210.96698 | AY62: 197.4593811 | BA62: 0.268 | BB62: 52.91911414 | BE62: 0.1648918709 | BF62: 0.1638833331 | BG62: 0.1494726141 | BH62: 0.1022236091 | BI62: 0.1321943736 | BJ62: 0.1742203523 | BK62: 0.1718749798 | BL62: 0.1513352707 | BM62: 0.09780376807 | BN62: 0.132447905 | BO62: 0.1729390972 | BP62: 0.1708437841 | BQ62: 0.152247574 | BR62: 0.09955507684 | BS62: 0.1351428687 | BT62: 0.1754046396 | BU62: 0.1732815762 | BV62: 0.1540910745 | BW62: 0.1016536041 | BX62: 0.1380599086 | BY62: 0.1809995471 | BZ62: 0.1787777699 | CA62: 0.1558930456 | CB62: 0.09831610119 | CC62: 0.1397770239 | CD62: 0.1727820273 | CE62: 0.1709780968 | CF62: 0.1549794945 | CG62: 0.1007373471 | CH62: 0.1399534641 | CJ62: Equatorial Guinea | CK62: 1.370025329 | CL62: 2.867380077 | CM62: 24.65455866 | CN62: 12.53819677 | CO62: 41.43016084 | CP62: 1.700503264 | CQ62: 3.37757501 | CR62: 27.32994108 | CS62: 12.96769576 | CT62: 45.37571511 | CU62: 1.29678142 | CV62: 2.655639438 | CW62: 21.26116824 | CX62: 9.027393339 | CY62: 34.24098244 | CZ62: 0.801850074 | DA62: 1.62549246 | DB62: 14.65285401 | DC62: 5.65576135 | DD62: 22.7359579 | DE62: 0.6589735188 | DF62: 1.162258524 | DG62: 11.23274241 | DH62: 3.710736793 | DI62: 16.76471124 | DJ62: 0.5842684447 | DK62: 1.018485524 | DL62: 10.31502929 | DM62: 3.328905918 | DN62: 15.24668917 | DP62: 8.308628691 | DQ62: 17.49647157 | DR62: 164.9436508 | DS62: 122.6546087 | DT62: 313.4033598 | DU62: 9.760646459 | DV62: 19.65134783 | DW62: 180.5920124 | DX62: 132.5889177 | DY62: 342.5929244 | DZ62: 7.498486119 | EA62: 15.54425555 | EB62: 139.6486504 | EC62: 90.67737805 | ED62: 253.3687701 | EE62: 4.571430243 | EF62: 9.380642169 | EG62: 95.09216586 | EH62: 55.63758807 | EI62: 164.6818263 | EJ62: 3.640746782 | EK62: 6.501135594 | EL62: 72.05415974 | EM62: 37.74292052 | EN62: 119.9389626 | EO62: 3.381534837 | EP62: 5.956818698 | EQ62: 66.55738116 | ER62: 33.0453999 | ES62: 108.9411346 | EV62: Equatorial Guinea | EW62: 3089 | EX62: 3078 | EY62: 3035 | EZ62: 2979 | FA62: 2919 | FB62: 2872 | FC62: 2832 | FD62: 2813 | FE62: 2805 | FF62: 2795 | FG62: 2780 | FH62: 2754 | FI62: 2721 | FJ62: 2676 | FK62: 2643 | FL62: 2615 | FM62: 2606 | FN62: 2601 | FO62: 2603 | FP62: 2587 | FQ62: 2564 | FR62: 2533 | FS62: 2486 | FT62: 2431 | FV62: Equatorial Guinea | GT62: 2882
A63: Eritrea | B63: AfrE | C63: Afr | D63: 541.0358556 | E63: 307.5923218 | F63: 411.9408495 | H63: 1686.79865 | I63: 1147.732544 | J63: 1147.732544 | L63: 0.3207471476 | M63: 0.268 | N63: 0.3589171116 | P63: 13310 | Q63: 11211 | S63: 0.1267316792 | T63: 0.1023755726 | W63: 727.7384098 | X63: 695.0971197 | Y63: 697.608783 | Z63: 681.9690843 | AA63: 665.3326676 | AB63: 637.0410903 | AC63: 611.7549725 | AD63: 574.4570023 | AE63: 593.726123 | AF63: 549.2415059 | AG63: 505.0108473 | AH63: 469.9523445 | AI63: 435.3508407 | AJ63: 411.9408495 | AL63: 1787.514526 | AM63: 1726.622803 | AN63: 1752.11731 | AO63: 1731.004639 | AP63: 1706.36731 | AQ63: 1650.720825 | AR63: 1601.008057 | AS63: 1518.294922 | AT63: 1584.432251 | AU63: 1479.310425 | AV63: 1372.453491 | AW63: 1287.937866 | AX63: 1203.265747 | AY63: 1147.732544 | BA63: 0.268 | BB63: 307.5923218 | BE63: 0.3833036822 | BF63: 0.383978531 | BG63: 0.3657445778 | BH63: 0.261011363 | BI63: 0.3054158121 | BJ63: 0.401665483 | BK63: 0.3991817085 | BL63: 0.3760250214 | BM63: 0.2493588496 | BN63: 0.3085893873 | BO63: 0.4142727734 | BP63: 0.4164748214 | BQ63: 0.3897383299 | BR63: 0.2609637421 | BS63: 0.3254640285 | BT63: 0.3798057984 | BU63: 0.3765516452 | BV63: 0.3531259478 | BW63: 0.2527452863 | BX63: 0.3036037168 | BY63: 0.3622129943 | BZ63: 0.3688155997 | CA63: 0.3617147082 | CB63: 0.2705413948 | CC63: 0.3173031736 | CD63: 0.3802591842 | CE63: 0.3940248365 | CF63: 0.3721627336 | CG63: 0.261822266 | CH63: 0.3207471476 | CJ63: Eritrea | CK63: 66.67132946 | CL63: 82.51348851 | CM63: 498.7893691 | CN63: 662.4811962 | CO63: 1310.455383 | CP63: 56.39150833 | CQ63: 56.91408546 | CR63: 382.1007622 | CS63: 397.879997 | CT63: 893.2863529 | CU63: 40.2207036 | CV63: 45.41883422 | CW63: 301.3930272 | CX63: 276.1434712 | CY63: 663.1760362 | CZ63: 36.95609132 | DA63: 40.15621727 | DB63: 295.9389252 | DC63: 281.757176 | DD63: 654.8084097 | DE63: 37.28747662 | DF63: 36.45765475 | DG63: 278.953594 | DH63: 254.3622362 | DI63: 607.0609616 | DJ63: 37.82233744 | DK63: 34.79972932 | DL63: 256.1286963 | DM63: 212.2850926 | DN63: 541.0358556 | DP63: 173.9386616 | DQ63: 214.8908906 | DR63: 1363.764221 | DS63: 2538.13163 | DT63: 4290.725403 | DU63: 140.3942104 | DV63: 142.5768873 | DW63: 1016.15781 | DX63: 1595.612097 | DY63: 2894.741004 | DZ63: 97.08748967 | EA63: 109.0554144 | EB63: 773.3214931 | EC63: 1058.167962 | ED63: 2037.632359 | EE63: 97.30259905 | EF63: 106.6419913 | EG63: 838.0548839 | EH63: 1114.787065 | EI63: 2156.786539 | EJ63: 102.9435089 | EK63: 98.85063098 | EL63: 771.1978189 | EM63: 940.1971052 | EN63: 1913.189064 | EO63: 99.46462573 | EP63: 88.31861878 | EQ63: 688.2169362 | ER63: 810.7984696 | ES63: 1686.79865 | EV63: Eritrea | EW63: 20823 | EX63: 20179 | EY63: 19191 | EZ63: 18010 | FA63: 16901 | FB63: 16014 | FC63: 14992 | FD63: 14178 | FE63: 13594 | FF63: 13219 | FG63: 13055 | FH63: 12943 | FI63: 12999 | FJ63: 13142 | FK63: 13215 | FL63: 13120 | FM63: 13003 | FN63: 12706 | FO63: 12319 | FP63: 11960 | FQ63: 11668 | FR63: 11486 | FS63: 11320 | FT63: 11211 | FV63: Eritrea | GT63: 13310
A64: Estonia | B64: EurC | C64: Eur | D64: 0.04468691454 | E64: 0.1004619614 | F64: 0.1522207439 | H64: 0.2037905773 | I64: 0.3878840208 | J64: 0.3878840208 | L64: 0.2192786101 | M64: 0.259 | N64: 0.392438811 | P64: 59 | Q64: 46 | S64: 0.003454077582 | T64: 0.008432261322 | W64: 1.195797178 | X64: 0.481742813 | Y64: 0 | Z64: 0.5616735766 | AA64: 0 | AB64: 0 | AC64: 0 | AD64: 0 | AE64: 0 | AF64: 0.1064561852 | AG64: 0.4457366405 | AH64: 0 | AI64: 0.1862716211 | AJ64: 0.1522207439 | AL64: 2.839450598 | AM64: 1.15029788 | AN64: 0 | AO64: 1.356302023 | AP64: 0 | AQ64: 0 | AR64: 0 | AS64: 0 | AT64: 0 | AU64: 0.2655984163 | AV64: 1.118081927 | AW64: 0 | AX64: 0.4722066224 | AY64: 0.3878840208 | BA64: 0.259 | BB64: 0.1004619614 | BE64: 0.1905136448 | BF64: 0.1961354135 | BG64: 0.2432422691 | BH64: 0.1624092768 | BI64: 0.2215936239 | BJ64: 0.1969747001 | BK64: 0.2022159245 | BL64: 0.2632162425 | BM64: 0.1775670425 | BN64: 0.2380828212 | BO64: 0.2097083707 | BP64: 0.2175003446 | BQ64: 0.2822930935 | BR64: 0.1862303833 | BS64: 0.2563584243 | BT64: 0.2043677575 | BU64: 0.2101960891 | BV64: 0.253326704 | BW64: 0.1584980515 | BX64: 0.2294708995 | BY64: 0.2007808712 | BZ64: 0.2121887065 | CA64: 0.2541341901 | CB64: 0.1618617614 | CC64: 0.2280998463 | CD64: 0.1847085825 | CE64: 0.1915765441 | CF64: 0.2455653126 | CG64: 0.1595427902 | CH64: 0.2192786101 | CJ64: Estonia | CK64: 0.01955414035 | CL64: 0.09378329047 | CM64: 0.6853009777 | CN64: 0.1252117313 | CO64: 0.9238501398 | CP64: 0.008395349361 | CQ64: 0.04753715143 | CR64: 0.3666082534 | CS64: 0.07283389741 | CT64: 0.4953746516 | CU64: 0.003492932655 | CV64: 0.02257317173 | CW64: 0.1812671163 | CX64: 0.03145103168 | CY64: 0.2387842523 | CZ64: 0.001651580301 | DA64: 0.01125640445 | DB64: 0.07151896999 | DC64: 0.01228244172 | DD64: 0.09670939646 | DE64: 0.000980688952 | DF64: 0.007715342311 | DG64: 0.03788456291 | DH64: 0.007743985364 | DI64: 0.05432457954 | DJ64: 0.0007804637431 | DK64: 0.006062767161 | DL64: 0.03155401562 | DM64: 0.006289668018 | DN64: 0.04468691454 | DP64: 0.1026390544 | DQ64: 0.4781558251 | DR64: 2.817359746 | DS64: 0.7709641576 | DT64: 4.169118783 | DU64: 0.0426214603 | DV64: 0.2350811468 | DW64: 1.392802549 | DX64: 0.4101768907 | DY64: 2.080682046 | DZ64: 0.01665614321 | EA64: 0.1037845332 | EB64: 0.6421238083 | EC64: 0.1688823871 | ED64: 0.9314468718 | EE64: 0.00808141324 | EF64: 0.05355192143 | EG64: 0.2823191115 | EH64: 0.07749269854 | EI64: 0.4214451447 | EJ64: 0.004884374423 | EK64: 0.0363607585 | EL64: 0.1490730661 | EM64: 0.04784320458 | EN64: 0.2381614036 | EO64: 0.004225378878 | EP64: 0.03164670909 | EQ64: 0.1284954104 | ER64: 0.03942307898 | ES64: 0.2037905773 | EV64: Estonia | EW64: 486 | EX64: 434 | EY64: 366 | EZ64: 298 | FA64: 238 | FB64: 196 | FC64: 168 | FD64: 154 | FE64: 150 | FF64: 147 | FG64: 142 | FH64: 136 | FI64: 127 | FJ64: 117 | FK64: 109 | FL64: 102 | FM64: 95 | FN64: 90 | FO64: 82 | FP64: 76 | FQ64: 68 | FR64: 61 | FS64: 53 | FT64: 46 | FV64: Estonia | GT64: 59
A65: Ethiopia | B65: AfrE | C65: Afr | D65: 4666.619646 | E65: 4967.209883 | F65: 6817.16659 | H65: 22209.5424 | I65: 18534.36523 | J65: 18534.36523 | L65: 0.2101177756 | M65: 0.268 | N65: 0.3678122506 | P65: 229333 | Q65: 195504 | S65: 0.09684407564 | T65: 0.09480299756 | W65: 29214.98163 | X65: 27259.69291 | Y65: 24769.58743 | Z65: 22045.66872 | AA65: 19331.03523 | AB65: 16817.51623 | AC65: 14533.88241 | AD65: 13343.80692 | AE65: 11775.22434 | AF65: 10241.29313 | AG65: 9038.445653 | AH65: 8144.956027 | AI65: 7502.789196 | AJ65: 6817.16659 | AL65: 66157.20312 | AM65: 62503.26953 | AN65: 57588.55469 | AO65: 52028.16016 | AP65: 46347.625 | AQ65: 40991.21875 | AR65: 36018.125 | AS65: 33605.92188 | AT65: 30121.81641 | AU65: 26582.19141 | AV65: 23770.91797 | AW65: 21676.78125 | AX65: 20189.24609 | AY65: 18534.36523 | BA65: 0.268 | BB65: 4967.209883 | BE65: 0.2638542549 | BF65: 0.2607309934 | BG65: 0.234767752 | BH65: 0.1595455381 | BI65: 0.2046466644 | BJ65: 0.2692018037 | BK65: 0.2664103146 | BL65: 0.2333808312 | BM65: 0.1486578196 | BN65: 0.2019275564 | BO65: 0.2942990777 | BP65: 0.2907044719 | BQ65: 0.2539752332 | BR65: 0.1613550222 | BS65: 0.2216001723 | BT65: 0.2731475812 | BU65: 0.2699543452 | BV65: 0.2389656748 | BW65: 0.1552667651 | BX65: 0.2084398662 | BY65: 0.2781992891 | BZ65: 0.2751116851 | CA65: 0.24384275 | CB65: 0.1574373224 | CC65: 0.2127104848 | CD65: 0.272376553 | CE65: 0.2699976738 | CF65: 0.2395716382 | CG65: 0.1550140708 | CH65: 0.2101177756 | CJ65: Ethiopia | CK65: 596.7120475 | CL65: 1244.149947 | CM65: 5879.983739 | CN65: 4089.119557 | CO65: 11809.96529 | CP65: 697.0989869 | CQ65: 1210.477557 | CR65: 5835.925711 | CS65: 3498.696666 | CT65: 11242.19892 | CU65: 822.4152829 | CV65: 1242.516802 | CW65: 5458.909493 | CX65: 3198.927646 | CY65: 10722.76922 | CZ65: 459.7448192 | DA65: 662.9911119 | DB65: 3731.616942 | DC65: 2151.093517 | DD65: 7005.44639 | DE65: 383.8864528 | DF65: 500.9696382 | DG65: 2943.500827 | DH65: 1651.489318 | DI65: 5479.846236 | DJ65: 344.6281993 | DK65: 430.1694506 | DL65: 2527.637893 | DM65: 1364.184103 | DN65: 4666.619646 | DP65: 2261.521414 | DQ65: 4771.776192 | DR65: 25045.96006 | DS65: 25629.79577 | DT65: 57709.05343 | DU65: 2589.503403 | DV65: 4543.658749 | DW65: 25006.01991 | DX65: 23535.23465 | DY65: 55674.41672 | DZ65: 2794.488143 | EA65: 4274.157855 | EB65: 21493.86546 | EC65: 19825.39868 | ED65: 48387.91014 | EE65: 1683.137069 | EF65: 2455.937916 | EG65: 15615.70273 | EH65: 13854.17875 | EI65: 33608.95647 | EJ65: 1379.897317 | EK65: 1820.96823 | EL65: 12071.30754 | EM65: 10489.82092 | EN65: 25761.99401 | EO65: 1265.263825 | EP65: 1593.233914 | EQ65: 10550.65579 | ER65: 8800.388867 | ES65: 22209.5424 | EV65: Ethiopia | EW65: 446726 | EX65: 449699 | EY65: 449768 | EZ65: 445923 | FA65: 440013 | FB65: 433906 | FC65: 430192 | FD65: 426405 | FE65: 423516 | FF65: 419585 | FG65: 411930 | FH65: 401064 | FI65: 384003 | FJ65: 362942 | FK65: 340065 | FL65: 316694 | FM65: 293436 | FN65: 272093 | FO65: 252645 | FP65: 235905 | FQ65: 222389 | FR65: 211554 | FS65: 202766 | FT65: 195504 | FV65: Ethiopia | GT65: 229333
A66: Federated States of Micronesia | B66: WprB | C66: Wpr | D66: 0.2129326594 | E66: 2.222275439 | F66: 2.233166382 | H66: 1.020507963 | I66: 6.816795826 | J66: 6.816795826 | L66: 0.2086535992 | M66: 0.326 | N66: 0.3275976631 | P66: 36 | Q66: 88 | S66: 0.02834744341 | T66: 0.07746358893 | W66: 7.821966074 | X66: 7.174245957 | Y66: 6.442495198 | Z66: 5.770218199 | AA66: 5.123022183 | AB66: 4.610258333 | AC66: 4.204624591 | AD66: 3.846335462 | AE66: 3.478704759 | AF66: 3.129993105 | AG66: 2.966252387 | AH66: 2.632090665 | AI66: 2.415901974 | AJ66: 2.233166382 | AL66: 21.61491776 | AM66: 19.96419716 | AN66: 18.06085777 | AO66: 16.29422951 | AP66: 14.58082008 | AQ66: 13.22096062 | AR66: 12.14988041 | AS66: 11.20016289 | AT66: 10.20843983 | AU66: 9.258665085 | AV66: 8.841893196 | AW66: 7.908169746 | AX66: 7.316889763 | AY66: 6.816795826 | BA66: 0.326 | BB66: 2.222275439 | BE66: 0.2548778593 | BF66: 0.2547342077 | BG66: 0.2542419372 | BH66: 0.1701264691 | BI66: 0.2196568905 | BJ66: 0.2506215791 | BK66: 0.2514248171 | BL66: 0.2521891816 | BM66: 0.1636851587 | BN66: 0.2170171552 | BO66: 0.2540815428 | BP66: 0.2540897504 | BQ66: 0.2528167072 | BR66: 0.1637738918 | BS66: 0.2153116726 | BT66: 0.2511580554 | BU66: 0.2511568651 | BV66: 0.252078418 | BW66: 0.1650347298 | BX66: 0.2107810861 | BY66: 0.2504379629 | BZ66: 0.2507615732 | CA66: 0.2510589344 | CB66: 0.1677294646 | CC66: 0.2104133092 | CD66: 0.2560840677 | CE66: 0.2561003911 | CF66: 0.2531294533 | CG66: 0.1637341714 | CH66: 0.2086535992 | CJ66: Federated States of Micronesia | CK66: 0.07094985845 | CL66: 0.1590687692 | CM66: 1.445879952 | CN66: 0.7844862393 | CO66: 2.460384818 | CP66: 0.07421555643 | CQ66: 0.1378378219 | CR66: 1.09753011 | CS66: 0.5582317176 | CT66: 1.867815206 | CU66: 0.03819598091 | CV66: 0.06706825749 | CW66: 0.4457378552 | CX66: 0.2611742527 | CY66: 0.8121763463 | CZ66: 0.01716132568 | DA66: 0.03368137465 | DB66: 0.2049790874 | DC66: 0.1506343263 | DD66: 0.406456114 | DE66: 0.009317438036 | DF66: 0.02064914114 | DG66: 0.1214189452 | DH66: 0.09615258734 | DI66: 0.2475381117 | DJ66: 0.007490174185 | DK66: 0.01786284306 | DL66: 0.103910355 | DM66: 0.08366928712 | DN66: 0.2129326594 | DP66: 0.2783680726 | DQ66: 0.6244499733 | DR66: 5.687023814 | DS66: 4.611194505 | DT66: 11.20103636 | DU66: 0.2961259629 | DV66: 0.548226796 | DW66: 4.352011069 | DX66: 3.410399099 | DY66: 8.606762927 | DZ66: 0.1503296166 | EA66: 0.2639549899 | EB66: 1.763087021 | EC66: 1.594724592 | ED66: 3.772096219 | EE66: 0.06832878865 | EF66: 0.1341049333 | EG66: 0.8131560371 | EH66: 0.9127431936 | EI66: 1.928332953 | EJ66: 0.03720457525 | EK66: 0.08234571542 | EL66: 0.4836272625 | EM66: 0.5732599669 | EN66: 1.17643752 | EO66: 0.02924888789 | EP66: 0.0697493783 | EQ66: 0.4105028224 | ER66: 0.5110068741 | ES66: 1.020507963 | EV66: Federated States of Micronesia | EW66: 173 | EX66: 174 | EY66: 179 | EZ66: 185 | FA66: 191 | FB66: 193 | FC66: 195 | FD66: 193 | FE66: 189 | FF66: 181 | FG66: 173 | FH66: 164 | FI66: 155 | FJ66: 145 | FK66: 135 | FL66: 127 | FM66: 120 | FN66: 114 | FO66: 108 | FP66: 103 | FQ66: 100 | FR66: 95 | FS66: 91 | FT66: 88 | FV66: Federated States of Micronesia | GT66: 36
A67: Fiji | B67: WprB | C67: Wpr | D67: 5.689675489 | E67: 6.15999213 | F67: 6.041807248 | H67: 23.43449987 | I67: 18.89568138 | J67: 18.89568138 | L67: 0.242790566 | M67: 0.326 | N67: 0.3197454025 | P67: 593 | Q67: 427 | S67: 0.03951854953 | T67: 0.04425218122 | W67: 10.62694078 | X67: 9.768590279 | Y67: 8.685373537 | Z67: 8.08385815 | AA67: 7.49203784 | AB67: 7.01096908 | AC67: 6.881418665 | AD67: 6.62361965 | AE67: 6.651193424 | AF67: 6.583876024 | AG67: 6.702959985 | AH67: 6.531504658 | AI67: 6.265468637 | AJ67: 6.041807248 | AL67: 30.86787224 | AM67: 28.54820633 | AN67: 25.53878212 | AO67: 23.91292763 | AP67: 22.29253006 | AQ67: 20.98028946 | AR67: 20.70328522 | AS67: 20.03535652 | AT67: 20.22460365 | AU67: 20.12547493 | AV67: 20.60198784 | AW67: 20.18584061 | AX67: 19.47516441 | AY67: 18.89568138 | BA67: 0.326 | BB67: 6.15999213 | BE67: 0.2890838809 | BF67: 0.2890868293 | BG67: 0.292781529 | BH67: 0.195341946 | BI67: 0.2450911424 | BJ67: 0.2878651722 | BK67: 0.287960613 | BL67: 0.2910085063 | BM67: 0.1903115584 | BN67: 0.2410036499 | BO67: 0.2909173288 | BP67: 0.2911640226 | BQ67: 0.295032832 | BR67: 0.1930866541 | BS67: 0.2405627185 | BT67: 0.2904496976 | BU67: 0.2908571141 | BV67: 0.2952012354 | BW67: 0.1927951245 | BX67: 0.2417760205 | BY67: 0.2923352163 | BZ67: 0.2926888962 | CA67: 0.2973537431 | CB67: 0.196518511 | CC67: 0.243049574 | CD67: 0.2903608358 | CE67: 0.2914238212 | CF67: 0.297418245 | CG67: 0.193712784 | CH67: 0.242790566 | CJ67: Fiji | CK67: 0.1706186495 | CL67: 0.315956796 | CM67: 2.577877257 | CN67: 1.939524059 | CO67: 5.003976762 | CP67: 0.1288502246 | CQ67: 0.2426326064 | CR67: 1.898487179 | CS67: 1.452013325 | CT67: 3.721983335 | CU67: 0.1328346568 | CV67: 0.2469748788 | CW67: 2.010521038 | CX67: 1.777716431 | CY67: 4.168047005 | CZ67: 0.1594113126 | DA67: 0.3007403176 | DB67: 2.562593466 | DC67: 2.130384869 | DD67: 5.153129966 | DE67: 0.1557823877 | DF67: 0.3147071933 | DG67: 2.936434202 | DH67: 2.601194811 | DI67: 6.008118594 | DJ67: 0.1510262331 | DK67: 0.3121430052 | DL67: 2.854105491 | DM67: 2.372400759 | DN67: 5.689675489 | DP67: 0.5902046459 | DQ67: 1.092947737 | DR67: 8.804781045 | DS67: 9.928866271 | DT67: 20.4167997 | DU67: 0.4476061611 | DV67: 0.8425895607 | DW67: 6.523820225 | DX67: 7.629664416 | DY67: 15.44368036 | DZ67: 0.4566062026 | EA67: 0.8482328158 | EB67: 6.814567126 | EC67: 9.206832233 | ED67: 17.32623838 | EE67: 0.5488431006 | EF67: 1.033979583 | EG67: 8.680835848 | EH67: 11.04999348 | EI67: 21.31365201 | EJ67: 0.53288957 | EK67: 1.075227648 | EL67: 9.875221921 | EM67: 13.23638572 | EN67: 24.71972485 | EO67: 0.5201329327 | EP67: 1.071096398 | EQ67: 9.596269023 | ER67: 12.24700152 | ES67: 23.43449987 | EV67: Fiji | EW67: 607 | EX67: 587 | EY67: 578 | EZ67: 576 | FA67: 575 | FB67: 570 | FC67: 557 | FD67: 540 | FE67: 518 | FF67: 498 | FG67: 480 | FH67: 464 | FI67: 452 | FJ67: 445 | FK67: 442 | FL67: 442 | FM67: 443 | FN67: 445 | FO67: 449 | FP67: 452 | FQ67: 451 | FR67: 448 | FS67: 440 | FT67: 427 | FV67: Fiji | GT67: 593
A68: Finland | B68: EurA | C68: Eur | D68: 0.04553984206 | E68: 0 | F68: 0 | H68: 0.7628118636 | I68: 0 | J68: 0 | L68: 0.05969996565 | M68: - | N68: - | P68: 181 | Q68: 159 | S68: 0.004214430185 | T68: 0 | W68: 0.970729885 | X68: 0.5270480734 | Y68: 0.6941759527 | Z68: 0.5464367242 | AA68: 0 | AB68: 0.498070649 | AC68: 1.328380908 | AD68: 0 | AE68: 0.5782367317 | AF68: 0 | AG68: 0 | AH68: 0 | AI68: 0 | AJ68: 0 | AL68: 2.327740669 | AM68: 1.269635677 | AN68: 1.679965377 | AO68: 1.328561902 | AP68: 0 | AQ68: 1.222330689 | AR68: 3.275861979 | AS68: 0 | AT68: 1.439756513 | AU68: 0 | AV68: 0 | AW68: 0 | AX68: 0 | AY68: 0 | BA68: 0.259 | BB68: 0 | BE68: 0.04580704355 | BF68: 0.04710547001 | BG68: 0.06667067382 | BH68: 0.05231849666 | BI68: 0.05756937131 | BJ68: 0.04502515646 | BK68: 0.04727569283 | BL68: 0.07412407996 | BM68: 0.05427218475 | BN68: 0.06117191318 | BO68: 0.04516575832 | BP68: 0.04706538119 | BQ68: 0.08050991065 | BR68: 0.05969513656 | BS68: 0.06606074815 | BT68: 0.04469303001 | BU68: 0.04678099269 | BV68: 0.05955894595 | BW68: 0.04534608883 | BX68: 0.05171434354 | BY68: 0.04691945185 | BZ68: 0.04778241883 | CA68: 0.06322977789 | CB68: 0.04725989786 | CC68: 0.05444942349 | CD68: 0.04562480076 | CE68: 0.04849167399 | CF68: 0.06956577214 | CG68: 0.05334287018 | CH68: 0.05969996565 | CJ68: Finland | CK68: 0.003614878949 | CL68: 0.009967665169 | CM68: 0.04985312888 | CN68: 0.03649822346 | CO68: 0.09993389646 | CP68: 0.002105815713 | CQ68: 0.006692082764 | CR68: 0.03302502665 | CS68: 0.02397839082 | CT68: 0.06580131595 | CU68: 0.001694798373 | CV68: 0.00564983328 | CW68: 0.0296477512 | CX68: 0.02116175241 | CY68: 0.05815413526 | CZ68: 0.00194032332 | DA68: 0.006302026451 | DB68: 0.02553313889 | DC68: 0.01704394283 | DD68: 0.05081943149 | DE68: 0.001619175701 | DF68: 0.005090203373 | DG68: 0.02191096549 | DH68: 0.01362387276 | DI68: 0.04224421732 | DJ68: 0.001564130963 | DK68: 0.004998144946 | DL68: 0.02407302416 | DM68: 0.01490454198 | DN68: 0.04553984206 | DP68: 0.07891535164 | DQ68: 0.2116031358 | DR68: 0.7477519879 | DS68: 0.6976160592 | DT68: 1.735886535 | DU68: 0.04676975892 | DV68: 0.1415544091 | DW68: 0.4455370868 | DX68: 0.4418173127 | DY68: 1.075678568 | DZ68: 0.03752396586 | EA68: 0.1200422293 | EB68: 0.3682497094 | EC68: 0.3544970936 | ED68: 0.880312998 | EE68: 0.04341445008 | EF68: 0.1347133972 | EG68: 0.4287036731 | EH68: 0.3758635699 | EI68: 0.9826950903 | EJ68: 0.0345096892 | EK68: 0.1065287923 | EL68: 0.346529218 | EM68: 0.2882755438 | EN68: 0.7758432433 | EO68: 0.03428247218 | EP68: 0.1030722294 | EQ68: 0.3460469628 | ER68: 0.2794101992 | ES68: 0.7628118636 | EV68: Finland | EW68: 408 | EX68: 400 | EY68: 394 | EZ68: 389 | FA68: 376 | FB68: 356 | FC68: 327 | FD68: 298 | FE68: 273 | FF68: 245 | FG68: 230 | FH68: 222 | FI68: 219 | FJ68: 221 | FK68: 223 | FL68: 223 | FM68: 216 | FN68: 213 | FO68: 203 | FP68: 198 | FQ68: 186 | FR68: 180 | FS68: 166 | FT68: 159 | FV68: Finland | GT68: 181
A69: France | B69: EurA | C69: Eur | D69: 9.006811471 | E69: 10.5231683 | F69: 15.96472615 | H69: 34.20562231 | I69: 40.62999344 | J69: 40.62999344 | L69: 0.2633137731 | M69: =E69/I69 -> 0.259 | N69: 0.3929295773 | P69: 2967 | Q69: 3343 | S69: 0.01152868969 | T69: 0.01215375215 | W69: 26.06146079 | X69: 24.09231794 | Y69: 15.19460307 | Z69: 22.99872376 | AA69: 18.0920842 | AB69: 15.66393806 | AC69: 13.88614179 | AD69: 10.97890974 | AE69: 18.11779228 | AF69: 17.25550873 | AG69: 15.4049526 | AH69: 15.67679952 | AI69: 15.95482147 | AJ69: 15.96472615 | AL69: 62.39255524 | AM69: 57.94314575 | AN69: 36.71773148 | AO69: 55.8422699 | AP69: 44.14038086 | AQ69: 38.3951149 | AR69: 34.19744492 | AS69: 27.16551399 | AT69: 45.04284286 | AU69: 43.09708405 | AV69: 38.65949631 | AW69: 39.52498627 | AX69: 40.4147377 | AY69: 40.62999344 | BA69: 0.259 | BB69: 10.5231683 | BE69: 0.1749342423 | BF69: 0.1892722585 | BG69: 0.329292584 | BH69: 0.2568326074 | BI69: 0.2904487927 | BJ69: 0.1760339408 | BK69: 0.1902866904 | BL69: 0.3323774357 | BM69: 0.2573691432 | BN69: 0.2883845149 | BO69: 0.1687867685 | BP69: 0.1828514863 | BQ69: 0.3205366206 | BR69: 0.247486406 | BS69: 0.2795584159 | BT69: 0.1699235069 | BU69: 0.184748049 | BV69: 0.3250417719 | BW69: 0.2521579791 | BX69: 0.2828071388 | BY69: 0.161853446 | BZ69: 0.1751072939 | CA69: 0.3007125338 | CB69: 0.233629198 | CC69: 0.2620621177 | CD69: 0.1658162753 | CE69: 0.1782485071 | CF69: 0.3014335059 | CG69: 0.2350945077 | CH69: 0.2633137731 | CJ69: France | CK69: 0.6002934758 | CL69: 1.662274613 | CM69: 15.36818204 | CN69: 4.033085105 | CO69: 21.66383523 | CP69: 0.4713763641 | CQ69: 1.433797823 | CR69: 11.14534529 | CS69: 3.611097852 | CT69: 16.66161733 | CU69: 0.4573439154 | CV69: 1.246899765 | CW69: 11.64853645 | CX69: 4.086459676 | CY69: 17.43923981 | CZ69: 0.3482315249 | DA69: 0.8129546806 | DB69: 8.457191346 | DC69: 3.587594099 | DD69: 13.20597165 | DE69: 0.2876033646 | DF69: 0.6524114391 | DG69: 6.891374848 | DH69: 3.1528526 | DI69: 10.98424225 | DJ69: 0.2233755735 | DK69: 0.5821964147 | DL69: 5.653689688 | DM69: 2.547549795 | DN69: 9.006811471 | DP69: 3.431537862 | DQ69: 8.782452464 | DR69: 46.67029502 | DS69: 15.70316615 | DT69: 74.58745149 | DU69: 2.677758403 | DV69: 7.534934893 | DW69: 33.53219592 | DX69: 14.03081118 | DY69: 57.7757004 | DZ69: 2.709595778 | EA69: 6.819194036 | EB69: 36.34073521 | EC69: 16.5118551 | ED69: 62.38138013 | EE69: 2.049342855 | EF69: 4.400342438 | EG69: 26.01878305 | EH69: 14.22756524 | EI69: 46.69603359 | EJ69: 1.776936925 | EK69: 3.72578106 | EL69: 22.91681947 | EM69: 13.49511374 | EN69: 41.91465119 | EO69: 1.347126952 | EP69: 3.2662064 | EQ69: 18.75600946 | ER69: 10.8362795 | ES69: 34.20562231 | EV69: France | EW69: 6254 | EX69: 5800 | EY69: 5474 | EZ69: 5269 | FA69: 4988 | FB69: 4727 | FC69: 4488 | FD69: 4300 | FE69: 4168 | FF69: 4108 | FG69: 4055 | FH69: 4002 | FI69: 3867 | FJ69: 3728 | FK69: 3588 | FL69: 3522 | FM69: 3461 | FN69: 3399 | FO69: 3335 | FP69: 3350 | FQ69: 3287 | FR69: 3305 | FS69: 3324 | FT69: 3343 | FV69: France | GT69: 2967
A70: Gabon | B70: AfrD | C70: Afr | D70: 13.71625632 | E70: 49.07286267 | F70: 66.41692445 | H70: 118.5442098 | I70: 183.1076965 | J70: 183.1076965 | L70: 0.115705831 | M70: 0.268 | N70: 0.3627205503 | P70: 3179 | Q70: 2920 | S70: 0.03728977976 | T70: 0.06270811525 | W70: 110.5289478 | X70: 106.528721 | Y70: 103.4421963 | Z70: 99.82510513 | AA70: 96.43063225 | AB70: 94.33312023 | AC70: 95.46678778 | AD70: 96.43884713 | AE70: 94.58547135 | AF70: 88.31294125 | AG70: 81.69500294 | AH70: 73.64787278 | AI70: 70.45153485 | AJ70: 66.41692445 | AL70: 273.4241943 | AM70: 265.2238159 | AN70: 259.2865295 | AO70: 252.0462036 | AP70: 245.3453522 | AQ70: 241.9010468 | AR70: 246.8319244 | AS70: 251.5443726 | AT70: 249.1098328 | AU70: 234.7180786 | AV70: 219.1340179 | AW70: 199.4895325 | AX70: 192.6952515 | AY70: 183.1076965 | BA70: 0.268 | BB70: 49.07286267 | BE70: 0.1693872513 | BF70: 0.1669736045 | BG70: 0.1436677386 | BH70: 0.08844010608 | BI70: 0.1301579982 | BJ70: 0.1378702696 | BK70: 0.1377161371 | BL70: 0.1241180342 | BM70: 0.08220209337 | BN70: 0.113333277 | BO70: 0.157634922 | BP70: 0.1556308945 | BQ70: 0.1396695169 | BR70: 0.09026404142 | BS70: 0.127821046 | BT70: 0.1564878392 | BU70: 0.1522961922 | BV70: 0.138257315 | BW70: 0.08880874313 | BX70: 0.1270377758 | BY70: 0.1570880895 | BZ70: 0.1547580834 | CA70: 0.1392277117 | CB70: 0.08939553799 | CC70: 0.1276922435 | CD70: 0.1426185716 | CE70: 0.1413884891 | CF70: 0.1262467089 | CG70: 0.08310484114 | CH70: 0.115705831 | CJ70: Gabon | CK70: 1.776873995 | CL70: 1.706551602 | CM70: 15.62132596 | CN70: 4.78417748 | CO70: 23.88892904 | CP70: 1.258478666 | CQ70: 1.152274878 | CR70: 11.33297006 | CS70: 3.730296955 | CT70: 17.47402056 | CU70: 1.279905414 | CV70: 1.046093361 | CW70: 10.28883828 | CX70: 3.128787323 | CY70: 15.74362437 | CZ70: 1.039606689 | DA70: 0.7483557533 | DB70: 8.085498555 | DC70: 2.267081604 | DD70: 12.1405426 | DE70: 0.9219476302 | DF70: 0.7841256103 | DG70: 9.60657491 | DH70: 2.580780464 | DI70: 13.89342861 | DJ70: 0.7965460955 | DK70: 0.7151457773 | DL70: 9.473845327 | DM70: 2.730719115 | DN70: 13.71625632 | DP70: 10.49001021 | DQ70: 10.22048729 | DR70: 108.7323161 | DS70: 54.09511241 | DT70: 183.537926 | DU70: 9.127991619 | DV70: 8.367028749 | DW70: 91.30800477 | DX70: 45.37958587 | DY70: 154.182611 | DZ70: 8.119428093 | EA70: 6.721630461 | EB70: 73.66559652 | EC70: 34.66261065 | ED70: 123.1692657 | EE70: 6.64337046 | EF70: 4.913817887 | EG70: 58.48152451 | EH70: 25.52768483 | EI70: 95.56639768 | EJ70: 5.868984933 | EK70: 5.066782897 | EL70: 68.99901459 | EM70: 28.8692313 | EN70: 108.8040137 | EO70: 5.585149862 | EP70: 5.058019798 | EQ70: 75.04231526 | ER70: 32.85872493 | ES70: 118.5442098 | EV70: Gabon | EW70: 3129 | EX70: 3165 | EY70: 3196 | EZ70: 3225 | FA70: 3250 | FB70: 3267 | FC70: 3287 | FD70: 3302 | FE70: 3317 | FF70: 3328 | FG70: 3348 | FH70: 3360 | FI70: 3370 | FJ70: 3371 | FK70: 3365 | FL70: 3353 | FM70: 3331 | FN70: 3290 | FO70: 3219 | FP70: 3164 | FQ70: 3105 | FR70: 3029 | FS70: 2950 | FT70: 2920 | FV70: Gabon | GT70: 3179
A71: Georgia | B71: EurB | C71: Eur | D71: 4.642086023 | E71: 1.143226503 | F71: 1.225618509 | H71: 19.75338853 | I71: 4.414001942 | J71: 4.414001942 | L71: 0.2350020107 | M71: 0.259 | N71: 0.2776660557 | P71: 1229 | Q71: 740 | S71: 0.01607273273 | T71: 0.005964867489 | W71: 18.7889015 | X71: 13.47618236 | Y71: 11.71043463 | Z71: 10.90726089 | AA71: 8.79974642 | AB71: 6.547236048 | AC71: 5.30150942 | AD71: 3.54865833 | AE71: 3.579333139 | AF71: 3.431408509 | AG71: 2.624556692 | AH71: 2.004552917 | AI71: 1.649701235 | AJ71: 1.225618509 | AL71: 59.54033661 | AM71: 43.14192581 | AN71: 37.88437271 | AO71: 35.66198349 | AP71: 29.07576752 | AQ71: 21.85961914 | AR71: 17.8840313 | AS71: 12.09139729 | AT71: 12.31484604 | AU71: 11.91941547 | AV71: 9.201263428 | AW71: 7.093414783 | AX71: 5.890403748 | AY71: 4.414001942 | BA71: 0.259 | BB71: 1.143226503 | BE71: 0.1876217149 | BF71: 0.1988026086 | BG71: 0.3096088277 | BH71: 0.2088151144 | BI71: 0.278005343 | BJ71: 0.1824763111 | BK71: 0.1921360362 | BL71: 0.2806484882 | BM71: 0.1872802649 | BN71: 0.248596528 | BO71: 0.1980165872 | BP71: 0.2071494213 | BQ71: 0.3033607361 | BR71: 0.2013749599 | BS71: 0.2675507733 | BT71: 0.177409494 | BU71: 0.18444106 | BV71: 0.2507345538 | BW71: 0.1604901596 | BX71: 0.2212978842 | BY71: 0.1921594157 | BZ71: 0.1990161966 | CA71: 0.2628970059 | CB71: 0.1671316113 | CC71: 0.231411637 | CD71: 0.1818990634 | CE71: 0.1892852369 | CF71: 0.2671232735 | CG71: 0.1767907968 | CH71: 0.2350020107 | CJ71: Georgia | CK71: 0.7457097341 | CL71: 2.028041823 | CM71: 36.65813345 | CN71: 7.770394174 | CO71: 47.20227918 | CP71: 0.506282942 | CQ71: 1.314603994 | CR71: 24.37249761 | CS71: 6.761521759 | CT71: 32.9549063 | CU71: 0.2950395984 | CV71: 0.7016639142 | CW71: 14.17685707 | CX71: 4.15464043 | CY71: 19.32820102 | CZ71: 0.1450395734 | DA71: 0.2976358905 | DB71: 5.515053033 | DC71: 1.457212423 | DD71: 7.414940919 | DE71: 0.1124933748 | DF71: 0.2336744141 | DG71: 3.822124231 | DH71: 1.031529298 | DI71: 5.199821318 | DJ71: 0.09302151369 | DK71: 0.2030610479 | DL71: 3.352929543 | DM71: 0.9930739182 | DN71: 4.642086023 | DP71: 3.974538525 | DQ71: 10.20128376 | DR71: 118.4014478 | DS71: 37.21183783 | DT71: 169.7891079 | DU71: 2.774513245 | DV71: 6.842048061 | DW71: 86.84350222 | DX71: 36.10376012 | DY71: 132.5638236 | DZ71: 1.489974161 | EA71: 3.387235695 | EB71: 46.73266968 | EC71: 20.63136565 | ED71: 72.24124519 | EE71: 0.8175412154 | EF71: 1.613718173 | EG71: 21.99558437 | EH71: 9.079761812 | EI71: 33.50660558 | EJ71: 0.5854169281 | EK71: 1.174147723 | EL71: 14.53848521 | EM71: 6.171958074 | EN71: 22.47000793 | EO71: 0.5113908338 | EP71: 1.072778053 | EQ71: 12.55199331 | ER71: 5.617226327 | ES71: 19.75338853 | EV71: Georgia | EW71: 4458 | EX71: 4284 | EY71: 4050 | EZ71: 3776 | FA71: 3481 | FB71: 3193 | FC71: 2875 | FD71: 2575 | FE71: 2291 | FF71: 2054 | FG71: 1863 | FH71: 1707 | FI71: 1592 | FJ71: 1508 | FK71: 1445 | FL71: 1390 | FM71: 1342 | FN71: 1301 | FO71: 1253 | FP71: 1185 | FQ71: 1098 | FR71: 983 | FS71: 858 | FT71: 740 | FV71: Georgia | GT71: 1229
A72: Germany | B72: EurA | C72: Eur | D72: 2.217584635 | E72: 2.814131765 | F72: 4.267327026 | H72: 12.43162787 | I72: 10.86537361 | J72: 10.86537361 | L72: 0.1783824821 | M72: 0.259 | N72: 0.39274554 | P72: 2539 | Q72: 2766 | S72: 0.004896269345 | T72: 0.003928190026 | W72: 6.461200198 | X72: 4.618822689 | Y72: 5.875261635 | Z72: 5.787052549 | AA72: 4.898588887 | AB72: 1.215214185 | AC72: 4.518772698 | AD72: 3.644814188 | AE72: 4.894882672 | AF72: 4.047830289 | AG72: 4.898387855 | AH72: 3.642313291 | AI72: 4.23442446 | AJ72: 4.267327026 | AL72: 15.46846485 | AM72: 11.11012268 | AN72: 14.19755936 | AO72: 14.04921532 | AP72: 11.94781494 | AQ72: 2.978259563 | AR72: 11.12671471 | AS72: 9.017127037 | AT72: 12.16736603 | AU72: 10.10979652 | AV72: 12.29274845 | AW72: 9.184569359 | AX72: 10.72944355 | AY72: 10.86537361 | BA72: 0.259 | BB72: 2.814131765 | BE72: 0.1200030415 | BF72: 0.1321322595 | BG72: 0.2112370839 | BH72: 0.162257439 | BI72: 0.187428175 | BJ72: 0.1106562558 | BK72: 0.1170610759 | BL72: 0.1946030856 | BM72: 0.1506953145 | BN72: 0.1702414593 | BO72: 0.1130113655 | BP72: 0.1205687113 | BQ72: 0.2257501881 | BR72: 0.1762665918 | BS72: 0.192773208 | BT72: 0.1069730027 | BU72: 0.1160684321 | BV72: 0.2107270188 | BW72: 0.1670544551 | BX72: 0.1771166883 | BY72: 0.1051299622 | BZ72: 0.1153274926 | CA72: 0.2190647793 | CB72: 0.1740217135 | CC72: 0.1803066982 | CD72: 0.1070930806 | CE72: 0.117753686 | CF72: 0.2156864151 | CG72: 0.1703596196 | CH72: 0.1783824821 | CJ72: Germany | CK72: 0.06423950221 | CL72: 0.1388083722 | CM72: 2.109682291 | CN72: 0.9257011566 | CO72: 3.238431322 | CP72: 0.04187079869 | CQ72: 0.09486493008 | CR72: 1.096287176 | CS72: 0.5519934551 | CT72: 1.78501636 | CU72: 0.05631055684 | CV72: 0.1254411795 | CW72: 1.294969552 | CX72: 0.7934157842 | CY72: 2.270137073 | CZ72: 0.07531247494 | DA72: 0.1731835006 | DB72: 1.237672706 | DC72: 0.9452041864 | DD72: 2.431372868 | DE72: 0.08733868466 | DF72: 0.2100480297 | DG72: 1.240203992 | DH72: 1.069359066 | DI72: 2.606949772 | DJ72: 0.07521437603 | DK72: 0.1859063441 | DL72: 1.081239095 | DM72: 0.8752248199 | DN72: 2.217584635 | DP72: 0.5353156172 | DQ72: 1.050525986 | DR72: 9.98727237 | DS72: 5.705138467 | DT72: 17.27825244 | DU72: 0.378386187 | DV72: 0.8103883326 | DW72: 5.633452177 | DX72: 3.662976895 | DY72: 10.48520359 | DZ72: 0.4982733957 | EA72: 1.040412377 | EB72: 5.736294456 | EC72: 4.501226103 | ED72: 11.77620633 | EE72: 0.7040325413 | EF72: 1.492080986 | EG72: 5.87334606 | EH72: 5.658060335 | EI72: 13.72751992 | EJ72: 0.8307687246 | EK72: 1.821317927 | EL72: 5.661357321 | EM72: 6.144974925 | EN72: 14.4584189 | EO72: 0.7023271308 | EP72: 1.578773034 | EQ72: 5.013014354 | ER72: 5.137513349 | ES72: 12.43162787 | EV72: Germany | EW72: 7246 | EX72: 6716 | EY72: 6275 | EZ72: 5855 | FA72: 5471 | FB72: 5185 | FC72: 4941 | FD72: 4737 | FE72: 4618 | FF72: 4477 | FG72: 4376 | FH72: 4160 | FI72: 3985 | FJ72: 3789 | FK72: 3599 | FL72: 3358 | FM72: 3223 | FN72: 3109 | FO72: 3016 | FP72: 2937 | FQ72: 2876 | FR72: 2828 | FS72: 2795 | FT72: 2766 | FV72: Germany | GT72: 2539
A73: Ghana | B73: AfrD | C73: Afr | D73: 583.7473701 | E73: 1272.998822 | F73: 1787.901484 | H73: 2247.213018 | I73: 4749.995605 | J73: 4749.995605 | L73: 0.2597650358 | M73: 0.268 | N73: 0.3764006606 | P73: 56588 | Q73: 61530 | S73: 0.03971182968 | T73: 0.07719804332 | W73: 2114.027138 | X73: 2061.996351 | Y73: 2091.711342 | Z73: 2039.764104 | AA73: 1997.974049 | AB73: 1984.68625 | AC73: 2012.865752 | AD73: 2085.818842 | AE73: 2166.678642 | AF73: 2166.144484 | AG73: 2102.364152 | AH73: 1991.146235 | AI73: 1901.520929 | AJ73: 1787.901484 | AL73: 5100.375977 | AM73: 5021.758301 | AN73: 5141.070801 | AO73: 5056.945801 | AP73: 4992.216309 | AQ73: 4995.86377 | AR73: 5100.76123 | AS73: 5318.802734 | AT73: 5558.209961 | AU73: 5592.146973 | AV73: 5462.196777 | AW73: 5210.711426 | AX73: 5012.541992 | AY73: 4749.995605 | BA73: 0.268 | BB73: 1272.998822 | BE73: 0.3283234654 | BF73: 0.3235876654 | BG73: 0.2840395907 | BH73: 0.2073381924 | BI73: 0.2525849046 | BJ73: 0.3979607439 | BK73: 0.3921677979 | BL73: 0.3430836086 | BM73: 0.2290290624 | BN73: 0.2984243964 | BO73: 0.365648022 | BP73: 0.3609033352 | BQ73: 0.3138746756 | BR73: 0.2236924783 | BS73: 0.2771642345 | BT73: 0.3659937976 | BU73: 0.3619502597 | BV73: 0.3171941631 | BW73: 0.2229055579 | BX73: 0.2783384998 | BY73: 0.3474580002 | BZ73: 0.3423437217 | CA73: 0.3008049736 | CB73: 0.2155814142 | CC73: 0.2663385801 | CD73: 0.3415066615 | CE73: 0.3359892898 | CF73: 0.2947869388 | CG73: 0.2109929505 | CH73: 0.2597650358 | CJ73: Ghana | CK73: 129.776501 | CL73: 180.994219 | CM73: 1274.734203 | CN73: 966.0430234 | CO73: 2551.547947 | CP73: 102.8265341 | CQ73: 144.00977 | CR73: 1072.297174 | CS73: 659.1579329 | CT73: 1978.291411 | CU73: 67.03360396 | CV73: 89.01590463 | CW73: 690.8449612 | CX73: 492.2833751 | CY73: 1339.177845 | CZ73: 41.14237694 | DA73: 47.48861384 | DB73: 388.9439819 | DC73: 275.3237543 | DD73: 752.898727 | DE73: 28.84101888 | DF73: 34.26236611 | DG73: 305.2650714 | DH73: 209.4668894 | DI73: 577.8353457 | DJ73: 26.45659304 | DK73: 31.8828441 | DL73: 308.2789616 | DM73: 217.1289714 | DN73: 583.7473701 | DP73: 395.2702583 | DQ73: 559.3359647 | DR73: 4487.875088 | DS73: 4659.262301 | DT73: 10101.74361 | DU73: 258.3836111 | DV73: 367.2146738 | DW73: 3125.468975 | DX73: 2878.053666 | DY73: 6629.120926 | DZ73: 183.3282281 | EA73: 246.647498 | EB73: 2201.021665 | EC73: 2200.714923 | ED73: 4831.712314 | EE73: 112.4127709 | EF73: 131.2020438 | EG73: 1226.201574 | EH73: 1235.158768 | EI73: 2704.975156 | EJ73: 83.00577009 | EK73: 100.0817715 | EL73: 1014.827208 | EM73: 971.6370501 | EN73: 2169.551799 | EO73: 77.47021076 | EP73: 94.89244171 | EQ73: 1045.768726 | ER73: 1029.081639 | ES73: 2247.213018 | EV73: Ghana | EW73: 70438 | EX73: 69266 | EY73: 68561 | EZ73: 68168 | FA73: 68008 | FB73: 67733 | FC73: 67289 | FD73: 66427 | FE73: 65172 | FF73: 63929 | FG73: 62883 | FH73: 61983 | FI73: 61530 | FJ73: 61508 | FK73: 61838 | FL73: 62174 | FM73: 62719 | FN73: 63203 | FO73: 63594 | FP73: 63655 | FQ73: 63591 | FR73: 63189 | FS73: 62560 | FT73: 61530 | FV73: Ghana | GT73: 56588
A74: Greece | B74: EurA | C74: Eur | D74: =DN74 -> 0.1886995936 | E74: =BB74 -> 0 | F74: =AJ74 -> 0 | H74: =ES74 -> 0.5566889049 | I74: =AY74 -> 0 | J74: =AY74 -> 0 | L74: 0.3389677645 | M74: - | N74: - | P74: =GT74 -> 442 | Q74: =FT74 -> 484 | S74: =H74/GT74 -> 0.00125947716 | T74: =I74/FT74 -> 0 | W74: 0 | X74: 0 | Y74: 0 | Z74: 0 | AA74: 0 | AB74: 0 | AC74: 0 | AD74: 0 | AE74: 0 | AF74: 0 | AG74: 0 | AH74: 0 | AI74: 0 | AJ74: 0 | AL74: 0 | AM74: 0 | AN74: 0 | AO74: 0 | AP74: 0 | AQ74: 0 | AR74: 0 | AS74: 0 | AT74: 0 | AU74: 0 | AV74: 0 | AW74: 0 | AX74: 0 | AY74: 0 | BA74: 0.259 | BB74: =AY74*BA74 -> 0 | BE74: 0.2274553413 | BF74: 0.2393271027 | BG74: 0.3495162214 | BH74: 0.2697254207 | BI74: 0.3135132374 | BJ74: 0.2040737937 | BK74: 0.2127317792 | BL74: 0.2990390388 | BM74: 0.2230839149 | BN74: 0.2671856845 | BO74: 0.2244517224 | BP74: 0.2404433662 | BQ74: 0.4032885404 | BR74: 0.3108029358 | BS74: 0.347553781 | BT74: 0.2216791045 | BU74: 0.2372688575 | BV74: 0.3889104199 | BW74: 0.3028964419 | BX74: 0.333600443 | BY74: 0.2527262539 | BZ74: 0.2673146095 | CA74: 0.4121347504 | CB74: 0.3144461048 | CC74: 0.3540102785 | CD74: 0.2210743977 | CE74: 0.2378219198 | CF74: 0.403150733 | CG74: 0.3119349669 | CH74: 0.3389677645 | CJ74: Greece | CK74: 0.01155603097 | CL74: 0.07558463306 | CM74: 0.3991110478 | CN74: 0.08198635375 | CO74: 0.5682380656 | CP74: 0.005485337813 | CQ74: 0.03936246715 | CR74: 0.176711545 | CS74: 0.03566651332 | CT74: 0.2572258633 | CU74: 0.004661214564 | CV74: 0.03981925731 | CW74: 0.1802814859 | CX74: 0.0390735925 | CY74: 0.2638355503 | CZ74: 0.003831621673 | DA74: 0.03585428406 | DB74: 0.1376671181 | DC74: 0.03045635026 | DD74: 0.2078093741 | DE74: 0.004210295474 | DF74: 0.03977371779 | DG74: 0.1309118475 | DH74: 0.03080600194 | DI74: 0.2057018627 | DJ74: 0.003567257889 | DK74: 0.03408807377 | DL74: 0.1199428568 | DM74: 0.0311014051 | DN74: 0.1886995936 | DP74: 0.0508057138 | DQ74: 0.3158214519 | DR74: 1.141895636 | DS74: 0.3039622797 | DT74: 1.812485081 | DU74: 0.02687918773 | DV74: 0.1850333189 | DW74: 0.590931357 | DX74: 0.159879359 | DY74: 0.9627232226 | DZ74: 0.02076711426 | EA74: 0.1656076353 | EB74: 0.4470285362 | EC74: 0.1257182221 | ED74: 0.7591215079 | EE74: 0.01728454146 | EF74: 0.151112474 | EG74: 0.3539815624 | EH74: 0.1005503732 | EI74: 0.6229289511 | EJ74: 0.01665950968 | EK74: 0.1487899141 | EL74: 0.3176433129 | EM74: 0.09796910015 | EN74: 0.5810618368 | EO74: 0.01613600637 | EP74: 0.1433344487 | EQ74: 0.2975136767 | ER74: 0.09970477312 | ES74: 0.5566889049 | EV74: Greece | EW74: 1315 | EX74: 1233 | EY74: 1188 | EZ74: 1155 | FA74: 1131 | FB74: 1099 | FC74: 1059 | FD74: 1011 | FE74: 947 | FF74: 881 | FG74: 817 | FH74: 758 | FI74: 699 | FJ74: 643 | FK74: 603 | FL74: 569 | FM74: 554 | FN74: 554 | FO74: 565 | FP74: 570 | FQ74: 563 | FR74: 546 | FS74: 518 | FT74: 484 | FV74: Greece | GT74: 442
A75: Grenada | B75: AmrB | C75: =IF(LEFT(B75,4)="sear","Sear",LEFT(B75,3)) -> Amr | D75: 0.08853781198 | E75: 0 | F75: 0 | H75: 0.9072560997 | I75: 0 | J75: 0 | L75: 0.09758855522 | M75: - | N75: - | P75: 27 | Q75: 25 | S75: 0.03360207777 | T75: 0 | W75: 0.3643256182 | X75: 0.2346634926 | Y75: 0.189046485 | Z75: 0 | AA75: 0.1378658664 | AB75: 0.1303510582 | AC75: 0.1429887255 | AD75: 0 | AE75: 0 | AF75: 0 | AG75: 0 | AH75: 0 | AI75: 0 | AJ75: 0 | AL75: 1.086127043 | AM75: 0.7039712667 | AN75: 0.5706018806 | AO75: 0 | AP75: 0.4212962985 | AQ75: 0.4007452428 | AR75: 0.4423610568 | AS75: 0 | AT75: 0 | AU75: 0 | AV75: 0 | AW75: 0 | AX75: 0 | AY75: 0 | BA75: 0.234 | BB75: 0 | BE75: 0.1277919012 | BF75: 0.1247103602 | BG75: 0.1198162198 | BH75: 0.0890457983 | BI75: =CO75/DT75 -> 0.1116749337 | BJ75: 0.1269255317 | BK75: 0.1273361141 | BL75: 0.1267539948 | BM75: 0.08970920116 | BN75: =CT75/DY75 -> 0.1153231242 | BO75: 0.1197570905 | BP75: 0.1189869121 | BQ75: 0.1190110956 | BR75: 0.08761825261 | BS75: =CY75/ED75 -> 0.1095386955 | BT75: 0.1235556574 | BU75: 0.1231903885 | BV75: 0.1221969561 | BW75: 0.08669102389 | BX75: =DD75/EI75 -> 0.1121743774 | BY75: 0.1220947381 | BZ75: 0.1218146101 | CA75: 0.1206977262 | CB75: 0.08757014802 | CC75: =DI75/EN75 -> 0.1115934487 | CD75: 0.1113796731 | CE75: 0.1106783306 | CF75: 0.1054003202 | CG75: 0.07493034166 | CH75: =DN75/ES75 -> 0.09758855522 | CJ75: Grenada | CK75: 0.03034785627 | CL75: 0.07945073477 | CM75: 0.4690425002 | CN75: 0.173150627 | CO75: 0.7519917183 | CP75: 0.01339941409 | CQ75: 0.03894030148 | CR75: 0.2142255492 | CS75: 0.08481914068 | CT75: 0.3513844054 | CU75: 0.008088472377 | CV75: 0.02404365836 | CW75: 0.1492885987 | CX75: 0.05788451939 | CY75: 0.2393052488 | CZ75: 0.005656045347 | DA75: 0.01789308414 | DB75: 0.1121086878 | DC75: 0.03849619834 | DD75: 0.1741540157 | DE75: 0.003279542662 | DF75: 0.01208788022 | DG75: 0.0719744303 | DH75: 0.02451552633 | DI75: 0.1118573795 | DJ75: 0.002744218223 | DK75: 0.009886374422 | DL75: 0.05695685526 | DM75: 0.01895036408 | DN75: 0.08853781198 | DP75: 0.2374787134 | DQ75: 0.6370820728 | DR75: 3.914682845 | DS75: 1.944512041 | DT75: 6.733755672 | DU75: 0.1055690996 | DV75: 0.3058072077 | DW75: 1.690089132 | DX75: 0.9454898671 | DY75: 3.046955307 | DZ75: 0.06754065534 | EA75: 0.2020697733 | EB75: 1.254409078 | EC75: 0.6606445308 | ED75: 2.184664037 | EE75: 0.04577730769 | EF75: 0.1452474041 | EG75: 0.9174425572 | EH75: 0.4440621025 | EI75: 1.552529371 | EJ75: 0.02686063881 | EK75: 0.09923177693 | EL75: 0.5963196869 | EM75: 0.2799530077 | EN75: 1.00236511 | EO75: 0.02463841154 | EP75: 0.08932529401 | EQ75: 0.5403859792 | ER75: 0.2529064149 | ES75: 0.9072560997 | EV75: Grenada | EW75: 66 | EX75: 59 | EY75: 52 | EZ75: 46 | FA75: 41 | FB75: 37 | FC75: 35 | FD75: 35 | FE75: 35 | FF75: 35 | FG75: 35 | FH75: 33 | FI75: 31 | FJ75: 29 | FK75: 27 | FL75: 26 | FM75: 26 | FN75: 26 | FO75: 27 | FP75: 27 | FQ75: 27 | FR75: 27 | FS75: 26 | FT75: 25 | FV75: Grenada | GT75: 27
A76: Guatemala | B76: AmrD | C76: Amr | D76: 284.1723352 | E76: 254.0718984 | F76: 248.9999629 | H76: 1633.341678 | I76: 1085.777344 | J76: 1085.777344 | L76: 0.1739821735 | M76: =E76/I76 -> 0.234 | N76: 0.2293287517 | P76: 13305 | Q76: 14685 | S76: 0.122761494 | T76: 0.07393785112 | W76: 858.5430051 | X76: 789.4771034 | Y76: 729.4063898 | Z76: 676.5138211 | AA76: 626.9304727 | AB76: 637.5895253 | AC76: 589.0037022 | AD76: 542.5190836 | AE76: 501.563712 | AF76: 465.6818093 | AG76: 434.0185008 | AH76: 397.2832761 | AI76: 269.2673662 | AJ76: 248.9999629 | AL76: 2406.339111 | AM76: 2231.994629 | AN76: 2080.246582 | AO76: 1945.779785 | AP76: 1818.63623 | AQ76: 1865.196777 | AR76: 1737.444702 | AS76: 1613.792603 | AT76: 1503.821167 | AU76: 1407.139038 | AV76: 1321.782837 | AW76: 1219.733521 | AX76: 1161.379639 | AY76: 1085.777344 | BA76: 0.234 | BB76: 254.0718984 | BE76: 0.1795492407 | BF76: 0.1800729922 | BG76: 0.184771657 | BH76: 0.1302730974 | BI76: 0.1568479471 | BJ76: 0.1708447639 | BK76: 0.1719996081 | BL76: 0.1779346668 | BM76: 0.1270662833 | BN76: 0.150926441 | BO76: 0.1834289658 | BP76: 0.1848590452 | BQ76: 0.1949306896 | BR76: 0.142764126 | BS76: 0.1671429995 | BT76: 0.1773670976 | BU76: 0.178278021 | BV76: 0.1914130357 | BW76: 0.1411912235 | BX76: 0.1647018581 | BY76: 0.1929382455 | BZ76: 0.1937173908 | CA76: 0.2071443921 | CB76: 0.1473834453 | CC76: 0.1753599089 | CD76: 0.1953182128 | CE76: 0.1958765535 | CF76: 0.2050764414 | CG76: 0.1456795592 | CH76: 0.1739821735 | CJ76: Guatemala | CK76: 6.615567951 | CL76: 9.744188716 | CM76: 534.0602939 | CN76: 405.9118636 | CO76: 956.3319141 | CP76: 4.260829131 | CQ76: 4.688075852 | CR76: 407.0152165 | CS76: 334.7097793 | CT76: 750.6739008 | CU76: 1.856395921 | CV76: 2.386384413 | CW76: 379.5018714 | CX76: 319.1091851 | CY76: 702.8538368 | CZ76: 1.083682602 | DA76: 1.91536397 | DB76: 287.0033668 | DC76: 241.8610234 | DD76: 531.8634369 | DE76: 1.187087755 | DF76: 2.93346654 | DG76: 195.1668339 | DH76: 159.7967774 | DI76: 359.0841657 | DJ76: 1.146598707 | DK76: 3.191394137 | DL76: 155.778532 | DM76: 124.0558104 | DN76: 284.1723352 | DP76: 36.84542427 | DQ76: 54.11243851 | DR76: 2890.379956 | DS76: 3115.853324 | DT76: 6097.191143 | DU76: 24.93977008 | DV76: 27.25631706 | DW76: 2287.441923 | DX76: 2634.135277 | DY76: 4973.773288 | DZ76: 10.12051675 | EA76: 12.90921096 | EB76: 1946.855429 | EC76: 2235.219688 | ED76: 4205.104845 | EE76: 6.109828803 | EF76: 10.743691 | EG76: 1499.393006 | EH76: 1713.003241 | EI76: 3229.249766 | EJ76: 6.152682437 | EK76: 15.14302112 | EL76: 942.1777341 | EM76: 1084.224739 | EN76: 2047.698176 | EO76: 5.870413674 | EP76: 16.29288488 | EQ76: 759.6120299 | ER76: 851.5663496 | ES76: 1633.341678 | EV76: Guatemala | EW76: 26630 | EX76: 25953 | EY76: 25437 | EZ76: 24997 | FA76: 24508 | FB76: 23890 | FC76: 23179 | FD76: 22324 | FE76: 21457 | FF76: 20690 | FG76: 20056 | FH76: 19559 | FI76: 19136 | FJ76: 18813 | FK76: 18434 | FL76: 18002 | FM76: 17487 | FN76: 16890 | FO76: 16388 | FP76: 15954 | FQ76: 15574 | FR76: 15184 | FS76: 14927 | FT76: 14685 | FV76: Guatemala | GT76: 13305
A77: Guinea | B77: AfrD | C77: Afr | D77: 637.0761879 | E77: 895.3467793 | F77: 1303.199858 | H77: 2620.895792 | I77: 3340.846191 | J77: 3340.846191 | L77: 0.2430757415 | M77: 0.268 | N77: 0.3900807709 | P77: 46301 | Q77: 41706 | S77: 0.05660559797 | T77: 0.08010468977 | W77: 3396.740813 | X77: 3083.699973 | Y77: 2844.721856 | Z77: 2613.538889 | AA77: 2372.650378 | AB77: 2164.213409 | AC77: 2016.415806 | AD77: 1888.514036 | AE77: 1772.363573 | AF77: 1711.6313 | AG77: 1591.623152 | AH77: 1488.500071 | AI77: 1404.870863 | AJ77: 1303.199858 | AL77: 7436.731934 | AM77: 6846.187988 | AN77: 6403.821289 | AO77: 5964.215332 | AP77: 5485.299805 | AQ77: 5067.466797 | AR77: 4779.842773 | AS77: 4530.76123 | AT77: 4302.25293 | AU77: 4202.466309 | AV77: 3952.53833 | AW77: 3736.937012 | AX77: 3563.868408 | AY77: 3340.846191 | BA77: 0.268 | BB77: 895.3467793 | BE77: 0.2695525651 | BF77: 0.2692245005 | BG77: 0.2509691728 | BH77: 0.191084928 | BI77: 0.2251129585 | BJ77: 0.283817423 | BK77: 0.2784508114 | BL77: 0.2536229961 | BM77: 0.1866035343 | BN77: 0.2269505205 | BO77: 0.2645631873 | BP77: 0.2604566181 | BQ77: 0.244400417 | BR77: 0.1896075257 | BS77: 0.2228259979 | BT77: 0.282190094 | BU77: 0.2780103151 | BV77: 0.2542530034 | BW77: 0.1907918251 | BX77: 0.2306241452 | BY77: 0.264767989 | BZ77: 0.2644140904 | CA77: 0.2478245612 | CB77: 0.1870741877 | CC77: 0.2254181155 | CD77: 0.2934667121 | CE77: 0.2892557373 | CF77: 0.269043314 | CG77: 0.1982911916 | CH77: 0.2430757415 | CJ77: Guinea | CK77: 112.4273284 | CL77: 170.9667303 | CM77: 936.5698248 | CN77: 803.232792 | CO77: 2023.196675 | CP77: 97.14439882 | CQ77: 147.9026663 | CR77: 842.9859274 | CS77: 626.5566331 | CT77: 1714.589626 | CU77: 74.55926801 | CV77: 105.7803579 | CW77: 629.4281933 | CX77: 471.5187124 | CY77: 1281.286532 | CZ77: 51.06144761 | DA77: 65.16056406 | DB77: 411.8037444 | DC77: 281.2035207 | DD77: 809.2292768 | DE77: 34.38091949 | DF77: 45.02754347 | DG77: 334.5172111 | DH77: 204.8869239 | DI77: 618.812598 | DJ77: 32.41252237 | DK77: 42.80828682 | DL77: 355.1703453 | DM77: 206.6850335 | DN77: 637.0761879 | DP77: 417.0886979 | DQ77: 635.0340699 | DR77: 3731.812216 | DS77: 4203.538188 | DT77: 8987.473171 | DU77: 342.2777847 | DV77: 531.1626336 | DW77: 3323.775605 | DX77: 3357.688992 | DY77: 7554.905016 | DZ77: 281.8202668 | EA77: 406.1342679 | EB77: 2575.397378 | EC77: 2486.814333 | ED77: 5750.166246 | EE77: 180.9469882 | EF77: 234.3818215 | EG77: 1619.661278 | EH77: 1473.876151 | EI77: 3508.866238 | EJ77: 129.8530068 | EK77: 170.29177 | EL77: 1349.814601 | EM77: 1095.217499 | EN77: 2745.176876 | EO77: 110.447015 | EP77: 147.9945989 | EQ77: 1320.123292 | ER77: 1042.330886 | ES77: 2620.895792 | EV77: Guinea | EW77: 62553 | EX77: 64128 | EY77: 65877 | EZ77: 67469 | FA77: 68236 | FB77: 67756 | FC77: 67437 | FD77: 66182 | FE77: 64182 | FF77: 61815 | FG77: 59451 | FH77: 57307 | FI77: 55152 | FJ77: 53128 | FK77: 51445 | FL77: 50055 | FM77: 48685 | FN77: 47485 | FO77: 46426 | FP77: 45458 | FQ77: 44472 | FR77: 43542 | FS77: 42670 | FT77: 41706 | FV77: Guinea | GT77: 46301
A78: Guinea-Bissau | B78: AfrD | C78: Afr | D78: 44.89534754 | E78: 191.9534133 | F78: 289.5867878 | H78: 862.3269628 | I78: 716.2440796 | J78: 716.2440796 | L78: 0.05206302189 | M78: 0.268 | N78: 0.4043129933 | P78: 9579 | Q78: 7459 | S78: 0.09002264984 | T78: 0.09602414259 | W78: 508.7502763 | X78: 478.2626079 | Y78: 451.7396297 | Z78: 427.1694518 | AA78: 403.2010064 | AB78: 405.307094 | AC78: 406.1346591 | AD78: 381.8419038 | AE78: 368.7863386 | AF78: 381.9544221 | AG78: 351.70872 | AH78: 320.338686 | AI78: 310.1224633 | AJ78: 289.5867878 | AL78: 1098.209106 | AM78: 1042.90979 | AN78: 995.4761963 | AO78: 951.3792725 | AP78: 907.5704956 | AQ78: 922.2596436 | AR78: 933.6725464 | AS78: 886.9718628 | AT78: 865.6754761 | AU78: 905.994812 | AV78: 842.9758911 | AW78: 776.0170898 | AX78: 758.9608765 | AY78: 716.2440796 | BA78: 0.268 | BB78: 191.9534133 | BE78: 0.06848968858 | BF78: 0.06785141767 | BG78: 0.05936604444 | BH78: 0.04191744289 | BI78: 0.0518204547 | BJ78: 0.07658765264 | BK78: 0.07646919145 | BL78: 0.06731073169 | BM78: 0.04928062057 | BN78: 0.05962749964 | BO78: 0.06686167812 | BP78: 0.06489407011 | BQ78: 0.05981842533 | BR78: 0.04417824767 | BS78: 0.05308047927 | BT78: 0.05313804492 | BU78: 0.05255005921 | BV78: 0.04709355793 | BW78: 0.0340154074 | BX78: 0.04198922698 | BY78: 0.06128898942 | BZ78: 0.06095416252 | CA78: 0.05557841591 | CB78: 0.04144557632 | CC78: 0.04983203344 | CD78: 0.06407125377 | CE78: 0.06345739634 | CF78: 0.05801259932 | CG78: 0.0430488025 | CH78: 0.05206302189 | CJ78: Guinea-Bissau | CK78: 4.001942577 | CL78: 7.370512417 | CM78: 38.62937676 | CN78: 32.27637573 | CO78: 82.27820749 | CP78: 3.731951229 | CQ78: 7.034691555 | CR78: 41.07974182 | CS78: 33.64876332 | CT78: 85.49514792 | CU78: 3.0278161 | CV78: 5.112683168 | CW78: 32.37161042 | CX78: 25.81124837 | CY78: 66.32335806 | CZ78: 1.868489919 | DA78: 3.135820683 | DB78: 18.01100737 | DC78: 12.68837358 | DD78: 35.70369155 | DE78: 1.902716294 | DF78: 3.190684296 | DG78: 21.60582137 | DH78: 15.67468914 | DI78: 42.3739111 | DJ78: 1.853636156 | DK78: 3.291149408 | DL78: 23.67421195 | DM78: 16.07635002 | DN78: 44.89534754 | DP78: 58.43131513 | DQ78: 108.6272427 | DR78: 650.6981749 | DS78: 769.9986808 | DT78: 1587.755414 | DU78: 48.72784451 | DV78: 91.99380066 | DW78: 610.3000337 | DX78: 682.7990989 | DY78: 1433.820778 | DZ78: 45.28477575 | EA78: 78.7850594 | EB78: 541.1645366 | EC78: 584.2524259 | ED78: 1249.486798 | EE78: 35.16294063 | EF78: 59.67301903 | EG78: 382.4516168 | EH78: 373.0184215 | EI78: 850.305998 | EJ78: 31.04499376 | EK78: 52.34563423 | EL78: 388.7448214 | EM78: 378.1993286 | EN78: 850.334778 | EO78: 28.93085506 | EP78: 51.86392128 | EQ78: 408.0874194 | ER78: 373.4447671 | ES78: 862.3269628 | EV78: Guinea-Bissau | EW78: 9418 | EX78: 9332 | EY78: 9424 | EZ78: 9629 | FA78: 9798 | FB78: 9847 | FC78: 9809 | FD78: 9632 | FE78: 9390 | FF78: 9149 | FG78: 8977 | FH78: 8851 | FI78: 8753 | FJ78: 8677 | FK78: 8601 | FL78: 8497 | FM78: 8401 | FN78: 8269 | FO78: 8116 | FP78: 7969 | FQ78: 7843 | FR78: 7708 | FS78: 7592 | FT78: 7459 | FV78: Guinea-Bissau | GT78: 9579
A79: Guyana | B79: AmrB | C79: Amr | D79: 8.211739958 | E79: 6.535334427 | F79: 6.500817688 | H79: 46.69940253 | I79: 27.9287796 | J79: 27.9287796 | L79: 0.1758425057 | M79: 0.234 | N79: 0.2327641158 | P79: 592 | Q79: 567 | S79: 0.0788841259 | T79: 0.04925710688 | W79: 39.05518405 | X79: 41.87573306 | Y79: 30.58664503 | Z79: 27.63200289 | AA79: 14.14675186 | AB79: 28.29945807 | AC79: 32.05532912 | AD79: 16.8705121 | AE79: 18.78646006 | AF79: 18.553908 | AG79: 15.65038558 | AH79: 12.23751442 | AI79: 7.250690163 | AJ79: 6.500817688 | AL79: 109.8422699 | AM79: 118.5959625 | AN79: 87.21699524 | AO79: 79.33480835 | AP79: 40.89217758 | AQ79: 82.34357452 | AR79: 93.91112518 | AS79: 49.76576233 | AT79: 55.81350327 | AU79: 55.5388298 | AV79: 47.19519424 | AW79: 37.18623734 | AX79: 30.82444763 | AY79: 27.9287796 | BA79: 0.234 | BB79: 6.535334427 | BE79: 0.1715961399 | BF79: 0.1665079415 | BG79: 0.1763761284 | BH79: 0.1242815737 | BI79: 0.1643732148 | BJ79: 0.1588900989 | BK79: 0.1596876572 | BL79: 0.1597017447 | BM79: 0.1119360534 | BN79: 0.1500352537 | BO79: 0.1608888044 | BP79: 0.1591337351 | BQ79: 0.163284088 | BR79: 0.1152011875 | BS79: 0.1530133996 | BT79: 0.170671478 | BU79: 0.165908318 | BV79: 0.1700893154 | BW79: 0.1150128202 | BX79: 0.1590763383 | BY79: 0.176651034 | BZ79: 0.1732959085 | CA79: 0.1820345543 | CB79: 0.1278460322 | CC79: 0.1704083082 | CD79: 0.190735965 | CE79: 0.1892162462 | CF79: 0.1881977427 | CG79: 0.1306278277 | CH79: 0.1758425057 | CJ79: Guyana | CK79: 0.3369397172 | CL79: 1.354081749 | CM79: 20.69964687 | CN79: 4.46457475 | CO79: 26.85524309 | CP79: 0.1903033661 | CQ79: 0.7267141573 | CR79: 13.62929338 | CS79: 2.583959712 | CT79: 17.13027062 | CU79: 0.1349548462 | CV79: 0.4277054638 | CW79: 8.132053793 | CX79: 1.628649548 | CY79: 10.32336365 | CZ79: 0.1180314357 | DA79: 0.4066332945 | DB79: 8.403875595 | DC79: 1.484918661 | DD79: 10.41345899 | DE79: 0.09513125177 | DF79: 0.3386177917 | DG79: 6.703130735 | DH79: 1.313001302 | DI79: 8.44988108 | DJ79: 0.09376855756 | DK79: 0.3610564869 | DL79: 6.440484234 | DM79: 1.31643068 | DN79: 8.211739958 | DP79: 1.963562336 | DQ79: 8.132235241 | DR79: 117.3608189 | DS79: 35.92306259 | DT79: 163.3796791 | DU79: 1.197704372 | DV79: 4.550847384 | DW79: 85.34216961 | DX79: 23.08424885 | DY79: 114.1749702 | DZ79: 0.8388081859 | EA79: 2.687710833 | EB79: 49.80310018 | EC79: 14.13743716 | ED79: 67.46705636 | EE79: 0.691570947 | EF79: 2.450951824 | EG79: 49.4086038 | EH79: 12.91089688 | EI79: 65.46202346 | EJ79: 0.5385264361 | EK79: 1.953986073 | EL79: 36.82339741 | EM79: 10.2701764 | EN79: 49.58608632 | EO79: 0.4916144555 | EP79: 1.908168533 | EQ79: 34.22189949 | ER79: 10.07772006 | ES79: 46.69940253 | EV79: Guyana | EW79: 1185 | EX79: 1146 | EY79: 1110 | EZ79: 1078 | FA79: 1042 | FB79: 1005 | FC79: 970 | FD79: 922 | FE79: 870 | FF79: 822 | FG79: 787 | FH79: 765 | FI79: 756 | FJ79: 755 | FK79: 758 | FL79: 761 | FM79: 760 | FN79: 763 | FO79: 762 | FP79: 749 | FQ79: 724 | FR79: 675 | FS79: 620 | FT79: 567 | FV79: Guyana | GT79: 592
A80: Haiti | B80: AmrD | C80: Amr | D80: 269.3107029 | E80: 540.3218818 | F80: 799.6430782 | H80: 2400.520176 | I80: 2309.067871 | J80: 2309.067871 | L80: 0.1121884771 | M80: 0.234 | N80: 0.3463055756 | P80: 17477 | Q80: 19286 | S80: 0.1373531027 | T80: 0.1197276714 | W80: 1830.706867 | X80: 1688.758522 | Y80: 1553.653512 | Z80: 1432.466734 | AA80: 1325.669224 | AB80: 1233.466513 | AC80: 1159.816737 | AD80: 1091.928817 | AE80: 1027.132676 | AF80: 959.4745178 | AG80: 1571.664702 | AH80: 851.4520123 | AI80: 804.5824213 | AJ80: 799.6430782 | AL80: 4697.413574 | AM80: 4377.368652 | AN80: 4067.344482 | AO80: 3786.033691 | AP80: 3536.56665 | AQ80: 3320.545654 | AR80: 3149.909912 | AS80: 2991.512207 | AT80: 2838.418701 | AU80: 2674.628174 | AV80: 3794.631104 | AW80: 2414.900635 | AX80: 2302.076416 | AY80: 2309.067871 | BA80: 0.234 | BB80: 540.3218818 | BE80: 0.1170976716 | BF80: 0.1164507524 | BG80: 0.1154539918 | BH80: 0.0884654655 | BI80: 0.1059115081 | BJ80: 0.1215376262 | BK80: 0.1215767462 | BL80: 0.1177047946 | BM80: 0.08452419961 | BN80: 0.1072271075 | BO80: 0.1139874163 | BP80: 0.1134720414 | BQ80: 0.1114378675 | BR80: 0.08454390938 | BS80: 0.1031014816 | BT80: 0.1023318715 | BU80: 0.102658571 | BV80: 0.1044650979 | BW80: 0.08158394134 | BX80: 0.09687145629 | BY80: 0.1154226733 | BZ80: 0.1153758926 | CA80: 0.1155528644 | CB80: 0.08243041487 | CC80: 0.1051524351 | CD80: 0.1256383573 | CE80: 0.1246918567 | CF80: 0.1222369847 | CG80: 0.08749971378 | CH80: 0.1121884771 | CJ80: Haiti | CK80: 23.99165093 | CL80: 121.9775124 | CM80: 701.8955619 | CN80: 361.772854 | CO80: 1209.637579 | CP80: 18.00914681 | CQ80: 74.99849854 | CR80: 545.4023042 | CS80: 221.6053058 | CT80: 860.0152553 | CU80: 8.77750546 | CV80: 29.59126064 | CW80: 293.0746366 | CX80: 116.0210505 | CY80: 447.4644532 | CZ80: 6.062802365 | DA80: 22.75841703 | DB80: 223.3104256 | DC80: 95.20056291 | DD80: 347.3322079 | DE80: 5.280267977 | DF80: 24.62141149 | DG80: 216.2307176 | DH80: 80.22305499 | DI80: 326.3554521 | DJ80: 4.679429811 | DK80: 20.93993288 | DL80: 181.5737906 | DM80: 62.1175496 | DN80: 269.3107029 | DP80: 204.8858069 | DQ80: 1047.460063 | DR80: 6079.439534 | DS80: 4089.424636 | DT80: 11421.21004 | DU80: 148.1775428 | DV80: 616.8819357 | DW80: 4633.645604 | DX80: 2621.797152 | DY80: 8020.502234 | DZ80: 77.00416187 | EA80: 260.7801912 | EB80: 2629.93759 | EC80: 1372.317076 | ED80: 4340.039019 | EE80: 59.24647205 | EF80: 221.6903744 | EG80: 2137.65583 | EH80: 1166.903208 | EI80: 3585.495885 | EJ80: 45.74723341 | EK80: 213.4016988 | EL80: 1871.270944 | EM80: 973.2215363 | EN80: 3103.641412 | EO80: 37.24523236 | EP80: 167.9334436 | EQ80: 1485.424325 | ER80: 709.9171749 | ES80: 2400.520176 | EV80: Haiti | EW80: 36591 | EX80: 35506 | EY80: 34722 | EZ80: 34117 | FA80: 33485 | FB80: 32729 | FC80: 31893 | FD80: 30976 | FE80: 29967 | FF80: 28976 | FG80: 27948 | FH80: 26992 | FI80: 26016 | FJ80: 25092 | FK80: 24248 | FL80: 23520 | FM80: 22916 | FN80: 22391 | FO80: 21923 | FP80: 21454 | FQ80: 48464 | FR80: 20468 | FS80: 19915 | FT80: 19286 | FV80: Haiti | GT80: 17477
A81: Honduras | B81: AmrB | C81: Amr | D81: 81.39397741 | E81: 67.25756854 | F81: 64.3632864 | H81: 433.2431687 | I81: 287.4255066 | J81: 287.4255066 | L81: 0.1878713464 | M81: 0.234 | N81: 0.2239303226 | P81: 4802 | Q81: 4613 | S81: 0.09022140122 | T81: 0.06230771875 | W81: 222.8551157 | X81: 199.9477149 | Y81: 188.1257471 | Z81: 182.1991678 | AA81: 164.4435963 | AB81: 143.5681181 | AC81: 139.4681821 | AD81: 128.75635 | AE81: 111.1200165 | AF81: 98.90226669 | AG81: 96.65132729 | AH81: 68.49219269 | AI81: 67.33700218 | AJ81: 64.3632864 | AL81: 638.3417969 | AM81: 577.4056396 | AN81: 547.7415771 | AO81: 534.8921509 | AP81: 486.6401367 | AQ81: 428.2151489 | AR81: 419.2945862 | AS81: 390.1212463 | AT81: 339.3465271 | AU81: 304.3798523 | AV81: 299.7226562 | AW81: 299.5192871 | AX81: 297.5973511 | AY81: 287.4255066 | BA81: 0.234 | BB81: 67.25756854 | BE81: 0.2202582568 | BF81: 0.2191513756 | BG81: 0.2216043438 | BH81: 0.158832309 | BI81: 0.200516269 | BJ81: 0.248766038 | BK81: 0.2533701051 | BL81: 0.2479990733 | BM81: 0.1744522635 | BN81: 0.2236921304 | BO81: 0.2669929979 | BP81: 0.2659233575 | BQ81: 0.2661397119 | BR81: 0.2026748097 | BS81: 0.2447763668 | BT81: 0.2152523799 | BU81: 0.2205403392 | BV81: 0.2235054019 | BW81: 0.1669623645 | BX81: 0.2030615431 | BY81: 0.2570800326 | BZ81: 0.2608092733 | CA81: 0.2571765886 | CB81: 0.1793792977 | CC81: 0.2295044461 | CD81: 0.2048608102 | CE81: 0.2091249213 | CF81: 0.2088406864 | CG81: 0.152184082 | CH81: 0.1878713464 | CJ81: Honduras | CK81: 24.91836161 | CL81: 46.95944447 | CM81: 316.4876437 | CN81: 138.4842776 | CO81: 526.8497273 | CP81: 19.58161126 | CQ81: 34.23201956 | CR81: 246.3199397 | CS81: 106.732744 | CT81: 406.8663145 | CU81: 13.08746884 | CV81: 21.56484995 | CW81: 167.1985204 | CX81: 78.10699322 | CY81: 279.9578324 | CZ81: 7.049559015 | DA81: 11.78767358 | DB81: 89.56633849 | DC81: 44.05889364 | DD81: 152.4624647 | DE81: 5.849672271 | DF81: 10.02221367 | DG81: 73.0175127 | DH81: 34.66650822 | DI81: 123.5559069 | DJ81: 3.834647579 | DK81: 6.838848611 | DL81: 46.49306962 | DM81: 24.2274116 | DN81: 81.39397741 | DP81: 113.1324744 | DQ81: 214.278575 | DR81: 1428.165343 | DS81: 871.8898469 | DT81: 2627.46624 | DU81: 78.71497017 | DV81: 135.106782 | DW81: 993.2292749 | DX81: 611.816332 | DY81: 1818.867359 | DZ81: 49.01802271 | EA81: 81.09423013 | EB81: 628.2358963 | EC81: 385.3808638 | ED81: 1143.729013 | EE81: 32.75020242 | EF81: 53.44905888 | EG81: 400.7345583 | EH81: 263.8851802 | EI81: 750.8189998 | EJ81: 22.75428477 | EK81: 38.42736703 | EL81: 283.9197499 | EM81: 193.2581332 | EN81: 538.3595349 | EO81: 18.7183072 | EP81: 32.70221726 | EQ81: 222.6245778 | ER81: 159.1980664 | ES81: 433.2431687 | EV81: Honduras | EW81: 10762 | EX81: 10476 | EY81: 10222 | EZ81: 9977 | FA81: 9695 | FB81: 9361 | FC81: 9014 | FD81: 8605 | FE81: 8186 | FF81: 7771 | FG81: 7399 | FH81: 7067 | FI81: 6759 | FJ81: 6469 | FK81: 6227 | FL81: 6009 | FM81: 5783 | FN81: 5581 | FO81: 5381 | FP81: 5204 | FQ81: 5046 | FR81: 4885 | FS81: 4742 | FT81: 4613 | FV81: Honduras | GT81: 4802
A82: Hungary | B82: EurC | C82: Eur | D82: 0.7483428461 | E82: 0.6296030016 | F82: 0.9580057438 | H82: 3.887317421 | I82: 2.43089962 | J82: 2.43089962 | L82: 0.1925088088 | M82: 0.259 | N82: 0.3940951473 | P82: 503 | Q82: 596 | S82: 0.007728265251 | T82: 0.004078690638 | W82: 0.4219508073 | X82: 0.9185723035 | Y82: 1.615486258 | Z82: 0.4688542795 | AA82: 1.010623732 | AB82: 0.8959479671 | AC82: 0.4746158149 | AD82: 0.4900137189 | AE82: 1.580063606 | AF82: 0.5916920711 | AG82: 0 | AH82: 1.45189414 | AI82: 0.962646524 | AJ82: 0.9580057438 | AL82: 1.001641035 | AM82: 2.192389011 | AN82: 3.876237869 | AO82: 1.130993724 | AP82: 2.451007843 | AQ82: 2.183977842 | AR82: 1.162864685 | AS82: 1.206780195 | AT82: 3.91091609 | AU82: 1.47193706 | AV82: 0 | AW82: 3.648161173 | AX82: 2.43089962 | AY82: 2.43089962 | BA82: 0.259 | BB82: 0.6296030016 | BE82: 0.1513484921 | BF82: 0.157636445 | BG82: 0.2221926361 | BH82: 0.1580122 | BI82: 0.1950070813 | BJ82: 0.1599613067 | BK82: 0.1659948518 | BL82: 0.2285415307 | BM82: 0.1604896095 | BN82: 0.2029623516 | BO82: 0.1605597403 | BP82: 0.1669604041 | BQ82: 0.2280433471 | BR82: 0.1560066238 | BS82: 0.2026352223 | BT82: 0.1605427494 | BU82: 0.1672562261 | BV82: 0.2410593677 | BW82: 0.1654662302 | BX82: 0.2083961947 | BY82: 0.1676136944 | BZ82: 0.1727370391 | CA82: 0.2300328243 | CB82: 0.1549434975 | CC82: 0.1979642891 | CD82: 0.1581613174 | CE82: 0.1622891333 | CF82: 0.2245091991 | CG82: 0.1532948806 | CH82: 0.1925088088 | CJ82: Hungary | CK82: 0.07232411359 | CL82: 0.2418223215 | CM82: 0.9585537222 | CN82: 0.1669562495 | CO82: 1.439656407 | CP82: 0.04765372967 | CQ82: 0.1883018247 | CR82: 0.7855170054 | CS82: 0.1253460397 | CT82: 1.146818599 | CU82: 0.04186982894 | CV82: 0.1731567993 | CW82: 0.7383474902 | CX82: 0.1147389359 | CY82: 1.068113054 | CZ82: 0.04019845715 | DA82: 0.1751737495 | DB82: 0.6263945186 | DC82: 0.114882075 | DD82: 0.9566488002 | DE82: 0.04344314938 | DF82: 0.1836796489 | DG82: 0.4824838777 | DH82: 0.117305964 | DI82: 0.8269126399 | DJ82: 0.03385981515 | DK82: 0.1508505517 | DL82: 0.4509295252 | DM82: 0.1127029541 | DN82: 0.7483428461 | DP82: 0.4778647781 | DQ82: 1.534050844 | DR82: 4.314066114 | DS82: 1.056603538 | DT82: 7.382585274 | DU82: 0.2979078545 | DV82: 1.134383522 | DW82: 3.437086481 | DX82: 0.7810227721 | DY82: 5.650400629 | DZ82: 0.2607741446 | EA82: 1.037112962 | EB82: 3.237750627 | EC82: 0.735474771 | ED82: 5.271112505 | EE82: 0.2503909849 | EF82: 1.04733769 | EG82: 2.598507267 | EH82: 0.6942931788 | EI82: 4.59052912 | EJ82: 0.2591861574 | EK82: 1.063348369 | EL82: 2.097456653 | EM82: 0.7570886537 | EN82: 4.177079834 | EO82: 0.2140840485 | EP82: 0.929517267 | EQ82: 2.008512466 | ER82: 0.7352036394 | ES82: 3.887317421 | EV82: Hungary | EW82: 2813 | EX82: 2738 | EY82: 2470 | EZ82: 2140 | FA82: 1828 | FB82: 1573 | FC82: 1390 | FD82: 1250 | FE82: 1142 | FF82: 1052 | FG82: 988 | FH82: 928 | FI82: 902 | FJ82: 885 | FK82: 862 | FL82: 845 | FM82: 813 | FN82: 769 | FO82: 728 | FP82: 687 | FQ82: 650 | FR82: 627 | FS82: 606 | FT82: 596 | FV82: Hungary | GT82: 503
A83: Iceland | B83: EurA | C83: Eur | D83: 0.001065313134 | E83: 0 | F83: 0 | H83: 0.007048034217 | I83: 0 | J83: 0 | L83: 0.151150392 | M83: - | N83: - | P83: 12 | Q83: 10 | S83: 0.0005873361848 | T83: 0 | W83: 0 | X83: 0 | Y83: 0 | Z83: 0 | AA83: 0 | AB83: 0 | AC83: 0 | AD83: 0 | AE83: 0 | AF83: 0 | AG83: 0 | AH83: 0 | AI83: 0 | AJ83: 0 | AL83: 0 | AM83: 0 | AN83: 0 | AO83: 0 | AP83: 0 | AQ83: 0 | AR83: 0 | AS83: 0 | AT83: 0 | AU83: 0 | AV83: 0 | AW83: 0 | AX83: 0 | AY83: 0 | BA83: 0.259 | BB83: 0 | BE83: 0.1266016378 | BF83: 0.1293736696 | BG83: 0.1724664672 | BH83: 0.1261175941 | BI83: 0.1290977599 | BJ83: 0.124238167 | BK83: 0.1277415648 | BL83: 0.1727745084 | BM83: 0.1268378008 | BN83: 0.129300324 | BO83: 0.1365474195 | BP83: 0.1393097045 | BQ83: 0.1631930703 | BR83: 0.1245353292 | BS83: 0.1287936708 | BT83: 0.1368962726 | BU83: 0.143891151 | BV83: 0.1995621785 | BW83: 0.1613468404 | BX83: 0.1608296261 | BY83: 0.1481325345 | BZ83: 0.151219942 | CA83: 0.1897793224 | CB83: 0.1411441042 | CC83: 0.1491839493 | CD83: 0.1634346202 | CE83: 0.1659035787 | CF83: 0.1839993419 | CG83: 0.1370341849 | CH83: 0.151150392 | CJ83: Iceland | CK83: 6.221929913e-05 | CL83: 0.0002517658606 | CM83: 0.0001385619731 | CN83: 0.001445329623 | CO83: 0.001897876756 | CP83: 6.703209351e-05 | CQ83: 0.0002634215296 | CR83: 0.0001682689676 | CS83: 0.001874597871 | CT83: 0.002373320462 | CU83: 5.38538322e-05 | CV83: 0.0002377459665 | CW83: 0.0001320790642 | CX83: 0.001428491303 | CY83: 0.001852170166 | CZ83: 4.720430936e-05 | DA83: 0.0002299273928 | DB83: 0.0001604064394 | DC83: 0.001305891702 | DD83: 0.001743429844 | DE83: 4.898633857e-05 | DF83: 0.0002257609338 | DG83: 0.0002165011581 | DH83: 0.0008602810734 | DI83: 0.001351529504 | DJ83: 4.575356189e-05 | DK83: 0.0002064719899 | DL83: 0.0002200692704 | DM83: 0.0005930183122 | DN83: 0.001065313134 | DP83: 0.0004914573002 | DQ83: 0.001946036326 | DR83: 0.0008034139933 | DS83: 0.0114601744 | DT83: 0.01470108202 | DU83: 0.0005395450943 | DV83: 0.002062144221 | DW83: 0.0009739224215 | DX83: 0.01477948892 | DY83: 0.01835510065 | DZ83: 0.0003943965576 | EA83: 0.001706600178 | EB83: 0.0008093423571 | EC83: 0.01147057074 | ED83: 0.01438090983 | EE83: 0.0003448180762 | EF83: 0.001597925871 | EG83: 0.0008037917835 | EH83: 0.008093692441 | EI83: 0.01084022817 | EJ83: 0.0003306926377 | EK83: 0.001492930964 | EL83: 0.00114080478 | EM83: 0.006095054965 | EN83: 0.009059483347 | EO83: 0.0002799502445 | EP83: 0.001244530055 | EQ83: 0.001196032921 | ER83: 0.004327520997 | ES83: 0.007048034217 | EV83: Iceland | EW83: 28 | EX83: 27 | EY83: 27 | EZ83: 26 | FA83: 26 | FB83: 24 | FC83: 23 | FD83: 21 | FE83: 19 | FF83: 17 | FG83: 16 | FH83: 15 | FI83: 14 | FJ83: 14 | FK83: 14 | FL83: 13 | FM83: 13 | FN83: 13 | FO83: 13 | FP83: 12 | FQ83: 12 | FR83: 11 | FS83: 11 | FT83: 10 | FV83: Iceland | GT83: 12
A84: India | B84: SearD | C84: Sear | D84: 21205.01581 | E84: 35814.90539 | F84: 47081.64011 | H84: 80188.01274 | I84: 140450.6094 | J84: 140450.6094 | L84: 0.2644412187 | M84: =E84/I84 -> 0.255 | N84: =F84/J84 -> 0.3352184822 | P84: 1249673 | Q84: 1340055 | S84: 0.06416719633 | T84: 0.1048095857 | W84: 135762.5444 | X84: 126476.4491 | Y84: 115589.3561 | Z84: 107969.0467 | AA84: 101085.8372 | AB84: 95500.64485 | AC84: 85787.28348 | AD84: 76781.82243 | AE84: 70355.4696 | AF84: 63091.77141 | AG84: 58305.44648 | AH84: 53834.79028 | AI84: 50154.37279 | AJ84: 47081.64011 | AL84: 354476 | AM84: 333710.7812 | AN84: 308183.4688 | AO84: 290869.1562 | AP84: 275200.2812 | AQ84: 262720.5625 | AR84: 238458.9062 | AS84: 215600.3438 | AT84: 199590.8281 | AU84: 180845.1719 | AV84: 168821.375 | AW84: 157474.4688 | AX84: 148176.5312 | AY84: 140450.6094 | BA84: 0.255 | BB84: 35814.90539 | BE84: 0.2228706743 | BF84: 0.2290043923 | BG84: 0.2924637213 | BH84: 0.2314968293 | BI84: 0.2564868362 | BJ84: 0.1601187238 | BK84: 0.1614174087 | BL84: 0.1760567891 | BM84: 0.1392316677 | BN84: 0.1554979912 | BO84: 0.1657388417 | BP84: 0.1691409083 | BQ84: 0.1986199869 | BR84: 0.1651945918 | BS84: 0.1805946266 | BT84: 0.1653422081 | BU84: 0.1679745815 | BV84: 0.1969177059 | BW84: 0.1638767089 | BX84: 0.1804204501 | BY84: 0.2185983893 | BZ84: 0.2268591877 | CA84: 0.2883655075 | CB84: 0.2324778073 | CC84: 0.2597125147 | CD84: 0.22009708 | CE84: 0.2291641972 | CF84: 0.2937709085 | CG84: 0.2359900949 | CH84: 0.2644412187 | CJ84: India | CK84: 1020.061595 | CL84: 3132.251127 | CM84: 43256.13069 | CN84: 44384.74069 | CO84: 91793.1841 | CP84: 568.5118968 | CQ84: 1578.098199 | CR84: 17386.33623 | CS84: 18013.85167 | CT84: 37546.79799 | CU84: 718.0643509 | CV84: 1956.871751 | CW84: 19356.27125 | CX84: 16731.42253 | CY84: 38762.62989 | CZ84: 737.1051911 | DA84: 1968.876991 | DB84: 17320.84551 | DC84: 12263.1544 | DD84: 32289.98209 | DE84: 639.830766 | DF84: 1540.137827 | DG84: 15639.44546 | DH84: 10333.86802 | DI84: 28153.28207 | DJ84: 499.3462629 | DK84: 1111.43484 | DL84: 11950.9981 | DM84: 7643.236609 | DN84: 21205.01581 | DP84: 4576.921563 | DQ84: 13677.69018 | DR84: 147902.5518 | DS84: 191729.3676 | DT84: 357886.5312 | DU84: 3550.564751 | DV84: 9776.505595 | DW84: 98754.13674 | DX84: 129380.4201 | DY84: 241461.6272 | DZ84: 4332.504944 | EA84: 11569.47643 | EB84: 97453.79385 | EC84: 101283.1131 | ED84: 214638.8883 | EE84: 4458.058226 | EF84: 11721.27934 | EG84: 87959.81766 | EH84: 74831.58822 | EI84: 178970.7434 | EJ84: 2926.969261 | EK84: 6788.959457 | EL84: 54234.79942 | EM84: 44450.98712 | EN84: 108401.7153 | EO84: 2268.754601 | EP84: 4849.949748 | EQ84: 40681.35324 | ER84: 32387.95515 | ES84: 80188.01274 | EV84: India | EW84: 3333151 | EX84: 3250953 | EY84: 3156708 | EZ84: 3057067 | FA84: 2954725 | FB84: 2860874 | FC84: 2766342 | FD84: 2675759 | FE84: 2588008 | FF84: 2498554 | FG84: 2411559 | FH84: 2326246 | FI84: 2243026 | FJ84: 2159345 | FK84: 2069124 | FL84: 1973955 | FM84: 1874936 | FN84: 1772868 | FO84: 1669630 | FP84: 1574013 | FQ84: 1496114 | FR84: 1430154 | FS84: 1380468 | FT84: 1340055 | FV84: India | GT84: 1249673
A85: Indonesia | B85: SearB | C85: Sear | D85: 3175.617688 | E85: 1913.860913 | F85: 3770.711755 | H85: 8693.504639 | I85: 7505.336914 | J85: 7505.336914 | L85: 0.3652862476 | M85: 0.255 | N85: 0.5024040624 | P85: 148807 | Q85: 136371 | S85: 0.058421342 | T85: 0.05503616542 | W85: 12368.51511 | X85: 11245.47545 | Y85: 10242.86963 | Z85: 9400.17579 | AA85: 8662.657202 | AB85: 7970.71317 | AC85: 7448.06965 | AD85: 7058.328839 | AE85: 6568.598649 | AF85: 6047.478505 | AG85: 5510.942494 | AH85: 4915.317775 | AI85: 4311.190584 | AJ85: 3770.711755 | AL85: 22883.97852 | AM85: 20934.74805 | AN85: 19184.66406 | AO85: 17710.3418 | AP85: 16417.98438 | AQ85: 15193.33984 | AR85: 14277.44238 | AS85: 13605.72656 | AT85: 12731.27344 | AU85: 11785.86719 | AV85: 10798.46875 | AW85: 9682.717773 | AX85: 8537.214844 | AY85: 7505.336914 | BA85: 0.255 | BB85: 1913.860913 | BE85: 0.3399494093 | BF85: 0.3462729733 | BG85: 0.4194328291 | BH85: 0.3012511802 | BI85: 0.365539993 | BJ85: 0.3642518791 | BK85: 0.3691525372 | BL85: 0.4112101887 | BM85: 0.2801441025 | BN85: 0.3579371642 | BO85: 0.3564119652 | BP85: 0.3615604159 | BQ85: 0.4076287043 | BR85: 0.2758269483 | BS85: 0.3575552646 | BT85: 0.3681672399 | BU85: 0.3713174539 | BV85: 0.4094998191 | BW85: 0.2699031193 | BX85: 0.3592044754 | BY85: 0.3546584782 | BZ85: 0.3593969887 | CA85: 0.4038496679 | CB85: 0.2734330288 | CC85: 0.3537154932 | CD85: 0.3709363075 | CE85: 0.375393307 | CF85: 0.4189508279 | CG85: 0.2790602611 | CH85: 0.3652862476 | CJ85: Indonesia | CK85: 208.2212058 | CL85: 710.3321682 | CM85: 9044.426287 | CN85: 5186.912695 | CO85: 15149.89236 | CP85: 120.3256009 | CQ85: 368.8473638 | CR85: 4842.469808 | CS85: 2307.047717 | CT85: 7638.69049 | CU85: 89.5184366 | CV85: 244.0062058 | CW85: 3702.038702 | CX85: 1542.938908 | CY85: 5578.502252 | CZ85: 98.96515052 | DA85: 246.0227302 | DB85: 3595.977365 | DC85: 1366.414095 | DD85: 5307.379341 | DE85: 89.11270686 | DF85: 197.4667694 | DG85: 2814.255682 | DH85: 1201.332088 | DI85: 4302.167246 | DJ85: 76.78551728 | DK85: 156.3860086 | DL85: 2067.808901 | DM85: 874.6372611 | DN85: 3175.617688 | DP85: 612.5064496 | DQ85: 2051.364741 | DR85: 21563.46776 | DS85: 17217.9 | DT85: 41445.23895 | DU85: 330.3362529 | DV85: 999.1733138 | DW85: 11776.14257 | DX85: 8235.217864 | DY85: 21340.87 | DZ85: 251.1656323 | EA85: 674.8698007 | EB85: 9081.889139 | EC85: 5593.865708 | ED85: 15601.79028 | EE85: 268.8048794 | EF85: 662.5671043 | EG85: 8781.389388 | EH85: 5062.609496 | EI85: 14775.37087 | EJ85: 251.2634332 | EK85: 549.4391317 | EL85: 6968.57248 | EM85: 4393.514905 | EN85: 12162.78995 | EO85: 207.0045874 | EP85: 416.5924264 | EQ85: 4935.684007 | ER85: 3134.223618 | ES85: 8693.504639 | EV85: Indonesia | EW85: 387165 | EX85: 367468 | EY85: 350770 | EZ85: 335679 | FA85: 320414 | FB85: 304440 | FC85: 287959 | FD85: 270550 | FE85: 253863 | FF85: 238513 | FG85: 226754 | FH85: 218021 | FI85: 210875 | FJ85: 205456 | FK85: 200361 | FL85: 196101 | FM85: 192844 | FN85: 190013 | FO85: 186580 | FP85: 180802 | FQ85: 172553 | FR85: 161702 | FS85: 149098 | FT85: 136371 | FV85: Indonesia | GT85: 148807
A86: Iran | B86: EmrB | C86: Emr | D86: 263.2680041 | E86: 267.8110262 | F86: 267.9781685 | H86: 646.8019725 | I86: 855.6262817 | J86: 855.6262817 | L86: 0.4070303049 | M86: 0.313 | N86: 0.313195345 | P86: 27378 | Q86: 24738 | S86: 0.02362488029 | T86: 0.03458752857 | W86: 1183.192374 | X86: 1020.962036 | Y86: 868.4237464 | Z86: 744.6670866 | AA86: 649.2336304 | AB86: 571.4364957 | AC86: 519.7221778 | AD86: 471.4836592 | AE86: 428.6174477 | AF86: 390.353696 | AG86: 356.8954429 | AH86: 328.9374508 | AI86: 298.7217258 | AJ86: 267.9781685 | AL86: 3397.908447 | AM86: 2957.607178 | AN86: 2537.875244 | AO86: 2195.146729 | AP86: 1930.302734 | AQ86: 1713.409302 | AR86: 1571.389404 | AS86: 1437.57019 | AT86: 1317.516235 | AU86: 1209.734741 | AV86: 1114.546265 | AW86: 1034.993164 | AX86: 946.9025879 | AY86: 855.6262817 | BA86: 0.313 | BB86: 267.8110262 | BE86: 0.3459670254 | BF86: 0.3521985217 | BG86: 0.4000956476 | BH86: 0.2799464489 | BI86: 0.362970914 | BJ86: 0.3758709278 | BK86: 0.3793052979 | BL86: 0.4358842281 | BM86: 0.3118585674 | BN86: 0.397927434 | BO86: 0.327086893 | BP86: 0.3378243763 | BQ86: 0.4275079608 | BR86: 0.3127554058 | BS86: 0.392763663 | BT86: 0.4411331929 | BU86: 0.4497716577 | BV86: 0.5011367162 | BW86: 0.3553267736 | BX86: 0.4709075014 | BY86: 0.4052080909 | BZ86: 0.412792456 | CA86: 0.4806963227 | CB86: 0.3430512837 | CC86: 0.4478197949 | CD86: 0.3740721109 | CE86: 0.3800569357 | CF86: 0.4382842717 | CG86: 0.318150805 | CH86: 0.4070303049 | CJ86: Iran | CK86: 86.62920035 | CL86: 259.4392155 | CM86: 2791.358733 | CN86: 832.2284755 | CO86: 3969.655624 | CP86: 50.92661507 | CQ86: 127.5060585 | CR86: 1384.924696 | CS86: 403.4642906 | CT86: 1966.82166 | CU86: 22.28816284 | CV86: 44.84637626 | CW86: 623.0957031 | CX86: 151.9502785 | CY86: 842.1805208 | CZ86: 20.56204801 | DA86: 35.19067497 | DB86: 537.8778767 | DC86: 90.39581265 | DD86: 684.0264123 | DE86: 13.99183661 | DF86: 24.25914393 | DG86: 299.2020183 | DH86: 55.44695781 | DI86: 392.8999567 | DJ86: 9.708383168 | DK86: 19.54362158 | DL86: 192.8231167 | DM86: 41.19288261 | DN86: 263.2680041 | DP86: 250.3972748 | DQ86: 736.627781 | DR86: 6976.728562 | DS86: 2972.813118 | DT86: 10936.56674 | DU86: 135.4896357 | DV86: 336.1568089 | DW86: 3177.276457 | DX86: 1293.741243 | DY86: 4942.664144 | DZ86: 68.14141231 | EA86: 132.7505633 | EB86: 1457.506667 | EC86: 485.8438119 | ED86: 2144.242455 | EE86: 46.61188126 | EF86: 78.24120166 | EG86: 1073.315643 | EH86: 254.4019178 | EI86: 1452.570643 | EJ86: 34.53000303 | EK86: 58.76838005 | EL86: 622.4345896 | EM86: 161.6287723 | EN86: 877.361745 | EO86: 25.95323972 | EP86: 51.42287837 | EQ86: 439.9498891 | ER86: 129.4759654 | ES86: 646.8019725 | EV86: Iran | EW86: 107272 | EX86: 97727 | EY86: 87954 | EZ86: 78706 | FA86: 70732 | FB86: 64256 | FC86: 58625 | FD86: 54318 | FE86: 50746 | FF86: 47511 | FG86: 44250 | FH86: 41078 | FI86: 38003 | FJ86: 35269 | FK86: 33075 | FL86: 31498 | FM86: 30646 | FN86: 29964 | FO86: 29473 | FP86: 28731 | FQ86: 28002 | FR86: 27077 | FS86: 25951 | FT86: 24738 | FV86: Iran | GT86: 27378
A87: Iraq | B87: EmrD | C87: Emr | D87: 398.1275434 | E87: 698.2708289 | F87: 994.0327795 | H87: 1616.314953 | I87: 2230.897217 | J87: 2230.897217 | L87: =D87/H87 -> 0.2463180476 | M87: 0.313 | N87: 0.4455753371 | P87: 29942 | Q87: 34963 | S87: 0.05398152938 | T87: 0.06380737399 | W87: 1616.146962 | X87: 1576.610557 | Y87: 1529.41137 | Z87: 1481.508531 | AA87: 1433.857831 | AB87: 1374.621021 | AC87: 1329.922367 | AD87: 1269.203855 | AE87: 1198.660926 | AF87: 1134.66596 | AG87: 1085.756007 | AH87: 1021.369243 | AI87: 1018.615314 | AJ87: 994.0327795 | AL87: 3394.455811 | AM87: 3327.760742 | AN87: 3244.149902 | AO87: 3157.79248 | AP87: 3071.166016 | AQ87: 2959.108887 | AR87: 2876.990234 | AS87: 2759.599609 | AT87: 2619.919189 | AU87: 2492.786377 | AV87: 2397.977295 | AW87: 2267.793945 | AX87: 2273.509521 | AY87: 2230.897217 | BA87: 0.313 | BB87: 698.2708289 | BE87: 0.2837016483 | BF87: 0.2773502861 | BG87: 0.2594913839 | BH87: 0.1874353062 | BI87: 0.2469975435 | BJ87: 0.2870680025 | BK87: 0.2890756407 | BL87: 0.3155568485 | BM87: 0.2243686352 | BN87: 0.291880125 | BO87: 0.2879410949 | BP87: 0.2880496208 | BQ87: 0.2965997776 | BR87: 0.207415017 | BS87: 0.2779186869 | BT87: 0.2661875992 | BU87: 0.2703792953 | BV87: 0.2946945074 | BW87: 0.2142805182 | BX87: 0.2733974448 | BY87: 0.2921807884 | BZ87: 0.2875681551 | CA87: 0.281772823 | CB87: 0.1908150424 | CC87: 0.2641216508 | CD87: 0.2632888895 | CE87: 0.2615103104 | CF87: 0.2629544949 | CG87: 0.185614534 | CH87: 0.2463180476 | CJ87: Iraq | CK87: 82.14147937 | CL87: 106.7153716 | CM87: 636.5290733 | CN87: 166.6371135 | CO87: 992.0230378 | CP87: 102.1449009 | CQ87: 127.4843661 | CR87: 845.4899929 | CS87: 201.031267 | CT87: 1276.150527 | CU87: 93.6491578 | CV87: 103.7352342 | CW87: 675.7619428 | CX87: 145.5372051 | CY87: 1018.68354 | CZ87: 72.88139036 | DA87: 78.15866658 | DB87: 543.184186 | DC87: 131.9694785 | DD87: 826.1937215 | DE87: 55.59769215 | DF87: 56.68384677 | DG87: 337.3443967 | DH87: 80.93483749 | DI87: 530.5607731 | DJ87: 43.6320105 | DK87: 43.77418383 | DL87: 246.6336332 | DM87: 64.08771586 | DN87: 398.1275434 | DP87: 289.5347273 | DQ87: 384.7674835 | DR87: 2452.987316 | DS87: 889.0380202 | DT87: 4016.327547 | DU87: 355.8212689 | DV87: 441.0069483 | DW87: 2679.358717 | DX87: 895.9864949 | DY87: 4372.173429 | DZ87: 325.2372081 | EA87: 360.1297372 | EB87: 2278.362945 | EC87: 701.6714956 | ED87: 3665.401386 | EE87: 273.7970911 | EF87: 289.0704574 | EG87: 1843.211096 | EH87: 615.8725004 | EI87: 3021.951145 | EJ87: 190.2852424 | EK87: 197.114478 | EL87: 1197.221198 | EM87: 424.1533396 | EN87: 2008.774258 | EO87: 165.7191482 | EP87: 167.3898967 | EQ87: 937.9327524 | ER87: 345.2731554 | ES87: 1616.314953 | EV87: Iraq | EW87: 34913 | EX87: 34843 | EY87: 34726 | EZ87: 34689 | FA87: 34824 | FB87: 35051 | FC87: 35476 | FD87: 36040 | FE87: 36570 | FF87: 37007 | FG87: 37344 | FH87: 37593 | FI87: 37653 | FJ87: 37656 | FK87: 37561 | FL87: 37317 | FM87: 37193 | FN87: 36916 | FO87: 36531 | FP87: 36277 | FQ87: 35996 | FR87: 35599 | FS87: 35373 | FT87: 34963 | FV87: Iraq | GT87: 29942
A88: Ireland | B88: EurA | C88: Eur | D88: 0.5705106348 | E88: 0.159001846 | F88: 0.241071474 | H88: 2.308105992 | I88: 0.6139067411 | J88: 0.6139067411 | L88: 0.2471769653 | M88: 0.259 | N88: 0.3926841942 | P88: 325 | Q88: 275 | S88: 0.00710186459 | T88: 0.00223238815 | W88: 0 | X88: 0 | Y88: 0.5825790862 | Z88: 0.6933691831 | AA88: 0 | AB88: 0 | AC88: 0 | AD88: 0 | AE88: 0.559773636 | AF88: 0.4603815629 | AG88: 0 | AH88: 0.2839382062 | AI88: 0.2622452372 | AJ88: 0.241071474 | AL88: 0 | AM88: 0 | AN88: 1.40488565 | AO88: 1.68053782 | AP88: 0 | AQ88: 0 | AR88: 0 | AS88: 0 | AT88: 1.391447186 | AU88: 1.149841666 | AV88: 0 | AW88: 0.7159873247 | AX88: 0.6645963192 | AY88: 0.6139067411 | BA88: 0.259 | BB88: 0.159001846 | BE88: 0.2158917957 | BF88: 0.2180339517 | BG88: 0.2361419491 | BH88: 0.1718952975 | BI88: 0.2173157505 | BJ88: 0.2381896464 | BK88: 0.2454371345 | BL88: 0.2709108411 | BM88: 0.1981023379 | BN88: 0.2491770939 | BO88: 0.1958227148 | BP88: 0.2017385503 | BQ88: 0.2254974634 | BR88: 0.1714205531 | BS88: 0.2092604437 | BT88: 0.2072284975 | BU88: 0.2059347262 | BV88: 0.2251632264 | BW88: 0.1671150748 | BX88: 0.2072720797 | BY88: 0.1967312483 | BZ88: 0.1929187139 | CA88: 0.2068953403 | CB88: 0.1594362788 | CC88: 0.1921859309 | CD88: 0.2321619617 | CE88: 0.2369753097 | CF88: 0.2715562819 | CG88: 0.2033026523 | CH88: 0.2471769653 | CJ88: Ireland | CK88: 0.01085247792 | CL88: 0.02433833248 | CM88: 0.264901495 | CN88: 0.07995820921 | CO88: 0.3800505146 | CP88: 0.01043098722 | CQ88: 0.02580760911 | CR88: 0.2493400443 | CS88: 0.07419442121 | CT88: 0.3597730619 | CU88: 0.01368765914 | CV88: 0.03259905651 | CW88: 0.3019412921 | CX88: 0.08873051712 | CY88: 0.4369585249 | CZ88: 0.01448291252 | DA88: 0.03707736588 | DB88: 0.2618642062 | DC88: 0.08557597952 | DD88: 0.3990004641 | DE88: 0.01685575325 | DF88: 0.04445187869 | DG88: 0.29429903 | DH88: 0.1045802964 | DI88: 0.4601869583 | DJ88: 0.01935364149 | DK88: 0.05310107242 | DL88: 0.3633108764 | DM88: 0.1347450445 | DN88: 0.5705106348 | DP88: 0.05026813496 | DQ88: 0.1116263421 | DR88: 1.121789229 | DS88: 0.4651564666 | DT88: 1.748840173 | DU88: 0.04379278183 | DV88: 0.1051495698 | DW88: 0.9203767681 | DX88: 0.3745257225 | DY88: 1.443844842 | DZ88: 0.06989821969 | EA88: 0.1615906154 | EB88: 1.339000837 | EC88: 0.517618894 | ED88: 2.088108566 | EE88: 0.06988861424 | EF88: 0.1800442624 | EG88: 1.162997219 | EH88: 0.512078157 | EI88: 1.925008253 | EJ88: 0.08567908451 | EK88: 0.2304176603 | EL88: 1.42245364 | EM88: 0.6559378903 | EN88: 2.394488276 | EO88: 0.08336267209 | EP88: 0.2240785021 | EQ88: 1.337884264 | ER88: 0.6627805537 | ES88: 2.308105992 | EV88: Ireland | EW88: 479 | EX88: 434 | EY88: 403 | EZ88: 384 | FA88: 373 | FB88: 373 | FC88: 378 | FD88: 384 | FE88: 391 | FF88: 399 | FG88: 401 | FH88: 390 | FI88: 371 | FJ88: 353 | FK88: 330 | FL88: 316 | FM88: 310 | FN88: 307 | FO88: 308 | FP88: 313 | FQ88: 312 | FR88: 307 | FS88: 289 | FT88: 275 | FV88: Ireland | GT88: 325
A89: Israel | B89: EurA | C89: Eur | D89: 1.320461378 | E89: 0.5278842649 | F89: 0.8006045334 | H89: 6.489711265 | I89: 2.038163185 | J89: 2.038163185 | L89: 0.2034699733 | M89: 0.259 | N89: 0.3928068858 | P89: 677 | Q89: 635 | S89: 0.009585984143 | T89: 0.003209705803 | W89: 3.190964163 | X89: 2.683722931 | Y89: 0.6283373054 | Z89: 2.307134576 | AA89: 2.056751455 | AB89: 0.6189204616 | AC89: 0.5698239554 | AD89: 0.5170695265 | AE89: 0 | AF89: 1.150070939 | AG89: 0.577616531 | AH89: 0.7309779977 | AI89: 0.8402683465 | AJ89: 0.8006045334 | AL89: 7.622549534 | AM89: 6.442122459 | AN89: 1.515455484 | AO89: 5.591865063 | AP89: 5.008987904 | AQ89: 1.514806986 | AR89: 1.401613235 | AS89: 1.278045893 | AT89: 0 | AU89: 2.870639563 | AV89: 1.448888302 | AW89: 1.842686534 | AX89: 2.128461599 | AY89: 2.038163185 | BA89: 0.259 | BB89: 0.5278842649 | BE89: 0.1499111292 | BF89: 0.1493137665 | BG89: 0.1498113609 | BH89: 0.1050235611 | BI89: 0.1406906883 | BJ89: 0.1426163535 | BK89: 0.1452334773 | BL89: 0.1556735388 | BM89: 0.1075027072 | BN89: 0.1445485083 | BO89: 0.119576462 | BP89: 0.128363036 | BQ89: 0.2171403661 | BR89: 0.1687788896 | BS89: 0.193115649 | BT89: 0.1254743696 | BU89: 0.1350055941 | BV89: 0.2274240513 | BW89: 0.180703103 | BX89: 0.1968924639 | BY89: 0.1277580746 | BZ89: 0.1361840516 | CA89: 0.2190500298 | CB89: 0.1698824799 | CC89: 0.1877148919 | CD89: 0.1282533224 | CE89: 0.1381581394 | CF89: 0.2379932289 | CG89: 0.1872991062 | CH89: 0.2034699733 | CJ89: Israel | CK89: 0.03074549374 | CL89: 0.1041457544 | CM89: 0.9911738672 | CN89: 0.2009633239 | CO89: 1.327028439 | CP89: 0.02214418028 | CQ89: 0.08668580572 | CR89: 0.7646426363 | CS89: 0.1588873887 | CT89: 1.032360011 | CU89: 0.03052261821 | CV89: 0.1346189979 | CW89: 1.250338875 | CX89: 0.3582660492 | CY89: 1.77374654 | CZ89: 0.0395673618 | DA89: 0.1764329335 | DB89: 1.039463733 | DC89: 0.4034916227 | DD89: 1.658955651 | DE89: 0.03928876718 | DF89: 0.1770772338 | DG89: 0.848669451 | DH89: 0.3425733951 | DI89: 1.407608847 | DJ89: 0.03200010355 | DK89: 0.150823056 | DL89: 0.8136946009 | DM89: 0.3239436173 | DN89: 1.320461378 | DP89: 0.2050914693 | DQ89: 0.6974959972 | DR89: 6.616146208 | DS89: 1.913507044 | DT89: 9.432240719 | DU89: 0.1552709752 | DV89: 0.5968720665 | DW89: 4.911834356 | DX89: 1.477984999 | DY89: 7.141962397 | DZ89: 0.2552560739 | EA89: 1.048736475 | EB89: 5.758205613 | EC89: 2.122694669 | ED89: 9.184892831 | EE89: 0.3153421843 | EF89: 1.306856465 | EG89: 4.570597204 | EH89: 2.232898141 | EI89: 8.425693994 | EJ89: 0.3075247283 | EK89: 1.30027879 | EL89: 3.874317898 | EM89: 2.016531635 | EN89: 7.498653051 | EO89: 0.2495070143 | EP89: 1.09166971 | EQ89: 3.418982147 | ER89: 1.729552393 | ES89: 6.489711265 | EV89: Israel | EW89: 1174 | EX89: 1136 | EY89: 1086 | EZ89: 1026 | FA89: 979 | FB89: 947 | FC89: 927 | FD89: 920 | FE89: 921 | FF89: 915 | FG89: 896 | FH89: 871 | FI89: 847 | FJ89: 806 | FK89: 782 | FL89: 753 | FM89: 727 | FN89: 720 | FO89: 716 | FP89: 707 | FQ89: 690 | FR89: 673 | FS89: 664 | FT89: 635 | FV89: Israel | GT89: 677
A90: Italy | B90: EurA | C90: Eur | D90: 1.596911237 | E90: 0.3294582698 | F90: 0.4993537971 | H90: 7.504914932 | I90: 1.272039652 | J90: 1.272039652 | L90: 0.212782057 | M90: 0.259 | N90: 0.3925615026 | P90: 2060 | Q90: 2051 | S90: 0.003643162588 | T90: 0.0006202046084 | W90: 0.5432269743 | X90: 3.242536348 | Y90: 0 | Z90: 0 | AA90: 0.9060598742 | AB90: 0.3536908648 | AC90: 1.030311928 | AD90: 1.052846345 | AE90: 0 | AF90: 0 | AG90: 1.70311665 | AH90: 0.5358095421 | AI90: 0.5362797666 | AJ90: 0.4993537971 | AL90: 1.300323963 | AM90: 7.799601555 | AN90: 0 | AO90: 0 | AP90: 2.211232424 | AQ90: 0.8672204018 | AR90: 2.538119316 | AS90: 2.605886936 | AT90: 0 | AU90: 0 | AV90: 4.275372505 | AW90: 1.351531982 | AX90: 1.359492421 | AY90: 1.272039652 | BA90: 0.259 | BB90: 0.3294582698 | BE90: 0.153610598 | BF90: 0.1653301782 | BG90: 0.2827801855 | BH90: 0.2183049622 | BI90: 0.2418690373 | BJ90: 0.1313970283 | BK90: 0.1448169366 | BL90: 0.2800618696 | BM90: 0.2221772452 | BN90: 0.2314907023 | BO90: 0.1200880681 | BP90: 0.1341021102 | BQ90: 0.2726440946 | BR90: 0.2169922752 | BS90: 0.221314664 | BT90: 0.119905432 | BU90: 0.1329723796 | BV90: 0.2619408439 | BW90: 0.2093712124 | BX90: 0.2129281609 | BY90: 0.1191959493 | BZ90: 0.1326353277 | CA90: 0.2643657288 | CB90: 0.2121470926 | CC90: 0.2152835085 | CD90: 0.1198139442 | CE90: 0.1325230481 | CF90: 0.2597903743 | CG90: 0.2085131544 | CH90: 0.212782057 | CJ90: Italy | CK90: 0.09155854418 | CL90: 0.4945383878 | CM90: 2.662505962 | CN90: 0.9602200171 | CO90: 4.208822911 | CP90: 0.04425216443 | CQ90: 0.2796561589 | CR90: 1.285321609 | CS90: 0.5207163405 | CT90: 2.129946273 | CU90: 0.03451410908 | CV90: 0.2201065149 | CW90: 0.959910825 | CX90: 0.4256971707 | CY90: 1.64022862 | CZ90: 0.04385693734 | DA90: 0.231686142 | DB90: 0.9672386049 | DC90: 0.4501352724 | DD90: 1.692916957 | DE90: 0.05046126711 | DF90: 0.2309778593 | DG90: 1.033981901 | DH90: 0.4980518149 | DI90: 1.813472842 | DJ90: 0.04394608562 | DK90: 0.2021877985 | DL90: 0.9145238083 | DM90: 0.4362535444 | DN90: 1.596911237 | DP90: 0.5960431464 | DQ90: 2.991216686 | DR90: 9.415461545 | DS90: 4.39852584 | DT90: 17.40124722 | DU90: 0.3367820795 | DV90: 1.931101192 | DW90: 4.589420225 | DX90: 2.343697889 | DY90: 9.201001386 | DZ90: 0.2874066477 | EA90: 1.641335208 | EB90: 3.520746805 | EC90: 1.961807951 | ED90: 7.411296612 | EE90: 0.3657627233 | EF90: 1.742362908 | EG90: 3.692584137 | EH90: 2.1499387 | EI90: 7.950648469 | EJ90: 0.423347164 | EK90: 1.741450512 | EL90: 3.911179809 | EM90: 2.347672121 | EN90: 8.423649607 | EO90: 0.3667860692 | EP90: 1.52568026 | EQ90: 3.520237464 | ER90: 2.092211139 | ES90: 7.504914932 | EV90: Italy | EW90: 5441 | EX90: 5250 | EY90: 5005 | EZ90: 4757 | FA90: 4444 | FB90: 4119 | FC90: 3784 | FD90: 3495 | FE90: 3216 | FF90: 3024 | FG90: 2820 | FH90: 2694 | FI90: 2653 | FJ90: 2570 | FK90: 2528 | FL90: 2517 | FM90: 2487 | FN90: 2428 | FO90: 2353 | FP90: 2333 | FQ90: 2262 | FR90: 2207 | FS90: 2101 | FT90: 2051 | FV90: Italy | GT90: 2060
A91: Jamaica | B91: AmrB | C91: Amr | D91: 0.7460001629 | E91: 4.695998772 | F91: 6.257904897 | H91: 28.76279493 | I91: 20.06837082 | J91: 20.06837082 | L91: 0.02593628904 | M91: 0.234 | N91: 0.3118292438 | P91: 920 | Q91: 851 | S91: 0.03126390753 | T91: 0.02358210437 | W91: 15.20771594 | X91: 12.11288159 | Y91: 11.29509651 | Z91: 10.04904799 | AA91: 8.441479461 | AB91: 7.844205062 | AC91: 8.35787206 | AD91: 9.225881233 | AE91: 8.572012573 | AF91: 8.699932801 | AG91: 7.97570585 | AH91: 7.827400014 | AI91: 6.57963702 | AJ91: 6.257904897 | AL91: 44.69958496 | AM91: 35.82992554 | AN91: 33.62520599 | AO91: 30.10886383 | AP91: 25.46170807 | AQ91: 23.81493187 | AR91: 25.54627419 | AS91: 28.38632011 | AT91: 26.55595016 | AU91: 27.13853836 | AV91: 25.04772377 | AW91: 24.74942589 | AX91: 20.95125198 | AY91: 20.06837082 | BA91: 0.234 | BB91: 4.695998772 | BE91: 0.03253926748 | BF91: 0.03225869455 | BG91: 0.03161701166 | BH91: 0.02160646818 | BI91: 0.0276359644 | BJ91: 0.02891230325 | BK91: 0.02893768072 | BL91: 0.02888475007 | BM91: 0.01986095281 | BN91: 0.02499412606 | BO91: 0.03023170447 | BP91: 0.03041277112 | BQ91: 0.03048613033 | BR91: 0.02177984631 | BS91: 0.02671502205 | BT91: 0.0291591455 | BU91: 0.02914383118 | BV91: 0.02921281137 | BW91: 0.02070651174 | BX91: 0.02552019129 | BY91: 0.02881967418 | BZ91: 0.02879068515 | CA91: 0.02928086015 | CB91: 0.02057320452 | CC91: 0.02555382536 | CD91: 0.02955581598 | CE91: 0.0296234358 | CF91: 0.02964926391 | CG91: 0.02081404744 | CH91: 0.02593628904 | CJ91: Jamaica | CK91: 0.167584475 | CL91: 0.3275111059 | CM91: 3.454329186 | CN91: 1.81730578 | CO91: 5.766730548 | CP91: 0.07299062333 | CQ91: 0.1509519651 | CR91: 1.193088961 | CS91: 0.739646798 | CT91: 2.156678347 | CU91: 0.04970234396 | CV91: 0.1053335188 | CW91: 0.6735971436 | CX91: 0.4497565715 | CY91: 1.278389578 | CZ91: 0.03039394282 | DA91: 0.07724862023 | DB91: 0.4193282297 | DC91: 0.285637648 | DD91: 0.8126084408 | DE91: 0.02467066287 | DF91: 0.06684464839 | DG91: 0.4149319994 | DH91: 0.2607504492 | DI91: 0.7671977598 | DJ91: 0.02316567307 | DK91: 0.06367214989 | DL91: 0.4078762114 | DM91: 0.2512861285 | DN91: 0.7460001629 | DP91: 5.150222731 | DQ91: 10.15264599 | DR91: 109.2553978 | DS91: 84.1093401 | DT91: 208.6676066 | DU91: 2.524552357 | DV91: 5.216450018 | DW91: 41.30515092 | DX91: 37.24125448 | DY91: 86.28740778 | DZ91: 1.644047031 | EA91: 3.463463372 | EB91: 22.09519989 | EC91: 20.65012605 | ED91: 47.85283634 | EE91: 1.042346828 | EF91: 2.650599358 | EG91: 14.35425795 | EH91: 13.79458074 | EI91: 31.84178487 | EJ91: 0.8560354541 | EK91: 2.321745663 | EL91: 14.17075855 | EM91: 12.67427488 | EN91: 30.02281455 | EO91: 0.7837940625 | EP91: 2.14938437 | EQ91: 13.75670616 | ER91: 12.07291034 | ES91: 28.76279493 | EV91: Jamaica | EW91: 1733 | EX91: 1672 | EY91: 1630 | EZ91: 1610 | FA91: 1591 | FB91: 1574 | FC91: 1541 | FD91: 1508 | FE91: 1465 | FF91: 1409 | FG91: 1334 | FH91: 1250 | FI91: 1151 | FJ91: 1052 | FK91: 972 | FL91: 928 | FM91: 916 | FN91: 942 | FO91: 978 | FP91: 1003 | FQ91: 1005 | FR91: 978 | FS91: 921 | FT91: 851 | FV91: Jamaica | GT91: 920
A92: Japan | B92: WprA | C92: Wpr | D92: 7.897354444 | E92: 19.75489066 | F92: 23.76235093 | H92: 26.8657525 | I92: 60.5978241 | J92: 60.5978241 | L92: 0.2939561973 | M92: 0.326 | N92: 0.3921320821 | P92: 3158 | Q92: 3143 | S92: 0.008507204719 | T92: 0.01928024947 | W92: 14.26157624 | X92: 24.71531192 | Y92: 18.73032537 | Z92: 17.58012041 | AA92: 17.23872346 | AB92: 20.50167731 | AC92: 21.21964238 | AD92: 22.27490836 | AE92: 20.18114753 | AF92: 22.13615614 | AG92: 24.91522034 | AH92: 22.80896651 | AI92: 23.90125311 | AJ92: 23.76235093 | AL92: 34.18817902 | AM92: 59.5293045 | AN92: 45.32899475 | AO92: 42.74287796 | AP92: 42.1088028 | AQ92: 50.32138062 | AR92: 52.32883072 | AS92: 55.19100952 | AT92: 50.24153519 | AU92: 55.37174988 | AV92: 62.62239456 | AW92: 57.57814026 | AX92: 60.6567421 | AY92: 60.5978241 | BA92: 0.326 | BB92: 19.75489066 | BE92: 0.1985614929 | BF92: 0.2090210212 | BG92: 0.3145032411 | BH92: 0.2386153703 | BI92: 0.2788727097 | BJ92: 0.1866468236 | BK92: 0.199253898 | BL92: 0.323170622 | BM92: 0.2479135471 | BN92: 0.2842587402 | BO92: 0.1820895628 | BP92: 0.1947854851 | BQ92: 0.3164815944 | BR92: 0.2431970739 | BS92: 0.2770621049 | BT92: 0.1905507406 | BU92: 0.2029229018 | BV92: 0.3292000946 | BW92: 0.2570600365 | BX92: 0.2895006721 | BY92: 0.191509354 | BZ92: 0.2052249406 | CA92: 0.3410159908 | CB92: 0.2633382844 | CC92: 0.2977593188 | CD92: 0.1866986425 | CE92: 0.2001244926 | CF92: 0.3364686241 | CG92: 0.261135275 | CH92: 0.2939561973 | CJ92: Japan | CK92: 0.1470231172 | CL92: 0.5815240978 | CM92: 8.627528298 | CN92: 4.289094899 | CO92: 13.64517041 | CP92: 0.1250326207 | CQ92: 0.5086745942 | CR92: 7.616687288 | CS92: 4.329353518 | CT92: 12.57974802 | CU92: 0.1004767497 | CV92: 0.450709964 | CW92: 6.002015114 | CX92: 3.625148615 | CY92: 10.17835044 | CZ92: 0.09131472625 | DA92: 0.4390174449 | DB92: 5.802223804 | DC92: 3.684542827 | DD92: 10.0170988 | DE92: 0.07757555115 | DF92: 0.3947931894 | DG92: 5.23920059 | DH92: 3.393194958 | DI92: 9.104764288 | DJ92: 0.06895465926 | DK92: 0.3539204483 | DL92: 4.542989232 | DM92: 2.931490105 | DN92: 7.897354444 | DP92: 0.740441236 | DQ92: 2.782132125 | DR92: 27.43223971 | DS92: 17.97493135 | DT92: 48.92974442 | DU92: 0.6698888216 | DV92: 2.552896577 | DW92: 23.56862527 | DX92: 17.4631583 | DY92: 44.25456896 | DZ92: 0.551798511 | EA92: 2.313878592 | EB92: 18.96481571 | EC92: 14.90621806 | ED92: 36.73671088 | EE92: 0.4792147538 | EF92: 2.163469185 | EG92: 17.62521913 | EH92: 14.33339417 | EI92: 34.60129723 | EJ92: 0.4050744756 | EK92: 1.923709605 | EL92: 15.36350415 | EM92: 12.88530821 | EN92: 30.57759644 | EO92: 0.3693366933 | EP92: 1.768501415 | EQ92: 13.50196989 | ER92: 11.2259445 | ES92: 26.8657525 | EV92: Japan | EW92: 7732 | EX92: 7403 | EY92: 7198 | EZ92: 7083 | FA92: 6992 | FB92: 6771 | FC92: 6544 | FD92: 6196 | FE92: 5957 | FF92: 5584 | FG92: 5316 | FH92: 5037 | FI92: 4736 | FJ92: 4543 | FK92: 4355 | FL92: 4080 | FM92: 3927 | FN92: 3799 | FO92: 3684 | FP92: 3573 | FQ92: 3461 | FR92: 3682 | FS92: 3253 | FT92: 3143 | FV92: Japan | GT92: 3158
A93: Jordan | B93: EmrB | C93: Emr | D93: 8.566595079 | E93: 41.18961269 | F93: 57.40087462 | H93: 34.78468659 | I93: 131.5962067 | J93: 131.5962067 | L93: 0.2462748962 | M93: 0.313 | N93: 0.4361894319 | P93: 3513 | Q93: 3710 | S93: 0.009901704125 | T93: 0.03547067565 | W93: 138.6101499 | X93: 104.8282134 | Y93: 99.73900864 | Z93: 88.10284473 | AA93: 83.08432896 | AB93: 77.52671109 | AC93: 68.62259142 | AD93: 66.48211775 | AE93: 65.82142754 | AF93: 63.716639 | AG93: 64.69984901 | AH93: 63.36949234 | AI93: 60.40723966 | AJ93: 57.40087462 | AL93: 297.569519 | AM93: 226.1816559 | AN93: 216.2923126 | AO93: 192.0321655 | AP93: 182.0234222 | AQ93: 170.699234 | AR93: 151.8760376 | AS93: 147.8840332 | AT93: 147.1412811 | AU93: 143.1648865 | AV93: 146.1014557 | AW93: 143.816925 | AX93: 137.7885895 | AY93: 131.5962067 | BA93: 0.313 | BB93: 41.18961269 | BE93: 0.3008104559 | BF93: 0.2985681487 | BG93: 0.3070019176 | BH93: 0.226273997 | BI93: 0.2789613148 | BJ93: 0.206357556 | BK93: 0.2068531207 | BL93: 0.2328594293 | BM93: 0.1678800457 | BN93: 0.2083572104 | BO93: 0.2010837241 | BP93: 0.2032601617 | BQ93: 0.2308251902 | BR93: 0.1741312524 | BS93: 0.2060976658 | BT93: 0.1940794098 | BU93: 0.1970340856 | BV93: 0.2168184818 | BW93: 0.1646733503 | BX93: 0.1940083952 | BY93: 0.1649262009 | BZ93: 0.1694237123 | CA93: 0.182369571 | CB93: 0.1412668972 | CC93: 0.1654489379 | CD93: 0.2559593581 | CE93: 0.2629189739 | CF93: 0.2703445258 | CG93: 0.209631893 | CH93: 0.2462748962 | CJ93: Jordan | CK93: 1.04847713 | CL93: 2.064106204 | CM93: 25.45192889 | CN93: 10.89298918 | CO93: 39.45750141 | CP93: 0.6213235606 | CQ93: 1.184915725 | CR93: 15.75731433 | CS93: 6.816036909 | CT93: 24.37959053 | CU93: 0.4347391674 | CV93: 0.7358919278 | CW93: 10.48805523 | CX93: 6.005325629 | CY93: 17.66401195 | CZ93: 0.2913416713 | DA93: 0.4941928735 | DB93: 5.72220389 | DC93: 3.422528454 | DD93: 9.930266889 | DE93: 0.1969970432 | DF93: 0.3737591107 | DG93: 3.707434342 | DH93: 2.057063745 | DI93: 6.335254241 | DJ93: 0.2629699754 | DK93: 0.551155576 | DL93: 4.966329363 | DM93: 2.786140164 | DN93: 8.566595079 | DP93: 3.4855076 | DQ93: 6.913350311 | DR93: 82.90478801 | DS93: 48.14070254 | DT93: 141.4443485 | DU93: 3.01090773 | DV93: 5.728295138 | DW93: 67.6687836 | DX93: 40.60063769 | DY93: 117.0086242 | DZ93: 2.161980883 | EA93: 3.620443483 | EB93: 45.43722121 | EC93: 34.48735105 | ED93: 85.70699662 | EE93: 1.50114673 | EF93: 2.508159296 | EG93: 26.39167954 | EH93: 20.78374217 | EI93: 51.18472774 | EJ93: 1.194455715 | EK93: 2.206061393 | EL93: 20.32923761 | EM93: 14.56154121 | EN93: 38.29129593 | EO93: 1.027389572 | EP93: 2.096294413 | EQ93: 18.37037147 | ER93: 13.29063114 | ES93: 34.78468659 | EV93: Jordan | EW93: 4112 | EX93: 4113 | EY93: 4215 | EZ93: 4344 | FA93: 4441 | FB93: 4462 | FC93: 4493 | FD93: 4460 | FE93: 4381 | FF93: 4255 | FG93: 4119 | FH93: 3962 | FI93: 3792 | FJ93: 3644 | FK93: 3556 | FL93: 3566 | FM93: 3574 | FN93: 3664 | FO93: 3795 | FP93: 3885 | FQ93: 3927 | FR93: 3913 | FS93: 3837 | FT93: 3710 | FV93: Jordan | GT93: 3513
A94: Kazakhstan | B94: EurC | C94: Eur | D94: 41.96995585 | E94: 60.51367671 | F94: 65.33353754 | H94: 157.913714 | I94: 233.6435394 | J94: 233.6435394 | L94: 0.265777777 | M94: 0.259 | N94: 0.2796291209 | P94: 7710 | Q94: 5363 | S94: 0.02048167496 | T94: 0.04356582872 | W94: 282.8750635 | X94: 255.8503718 | Y94: 237.2663773 | Z94: 219.8299506 | AA94: 207.8667055 | AB94: 194.5064022 | AC94: 179.0360523 | AD94: 164.0219732 | AE94: 153.3379368 | AF94: 138.8521922 | AG94: 117.8641375 | AH94: 97.89888434 | AI94: 80.97713368 | AJ94: 65.33353754 | AL94: 883.0162964 | AM94: 806.8642578 | AN94: 755.878479 | AO94: 707.6765747 | AP94: 676 | AQ94: 639.0687256 | AR94: 594.4846191 | AS94: 550.4749756 | AT94: 520.2092285 | AU94: 476.2311401 | AV94: 408.6421814 | AW94: 343.0786438 | AX94: 286.6869507 | AY94: 233.6435394 | BA94: 0.259 | BB94: 60.51367671 | BE94: 0.1735032809 | BF94: 0.1838537276 | BG94: 0.2853932373 | BH94: 0.1943587187 | BI94: 0.2550931819 | BJ94: 0.1769713993 | BK94: 0.1883364389 | BL94: 0.2977889914 | BM94: 0.2053898671 | BN94: 0.2628273478 | BO94: 0.1799588196 | BP94: 0.1902964273 | BQ94: 0.2992782292 | BR94: 0.201884033 | BS94: 0.2625389481 | BT94: 0.1818909072 | BU94: 0.1934761284 | BV94: 0.3111360436 | BW94: 0.2098820281 | BX94: 0.2756935588 | BY94: 0.1863547631 | BZ94: 0.1971351574 | CA94: 0.3096477851 | CB94: 0.208624369 | CC94: 0.2716635921 | CD94: 0.1809498848 | CE94: 0.1921260392 | CF94: 0.305227008 | CG94: 0.2059634045 | CH94: 0.265777777 | CJ94: Kazakhstan | CK94: 5.859254503 | CL94: 15.20067071 | CM94: 278.1111712 | CN94: 66.824238 | CO94: 365.9953345 | CP94: 4.140787793 | CQ94: 11.74847011 | CR94: 240.3836402 | CS94: 77.11897558 | CT94: 333.3918736 | CU94: 1.831827437 | CV94: 4.308196185 | CW94: 92.86706134 | CX94: 29.70334737 | CY94: 128.7104323 | CZ94: 1.011066995 | DA94: 1.906999781 | DB94: 43.41174342 | DC94: 11.52355148 | DD94: 57.85336168 | DE94: 0.8247824263 | DF94: 1.501739283 | DG94: 32.76314487 | DH94: 10.17226197 | DI94: 45.26192855 | DJ94: 0.7442613957 | DK94: 1.458857229 | DL94: 29.68356384 | DM94: 10.08327339 | DN94: 41.96995585 | DP94: 33.77028072 | DQ94: 82.67806648 | DR94: 974.4840972 | DS94: 343.8190911 | DT94: 1434.751536 | DU94: 23.39806212 | DV94: 62.38022858 | DW94: 807.2280948 | DX94: 375.4760478 | DY94: 1268.482433 | DZ94: 10.17914788 | EA94: 22.63939605 | EB94: 310.303431 | EC94: 147.130741 | ED94: 490.2527159 | EE94: 5.558645073 | EF94: 9.856511998 | EG94: 139.526565 | EH94: 54.90489864 | EI94: 209.8466207 | EJ94: 4.425872528 | EK94: 7.617815631 | EL94: 105.8077805 | EM94: 48.75874289 | EN94: 166.6102115 | EO94: 4.11308024 | EP94: 7.59323013 | EQ94: 97.25077747 | ER94: 48.95662614 | ES94: 157.913714 | EV94: Kazakhstan | EW94: 20685 | EX94: 19603 | EY94: 18184 | EZ94: 16451 | FA94: 14699 | FB94: 13120 | FC94: 11800 | FD94: 10688 | FE94: 9918 | FF94: 9412 | FG94: 9102 | FH94: 8859 | FI94: 8835 | FJ94: 8894 | FK94: 9022 | FL94: 9097 | FM94: 9088 | FN94: 8991 | FO94: 8739 | FP94: 8289 | FQ94: 7676 | FR94: 6922 | FS94: 6143 | FT94: 5363 | FV94: Kazakhstan | GT94: 7710
A95: Kenya | B95: AfrE | C95: Afr | D95: 2901.609 | E95: 2818.015551 | F95: 3908.177854 | H95: 11921.87702 | I95: 10514.9834 | J95: 10514.9834 | L95: 0.2433852485 | M95: 0.268 | N95: 0.3716770351 | P95: 89504 | Q95: 105859 | S95: 0.1331993768 | T95: 0.09933008434 | W95: 7044.395294 | X95: 6893.812673 | Y95: 7314.102386 | Z95: 7009.84374 | AA95: 6736.44604 | AB95: 6541.290995 | AC95: 6356.68182 | AD95: 6042.597282 | AE95: 5631.955508 | AF95: 5278.268367 | AG95: 4916.865479 | AH95: 4566.062965 | AI95: 4217.585427 | AJ95: 3908.177854 | AL95: 16757.45703 | AM95: 16522.50391 | AN95: 17667.80664 | AO95: 17077.39453 | AP95: 16555.34766 | AQ95: 16227.7168 | AR95: 15932.4834 | AS95: 15300.8125 | AT95: 14420.49902 | AU95: 13650.22656 | AV95: 12850.39355 | AW95: 12063.37695 | AX95: 11246.98242 | AY95: 10514.9834 | BA95: 0.268 | BB95: 2818.015551 | BE95: 0.3708701228 | BF95: 0.3656644995 | BG95: 0.3135855198 | BH95: 0.2063067363 | BI95: 0.2788353876 | BJ95: 0.3366227222 | BK95: 0.3319485926 | BL95: 0.2881331529 | BM95: 0.1941108108 | BN95: 0.2623045231 | BO95: 0.317255287 | BP95: 0.312501233 | BQ95: 0.2663634876 | BR95: 0.1786790962 | BS95: 0.2464903265 | BT95: 0.3192330527 | BU95: 0.3146890503 | BV95: 0.2674402419 | BW95: 0.1776704619 | BX95: 0.2443040764 | BY95: 0.3157749015 | BZ95: 0.3114527521 | CA95: 0.266687252 | CB95: 0.1757979216 | CC95: 0.2404629393 | CD95: 0.3240011133 | CE95: 0.3195130393 | CF95: 0.2716241825 | CG95: 0.1773593644 | CH95: 0.2433852485 | CJ95: Kenya | CK95: 247.8367281 | CL95: 287.5912968 | CM95: 2075.547214 | CN95: 1023.434306 | CO95: 3634.409545 | CP95: 249.3595296 | CQ95: 266.8910649 | CR95: 1943.051219 | CS95: 811.8820477 | CT95: 3271.183861 | CU95: 227.3595989 | CV95: 240.7433088 | CW95: 1696.638936 | CX95: 601.167237 | CY95: 2765.909081 | CZ95: 176.1962944 | DA95: 188.1803151 | DB95: 1715.119634 | DC95: 618.1194732 | DD95: 2697.615717 | DE95: 232.2709486 | DF95: 233.5126927 | DG95: 2052.549877 | DH95: 844.0031893 | DI95: 3362.336707 | DJ95: 199.0905205 | DK95: 199.2228609 | DL95: 1753.131555 | DM95: 750.1640632 | DN95: 2901.609 | DP95: 668.257465 | DQ95: 786.4895202 | DR95: 6618.759743 | DS95: 4960.741102 | DT95: 13034.24783 | DU95: 740.768561 | DV95: 804.0132443 | DW95: 6743.587816 | DX95: 4182.569969 | DY95: 12470.93959 | DZ95: 716.645579 | EA95: 770.3755484 | EB95: 6369.637791 | EC95: 3364.507935 | ED95: 11221.16685 | EE95: 551.9362512 | EF95: 597.988125 | EG95: 6413.094835 | EH95: 3479.022155 | EI95: 11042.04137 | EJ95: 735.5586132 | EK95: 749.7531845 | EL95: 7696.467909 | EM95: 4800.985025 | EN95: 13982.76473 | EO95: 614.4748036 | EP95: 623.5202835 | EQ95: 6454.254327 | ER95: 4229.627603 | ES95: 11921.87702 | EV95: Kenya | EW95: 96060 | EX95: 98888 | EY95: 101585 | EZ95: 104206 | FA95: 107127 | FB95: 110400 | FC95: 114013 | FD95: 117935 | FE95: 121617 | FF95: 124951 | FG95: 127496 | FH95: 129528 | FI95: 130886 | FJ95: 131294 | FK95: 131166 | FL95: 130155 | FM95: 128221 | FN95: 125753 | FO95: 121986 | FP95: 119067 | FQ95: 115442 | FR95: 111259 | FS95: 108404 | FT95: 105859 | FV95: Kenya | GT95: 89504
A96: Kiribati | B96: WprB | C96: Wpr | D96: 1.395242393 | E96: 4.829083923 | F96: 5.050852114 | H96: 6.631738354 | I96: 14.81314087 | J96: 14.81314087 | L96: 0.2103886369 | M96: 0.326 | N96: 0.3409710445 | P96: 123 | Q96: 139 | S96: 0.05391657198 | T96: 0.1065693588 | W96: 9.101994469 | X96: 8.409919514 | Y96: 7.671313655 | Z96: 7.211405271 | AA96: 6.899142301 | AB96: 6.456712008 | AC96: 6.226292047 | AD96: 5.930052923 | AE96: 6.389406868 | AF96: 6.172319352 | AG96: 5.893830781 | AH96: 5.641918259 | AI96: 5.363201609 | AJ96: 5.050852114 | AL96: 24.41135597 | AM96: 22.72768402 | AN96: 20.8843708 | AO96: 19.76474762 | AP96: 19.03114891 | AQ96: 17.91719627 | AR96: 17.37872887 | AS96: 16.64627266 | AT96: 18.04511642 | AU96: 17.54790688 | AV96: 16.8801651 | AW96: 16.28491402 | AX96: 15.60254192 | AY96: 14.81314087 | BA96: 0.326 | BB96: 4.829083923 | BE96: 0.2482478007 | BF96: 0.2486415788 | BG96: 0.2507135224 | BH96: 0.168467351 | BI96: 0.209387802 | BJ96: 0.2485559078 | BK96: 0.2487997678 | BL96: 0.2504740658 | BM96: 0.1641064139 | BN96: 0.2063508328 | BO96: 0.2540059547 | BP96: 0.2535217235 | BQ96: 0.2531574975 | BR96: 0.1649449575 | BS96: 0.2071689436 | BT96: 0.2507896273 | BU96: 0.2509253412 | BV96: 0.2521440679 | BW96: 0.1651009115 | BX96: 0.2094079509 | BY96: 0.2511240392 | BZ96: 0.251699946 | CA96: 0.254502298 | CB96: 0.1722006817 | CC96: 0.2124384267 | CD96: 0.2470386633 | CE96: 0.2482488189 | CF96: 0.2527790693 | CG96: 0.1669457532 | CH96: 0.2103886369 | CJ96: Kiribati | CK96: 0.1546587409 | CL96: 0.5041294779 | CM96: 4.156331742 | CN96: 3.247845609 | CO96: 8.06296557 | CP96: 0.1083158765 | CQ96: 0.3498427293 | CR96: 2.948547279 | CS96: 2.321075567 | CT96: 5.727781452 | CU96: 0.05048839819 | CV96: 0.170624436 | CW96: 1.542838356 | CX96: 1.253095054 | CY96: 3.017046244 | CZ96: 0.0343241051 | DA96: 0.1084773543 | DB96: 0.9893707687 | DC96: 0.7128443805 | DD96: 1.845016609 | DE96: 0.03019609627 | DF96: 0.0862117484 | DG96: 0.8507939334 | DH96: 0.6792456603 | DI96: 1.646447438 | DJ96: 0.02845344389 | DK96: 0.07670706284 | DL96: 0.7473078616 | DM96: 0.5427740244 | DN96: 1.395242393 | DP96: 0.6230014545 | DQ96: 2.027534897 | DR96: 16.57801183 | DS96: 19.27878363 | DT96: 38.50733182 | DU96: 0.4357807362 | DV96: 1.406121607 | DW96: 11.77186656 | DX96: 14.14372243 | DY96: 27.75749133 | DZ96: 0.1987685613 | EA96: 0.6730170244 | EB96: 6.094381446 | EC96: 7.597049785 | ED96: 14.56321682 | EE96: 0.1368641338 | EF96: 0.4323092828 | EG96: 3.923831233 | EH96: 4.317628377 | EI96: 8.810633027 | EJ96: 0.1202437503 | EK96: 0.3425179456 | EL96: 3.342971518 | EM96: 3.944500415 | EN96: 7.750233629 | EO96: 0.1151781001 | EP96: 0.3089926597 | EQ96: 2.956367644 | ER96: 3.25119995 | ES96: 6.631738354 | EV96: Kiribati | EW96: 233 | EX96: 228 | EY96: 223 | EZ96: 217 | FA96: 211 | FB96: 206 | FC96: 199 | FD96: 192 | FE96: 184 | FF96: 177 | FG96: 170 | FH96: 163 | FI96: 156 | FJ96: 151 | FK96: 147 | FL96: 145 | FM96: 143 | FN96: 143 | FO96: 143 | FP96: 144 | FQ96: 143 | FR96: 142 | FS96: 141 | FT96: 139 | FV96: Kiribati | GT96: 123
A97: Kuwait | B97: EmrB | C97: Emr | D97: 0.8901183976 | E97: 0.6819742837 | F97: 0.9380863913 | H97: 3.739318913 | I97: 2.178831577 | J97: 2.178831577 | L97: 0.2380429213 | M97: 0.313 | N97: 0.4305456195 | P97: 599 | Q97: 655 | S97: 0.006242602525 | T97: 0.003326460423 | W97: 1.109174142 | X97: 1.628906001 | Y97: 1.293064351 | Z97: 1.824126972 | AA97: 0 | AB97: 2.303623532 | AC97: 0.5659453656 | AD97: 2.14465962 | AE97: 1.152351933 | AF97: 1.070700739 | AG97: 0.6243608069 | AH97: 1.431895056 | AI97: 0.9397642319 | AJ97: 0.9380863913 | AL97: 2.429498911 | AM97: 3.583368301 | AN97: 2.856946945 | AO97: 4.047920227 | AP97: 0 | AQ97: 5.157128811 | AR97: 1.272421718 | AS97: 4.84264946 | AT97: 2.613673687 | AU97: 2.439380884 | AV97: 1.429098487 | AW97: 3.29324007 | AX97: 2.172168493 | AY97: 2.178831577 | BA97: 0.313 | BB97: 0.6819742837 | BE97: 0.2632257187 | BF97: 0.2631862846 | BG97: 0.2755596994 | BH97: 0.2045314955 | BI97: 0.2573295032 | BJ97: 0.2636308749 | BK97: 0.2651934924 | BL97: 0.2830156527 | BM97: 0.2061342242 | BN97: 0.2654384717 | BO97: 0.305363525 | BP97: 0.3068752866 | BQ97: 0.3237111315 | BR97: 0.2284205384 | BS97: 0.3036981721 | BT97: 0.2582905746 | BU97: 0.2587560643 | BV97: 0.2716718144 | BW97: 0.199746017 | BX97: 0.2564071097 | BY97: 0.2620071304 | BZ97: 0.2626841434 | CA97: 0.2770780193 | CB97: 0.1992347024 | CC97: 0.2602951656 | CD97: 0.2367865364 | CE97: 0.2392820069 | CF97: 0.2539435612 | CG97: 0.1864043246 | CH97: 0.2380429213 | CJ97: Kuwait | CK97: 0.137449055 | CL97: 0.3882914718 | CM97: 3.058138247 | CN97: 0.8291462157 | CO97: 4.41302499 | CP97: 0.04534841885 | CQ97: 0.1380237973 | CR97: 0.9538178939 | CS97: 0.2043818292 | CT97: 1.341571939 | CU97: 0.03537528945 | CV97: 0.1178010552 | CW97: 0.8230395725 | CX97: 0.1586848359 | CY97: 1.134900753 | CZ97: 0.02975217131 | DA97: 0.1007596957 | DB97: 0.6686328951 | DC97: 0.136431036 | DD97: 0.9355757981 | DE97: 0.03392417688 | DF97: 0.1140427102 | DG97: 0.7686026502 | DH97: 0.1560118721 | DI97: 1.072581409 | DJ97: 0.02684918108 | DK97: 0.0931980299 | DL97: 0.6271018197 | DM97: 0.1429693669 | DN97: 0.8901183976 | DP97: 0.5221718293 | DQ97: 1.47534843 | DR97: 11.09791546 | DS97: 4.053880375 | DT97: 17.14931609 | DU97: 0.1720148251 | DV97: 0.5204644959 | DW97: 3.370194845 | DX97: 0.9914987669 | DY97: 5.054172933 | DZ97: 0.1158464798 | EA97: 0.3838727338 | EB97: 2.542512421 | EC97: 0.6947047624 | ED97: 3.736936397 | EE97: 0.1151887612 | EF97: 0.3894003256 | EG97: 2.461178744 | EH97: 0.6830225607 | EI97: 3.648790392 | EJ97: 0.1294780674 | EK97: 0.4341438685 | EL97: 2.773957502 | EM97: 0.7830557137 | EN97: 4.120635152 | EO97: 0.113389813 | EP97: 0.3894903387 | EQ97: 2.469453514 | ER97: 0.7669852467 | ES97: 3.739318913 | EV97: Kuwait | EW97: 688 | EX97: 606 | EY97: 533 | EZ97: 475 | FA97: 445 | FB97: 439 | FC97: 430 | FD97: 442 | FE97: 473 | FF97: 501 | FG97: 523 | FH97: 533 | FI97: 534 | FJ97: 531 | FK97: 535 | FL97: 550 | FM97: 571 | FN97: 603 | FO97: 633 | FP97: 660 | FQ97: 673 | FR97: 678 | FS97: 667 | FT97: 655 | FV97: Kuwait | GT97: 599
A98: Kyrgyzstan | B98: EurB | C98: Eur | D98: 45.50426232 | E98: 49.10582458 | F98: 53.93591103 | H98: 195.574897 | I98: 189.5977783 | J98: 189.5977783 | L98: 0.2326692384 | M98: 0.259 | N98: 0.284475438 | P98: 4407 | Q98: 3656 | S98: 0.04437823848 | T98: 0.05185934856 | W98: 178.3083305 | X98: 156.3645821 | Y98: 136.2890962 | Z98: 119.4730037 | AA98: 106.343475 | AB98: 97.93978946 | AC98: 92.32658589 | AD98: 87.95055158 | AE98: 83.80288433 | AF98: 77.80756807 | AG98: 78.06172424 | AH98: 69.68332604 | AI98: 61.6249989 | AJ98: 53.93591103 | AL98: 550.5933228 | AM98: 487.6483765 | AN98: 429.2377014 | AO98: 379.8811951 | AP98: 341.3434143 | AQ98: 317.2501831 | AR98: 301.8338928 | AS98: 290.2120667 | AT98: 279.3077698 | AU98: 262.0650024 | AV98: 265.7277527 | AW98: 239.8172455 | AX98: 214.3562164 | AY98: 189.5977783 | BA98: 0.259 | BB98: 49.10582458 | BE98: 0.1511098497 | BF98: 0.159910326 | BG98: 0.2502880902 | BH98: 0.170047474 | BI98: 0.2278304994 | BJ98: 0.1511318305 | BK98: 0.1608802473 | BL98: 0.2591211153 | BM98: 0.1777958406 | BN98: 0.2339608229 | BO98: 0.1547481831 | BP98: 0.1642582851 | BQ98: 0.25941824 | BR98: 0.17438178 | BS98: 0.2339709723 | BT98: 0.1557688265 | BU98: 0.1659422164 | BV98: 0.2647303299 | BW98: 0.178124831 | BX98: 0.241533918 | BY98: 0.1541551874 | BZ98: 0.1636336697 | CA98: 0.2591361886 | CB98: 0.1753167645 | CC98: 0.2374059172 | CD98: 0.1519251275 | CE98: 0.1616693267 | CF98: 0.2548268039 | CG98: 0.1722031268 | CH98: 0.2326692384 | CJ98: Kyrgyzstan | CK98: 3.660722566 | CL98: 9.687703382 | CM98: 177.6098645 | CN98: 29.31986954 | CO98: 220.27816 | CP98: 2.882352423 | CQ98: 7.070236146 | CR98: 138.9932693 | CS98: 27.55548831 | CT98: 176.5013461 | CU98: 1.405019102 | CV98: 3.864272827 | CW98: 86.47774504 | CX98: 17.92005954 | CY98: 109.6670965 | CZ98: 0.572623046 | DA98: 1.826129655 | DB98: 48.38228837 | DC98: 8.686561365 | DD98: 59.46760244 | DE98: 0.5832494897 | DF98: 1.720060844 | DG98: 44.90653952 | DH98: 7.553939895 | DI98: 54.76378975 | DJ98: 0.5740949982 | DK98: 1.466291791 | DL98: 37.003506 | DM98: 6.460369533 | DN98: 45.50426232 | DP98: 24.22557214 | DQ98: 60.58210015 | DR98: 709.6217178 | DS98: 172.4216706 | DT98: 966.8510606 | DU98: 19.07177603 | DV98: 43.9471984 | DW98: 536.402713 | DX98: 154.9838748 | DY98: 754.4055622 | DZ98: 9.079389978 | EA98: 23.52558853 | EB98: 333.3526009 | EC98: 102.763371 | ED98: 468.7209504 | EE98: 3.676108108 | EF98: 11.0046117 | EG98: 182.7606546 | EH98: 48.76670656 | EI98: 246.2080809 | EJ98: 3.783521655 | EK98: 10.51165598 | EL98: 173.2932006 | EM98: 43.08737909 | EN98: 230.6757574 | EO98: 3.778802148 | EP98: 9.0696969 | EQ98: 145.2104152 | ER98: 37.51598274 | ES98: 195.574897 | EV98: Kyrgyzstan | EW98: 9017 | EX98: 8812 | EY98: 8522 | EZ98: 8159 | FA98: 7742 | FB98: 7311 | FC98: 6857 | FD98: 6480 | FE98: 6138 | FF98: 5801 | FG98: 5438 | FH98: 5079 | FI98: 4711 | FJ98: 4391 | FK98: 4168 | FL98: 4079 | FM98: 4088 | FN98: 4174 | FO98: 4254 | FP98: 4270 | FQ98: 4208 | FR98: 4061 | FS98: 3877 | FT98: 3656 | FV98: Kyrgyzstan | GT98: 4407
A99: Laos | B99: WprB | C99: Wpr | D99: 392.7286321 | E99: 492.3644219 | F99: 797.7974628 | H99: 996.2474854 | I99: 1510.320312 | J99: 1510.320312 | L99: 0.394207903 | M99: 0.326 | N99: 0.5282306384 | P99: 11071 | Q99: 13172 | S99: 0.08998712722 | T99: 0.1146614267 | W99: 1845.395048 | X99: 1661.306821 | Y99: 1466.170444 | Z99: 1311.662921 | AA99: 1197.991832 | AB99: 1118.728629 | AC99: 1058.218251 | AD99: 1036.345551 | AE99: 1017.377066 | AF99: 994.0663932 | AG99: 1028.207559 | AH99: 983.7192567 | AI99: 891.5874125 | AJ99: 797.7974628 | AL99: 3179.054932 | AM99: 2883.906982 | AN99: 2565.138428 | AO99: 2312.471191 | AP99: 2128.227051 | AQ99: 2002.280762 | AR99: 1908.041626 | AS99: 1882.370483 | AT99: 1861.440796 | AU99: 1831.767944 | AV99: 1908.296021 | AW99: 1838.100586 | AX99: 1676.945801 | AY99: 1510.320312 | BA99: 0.326 | BB99: 492.3644219 | BE99: 0.3372899902 | BF99: 0.3405747566 | BG99: 0.3609945219 | BH99: 0.2402469339 | BI99: 0.3063976381 | BJ99: 0.3251185368 | BK99: 0.3298440061 | BL99: 0.3541265999 | BM99: 0.2365732531 | BN99: 0.3024772832 | BO99: 0.3255718079 | BP99: 0.3321210038 | BQ99: 0.3756850584 | BR99: 0.2567671652 | BS99: 0.3221148114 | BT99: 0.3412651275 | BU99: 0.3491709123 | BV99: 0.4209432928 | BW99: 0.2971541619 | BX99: 0.3678881485 | BY99: 0.34088611 | BZ99: 0.3504036119 | CA99: 0.431256401 | CB99: 0.306048264 | CC99: 0.3802669894 | CD99: 0.3677551539 | CE99: 0.3753493849 | CF99: 0.448810178 | CG99: 0.309955179 | CH99: 0.394207903 | CJ99: Laos | CK99: 47.87673978 | CL99: 157.8704377 | CM99: 1050.702945 | CN99: 650.588499 | CO99: 1907.038621 | CP99: 34.87437381 | CQ99: 120.7177341 | CR99: 872.488608 | CS99: 501.4643813 | CT99: 1529.545097 | CU99: 21.80327772 | CV99: 81.30544626 | CW99: 708.1519148 | CX99: 407.3018303 | CY99: 1218.562469 | CZ99: 12.91613213 | DA99: 45.46799042 | DB99: 514.6652313 | DC99: 258.0378209 | DD99: 831.0871748 | DE99: 6.340710982 | DF99: 20.61548596 | DG99: 305.6399812 | DH99: 138.7497473 | DI99: 471.3459255 | DJ99: 5.579716527 | DK99: 16.95238432 | DL99: 258.9207601 | DM99: 111.2757712 | DN99: 392.7286321 | DP99: 141.9453324 | DQ99: 463.5412186 | DR99: 2910.57864 | DS99: 2707.999176 | DT99: 6224.064366 | DU99: 107.2666423 | DV99: 365.9843195 | DW99: 2463.775973 | DX99: 2119.700239 | DY99: 5056.727174 | DZ99: 66.9691822 | EA99: 244.806698 | EB99: 1884.961616 | EC99: 1586.26914 | ED99: 3783.006637 | EE99: 37.84779367 | EF99: 130.217005 | EG99: 1222.647421 | EH99: 868.3634757 | EI99: 2259.075695 | EJ99: 18.60067276 | EK99: 58.83354297 | EL99: 708.7198718 | EM99: 453.3590406 | EN99: 1239.513128 | EO99: 15.172368 | EP99: 45.16427894 | EQ99: 576.9048314 | ER99: 359.006007 | ES99: 996.2474854 | EV99: Laos | EW99: 28391 | EX99: 28503 | EY99: 28455 | EZ99: 28187 | FA99: 27622 | FB99: 26722 | FC99: 25627 | FD99: 24279 | FE99: 22775 | FF99: 21254 | FG99: 19805 | FH99: 18410 | FI99: 17092 | FJ99: 16008 | FK99: 15254 | FL99: 14889 | FM99: 14822 | FN99: 15117 | FO99: 15515 | FP99: 15726 | FQ99: 15535 | FR99: 15058 | FS99: 14210 | FT99: 13172 | FV99: Laos | GT99: 11071
A100: Latvia | B100: EurC | C100: Eur | D100: 0.1477444429 | E100: 0.07850261179 | F100: 0.1198774589 | H100: 0.5444926445 | I100: 0.3030988872 | J100: 0.3030988872 | L100: 0.271343322 | M100: 0.259 | N100: 0.3955061003 | P100: 144 | Q100: 182 | S100: 0.00378119892 | T100: 0.001665378501 | W100: 0 | X100: 0.9738656759 | Y100: 1.322250624 | Z100: 0.5025765718 | AA100: 0 | AB100: 1.098109983 | AC100: 0 | AD100: 1.224722087 | AE100: 0 | AF100: 0 | AG100: 0.5887280331 | AH100: 0.1340116817 | AI100: 0.1239359599 | AJ100: 0.1198774589 | AL100: 0 | AM100: 2.305791378 | AN100: 3.148541689 | AO100: 1.203436017 | AP100: 0 | AQ100: 2.659669399 | AR100: 0 | AS100: 2.99986577 | AT100: 0 | AU100: 0 | AV100: 1.465708733 | AW100: 0.3353857994 | AX100: 0.3117588758 | AY100: 0.3030988872 | BA100: 0.259 | BB100: 0.07850261179 | BE100: 0.2341635885 | BF100: 0.235738726 | BG100: 0.2497139832 | BH100: 0.1628060816 | BI100: 0.2368450196 | BJ100: 0.2546804542 | BK100: 0.2561812793 | BL100: 0.2786960575 | BM100: 0.1783936438 | BN100: 0.261909311 | BO100: 0.2411055457 | BP100: 0.2446817002 | BQ100: 0.2738060186 | BR100: 0.1743645712 | BS100: 0.2572774616 | BT100: 0.3038925984 | BU100: 0.3069097926 | BV100: 0.3539269002 | BW100: 0.2214478457 | BX100: 0.3334272338 | BY100: 0.2454746081 | BZ100: 0.2491143705 | CA100: 0.2811054091 | CB100: 0.178561809 | CC100: 0.263593266 | CD100: 0.2639444046 | CE100: 0.2644260714 | CF100: 0.288377256 | CG100: 0.1908579479 | CH100: 0.271343322 | CJ100: Latvia | CK100: 0.02911480042 | CL100: 0.1160417038 | CM100: 1.109320104 | CN100: 0.1237789001 | CO100: 1.378255508 | CP100: 0.02376569899 | CQ100: 0.08748681674 | CR100: 0.9160940359 | CS100: 0.1122463038 | CT100: 1.139592855 | CU100: 0.007921172026 | CV100: 0.03608717967 | CW100: 0.3580730783 | CX100: 0.04043285546 | CY100: 0.4425142854 | CZ100: 0.005322324858 | DA100: 0.02760303428 | DB100: 0.2926451796 | DC100: 0.02778096989 | DD100: 0.3533515086 | DE100: 0.002837648625 | DF100: 0.01631602472 | DG100: 0.1396928127 | DH100: 0.01584358124 | DI100: 0.1746900672 | DJ100: 0.002686307731 | DK100: 0.01577183325 | DL100: 0.1144168043 | DM100: 0.01486949766 | DN100: 0.1477444429 | DP100: 0.1243353017 | DQ100: 0.4922470983 | DR100: 4.442362775 | DS100: 0.760284253 | DT100: 5.819229428 | DU100: 0.09331575545 | DV100: 0.3415035516 | DW100: 3.287072103 | DX100: 0.6292057355 | DY100: 4.351097146 | DZ100: 0.03285354554 | EA100: 0.1474862225 | EB100: 1.307761897 | EC100: 0.2318868747 | ED100: 1.71998854 | EE100: 0.0175138351 | EF100: 0.0899385909 | EG100: 0.8268520404 | EH100: 0.1254515247 | EI100: 1.059755991 | EJ100: 0.01155984583 | EK100: 0.06549612006 | EL100: 0.496941034 | EM100: 0.08872883478 | EN100: 0.6627258347 | EO100: 0.01017755135 | EP100: 0.05964553028 | EQ100: 0.3967608468 | ER100: 0.07790871602 | ES100: 0.5444926445 | EV100: Latvia | EW100: 883 | EX100: 889 | EY100: 834 | EZ100: 732 | FA100: 621 | FB100: 526 | FC100: 447 | FD100: 392 | FE100: 358 | FF100: 337 | FG100: 321 | FH100: 311 | FI100: 311 | FJ100: 312 | FK100: 307 | FL100: 297 | FM100: 281 | FN100: 262 | FO100: 241 | FP100: 222 | FQ100: 207 | FR100: 195 | FS100: 188 | FT100: 182 | FV100: Latvia | GT100: 144
A101: Lebanon | B101: EmrB | C101: Emr | D101: 2.882594 | E101: 3.679613834 | F101: 5.058590105 | H101: 10.72111051 | I101: 11.75595474 | J101: 11.75595474 | L101: 0.2688708411 | M101: 0.313 | N101: 0.4303002364 | P101: 829 | Q101: 604 | S101: 0.01293258204 | T101: 0.01946350123 | W101: 24.79480705 | X101: 23.7791834 | Y101: 23.42085801 | Z101: 21.51023804 | AA101: 17.95819192 | AB101: 14.64074169 | AC101: 11.87566488 | AD101: 9.048070021 | AE101: 6.963871407 | AF101: 5.776125472 | AG101: 5.177628605 | AH101: 4.776881308 | AI101: 4.94367386 | AJ101: 5.058590105 | AL101: 53.78218842 | AM101: 51.86992264 | AN101: 51.37096786 | AO101: 47.44915771 | AP101: 39.83585358 | AQ101: 32.66412354 | AR101: 26.64140701 | AS101: 20.40796089 | AT101: 15.79050922 | AU101: 13.16344452 | AV101: 11.8577261 | AW101: 10.99418736 | AX101: 11.43327904 | AY101: 11.75595474 | BA101: 0.313 | BB101: 3.679613834 | BE101: 0.3128925089 | BF101: 0.3089351332 | BG101: 0.3104552945 | BH101: 0.226304891 | BI101: 0.2892154054 | BJ101: 0.2692743577 | BK101: 0.2717878551 | BL101: 0.2909955283 | BM101: 0.2106505836 | BN101: 0.2671607134 | BO101: 0.2585273294 | BP101: 0.2613637003 | BQ101: 0.2756849478 | BR101: 0.198127685 | BS101: 0.2514752643 | BT101: 0.2736866117 | BU101: 0.2736488807 | BV101: 0.2804172687 | BW101: 0.201124049 | BX101: 0.2549811193 | BY101: 0.297242463 | BZ101: 0.2987132543 | CA101: 0.3059627305 | CB101: 0.2169708248 | CC101: 0.2788320338 | CD101: 0.2886567743 | CE101: 0.2893432596 | CF101: 0.2948060952 | CG101: 0.2033516299 | CH101: 0.2688708411 | CJ101: Lebanon | CK101: 1.381692038 | CL101: 2.394939666 | CM101: 24.75618673 | CN101: 7.018699234 | CO101: 35.55151767 | CP101: 0.7487327583 | CQ101: 1.237938528 | CR101: 12.84024705 | CS101: 4.020914483 | CT101: 18.84783282 | CU101: 0.4144419754 | CV101: 0.6767401865 | CW101: 6.041739521 | CX101: 2.10753992 | CY101: 9.240461602 | CZ101: 0.224820107 | DA101: 0.4687707423 | DB101: 3.324613397 | DC101: 1.302985608 | DD101: 5.321189855 | DE101: 0.1297363768 | DF101: 0.3201371756 | DG101: 2.221270191 | DH101: 0.7937546883 | DI101: 3.464898431 | DJ101: 0.1014417199 | DK101: 0.2679512156 | DL101: 1.910992248 | DM101: 0.6022088162 | DN101: 2.882594 | DP101: 4.415868065 | DQ101: 7.752241194 | DR101: 79.7415511 | DS101: 31.01435061 | DT101: 122.924011 | DU101: 2.780557216 | DV101: 4.554797078 | DW101: 44.12523837 | DX101: 19.08807663 | DY101: 70.54866929 | DZ101: 1.603087675 | EA101: 2.589266167 | EB101: 21.91537684 | EC101: 10.6372813 | ED101: 36.74501199 | EE101: 0.8214508764 | EF101: 1.71303731 | EG101: 11.855951 | EH101: 6.478517187 | EI101: 20.86895637 | EJ101: 0.4364664977 | EK101: 1.071720692 | EL101: 7.259937141 | EM101: 3.658347564 | EN101: 12.42647189 | EO101: 0.3514267772 | EP101: 0.9260669006 | EQ101: 6.482200604 | ER101: 2.961416225 | ES101: 10.72111051 | EV101: Lebanon | EW101: 2053 | EX101: 1959 | EY101: 1912 | EZ101: 1886 | FA101: 1850 | FB101: 1777 | FC101: 1674 | FD101: 1550 | FE101: 1419 | FF101: 1303 | FG101: 1226 | FH101: 1147 | FI101: 1096 | FJ101: 1044 | FK101: 981 | FL101: 887 | FM101: 796 | FN101: 695 | FO101: 602 | FP101: 543 | FQ101: 522 | FR101: 527 | FS101: 562 | FT101: 604 | FV101: Lebanon | GT101: 829
A102: Lesotho | B102: AfrE | C102: Afr | D102: 182.5801013 | E102: 113.4313926 | F102: 164.401211 | H102: 949.6475705 | I102: 423.2514648 | J102: 423.2514648 | L102: 0.192260905 | M102: 0.268 | N102: 0.3884244347 | P102: 5085 | Q102: 5634 | S102: 0.1867546845 | T102: 0.07512450565 | W102: 232.4228728 | X102: 225.3027814 | Y102: 215.4272548 | Z102: 205.5076645 | AA102: 198.6171632 | AB102: 195.1844075 | AC102: 192.6952885 | AD102: 192.42808 | AE102: 180.9804235 | AF102: 203.7624633 | AG102: 200.4473604 | AH102: 187.6301432 | AI102: 174.6160324 | AJ102: 164.401211 | AL102: 549.9264526 | AM102: 533.3988647 | AN102: 510.6209717 | AO102: 487.968811 | AP102: 472.7232971 | AQ102: 466.1265869 | AR102: 462.4940796 | AS102: 466.0467834 | AT102: 441.8799133 | AU102: 503.0133057 | AV102: 500.5235901 | AW102: 475.2984009 | AX102: 446.2987366 | AY102: 423.2514648 | BA102: 0.268 | BB102: 113.4313926 | BE102: 0.2176101521 | BF102: 0.2158640434 | BG102: 0.2009097212 | BH102: 0.1432317333 | BI102: 0.1869973381 | BJ102: 0.2174582156 | BK102: 0.2160513699 | BL102: 0.2043810654 | BM102: 0.1464787333 | BN102: 0.191274451 | BO102: 0.2053659994 | BP102: 0.2048644387 | BQ102: 0.1933393804 | BR102: 0.1395172772 | BS102: 0.1823900269 | BT102: 0.2104738185 | BU102: 0.2086020158 | BV102: 0.1970478861 | BW102: 0.1447320194 | BX102: 0.1851856135 | BY102: 0.2153963396 | BZ102: 0.2136261281 | CA102: 0.2011648312 | CB102: 0.1420210334 | CC102: 0.1866588124 | CD102: 0.2227215587 | CE102: 0.2206286195 | CF102: 0.2074256174 | CG102: 0.147835105 | CH102: 0.192260905 | CJ102: Lesotho | CK102: 17.96680736 | CL102: 21.7287117 | CM102: 164.9517932 | CN102: 55.16343478 | CO102: 259.810747 | CP102: 13.20323107 | CQ102: 15.55714343 | CR102: 149.7854216 | CS102: 42.44159219 | CT102: 220.9873883 | CU102: 10.33397815 | CV102: 10.25075017 | CW102: 127.6856814 | CX102: 30.95377325 | CY102: 179.2241829 | CZ102: 9.843436861 | DA102: 10.55136551 | DB102: 148.2546516 | DC102: 40.39984178 | DD102: 209.0492957 | DE102: 8.075243909 | DF102: 11.08859636 | DG102: 148.6231136 | DH102: 41.97969034 | DI102: 209.7666442 | DJ102: 6.790231311 | DK102: 9.563266514 | DL102: 127.9228817 | DM102: 38.3037218 | DN102: 182.5801013 | DP102: 82.56419651 | DQ102: 100.6592454 | DR102: 821.0244491 | DS102: 385.1341703 | DT102: 1389.382061 | DU102: 60.716175 | DV102: 72.00668728 | DW102: 732.8732791 | DX102: 289.7457619 | DY102: 1155.341903 | DZ102: 50.31981039 | EA102: 50.03674739 | EB102: 660.4225227 | EC102: 221.8633696 | ED102: 982.6424501 | EE102: 46.76798726 | EF102: 50.58132094 | EG102: 752.3787976 | EH102: 279.1354805 | EI102: 1128.863586 | EJ102: 37.49016313 | EK102: 51.90655496 | EL102: 738.812608 | EM102: 295.5878389 | EN102: 1123.797165 | EO102: 30.48753498 | EP102: 43.34553938 | EQ102: 616.7168901 | ER102: 259.0976061 | ES102: 949.6475705 | EV102: Lesotho | EW102: 4635 | EX102: 4635 | EY102: 4698 | EZ102: 4840 | FA102: 5047 | FB102: 5308 | FC102: 5643 | FD102: 6003 | FE102: 6331 | FF102: 6588 | FG102: 6762 | FH102: 6830 | FI102: 6801 | FJ102: 6714 | FK102: 6629 | FL102: 6575 | FM102: 6510 | FN102: 6382 | FO102: 6359 | FP102: 6235 | FQ102: 6077 | FR102: 5782 | FS102: 5693 | FT102: 5634 | FV102: Lesotho | GT102: 5085
A103: Liberia | B103: AfrD | C103: Afr | D103: 318.9228422 | E103: 225.6946199 | F103: 313.2122717 | H103: 1257.048812 | I103: 842.144104 | J103: 842.144104 | L103: 0.2537076039 | M103: 0.268 | N103: 0.3719224182 | P103: 11637 | Q103: 10469 | S103: 0.1080217249 | T103: 0.08044169491 | W103: 1165.709236 | X103: 1049.369425 | Y103: 921.8017501 | Z103: 790.8042049 | AA103: 678.3701284 | AB103: 586.3559512 | AC103: 518.3169704 | AD103: 464.2309858 | AE103: 455.8469322 | AF103: 431.1003088 | AG103: 394.2560037 | AH103: 366.9568018 | AI103: 344.0961774 | AJ103: 313.2122717 | AL103: 2535.147461 | AM103: 2329.410156 | AN103: 2088.936768 | AO103: 1829.754517 | AP103: 1601.707886 | AQ103: 1411.880005 | AR103: 1271.741821 | AS103: 1159.121338 | AT103: 1155.928955 | AU103: 1108.545166 | AV103: 1026.45166 | AW103: 966.3544922 | AX103: 915.7991943 | AY103: 842.144104 | BA103: 0.268 | BB103: 225.6946199 | BE103: 0.2877038644 | BF103: 0.2861405701 | BG103: 0.2654917763 | BH103: 0.1994380939 | BI103: 0.243530949 | BJ103: 0.2650469689 | BK103: 0.2641222161 | BL103: 0.2418041757 | BM103: 0.1854136032 | BN103: 0.2256408225 | BO103: 0.2374778462 | BP103: 0.238049097 | BQ103: 0.2286378215 | BR103: 0.1813693255 | BS103: 0.2158383478 | BT103: 0.2754019403 | BU103: 0.2716788379 | BV103: 0.2587328197 | BW103: 0.2021590284 | BX103: 0.2447129375 | BY103: 0.2945587128 | BZ103: 0.2932421437 | CA103: 0.2657306205 | CB103: 0.1899952534 | CC103: 0.2491792113 | CD103: 0.3001715161 | CE103: 0.2971846809 | CF103: 0.269473041 | CG103: 0.1959150929 | CH103: 0.2537076039 | CJ103: Liberia | CK103: 33.72980721 | CL103: 64.10329842 | CM103: 678.8679517 | CN103: 320.5944 | CO103: 1097.295457 | CP103: 30.60395658 | CQ103: 53.01539875 | CR103: 485.9931253 | CS103: 206.3072548 | CT103: 775.9197354 | CU103: 22.56264171 | CV103: 35.10293324 | CW103: 361.6567968 | CX103: 134.5824925 | CY103: 553.9048642 | CZ103: 17.78878419 | DA103: 21.33178318 | DB103: 255.794773 | DC103: 85.32305769 | DD103: 380.2383981 | DE103: 15.43279369 | DF103: 18.21292791 | DG103: 227.724564 | DH103: 61.95270612 | DI103: 323.3229917 | DJ103: 14.20270834 | DK103: 16.57099499 | DL103: 227.381723 | DM103: 60.76741584 | DN103: 318.9228422 | DP103: 117.2379359 | DQ103: 224.0272968 | DR103: 2557.02064 | DS103: 1607.488288 | DT103: 4505.77416 | DU103: 115.4661632 | DV103: 200.7229817 | DW103: 2009.862418 | DX103: 1112.686724 | DY103: 3438.738287 | DZ103: 95.00945909 | EA103: 147.4608965 | EB103: 1581.789025 | EC103: 742.035579 | ED103: 2566.29496 | EE103: 64.59208009 | EF103: 78.51838347 | EG103: 988.6444763 | EH103: 422.0591005 | EI103: 1553.81404 | EJ103: 52.3929289 | EK103: 62.10883498 | EL103: 856.9752466 | EM103: 326.0750204 | EN103: 1297.552031 | EO103: 47.31531 | EP103: 55.75992323 | EQ103: 843.8013767 | ER103: 310.1722023 | ES103: 1257.048812 | EV103: Liberia | EW103: 22550 | EX103: 21691 | EY103: 20592 | EZ103: 19595 | FA103: 19132 | FB103: 19511 | FC103: 19643 | FD103: 20314 | FE103: 21059 | FF103: 21347 | FG103: 20827 | FH103: 20163 | FI103: 18937 | FJ103: 17430 | FK103: 16029 | FL103: 14909 | FM103: 13910 | FN103: 13128 | FO103: 12555 | FP103: 12057 | FQ103: 11594 | FR103: 11211 | FS103: 10841 | FT103: 10469 | FV103: Liberia | GT103: 11637
A104: Libya | B104: EmrB | C104: Emr | D104: 6.351182321 | E104: 9.606493736 | F104: 12.25359511 | H104: 24.2617167 | I104: 30.69167328 | J104: 30.69167328 | L104: 0.2617779442 | M104: 0.313 | N104: 0.3992481933 | P104: 1852 | Q104: 1845 | S104: 0.013100279 | T104: 0.01663505327 | W104: 49.39730232 | X104: 47.50143589 | Y104: 46.84306233 | Z104: 41.39475882 | AA104: 37.58142061 | AB104: 32.91964632 | AC104: 28.7730431 | AD104: 23.59251822 | AE104: 20.52541461 | AF104: 18.47753543 | AG104: 16.09118899 | AH104: 17.9623153 | AI104: 13.34864082 | AJ104: 12.25359511 | AL104: 114.3956604 | AM104: 110.6357498 | AN104: 109.7155838 | AO104: 97.51673889 | AP104: 89.06369781 | AQ104: 78.50798035 | AR104: 69.06480408 | AS104: 57.00859451 | AT104: 49.92441559 | AU104: 45.22077179 | AV104: 39.61921692 | AW104: 44.48236465 | AX104: 33.24482727 | AY104: 30.69167328 | BA104: 0.313 | BB104: 9.606493736 | BE104: 0.2995892119 | BF104: 0.2979215566 | BG104: 0.3081550613 | BH104: 0.2190060441 | BI104: 0.2837303782 | BJ104: 0.2591163766 | BK104: 0.2617312674 | BL104: 0.2686935435 | BM104: 0.1923291866 | BN104: 0.2476897288 | BO104: 0.2997984678 | BP104: 0.3023463196 | BQ104: 0.321413344 | BR104: 0.2235347647 | BS104: 0.2932830039 | BT104: 0.2783171686 | BU104: 0.2788661735 | BV104: 0.2916550502 | BW104: 0.2049063109 | BX104: 0.2660394312 | BY104: 0.2484888096 | BZ104: 0.2507547938 | CA104: 0.2693208835 | CB104: 0.2026197541 | CC104: 0.2471601057 | CD104: 0.2727071558 | CE104: 0.2739746129 | CF104: 0.2882053289 | CG104: 0.2051824025 | CH104: 0.2617779442 | CJ104: Libya | CK104: 1.929639168 | CL104: 3.773378587 | CM104: 51.65830975 | CN104: 14.80823268 | CO104: 72.16956019 | CP104: 1.041500018 | CQ104: 1.722944274 | CR104: 21.95551682 | CS104: 6.443202134 | CT104: 31.16316325 | CU104: 0.803523321 | CV104: 1.246355692 | CW104: 14.37780571 | CX104: 4.208587444 | CY104: 20.63627217 | CZ104: 0.5435469946 | DA104: 0.9093629474 | DB104: 8.807036503 | DC104: 2.813216526 | DD104: 13.07316297 | DE104: 0.2689938709 | DF104: 0.5698409807 | DG104: 4.975577124 | DH104: 1.906163144 | DI104: 7.72057512 | DJ104: 0.2004676552 | DK104: 0.4777582205 | DL104: 4.177848318 | DM104: 1.495108127 | DN104: 6.351182321 | DP104: 6.440950111 | DQ104: 12.66567828 | DR104: 167.6373886 | DS104: 67.61563474 | DT104: 254.3596517 | DU104: 4.019429538 | DV104: 6.582875219 | DW104: 81.71211164 | DX104: 33.50090669 | DY104: 125.8153231 | DZ104: 2.680211566 | EA104: 4.122278364 | EB104: 44.7330703 | EC104: 18.82744033 | ED104: 70.36300056 | EE104: 1.952976877 | EF104: 3.260929556 | EG104: 30.19675639 | EH104: 13.729282 | EI104: 49.13994483 | EJ104: 1.082519053 | EK104: 2.272502838 | EL104: 18.47453142 | EM104: 9.407587889 | EN104: 31.2371412 | EO104: 0.7351022917 | EP104: 1.74380471 | EQ104: 14.49608283 | ER104: 7.286726876 | ES104: 24.2617167 | EV104: Libya | EW104: 4999 | EX104: 4727 | EY104: 4523 | EZ104: 4366 | FA104: 4206 | FB104: 4029 | FC104: 3837 | FD104: 3613 | FE104: 3398 | FF104: 3230 | FG104: 3131 | FH104: 3084 | FI104: 3093 | FJ104: 3106 | FK104: 3090 | FL104: 3010 | FM104: 2880 | FN104: 2704 | FO104: 2516 | FP104: 2355 | FQ104: 2202 | FR104: 2079 | FS104: 1963 | FT104: 1845 | FV104: Libya | GT104: 1852
A105: Lithuania | B105: EurC | C105: Eur | D105: 0.1648122079 | E105: 0.2991050092 | F105: 0.454268906 | H105: 0.5763702756 | I105: 1.154845595 | J105: 1.154845595 | L105: 0.2859484863 | M105: 0.259 | N105: 0.3933589978 | P105: 155 | Q105: 166 | S105: 0.003718517907 | T105: 0.006956901177 | W105: 0.4278270369 | X105: 0 | Y105: 0.9690034251 | Z105: 0 | AA105: 1.128036221 | AB105: 0 | AC105: 0 | AD105: 0 | AE105: 1.210542279 | AF105: 0.5746653631 | AG105: 0.5784254687 | AH105: 0.6132800795 | AI105: 0.5556014172 | AJ105: 0.454268906 | AL105: 1.014703631 | AM105: 0 | AN105: 2.321633577 | AO105: 0 | AP105: 2.729264736 | AQ105: 0 | AR105: 0 | AS105: 0 | AT105: 2.991747618 | AU105: 1.428490162 | AV105: 1.446022153 | AW105: 1.541696191 | AX105: 1.404541969 | AY105: 1.154845595 | BA105: 0.259 | BB105: 0.2991050092 | BE105: 0.252014672 | BF105: 0.257208687 | BG105: 0.2886542104 | BH105: 0.1877515363 | BI105: 0.2738423376 | BJ105: 0.2467342637 | BK105: 0.2483801036 | BL105: 0.271996026 | BM105: 0.178786162 | BN105: 0.2574766911 | BO105: 0.2357172699 | BP105: 0.2409673439 | BQ105: 0.285537815 | BR105: 0.1841345225 | BS105: 0.2685080121 | BT105: 0.2807883069 | BU105: 0.2828431441 | BV105: 0.3111127871 | BW105: 0.1912443794 | BX105: 0.2940345786 | BY105: 0.2573802472 | BZ105: 0.2619734214 | CA105: 0.3114694834 | CB105: 0.2008832138 | CC105: 0.2926479772 | CD105: 0.2690639778 | CE105: 0.2701500796 | CF105: 0.3031850014 | CG105: 0.1993401985 | CH105: 0.2859484863 | CJ105: Lithuania | CK105: 0.02996505679 | CL105: 0.1308046528 | CM105: 1.890247244 | CN105: 0.1874244641 | CO105: 2.238441417 | CP105: 0.02239863853 | CQ105: 0.09092491169 | CR105: 1.299180497 | CS105: 0.1477854409 | CT105: 1.560289488 | CU105: 0.007249675001 | CV105: 0.03296271554 | CW105: 0.5417180066 | CX105: 0.06008686862 | CY105: 0.6420172658 | CZ105: 0.004601564551 | DA105: 0.02358857044 | DB105: 0.3319835118 | DC105: 0.03176570761 | DD105: 0.3919393544 | DE105: 0.002853540073 | DF105: 0.0162679604 | DG105: 0.1932468718 | DH105: 0.02053760054 | DI105: 0.2329059728 | DJ105: 0.002280203872 | DK105: 0.01296608344 | DL105: 0.134094131 | DM105: 0.01547178959 | DN105: 0.1648122079 | DP105: 0.1189020328 | DQ105: 0.5085545686 | DR105: 6.548483186 | DS105: 0.9982579517 | DT105: 8.174197739 | DU105: 0.09078041368 | DV105: 0.3660716393 | DW105: 4.776468671 | DX105: 0.8266044712 | DY105: 6.059925195 | DZ105: 0.0307558076 | EA105: 0.1367932891 | EB105: 1.897184815 | EC105: 0.3263204955 | ED105: 2.391054407 | EE105: 0.01638802058 | EF105: 0.08339806333 | EG105: 1.067084111 | EH105: 0.1661000846 | EI105: 1.332970279 | EJ105: 0.01108686507 | EK105: 0.06209775144 | EL105: 0.6204359724 | EM105: 0.1022365192 | EN105: 0.7958571081 | EO105: 0.008474578761 | EP105: 0.04799585274 | EQ105: 0.4422848437 | ER105: 0.07761500042 | ES105: 0.5763702756 | EV105: Lithuania | EW105: 954 | EX105: 1030 | EY105: 1055 | EZ105: 988 | FA105: 863 | FB105: 729 | FC105: 611 | FD105: 528 | FE105: 478 | FF105: 439 | FG105: 403 | FH105: 370 | FI105: 343 | FJ105: 320 | FK105: 308 | FL105: 295 | FM105: 286 | FN105: 278 | FO105: 270 | FP105: 253 | FQ105: 234 | FR105: 214 | FS105: 191 | FT105: 166 | FV105: Lithuania | GT105: 155
